Workbook

Sheet المكافأة
B1: محافظة اسيوط
B2: مديرية التربية والتعليم
B3: ادارة اسيوط التعليمية
B4: ادارة الموارد البشرية
B5: قسم الماهيات
B6: الموضوع : تنفيذ الاحكام القضائية الصادرة لللمعلمين بديوان ادارة اسيوط التعليمية ومدارسها باحقيتهم فى صرف الحوافز ومكافاة الامتحانات والاعمال الاضافية وجميع المزايا النقدية والعينية المقررة
B7: على اساس المرتب فى 30/6/2016 مع ما يترتب على ذلك من اثار من بند بدل المعلم 4 / 45 وبند حافز الاداء 3 / 23 وبند حافز الاثابة 3 / 3 وبند المكافاة 3 / 14 وبند الجهود الغير عادية | G7: 333
B8: العرض : صدر الكتاب الدورى رقم (1) لسنة 2020 من الجهاز المركزى للتنظيم والادارة بشان الاجراءات والمستندات اللازمة لموافاة الجهاز بها بتنفيذ الاحكام القضائية ضد الجهاز الادارى للدولة حيث نص بند (1)
B9: من وعلى ارفاق مذكرة معتمدة من السلطة المختصة متضمنه التكاليف اللازمة لتنفيذ الحكم والبند والنوع المطلوب للتنفيذ منه وحيث وردت الاحكام الاتية باجمالى مبلغ ( ) جنيه مصري لعدد ( ) | I9: يوم | O9: شهر | U9: ينسخ هناك sh
A10: البند المطلوب تعزيزة : بند بدل المعلم 4 / 45 وبند بدل الاعتماد 4 / 46 وبند حافز الاداء 3 / 23 وبند حافز الاثابة 3 / 3 وبند المكافاة 3 / 14 وبند الجهود غير العادية للمعلمين بادارة اسيوط التعليمية ومدارسها الصادرة لهم احكام قضائية وبياناتهم كالاتى | E10: الفرق | F10: الفرق | G10: مكافاة الامتحانات | H10: مكافاة الامتحانات | I10: عدد الشهور | J10: مكافاة الامتحانات | L10: عدد الشهور | M10: مبلغ المدة | N10: مبلغ المدة | O10: عدد الشهور | P10: مكافاة الامتحانات | R10: عدد الشهور | S10: مبلغ المدة | T10: مبلغ المدة | U10: عدد الشهور | V10: مكافاة الامتحانات | X10: عدد الشهور | Y10: مبلغ المدة | Z10: مبلغ المدة
A11: م | B11: الاسم رباعى | C11: الاساسي فى | I11: المستحقة | J11: عدد الشهور المستحقة | L11: المستحقة | O11: المستحقة | P11: عدد الشهور المستحقة | R11: المستحقة | U11: المستحقة | V11: عدد الشهور المستحقة | X11: المستحقة
C12: 2016-06-30 | D12: 2015-06-30 | F12: للطباعة | I12: باليوم | J12: يوم | K12: شهر | L12: باليوم | M12: المستحقة | N12: المستحقة | O12: باليوم | P12: يوم | Q12: شهر | R12: باليوم | S12: المستحقة | T12: المستحقة | U12: باليوم | V12: يوم | W12: شهر | X12: باليوم | Y12: المستحقة | Z12: المستحقة
A13: ='بيانات اساسية'!A13 -> 1 | B13: ='بيانات اساسية'!B13 -> مصطفى كامل حمدان شعبان | C13: ='بيانات اساسية'!L13 -> 962.11 | D13: ='بيانات اساسية'!M13 -> 824.27 | E13: =C13-D13 -> 137.84 | F13: =TRUNC(E13,2) -> 137.84 | G13: =F13*10 -> 1378.4 | H13: =TRUNC(G13,2) -> 1378.4 | I13: =H13/180 -> 7.657777778 | J13: ='بيانات اساسية'!BS13 -> 0 | K13: ='بيانات اساسية'!BT13 -> 16 | L13: =SUM(J13*30) -> 0 | M13: =L13*I13 -> 0 | N13: =TRUNC(M13,2) -> 0 | O13: =H13/180 -> 7.657777778 | Q13: ='بيانات اساسية'!BT13 -> 16 | R13: =SUM((Q13*15),P13) -> 240 | S13: =R13*O13 -> 1837.866667 | T13: =TRUNC(S13,2) -> 1837.86 | V13: 0 | W13: =J13+Q13 -> 16 | Y13: =T13+N13 -> 1837.86 | Z13: =TRUNC(Y13,2) -> 1837.86
A14: ='بيانات اساسية'!A14 -> 2 | B14: ='بيانات اساسية'!B14 -> سناء على عبد المجيد محمد | C14: ='بيانات اساسية'!L14 -> 936.4 | D14: ='بيانات اساسية'!M14 -> 807.34 | E14: =C14-D14 -> 129.06 | F14: =TRUNC(E14,2) -> 129.06 | G14: =F14*10 -> 1290.6 | H14: =TRUNC(G14,2) -> 1290.6 | I14: =H14/180 -> 7.17 | J14: ='بيانات اساسية'!BS14 -> 0 | K14: ='بيانات اساسية'!BT14 -> 24 | L14: =SUM(J14*30) -> 0 | M14: =L14*I14 -> 0 | N14: =TRUNC(M14,2) -> 0 | O14: =H14/180 -> 7.17 | Q14: ='بيانات اساسية'!BT14 -> 24 | R14: =SUM((Q14*15),P14) -> 360 | S14: =R14*O14 -> 2581.2 | T14: =TRUNC(S14,2) -> 2581.2 | V14: 0 | W14: =J14+Q14 -> 24 | Y14: =T14+N14 -> 2581.2 | Z14: =TRUNC(Y14,2) -> 2581.2
A15: ='بيانات اساسية'!A15 -> 3 | B15: ='بيانات اساسية'!B15 -> كريمة سالم سيد فرغلي | C15: ='بيانات اساسية'!L15 -> 900.9 | D15: ='بيانات اساسية'!M15 -> 775.79 | E15: =C15-D15 -> 125.11 | F15: =TRUNC(E15,2) -> 125.11 | G15: =F15*10 -> 1251.1 | H15: =TRUNC(G15,2) -> 1251.1 | I15: =H15/180 -> 6.950555556 | J15: ='بيانات اساسية'!BS15 -> 0 | K15: ='بيانات اساسية'!BT15 -> 53 | L15: =SUM(J15*30) -> 0 | M15: =L15*I15 -> 0 | N15: =TRUNC(M15,2) -> 0 | O15: =H15/180 -> 6.950555556 | Q15: ='بيانات اساسية'!BT15 -> 53 | R15: =SUM((Q15*15),P15) -> 795 | S15: =R15*O15 -> 5525.691667 | T15: =TRUNC(S15,2) -> 5525.69 | V15: 0 | W15: =J15+Q15 -> 53 | Y15: =T15+N15 -> 5525.69 | Z15: =TRUNC(Y15,2) -> 5525.69
A16: ='بيانات اساسية'!A16 -> 4 | B16: ='بيانات اساسية'!B16 -> ليلى عبد المنعم محمود طاهر | C16: ='بيانات اساسية'!L16 -> 980.1 | D16: ='بيانات اساسية'!M16 -> 839.25 | E16: 140.85 | F16: 140.85 | G16: 1408.5 | H16: 1408.5 | I16: 7.825 | J16: ='بيانات اساسية'!BS16 -> 0 | K16: ='بيانات اساسية'!BT16 -> 53 | L16: 0 | M16: 0 | N16: 0 | O16: 7.825 | Q16: ='بيانات اساسية'!BT16 -> 53 | R16: 795 | S16: 6220.875 | T16: 6220.87 | V16: 0 | W16: 53 | Y16: 6220.87 | Z16: 6220.87
A17: ='بيانات اساسية'!A17 -> 5 | B17: ='بيانات اساسية'!B17 -> عز الدين محمد احمد محمد الليثي | C17: ='بيانات اساسية'!L17 -> 988.96 | D17: ='بيانات اساسية'!M17 -> 846.96 | E17: 142 | F17: 142 | G17: 1420 | H17: 1420 | I17: 7.888888889 | J17: ='بيانات اساسية'!BS17 -> 0 | K17: ='بيانات اساسية'!BT17 -> 37 | L17: 0 | M17: 0 | N17: 0 | O17: 7.888888889 | Q17: ='بيانات اساسية'!BT17 -> 37 | R17: 555 | S17: 4378.333333 | T17: 4378.33 | V17: 0 | W17: 37 | Y17: 4378.33 | Z17: 4378.33
A18: ='بيانات اساسية'!A18 -> 6 | B18: ='بيانات اساسية'!B18 -> سوزان سام جبرائيل ينى | C18: ='بيانات اساسية'!L18 -> 1005.41 | D18: ='بيانات اساسية'!M18 -> 860.17 | E18: 145.24 | F18: 145.24 | G18: 1452.4 | H18: 1452.4 | I18: 8.068888889 | J18: ='بيانات اساسية'!BS18 -> 0 | K18: ='بيانات اساسية'!BT18 -> 14 | L18: 0 | M18: 0 | N18: 0 | O18: 8.068888889 | Q18: ='بيانات اساسية'!BT18 -> 14 | R18: 210 | S18: 1694.466667 | T18: 1694.46 | V18: 0 | W18: 14 | Y18: 1694.46 | Z18: 1694.46
A19: ='بيانات اساسية'!A19 -> 7 | B19: ='بيانات اساسية'!B19 -> منير زكريا حبيب كرلس | C19: ='بيانات اساسية'!L19 -> 977.5 | D19: ='بيانات اساسية'!M19 -> 836.95 | E19: 140.55 | F19: 140.55 | G19: 1405.5 | H19: 1405.5 | I19: 7.808333333 | J19: ='بيانات اساسية'!BS19 -> 0 | K19: ='بيانات اساسية'!BT19 -> 49 | L19: 0 | M19: 0 | N19: 0 | O19: 7.808333333 | Q19: ='بيانات اساسية'!BT19 -> 49 | R19: 735 | S19: 5739.125 | T19: 5739.12 | V19: 0 | W19: 49 | Y19: 5739.12 | Z19: 5739.12
A20: ='بيانات اساسية'!A20 -> 8 | B20: ='بيانات اساسية'!B20 -> وفاء محمود عمر عبد الرحمن | C20: ='بيانات اساسية'!L20 -> 776.42 | D20: ='بيانات اساسية'!M20 -> 668.75 | E20: 107.67 | F20: 107.67 | G20: 1076.7 | H20: 1076.7 | I20: 5.981666667 | J20: ='بيانات اساسية'!BS20 -> 0 | K20: ='بيانات اساسية'!BT20 -> 48 | L20: 0 | M20: 0 | N20: 0 | O20: 5.981666667 | Q20: ='بيانات اساسية'!BT20 -> 48 | R20: 720 | S20: 4306.8 | T20: 4306.8 | V20: 0 | W20: 48 | Y20: 4306.8 | Z20: 4306.8
A21: ='بيانات اساسية'!A21 -> 9 | B21: ='بيانات اساسية'!B21 -> وفاء ابراهيم عبد العزيز ابراهيم | C21: ='بيانات اساسية'!L21 -> 800.2 | D21: ='بيانات اساسية'!M21 -> 687.85 | E21: 112.35 | F21: 112.35 | G21: 1123.5 | H21: 1123.5 | I21: 6.241666667 | J21: ='بيانات اساسية'!BS21 -> 0 | K21: ='بيانات اساسية'!BT21 -> 52 | L21: 0 | M21: 0 | N21: 0 | O21: 6.241666667 | Q21: ='بيانات اساسية'!BT21 -> 52 | R21: 780 | S21: 4868.5 | T21: 4868.5 | V21: 0 | W21: 52 | Y21: 4868.5 | Z21: 4868.5
A22: ='بيانات اساسية'!A22 -> 10 | B22: ='بيانات اساسية'!B22 -> مديحه ابراهيم عثمان فراج | C22: ='بيانات اساسية'!L22 -> 878.37 | D22: ='بيانات اساسية'!M22 -> 755.99 | E22: 122.38 | F22: 122.38 | G22: 1223.8 | H22: 1223.8 | I22: 6.798888889 | J22: ='بيانات اساسية'!BS22 -> 0 | K22: ='بيانات اساسية'!BT22 -> 36 | L22: 0 | M22: 0 | N22: 0 | O22: 6.798888889 | Q22: ='بيانات اساسية'!BT22 -> 36 | R22: 540 | S22: 3671.4 | T22: 3671.4 | V22: 0 | W22: 36 | Y22: 3671.4 | Z22: 3671.4
A23: ='بيانات اساسية'!A23 -> 11 | B23: ='بيانات اساسية'!B23 -> جمال حسين محمد حسين | C23: ='بيانات اساسية'!L23 -> 1024.63 | D23: ='بيانات اساسية'!M23 -> 877.06 | E23: 147.57 | F23: 147.57 | G23: 1475.7 | H23: 1475.7 | I23: 8.198333333 | J23: ='بيانات اساسية'!BS23 -> 0 | K23: ='بيانات اساسية'!BT23 -> 24 | L23: 0 | M23: 0 | N23: 0 | O23: 8.198333333 | Q23: ='بيانات اساسية'!BT23 -> 24 | R23: 360 | S23: 2951.4 | T23: 2951.4 | V23: 0 | W23: 24 | Y23: 2951.4 | Z23: 2951.4
A24: ='بيانات اساسية'!A24 -> 12 | B24: ='بيانات اساسية'!B24 -> رمضان مصطفى مهدى محمد | C24: ='بيانات اساسية'!L24 -> 1034.89 | D24: ='بيانات اساسية'!M24 -> 885.77 | E24: 149.12 | F24: 149.12 | G24: 1491.2 | H24: 1491.2 | I24: 8.284444444 | J24: ='بيانات اساسية'!BS24 -> 0 | K24: ='بيانات اساسية'!BT24 -> 36 | L24: 0 | M24: 0 | N24: 0 | O24: 8.284444444 | Q24: ='بيانات اساسية'!BT24 -> 36 | R24: 540 | S24: 4473.6 | T24: 4473.6 | V24: 0 | W24: 36 | Y24: 4473.6 | Z24: 4473.6
A25: ='بيانات اساسية'!A25 -> 13 | B25: ='بيانات اساسية'!B25 -> خالد احمد سيد عبد العال | C25: ='بيانات اساسية'!L25 -> 904.81 | D25: ='بيانات اساسية'!M25 -> 778.2 | E25: 126.61 | F25: 126.61 | G25: 1266.1 | H25: 1266.1 | I25: 7.033888889 | J25: ='بيانات اساسية'!BS25 -> 0 | K25: ='بيانات اساسية'!BT25 -> 52 | L25: 0 | M25: 0 | N25: 0 | O25: 7.033888889 | Q25: ='بيانات اساسية'!BT25 -> 52 | R25: 780 | S25: 5486.433333 | T25: 5486.43 | V25: 0 | W25: 52 | Y25: 5486.43 | Z25: 5486.43
A26: ='بيانات اساسية'!A26 -> 14 | B26: ='بيانات اساسية'!B26 -> زغلول محمد حسن على | C26: ='بيانات اساسية'!L26 -> 935.61 | D26: ='بيانات اساسية'!M26 -> 804.94 | E26: 130.67 | F26: 130.67 | G26: 1306.7 | H26: 1306.7 | I26: 7.259444444 | J26: ='بيانات اساسية'!BS26 -> 0 | K26: ='بيانات اساسية'!BT26 -> 48 | L26: 0 | M26: 0 | N26: 0 | O26: 7.259444444 | Q26: ='بيانات اساسية'!BT26 -> 48 | R26: 720 | S26: 5226.8 | T26: 5226.8 | V26: 0 | W26: 48 | Y26: 5226.8 | Z26: 5226.8
A27: ='بيانات اساسية'!A27 -> 15 | B27: ='بيانات اساسية'!B27 -> سميره احمد عبد القادر سليم | C27: ='بيانات اساسية'!L27 -> 921.91 | D27: ='بيانات اساسية'!M27 -> 789.85 | E27: 132.06 | F27: 132.06 | G27: 1320.6 | H27: 1320.6 | I27: 7.336666667 | J27: ='بيانات اساسية'!BS27 -> 0 | K27: ='بيانات اساسية'!BT27 -> 53 | L27: 0 | M27: 0 | N27: 0 | O27: 7.336666667 | Q27: ='بيانات اساسية'!BT27 -> 53 | R27: 795 | S27: 5832.65 | T27: 5832.65 | V27: 0 | W27: 53 | Y27: 5832.65 | Z27: 5832.65
A28: ='بيانات اساسية'!A28 -> 16 | B28: ='بيانات اساسية'!B28 -> زينب محمد محمود احمد | C28: ='بيانات اساسية'!L28 -> 529.46 | D28: ='بيانات اساسية'!M28 -> 457.19 | E28: 72.27 | F28: 72.27 | G28: 722.7 | H28: 722.7 | I28: 4.015 | J28: ='بيانات اساسية'!BS28 -> 0 | K28: ='بيانات اساسية'!BT28 -> 36 | L28: 0 | M28: 0 | N28: 0 | O28: 4.015 | Q28: ='بيانات اساسية'!BT28 -> 36 | R28: 540 | S28: 2168.1 | T28: 2168.1 | V28: 0 | W28: 36 | Y28: 2168.1 | Z28: 2168.1
A29: ='بيانات اساسية'!A29 -> 17 | B29: ='بيانات اساسية'!B29 -> نبيل بخيت عبد اللطيف بخيت | C29: ='بيانات اساسية'!L29 -> 812.64 | D29: ='بيانات اساسية'!M29 -> 699.72 | E29: 112.92 | F29: 112.92 | G29: 1129.2 | H29: 1129.2 | I29: 6.273333333 | J29: ='بيانات اساسية'!BS29 -> 0 | K29: ='بيانات اساسية'!BT29 -> 41 | L29: 0 | M29: 0 | N29: 0 | O29: 6.273333333 | Q29: ='بيانات اساسية'!BT29 -> 41 | R29: 615 | S29: 3858.1 | T29: 3858.1 | V29: 0 | W29: 41 | Y29: 3858.1 | Z29: 3858.1
A30: ='بيانات اساسية'!A30 -> 18 | B30: ='بيانات اساسية'!B30 -> جمال محمد خلاف محمد | C30: ='بيانات اساسية'!L30 -> 838.73 | D30: ='بيانات اساسية'!M30 -> 721.61 | E30: 117.12 | F30: 117.12 | G30: 1171.2 | H30: 1171.2 | I30: 6.506666667 | J30: ='بيانات اساسية'!BS30 -> 0 | K30: ='بيانات اساسية'!BT30 -> 60 | L30: 0 | M30: 0 | N30: 0 | O30: 6.506666667 | Q30: ='بيانات اساسية'!BT30 -> 60 | R30: 900 | S30: 5856 | T30: 5856 | V30: 0 | W30: 60 | Y30: 5856 | Z30: 5856
A31: ='بيانات اساسية'!A31 -> 19 | B31: ='بيانات اساسية'!B31 -> محمد احمد حسن امام | C31: ='بيانات اساسية'!L31 -> 888.33 | D31: ='بيانات اساسية'!M31 -> 766.8 | E31: 121.53 | F31: 121.53 | G31: 1215.3 | H31: 1215.3 | I31: 6.751666667 | J31: ='بيانات اساسية'!BS31 -> 0 | K31: ='بيانات اساسية'!BT31 -> 48 | L31: 0 | M31: 0 | N31: 0 | O31: 6.751666667 | Q31: ='بيانات اساسية'!BT31 -> 48 | R31: 720 | S31: 4861.2 | T31: 4861.2 | V31: 0 | W31: 48 | Y31: 4861.2 | Z31: 4861.2
A32: ='بيانات اساسية'!A32 -> 20 | B32: ='بيانات اساسية'!B32 -> اقبال فخرى بشاى غبريال | C32: ='بيانات اساسية'!L32 -> 890.78 | D32: ='بيانات اساسية'!M32 -> 766.62 | E32: 124.16 | F32: 124.16 | G32: 1241.6 | H32: 1241.6 | I32: 6.897777778 | J32: ='بيانات اساسية'!BS32 -> 0 | K32: ='بيانات اساسية'!BT32 -> 48 | L32: 0 | M32: 0 | N32: 0 | O32: 6.897777778 | Q32: ='بيانات اساسية'!BT32 -> 48 | R32: 720 | S32: 4966.4 | T32: 4966.4 | V32: 0 | W32: 48 | Y32: 4966.4 | Z32: 4966.4
A33: ='بيانات اساسية'!A33 -> 21 | B33: ='بيانات اساسية'!B33 -> علاء الدين حلمى محمد احمد | C33: ='بيانات اساسية'!L33 -> 819.46 | D33: ='بيانات اساسية'!M33 -> 705.74 | E33: 113.72 | F33: 113.72 | G33: 1137.2 | H33: 1137.2 | I33: 6.317777778 | J33: ='بيانات اساسية'!BS33 -> 0 | K33: ='بيانات اساسية'!BT33 -> 60 | L33: 0 | M33: 0 | N33: 0 | O33: 6.317777778 | Q33: ='بيانات اساسية'!BT33 -> 60 | R33: 900 | S33: 5686 | T33: 5686 | V33: 0 | W33: 60 | Y33: 5686 | Z33: 5686
A34: ='بيانات اساسية'!A34 -> 22 | B34: ='بيانات اساسية'!B34 -> نجاه محروس شحاته عبد الكريم | C34: ='بيانات اساسية'!L34 -> 872.96 | D34: ='بيانات اساسية'!M34 -> 751.01 | E34: 121.95 | F34: 121.95 | G34: 1219.5 | H34: 1219.5 | I34: 6.775 | J34: ='بيانات اساسية'!BS34 -> 0 | K34: ='بيانات اساسية'!BT34 -> 36 | L34: 0 | M34: 0 | N34: 0 | O34: 6.775 | Q34: ='بيانات اساسية'!BT34 -> 36 | R34: 540 | S34: 3658.5 | T34: 3658.5 | V34: 0 | W34: 36 | Y34: 3658.5 | Z34: 3658.5
A35: ='بيانات اساسية'!A35 -> 23 | B35: ='بيانات اساسية'!B35 -> سهير عبد المسيح بولس عبد المسيح | C35: ='بيانات اساسية'!L35 -> 693.89 | D35: ='بيانات اساسية'!M35 -> 599.02 | E35: 94.87 | F35: 94.87 | G35: 948.7 | H35: 948.7 | I35: 5.270555556 | J35: ='بيانات اساسية'!BS35 -> 0 | K35: ='بيانات اساسية'!BT35 -> 24 | L35: 0 | M35: 0 | N35: 0 | O35: 5.270555556 | Q35: ='بيانات اساسية'!BT35 -> 24 | R35: 360 | S35: 1897.4 | T35: 1897.4 | V35: 0 | W35: 24 | Y35: 1897.4 | Z35: 1897.4
A36: ='بيانات اساسية'!A36 -> 24 | B36: ='بيانات اساسية'!B36 -> ايمان محمد سيد حسانين | C36: ='بيانات اساسية'!L36 -> 938.64 | D36: ='بيانات اساسية'!M36 -> 809.25 | E36: 129.39 | F36: 129.39 | G36: 1293.9 | H36: 1293.9 | I36: 7.188333333 | J36: ='بيانات اساسية'!BS36 -> 0 | K36: ='بيانات اساسية'!BT36 -> 51 | L36: 0 | M36: 0 | N36: 0 | O36: 7.188333333 | Q36: ='بيانات اساسية'!BT36 -> 51 | R36: 765 | S36: 5499.075 | T36: 5499.07 | V36: 0 | W36: 51 | Y36: 5499.07 | Z36: 5499.07
A37: ='بيانات اساسية'!A37 -> 25 | B37: ='بيانات اساسية'!B37 -> ملكه محمود احمد ابراهيم | C37: ='بيانات اساسية'!L37 -> 838.99 | D37: ='بيانات اساسية'!M37 -> 721.6 | E37: 117.39 | F37: 117.39 | G37: 1173.9 | H37: 1173.9 | I37: 6.521666667 | J37: ='بيانات اساسية'!BS37 -> 0 | K37: ='بيانات اساسية'!BT37 -> 15 | L37: 0 | M37: 0 | N37: 0 | O37: 6.521666667 | Q37: ='بيانات اساسية'!BT37 -> 15 | R37: 225 | S37: 1467.375 | T37: 1467.37 | V37: 0 | W37: 15 | Y37: 1467.37 | Z37: 1467.37
A38: ='بيانات اساسية'!A38 -> 26 | B38: ='بيانات اساسية'!B38 -> نورا حسن حسانين عمر | C38: ='بيانات اساسية'!L38 -> 711.39 | D38: ='بيانات اساسية'!M38 -> 612.21 | E38: 99.18 | F38: 99.17 | G38: 991.7 | H38: 991.7 | I38: 5.509444444 | J38: ='بيانات اساسية'!BS38 -> 0 | K38: ='بيانات اساسية'!BT38 -> 49 | L38: 0 | M38: 0 | N38: 0 | O38: 5.509444444 | Q38: ='بيانات اساسية'!BT38 -> 49 | R38: 735 | S38: 4049.441667 | T38: 4049.44 | V38: 0 | W38: 49 | Y38: 4049.44 | Z38: 4049.44
A39: ='بيانات اساسية'!A39 -> 27 | B39: ='بيانات اساسية'!B39 -> عبد المنعم محمد مرسي بخيت | C39: ='بيانات اساسية'!L39 -> 963.68 | D39: ='بيانات اساسية'!M39 -> 831.22 | E39: 132.46 | F39: 132.46 | G39: 1324.6 | H39: 1324.6 | I39: 7.358888889 | J39: ='بيانات اساسية'!BS39 -> 0 | K39: ='بيانات اساسية'!BT39 -> 24 | L39: 0 | M39: 0 | N39: 0 | O39: 7.358888889 | Q39: ='بيانات اساسية'!BT39 -> 24 | R39: 360 | S39: 2649.2 | T39: 2649.2 | V39: 0 | W39: 24 | Y39: 2649.2 | Z39: 2649.2
A40: ='بيانات اساسية'!A40 -> 28 | B40: ='بيانات اساسية'!B40 -> هدى احمد محمود نشات | C40: ='بيانات اساسية'!L40 -> 859.91 | D40: ='بيانات اساسية'!M40 -> 740.25 | E40: 119.66 | F40: 119.66 | G40: 1196.6 | H40: 1196.6 | I40: 6.647777778 | J40: ='بيانات اساسية'!BS40 -> 0 | K40: ='بيانات اساسية'!BT40 -> 28 | L40: 0 | M40: 0 | N40: 0 | O40: 6.647777778 | Q40: ='بيانات اساسية'!BT40 -> 28 | R40: 420 | S40: 2792.066667 | T40: 2792.06 | V40: 0 | W40: 28 | Y40: 2792.06 | Z40: 2792.06
A41: ='بيانات اساسية'!A41 -> 29 | B41: ='بيانات اساسية'!B41 -> راندا لوس ابراهيم لوس | C41: ='بيانات اساسية'!L41 -> 706.97 | D41: ='بيانات اساسية'!M41 -> 609.16 | E41: 97.81 | F41: 97.81 | G41: 978.1 | H41: 978.1 | I41: 5.433888889 | J41: ='بيانات اساسية'!BS41 -> 0 | K41: ='بيانات اساسية'!BT41 -> 60 | L41: 0 | M41: 0 | N41: 0 | O41: 5.433888889 | Q41: ='بيانات اساسية'!BT41 -> 60 | R41: 900 | S41: 4890.5 | T41: 4890.5 | V41: 0 | W41: 60 | Y41: 4890.5 | Z41: 4890.5
A42: ='بيانات اساسية'!A42 -> 30 | B42: ='بيانات اساسية'!B42 -> احمد محمد احمد همام | C42: ='بيانات اساسية'!L42 -> 1013.16 | D42: ='بيانات اساسية'!M42 -> 867.02 | E42: 146.14 | F42: 146.14 | G42: 1461.4 | H42: 1461.4 | I42: 8.118888889 | J42: ='بيانات اساسية'!BS42 -> 0 | K42: ='بيانات اساسية'!BT42 -> 24 | L42: 0 | M42: 0 | N42: 0 | O42: 8.118888889 | Q42: ='بيانات اساسية'!BT42 -> 24 | R42: 360 | S42: 2922.8 | T42: 2922.8 | V42: 0 | W42: 24 | Y42: 2922.8 | Z42: 2922.8
A43: ='بيانات اساسية'!A43 -> 31 | B43: ='بيانات اساسية'!B43 -> ايهاب عباس عبد النعيم عليوه | C43: ='بيانات اساسية'!L43 -> 937.14 | D43: ='بيانات اساسية'!M43 -> 807.75 | E43: 129.39 | F43: 129.39 | G43: 1293.9 | H43: 1293.9 | I43: 7.188333333 | J43: ='بيانات اساسية'!BS43 -> 0 | K43: ='بيانات اساسية'!BT43 -> 36 | L43: 0 | M43: 0 | N43: 0 | O43: 7.188333333 | Q43: ='بيانات اساسية'!BT43 -> 36 | R43: 540 | S43: 3881.7 | T43: 3881.7 | V43: 0 | W43: 36 | Y43: 3881.7 | Z43: 3881.7
A44: ='بيانات اساسية'!A44 -> 32 | B44: ='بيانات اساسية'!B44 -> احمد عبد الحافظ محمد عبد الحافظ | C44: ='بيانات اساسية'!L44 -> 676.45 | D44: ='بيانات اساسية'!M44 -> 583.01 | E44: 93.44 | F44: 93.44 | G44: 934.4 | H44: 934.4 | I44: 5.191111111 | J44: ='بيانات اساسية'!BS44 -> 0 | K44: ='بيانات اساسية'!BT44 -> 60 | L44: 0 | M44: 0 | N44: 0 | O44: 5.191111111 | Q44: ='بيانات اساسية'!BT44 -> 60 | R44: 900 | S44: 4672 | T44: 4672 | V44: 0 | W44: 60 | Y44: 4672 | Z44: 4672
A45: ='بيانات اساسية'!A45 -> 33 | B45: ='بيانات اساسية'!B45 -> حمديه محمد حسين يوسف | C45: ='بيانات اساسية'!L45 -> 968.77 | D45: ='بيانات اساسية'!M45 -> 829.62 | E45: 139.15 | F45: 139.15 | G45: 1391.5 | H45: 1391.5 | I45: 7.730555556 | J45: ='بيانات اساسية'!BS45 -> 0 | K45: ='بيانات اساسية'!BT45 -> 48 | L45: 0 | M45: 0 | N45: 0 | O45: 7.730555556 | Q45: ='بيانات اساسية'!BT45 -> 48 | R45: 720 | S45: 5566 | T45: 5566 | V45: 0 | W45: 48 | Y45: 5566 | Z45: 5566
A46: ='بيانات اساسية'!A46 -> 34 | B46: ='بيانات اساسية'!B46 -> سحر ابراهيم محمد حسن | C46: ='بيانات اساسية'!L46 -> 851.8 | D46: ='بيانات اساسية'!M46 -> 733.09 | E46: 118.71 | F46: 118.71 | G46: 1187.1 | H46: 1187.1 | I46: 6.595 | J46: ='بيانات اساسية'!BS46 -> 0 | K46: ='بيانات اساسية'!BT46 -> 60 | L46: 0 | M46: 0 | N46: 0 | O46: 6.595 | Q46: ='بيانات اساسية'!BT46 -> 60 | R46: 900 | S46: 5935.5 | T46: 5935.5 | V46: 0 | W46: 60 | Y46: 5935.5 | Z46: 5935.5
A47: ='بيانات اساسية'!A47 -> 35 | B47: ='بيانات اساسية'!B47 -> ايمان حمودى محمد حمودى | C47: ='بيانات اساسية'!L47 -> 884.69 | D47: ='بيانات اساسية'!M47 -> 761.94 | E47: 122.75 | F47: 122.75 | G47: 1227.5 | H47: 1227.5 | I47: 6.819444444 | J47: ='بيانات اساسية'!BS47 -> 0 | K47: ='بيانات اساسية'!BT47 -> 60 | L47: 0 | M47: 0 | N47: 0 | O47: 6.819444444 | Q47: ='بيانات اساسية'!BT47 -> 60 | R47: 900 | S47: 6137.5 | T47: 6137.5 | V47: 0 | W47: 60 | Y47: 6137.5 | Z47: 6137.5
A48: ='بيانات اساسية'!A48 -> 36 | B48: ='بيانات اساسية'!B48 -> عبد المنصف عبد الوهاب سليمان عطيه | C48: ='بيانات اساسية'!L48 -> 973.13 | D48: ='بيانات اساسية'!M48 -> 833.69 | E48: 139.44 | F48: 139.44 | G48: 1394.4 | H48: 1394.4 | I48: 7.746666667 | J48: ='بيانات اساسية'!BS48 -> 0 | K48: ='بيانات اساسية'!BT48 -> 60 | L48: 0 | M48: 0 | N48: 0 | O48: 7.746666667 | Q48: ='بيانات اساسية'!BT48 -> 60 | R48: 900 | S48: 6972 | T48: 6972 | V48: 0 | W48: 60 | Y48: 6972 | Z48: 6972
A49: ='بيانات اساسية'!A49 -> 37 | B49: ='بيانات اساسية'!B49 -> سامى لويز ملك حنا | C49: ='بيانات اساسية'!L49 -> 870.39 | D49: ='بيانات اساسية'!M49 -> 748.8 | E49: 121.59 | F49: 121.59 | G49: 1215.9 | H49: 1215.9 | I49: 6.755 | J49: ='بيانات اساسية'!BS49 -> 0 | K49: ='بيانات اساسية'!BT49 -> 36 | L49: 0 | M49: 0 | N49: 0 | O49: 6.755 | Q49: ='بيانات اساسية'!BT49 -> 36 | R49: 540 | S49: 3647.7 | T49: 3647.7 | V49: 0 | W49: 36 | Y49: 3647.7 | Z49: 3647.7
A50: ='بيانات اساسية'!A50 -> 38 | B50: ='بيانات اساسية'!B50 -> ايمان بخيت محمد بخيت | C50: ='بيانات اساسية'!L50 -> 897.78 | D50: ='بيانات اساسية'!M50 -> 772.18 | E50: 125.6 | F50: 125.6 | G50: 1256 | H50: 1256 | I50: 6.977777778 | J50: ='بيانات اساسية'!BS50 -> 0 | K50: ='بيانات اساسية'!BT50 -> 72 | L50: 0 | M50: 0 | N50: 0 | O50: 6.977777778 | Q50: ='بيانات اساسية'!BT50 -> 72 | R50: 1080 | S50: 7536 | T50: 7536 | V50: 0 | W50: 72 | Y50: 7536 | Z50: 7536
A51: ='بيانات اساسية'!A51 -> 39 | B51: ='بيانات اساسية'!B51 -> ماجده يوسف محمود يوسف | C51: ='بيانات اساسية'!L51 -> 941.23 | D51: ='بيانات اساسية'!M51 -> 810.74 | E51: 130.49 | F51: 130.49 | G51: 1304.9 | H51: 1304.9 | I51: 7.249444444 | J51: ='بيانات اساسية'!BS51 -> 0 | K51: ='بيانات اساسية'!BT51 -> 60 | L51: 0 | M51: 0 | N51: 0 | O51: 7.249444444 | Q51: ='بيانات اساسية'!BT51 -> 60 | R51: 900 | S51: 6524.5 | T51: 6524.5 | V51: 0 | W51: 60 | Y51: 6524.5 | Z51: 6524.5
A52: ='بيانات اساسية'!A52 -> 40 | B52: ='بيانات اساسية'!B52 -> بهجه عبد الحميد مصطفى شرقاوى | C52: ='بيانات اساسية'!L52 -> 906.24 | D52: ='بيانات اساسية'!M52 -> 779.73 | E52: 126.51 | F52: 126.51 | G52: 1265.1 | H52: 1265.1 | I52: 7.028333333 | J52: ='بيانات اساسية'!BS52 -> 0 | K52: ='بيانات اساسية'!BT52 -> 65 | L52: 0 | M52: 0 | N52: 0 | O52: 7.028333333 | Q52: ='بيانات اساسية'!BT52 -> 65 | R52: 975 | S52: 6852.625 | T52: 6852.62 | V52: 0 | W52: 65 | Y52: 6852.62 | Z52: 6852.62
A53: ='بيانات اساسية'!A53 -> 41 | B53: ='بيانات اساسية'!B53 -> صباح محمدحسين هريدى | C53: ='بيانات اساسية'!L53 -> 814.28 | D53: ='بيانات اساسية'!M53 -> 701.16 | E53: 113.12 | F53: 113.12 | G53: 1131.2 | H53: 1131.2 | I53: 6.284444444 | J53: ='بيانات اساسية'!BS53 -> 0 | K53: ='بيانات اساسية'!BT53 -> 72 | L53: 0 | M53: 0 | N53: 0 | O53: 6.284444444 | Q53: ='بيانات اساسية'!BT53 -> 72 | R53: 1080 | S53: 6787.2 | T53: 6787.2 | V53: 0 | W53: 72 | Y53: 6787.2 | Z53: 6787.2
A54: ='بيانات اساسية'!A54 -> 42 | B54: ='بيانات اساسية'!B54 -> مجدى فوزى ثابت ابراهيم | C54: ='بيانات اساسية'!L54 -> 950.54 | D54: ='بيانات اساسية'!M54 -> 813.17 | E54: 137.37 | F54: 137.37 | G54: 1373.7 | H54: 1373.7 | I54: 7.631666667 | J54: ='بيانات اساسية'!BS54 -> 0 | K54: ='بيانات اساسية'!BT54 -> 60 | L54: 0 | M54: 0 | N54: 0 | O54: 7.631666667 | Q54: ='بيانات اساسية'!BT54 -> 60 | R54: 900 | S54: 6868.5 | T54: 6868.5 | V54: 0 | W54: 60 | Y54: 6868.5 | Z54: 6868.5
A55: ='بيانات اساسية'!A55 -> 43 | B55: ='بيانات اساسية'!B55 -> رافت برسوم ابسخرون جريس | C55: ='بيانات اساسية'!L55 -> 1054.16 | D55: ='بيانات اساسية'!M55 -> 903.25 | E55: 150.91 | F55: 150.91 | G55: 1509.1 | H55: 1509.1 | I55: 8.383888889 | J55: ='بيانات اساسية'!BS55 -> 0 | K55: ='بيانات اساسية'!BT55 -> 24 | L55: 0 | M55: 0 | N55: 0 | O55: 8.383888889 | Q55: ='بيانات اساسية'!BT55 -> 24 | R55: 360 | S55: 3018.2 | T55: 3018.2 | V55: 0 | W55: 24 | Y55: 3018.2 | Z55: 3018.2
A56: ='بيانات اساسية'!A56 -> 44 | B56: ='بيانات اساسية'!B56 -> نرجس نجيب منصور تاضروس | C56: ='بيانات اساسية'!L56 -> 897.78 | D56: ='بيانات اساسية'!M56 -> 772.18 | E56: 125.6 | F56: 125.6 | G56: 1256 | H56: 1256 | I56: 6.977777778 | J56: ='بيانات اساسية'!BS56 -> 0 | K56: ='بيانات اساسية'!BT56 -> 62 | L56: 0 | M56: 0 | N56: 0 | O56: 6.977777778 | Q56: ='بيانات اساسية'!BT56 -> 62 | R56: 930 | S56: 6489.333333 | T56: 6489.33 | V56: 0 | W56: 62 | Y56: 6489.33 | Z56: 6489.33
A57: ='بيانات اساسية'!A57 -> 45 | B57: ='بيانات اساسية'!B57 -> نبيله عياد مينا قلدس | C57: ='بيانات اساسية'!L57 -> 892.7 | D57: ='بيانات اساسية'!M57 -> 768.94 | E57: 123.76 | F57: 123.76 | G57: 1237.6 | H57: 1237.6 | I57: 6.875555556 | J57: ='بيانات اساسية'!BS57 -> 0 | K57: ='بيانات اساسية'!BT57 -> 63 | L57: 0 | M57: 0 | N57: 0 | O57: 6.875555556 | Q57: ='بيانات اساسية'!BT57 -> 63 | R57: 945 | S57: 6497.4 | T57: 6497.4 | V57: 0 | W57: 63 | Y57: 6497.4 | Z57: 6497.4
A58: ='بيانات اساسية'!A58 -> 0 | B58: ='بيانات اساسية'!B58 -> 0 | C58: ='بيانات اساسية'!L58 -> 0 | D58: ='بيانات اساسية'!M58 -> 0 | E58: 0 | F58: 0 | G58: 0 | H58: 0 | I58: 0 | J58: ='بيانات اساسية'!BS58 -> 0 | K58: ='بيانات اساسية'!BT58 -> 0 | L58: 0 | M58: 0 | N58: 0 | O58: 0 | Q58: ='بيانات اساسية'!BT58 -> 0 | R58: 0 | S58: 0 | T58: 0 | V58: 0 | W58: 0 | Y58: 0 | Z58: 0
A59: ='بيانات اساسية'!A59 -> 0 | B59: ='بيانات اساسية'!B59 -> 0 | C59: ='بيانات اساسية'!L59 -> 0 | D59: ='بيانات اساسية'!M59 -> 0 | E59: 0 | F59: 0 | G59: 0 | H59: 0 | I59: 0 | J59: ='بيانات اساسية'!BS59 -> 0 | K59: ='بيانات اساسية'!BT59 -> 0 | L59: 0 | M59: 0 | N59: 0 | O59: 0 | Q59: ='بيانات اساسية'!BT59 -> 0 | R59: 0 | S59: 0 | T59: 0 | V59: 0 | W59: 0 | Y59: 0 | Z59: 0
A60: ='بيانات اساسية'!A60 -> 0 | B60: ='بيانات اساسية'!B60 -> 0 | C60: ='بيانات اساسية'!L60 -> 0 | D60: ='بيانات اساسية'!M60 -> 0 | E60: 0 | F60: 0 | G60: 0 | H60: 0 | I60: 0 | J60: ='بيانات اساسية'!BS60 -> 0 | K60: ='بيانات اساسية'!BT60 -> 0 | L60: 0 | M60: 0 | N60: 0 | O60: 0 | Q60: ='بيانات اساسية'!BT60 -> 0 | R60: 0 | S60: 0 | T60: 0 | V60: 0 | W60: 0 | Y60: 0 | Z60: 0
A61: ='بيانات اساسية'!A61 -> 0 | B61: ='بيانات اساسية'!B61 -> 0 | C61: ='بيانات اساسية'!L61 -> 0 | D61: ='بيانات اساسية'!M61 -> 0 | E61: 0 | F61: 0 | G61: 0 | H61: 0 | I61: 0 | J61: ='بيانات اساسية'!BS61 -> 0 | K61: ='بيانات اساسية'!BT61 -> 0 | L61: 0 | M61: 0 | N61: 0 | O61: 0 | Q61: ='بيانات اساسية'!BT61 -> 0 | R61: 0 | S61: 0 | T61: 0 | V61: 0 | W61: 0 | Y61: 0 | Z61: 0
A62: ='بيانات اساسية'!A62 -> 0 | B62: ='بيانات اساسية'!B62 -> 0 | C62: ='بيانات اساسية'!L62 -> 0 | D62: ='بيانات اساسية'!M62 -> 0 | E62: 0 | F62: 0 | G62: 0 | H62: 0 | I62: 0 | J62: ='بيانات اساسية'!BS62 -> 0 | K62: ='بيانات اساسية'!BT62 -> 0 | L62: 0 | M62: 0 | N62: 0 | O62: 0 | Q62: ='بيانات اساسية'!BT62 -> 0 | R62: 0 | S62: 0 | T62: 0 | V62: 0 | W62: 0 | Y62: 0 | Z62: 0
A63: ='بيانات اساسية'!A63 -> 0 | B63: ='بيانات اساسية'!B63 -> 0 | C63: ='بيانات اساسية'!L63 -> 0 | D63: ='بيانات اساسية'!M63 -> 0 | E63: 0 | F63: 0 | G63: 0 | H63: 0 | I63: 0 | J63: ='بيانات اساسية'!BS63 -> 0 | K63: ='بيانات اساسية'!BT63 -> 0 | L63: 0 | M63: 0 | N63: 0 | O63: 0 | Q63: ='بيانات اساسية'!BT63 -> 0 | R63: 0 | S63: 0 | T63: 0 | V63: 0 | W63: 0 | Y63: 0 | Z63: 0
A64: ='بيانات اساسية'!A64 -> 0 | B64: ='بيانات اساسية'!B64 -> 0 | C64: ='بيانات اساسية'!L64 -> 0 | D64: ='بيانات اساسية'!M64 -> 0 | E64: 0 | F64: 0 | G64: 0 | H64: 0 | I64: 0 | J64: ='بيانات اساسية'!BS64 -> 0 | K64: ='بيانات اساسية'!BT64 -> 0 | L64: 0 | M64: 0 | N64: 0 | O64: 0 | Q64: ='بيانات اساسية'!BT64 -> 0 | R64: 0 | S64: 0 | T64: 0 | V64: 0 | W64: 0 | Y64: 0 | Z64: 0
A65: ='بيانات اساسية'!A65 -> 0 | B65: ='بيانات اساسية'!B65 -> 0 | C65: ='بيانات اساسية'!L65 -> 0 | D65: ='بيانات اساسية'!M65 -> 0 | E65: 0 | F65: 0 | G65: 0 | H65: 0 | I65: 0 | J65: ='بيانات اساسية'!BS65 -> 0 | K65: ='بيانات اساسية'!BT65 -> 0 | L65: 0 | M65: 0 | N65: 0 | O65: 0 | Q65: ='بيانات اساسية'!BT65 -> 0 | R65: 0 | S65: 0 | T65: 0 | V65: 0 | W65: 0 | Y65: 0 | Z65: 0
A66: ='بيانات اساسية'!A66 -> 0 | B66: ='بيانات اساسية'!B66 -> 0 | C66: ='بيانات اساسية'!L66 -> 0 | D66: ='بيانات اساسية'!M66 -> 0 | E66: 0 | F66: 0 | G66: 0 | H66: 0 | I66: 0 | J66: ='بيانات اساسية'!BS66 -> 0 | K66: ='بيانات اساسية'!BT66 -> 0 | L66: 0 | M66: 0 | N66: 0 | O66: 0 | Q66: ='بيانات اساسية'!BT66 -> 0 | R66: 0 | S66: 0 | T66: 0 | V66: 0 | W66: 0 | Y66: 0 | Z66: 0
A67: ='بيانات اساسية'!A67 -> 0 | B67: ='بيانات اساسية'!B67 -> 0 | C67: ='بيانات اساسية'!L67 -> 0 | D67: ='بيانات اساسية'!M67 -> 0 | E67: 0 | F67: 0 | G67: 0 | H67: 0 | I67: 0 | J67: ='بيانات اساسية'!BS67 -> 0 | K67: ='بيانات اساسية'!BT67 -> 0 | L67: 0 | M67: 0 | N67: 0 | O67: 0 | Q67: ='بيانات اساسية'!BT67 -> 0 | R67: 0 | S67: 0 | T67: 0 | V67: 0 | W67: 0 | Y67: 0 | Z67: 0
A68: ='بيانات اساسية'!A68 -> 0 | B68: ='بيانات اساسية'!B68 -> 0 | C68: ='بيانات اساسية'!L68 -> 0 | D68: ='بيانات اساسية'!M68 -> 0 | E68: 0 | F68: 0 | G68: 0 | H68: 0 | I68: 0 | J68: ='بيانات اساسية'!BS68 -> 0 | K68: ='بيانات اساسية'!BT68 -> 0 | L68: 0 | M68: 0 | N68: 0 | O68: 0 | Q68: ='بيانات اساسية'!BT68 -> 0 | R68: 0 | S68: 0 | T68: 0 | V68: 0 | W68: 0 | Y68: 0 | Z68: 0
A69: ='بيانات اساسية'!A69 -> 0 | B69: ='بيانات اساسية'!B69 -> 0 | C69: ='بيانات اساسية'!L69 -> 0 | D69: ='بيانات اساسية'!M69 -> 0 | E69: 0 | F69: 0 | G69: 0 | H69: 0 | I69: 0 | J69: ='بيانات اساسية'!BS69 -> 0 | K69: ='بيانات اساسية'!BT69 -> 0 | L69: 0 | M69: 0 | N69: 0 | O69: 0 | Q69: ='بيانات اساسية'!BT69 -> 0 | R69: 0 | S69: 0 | T69: 0 | V69: 0 | W69: 0 | Y69: 0 | Z69: 0
A70: ='بيانات اساسية'!A70 -> 0 | B70: ='بيانات اساسية'!B70 -> 0 | C70: ='بيانات اساسية'!L70 -> 0 | D70: ='بيانات اساسية'!M70 -> 0 | E70: 0 | F70: 0 | G70: 0 | H70: 0 | I70: 0 | J70: ='بيانات اساسية'!BS70 -> 0 | K70: ='بيانات اساسية'!BT70 -> 0 | L70: 0 | M70: 0 | N70: 0 | O70: 0 | Q70: ='بيانات اساسية'!BT70 -> 0 | R70: 0 | S70: 0 | T70: 0 | V70: 0 | W70: 0 | Y70: 0 | Z70: 0
A71: ='بيانات اساسية'!A71 -> 0 | B71: ='بيانات اساسية'!B71 -> 0 | C71: ='بيانات اساسية'!L71 -> 0 | D71: ='بيانات اساسية'!M71 -> 0 | E71: 0 | F71: 0 | G71: 0 | H71: 0 | I71: 0 | J71: ='بيانات اساسية'!BS71 -> 0 | K71: ='بيانات اساسية'!BT71 -> 0 | L71: 0 | M71: 0 | N71: 0 | O71: 0 | Q71: ='بيانات اساسية'!BT71 -> 0 | R71: 0 | S71: 0 | T71: 0 | V71: 0 | W71: 0 | Y71: 0 | Z71: 0
A72: ='بيانات اساسية'!A72 -> 0 | B72: ='بيانات اساسية'!B72 -> 0 | C72: ='بيانات اساسية'!L72 -> 0 | D72: ='بيانات اساسية'!M72 -> 0 | E72: =C72-D72 -> 0 | F72: =TRUNC(E72,2) -> 0 | G72: 0 | H72: =TRUNC(G72,2) -> 0 | I72: 0 | J72: ='بيانات اساسية'!BS72 -> 0 | K72: ='بيانات اساسية'!BT72 -> 0 | L72: =SUM(J72*30) -> 0 | M72: =L72*I72 -> 0 | N72: =TRUNC(M72,2) -> 0 | O72: =H72/180 -> 0 | Q72: ='بيانات اساسية'!BT72 -> 0 | R72: =SUM((Q72*15),P72) -> 0 | S72: =R72*O72 -> 0 | T72: =TRUNC(S72,2) -> 0 | V72: 0 | W72: =J72+Q72 -> 0 | Y72: =T72+N72 -> 0 | Z72: =TRUNC(Y72,2) -> 0
A73: ='بيانات اساسية'!A73 -> 0 | B73: ='بيانات اساسية'!B73 -> 0 | C73: ='بيانات اساسية'!L73 -> 0 | D73: ='بيانات اساسية'!M73 -> 0 | E73: 0 | F73: 0 | G73: 0 | H73: 0 | I73: 0 | J73: ='بيانات اساسية'!BS73 -> 0 | K73: ='بيانات اساسية'!BT73 -> 0 | L73: 0 | M73: 0 | N73: 0 | O73: 0 | Q73: ='بيانات اساسية'!BT73 -> 0 | R73: 0 | S73: 0 | T73: 0 | V73: 0 | W73: 0 | Y73: 0 | Z73: 0
A74: ='بيانات اساسية'!A74 -> 0 | B74: ='بيانات اساسية'!B74 -> 0 | C74: ='بيانات اساسية'!L74 -> 0 | D74: ='بيانات اساسية'!M74 -> 0 | E74: 0 | F74: 0 | G74: 0 | H74: 0 | I74: 0 | J74: ='بيانات اساسية'!BS74 -> 0 | K74: ='بيانات اساسية'!BT74 -> 0 | L74: 0 | M74: 0 | N74: 0 | O74: 0 | Q74: ='بيانات اساسية'!BT74 -> 0 | R74: 0 | S74: 0 | T74: 0 | V74: 0 | W74: 0 | Y74: 0 | Z74: 0
A75: ='بيانات اساسية'!A75 -> 0 | B75: ='بيانات اساسية'!B75 -> 0 | C75: ='بيانات اساسية'!L75 -> 0 | D75: ='بيانات اساسية'!M75 -> 0 | E75: 0 | F75: 0 | G75: 0 | H75: 0 | I75: 0 | J75: ='بيانات اساسية'!BS75 -> 0 | K75: ='بيانات اساسية'!BT75 -> 0 | L75: 0 | M75: 0 | N75: 0 | O75: 0 | Q75: ='بيانات اساسية'!BT75 -> 0 | R75: 0 | S75: 0 | T75: 0 | V75: 0 | W75: 0 | Y75: 0 | Z75: 0
A76: ='بيانات اساسية'!A76 -> 0 | B76: ='بيانات اساسية'!B76 -> 0 | C76: ='بيانات اساسية'!L76 -> 0 | D76: ='بيانات اساسية'!M76 -> 0 | E76: 0 | F76: 0 | G76: 0 | H76: 0 | I76: 0 | J76: ='بيانات اساسية'!BS76 -> 0 | K76: ='بيانات اساسية'!BT76 -> 0 | L76: 0 | M76: 0 | N76: 0 | O76: 0 | Q76: ='بيانات اساسية'!BT76 -> 0 | R76: 0 | S76: 0 | T76: 0 | V76: 0 | W76: 0 | Y76: 0 | Z76: 0
A77: ='بيانات اساسية'!A77 -> 0 | B77: ='بيانات اساسية'!B77 -> 0 | C77: ='بيانات اساسية'!L77 -> 0 | D77: ='بيانات اساسية'!M77 -> 0 | E77: 0 | F77: 0 | G77: 0 | H77: 0 | I77: 0 | J77: ='بيانات اساسية'!BS77 -> 0 | K77: ='بيانات اساسية'!BT77 -> 0 | L77: 0 | M77: 0 | N77: 0 | O77: 0 | Q77: ='بيانات اساسية'!BT77 -> 0 | R77: 0 | S77: 0 | T77: 0 | V77: 0 | W77: 0 | Y77: 0 | Z77: 0
A78: ='بيانات اساسية'!A78 -> 0 | B78: ='بيانات اساسية'!B78 -> 0 | C78: ='بيانات اساسية'!L78 -> 0 | D78: ='بيانات اساسية'!M78 -> 0 | E78: 0 | F78: 0 | G78: 0 | H78: 0 | I78: 0 | J78: ='بيانات اساسية'!BS78 -> 0 | K78: ='بيانات اساسية'!BT78 -> 0 | L78: 0 | M78: 0 | N78: 0 | O78: 0 | Q78: ='بيانات اساسية'!BT78 -> 0 | R78: 0 | S78: 0 | T78: 0 | V78: 0 | W78: 0 | Y78: 0 | Z78: 0
A79: ='بيانات اساسية'!A79 -> 0 | B79: ='بيانات اساسية'!B79 -> 0 | C79: ='بيانات اساسية'!L79 -> 0 | D79: ='بيانات اساسية'!M79 -> 0 | E79: 0 | F79: 0 | G79: =F79*10 -> 0 | H79: 0 | I79: =H79/180 -> 0 | J79: ='بيانات اساسية'!BS79 -> 0 | K79: ='بيانات اساسية'!BT79 -> 0 | L79: 0 | M79: 0 | N79: 0 | O79: 0 | Q79: ='بيانات اساسية'!BT79 -> 0 | R79: 0 | S79: 0 | T79: 0 | V79: 0 | W79: 0 | Y79: 0 | Z79: 0
A80: ='بيانات اساسية'!A80 -> 0 | B80: ='بيانات اساسية'!B80 -> 0 | C80: ='بيانات اساسية'!L80 -> 0 | D80: ='بيانات اساسية'!M80 -> 0 | E80: 0 | F80: 0 | G80: 0 | H80: 0 | I80: 0 | J80: ='بيانات اساسية'!BS80 -> 0 | K80: ='بيانات اساسية'!BT80 -> 0 | L80: 0 | M80: 0 | N80: 0 | O80: 0 | Q80: ='بيانات اساسية'!BT80 -> 0 | R80: 0 | S80: 0 | T80: 0 | V80: 0 | W80: 0 | Y80: 0 | Z80: 0
A81: ='بيانات اساسية'!A81 -> 0 | B81: ='بيانات اساسية'!B81 -> 0 | C81: ='بيانات اساسية'!L81 -> 0 | D81: ='بيانات اساسية'!M81 -> 0 | E81: 0 | F81: 0 | G81: 0 | H81: 0 | I81: 0 | J81: ='بيانات اساسية'!BS81 -> 0 | K81: ='بيانات اساسية'!BT81 -> 0 | L81: 0 | M81: 0 | N81: 0 | O81: 0 | Q81: ='بيانات اساسية'!BT81 -> 0 | R81: 0 | S81: 0 | T81: 0 | V81: 0 | W81: 0 | Y81: 0 | Z81: 0
A82: ='بيانات اساسية'!A82 -> 0 | B82: ='بيانات اساسية'!B82 -> 0 | C82: ='بيانات اساسية'!L82 -> 0 | D82: ='بيانات اساسية'!M82 -> 0 | E82: 0 | F82: 0 | G82: 0 | H82: 0 | I82: 0 | J82: ='بيانات اساسية'!BS82 -> 0 | K82: ='بيانات اساسية'!BT82 -> 0 | L82: 0 | M82: 0 | N82: 0 | O82: 0 | Q82: ='بيانات اساسية'!BT82 -> 0 | R82: 0 | S82: 0 | T82: 0 | V82: 0 | W82: 0 | Y82: 0 | Z82: 0
A83: ='بيانات اساسية'!A83 -> 0 | B83: ='بيانات اساسية'!B83 -> 0 | C83: ='بيانات اساسية'!L83 -> 0 | D83: ='بيانات اساسية'!M83 -> 0 | E83: 0 | F83: 0 | G83: 0 | H83: 0 | I83: 0 | J83: ='بيانات اساسية'!BS83 -> 0 | K83: ='بيانات اساسية'!BT83 -> 0 | L83: 0 | M83: 0 | N83: 0 | O83: 0 | Q83: ='بيانات اساسية'!BT83 -> 0 | R83: 0 | S83: 0 | T83: 0 | V83: 0 | W83: 0 | Y83: 0 | Z83: 0
A84: ='بيانات اساسية'!A84 -> 0 | B84: ='بيانات اساسية'!B84 -> 0 | C84: ='بيانات اساسية'!L84 -> 0 | D84: ='بيانات اساسية'!M84 -> 0 | E84: 0 | F84: 0 | G84: 0 | H84: 0 | I84: 0 | J84: ='بيانات اساسية'!BS84 -> 0 | K84: ='بيانات اساسية'!BT84 -> 0 | L84: 0 | M84: 0 | N84: 0 | O84: 0 | Q84: ='بيانات اساسية'!BT84 -> 0 | R84: 0 | S84: 0 | T84: 0 | V84: 0 | W84: 0 | Y84: 0 | Z84: 0
A85: ='بيانات اساسية'!A85 -> 0 | B85: ='بيانات اساسية'!B85 -> 0 | C85: ='بيانات اساسية'!L85 -> 0 | D85: ='بيانات اساسية'!M85 -> 0 | E85: 0 | F85: 0 | G85: 0 | H85: 0 | I85: 0 | J85: ='بيانات اساسية'!BS85 -> 0 | K85: ='بيانات اساسية'!BT85 -> 0 | L85: 0 | M85: 0 | N85: 0 | O85: 0 | Q85: ='بيانات اساسية'!BT85 -> 0 | R85: 0 | S85: 0 | T85: 0 | V85: 0 | W85: 0 | Y85: 0 | Z85: 0
A86: ='بيانات اساسية'!A86 -> 0 | B86: ='بيانات اساسية'!B86 -> 0 | C86: ='بيانات اساسية'!L86 -> 0 | D86: ='بيانات اساسية'!M86 -> 0 | E86: 0 | F86: 0 | G86: 0 | H86: 0 | I86: 0 | J86: ='بيانات اساسية'!BS86 -> 0 | K86: ='بيانات اساسية'!BT86 -> 0 | L86: 0 | M86: 0 | N86: 0 | O86: 0 | Q86: ='بيانات اساسية'!BT86 -> 0 | R86: 0 | S86: 0 | T86: 0 | V86: 0 | W86: 0 | Y86: 0 | Z86: 0
A87: ='بيانات اساسية'!A87 -> 0 | B87: ='بيانات اساسية'!B87 -> 0 | C87: ='بيانات اساسية'!L87 -> 0 | D87: ='بيانات اساسية'!M87 -> 0 | E87: 0 | F87: 0 | G87: 0 | H87: 0 | I87: 0 | J87: ='بيانات اساسية'!BS87 -> 0 | K87: ='بيانات اساسية'!BT87 -> 0 | L87: 0 | M87: 0 | N87: 0 | O87: 0 | Q87: ='بيانات اساسية'!BT87 -> 0 | R87: 0 | S87: 0 | T87: 0 | V87: 0 | W87: 0 | Y87: 0 | Z87: 0
A88: ='بيانات اساسية'!A88 -> 0 | B88: ='بيانات اساسية'!B88 -> 0 | C88: ='بيانات اساسية'!L88 -> 0 | D88: ='بيانات اساسية'!M88 -> 0 | E88: 0 | F88: 0 | G88: 0 | H88: 0 | I88: 0 | J88: ='بيانات اساسية'!BS88 -> 0 | K88: ='بيانات اساسية'!BT88 -> 0 | L88: 0 | M88: 0 | N88: 0 | O88: 0 | Q88: ='بيانات اساسية'!BT88 -> 0 | R88: 0 | S88: 0 | T88: 0 | V88: 0 | W88: 0 | Y88: 0 | Z88: 0
A89: ='بيانات اساسية'!A89 -> 0 | B89: ='بيانات اساسية'!B89 -> 0 | C89: ='بيانات اساسية'!L89 -> 0 | D89: ='بيانات اساسية'!M89 -> 0 | E89: 0 | F89: 0 | G89: 0 | H89: 0 | I89: 0 | J89: ='بيانات اساسية'!BS89 -> 0 | K89: ='بيانات اساسية'!BT89 -> 0 | L89: 0 | M89: 0 | N89: 0 | O89: 0 | Q89: ='بيانات اساسية'!BT89 -> 0 | R89: 0 | S89: 0 | T89: 0 | V89: 0 | W89: 0 | Y89: 0 | Z89: 0
A90: ='بيانات اساسية'!A90 -> 0 | B90: ='بيانات اساسية'!B90 -> 0 | C90: ='بيانات اساسية'!L90 -> 0 | D90: ='بيانات اساسية'!M90 -> 0 | E90: 0 | F90: 0 | G90: 0 | H90: 0 | I90: 0 | J90: ='بيانات اساسية'!BS90 -> 0 | K90: ='بيانات اساسية'!BT90 -> 0 | L90: 0 | M90: 0 | N90: 0 | O90: 0 | Q90: ='بيانات اساسية'!BT90 -> 0 | R90: 0 | S90: 0 | T90: 0 | V90: 0 | W90: 0 | Y90: 0 | Z90: 0
A91: ='بيانات اساسية'!A91 -> 0 | B91: ='بيانات اساسية'!B91 -> 0 | C91: ='بيانات اساسية'!L91 -> 0 | D91: ='بيانات اساسية'!M91 -> 0 | E91: 0 | F91: 0 | G91: 0 | H91: 0 | I91: 0 | J91: ='بيانات اساسية'!BS91 -> 0 | K91: ='بيانات اساسية'!BT91 -> 0 | L91: 0 | M91: 0 | N91: 0 | O91: 0 | Q91: ='بيانات اساسية'!BT91 -> 0 | R91: 0 | S91: 0 | T91: 0 | V91: 0 | W91: 0 | Y91: 0 | Z91: 0
A92: ='بيانات اساسية'!A92 -> 0 | B92: ='بيانات اساسية'!B92 -> 0 | C92: ='بيانات اساسية'!L92 -> 0 | D92: ='بيانات اساسية'!M92 -> 0 | E92: 0 | F92: 0 | G92: 0 | H92: 0 | I92: 0 | J92: ='بيانات اساسية'!BS92 -> 0 | K92: ='بيانات اساسية'!BT92 -> 0 | L92: 0 | M92: 0 | N92: 0 | O92: 0 | Q92: ='بيانات اساسية'!BT92 -> 0 | R92: 0 | S92: 0 | T92: 0 | V92: 0 | W92: 0 | Y92: 0 | Z92: 0
A93: ='بيانات اساسية'!A93 -> 0 | B93: ='بيانات اساسية'!B93 -> 0 | C93: ='بيانات اساسية'!L93 -> 0 | D93: ='بيانات اساسية'!M93 -> 0 | E93: 0 | F93: 0 | G93: 0 | H93: 0 | I93: 0 | J93: ='بيانات اساسية'!BS93 -> 0 | K93: ='بيانات اساسية'!BT93 -> 0 | L93: 0 | M93: 0 | N93: 0 | O93: 0 | Q93: ='بيانات اساسية'!BT93 -> 0 | R93: 0 | S93: 0 | T93: 0 | V93: 0 | W93: 0 | Y93: 0 | Z93: 0
A94: ='بيانات اساسية'!A94 -> 0 | B94: ='بيانات اساسية'!B94 -> 0 | C94: ='بيانات اساسية'!L94 -> 0 | D94: ='بيانات اساسية'!M94 -> 0 | E94: 0 | F94: 0 | G94: 0 | H94: 0 | I94: 0 | J94: ='بيانات اساسية'!BS94 -> 0 | K94: ='بيانات اساسية'!BT94 -> 0 | L94: 0 | M94: 0 | N94: 0 | O94: 0 | Q94: ='بيانات اساسية'!BT94 -> 0 | R94: 0 | S94: 0 | T94: 0 | V94: 0 | W94: 0 | Y94: 0 | Z94: 0
A95: ='بيانات اساسية'!A95 -> 0 | B95: ='بيانات اساسية'!B95 -> 0 | C95: ='بيانات اساسية'!L95 -> 0 | D95: ='بيانات اساسية'!M95 -> 0 | E95: 0 | F95: 0 | G95: 0 | H95: 0 | I95: 0 | J95: ='بيانات اساسية'!BS95 -> 0 | K95: ='بيانات اساسية'!BT95 -> 0 | L95: 0 | M95: 0 | N95: 0 | O95: 0 | Q95: ='بيانات اساسية'!BT95 -> 0 | R95: 0 | S95: 0 | T95: 0 | V95: 0 | W95: 0 | Y95: 0 | Z95: 0
A96: ='بيانات اساسية'!A96 -> 0 | B96: ='بيانات اساسية'!B96 -> 0 | C96: ='بيانات اساسية'!L96 -> 0 | D96: ='بيانات اساسية'!M96 -> 0 | E96: 0 | F96: 0 | G96: 0 | H96: 0 | I96: 0 | J96: ='بيانات اساسية'!BS96 -> 0 | K96: ='بيانات اساسية'!BT96 -> 0 | L96: 0 | M96: 0 | N96: 0 | O96: 0 | Q96: ='بيانات اساسية'!BT96 -> 0 | R96: 0 | S96: 0 | T96: 0 | V96: 0 | W96: 0 | Y96: 0 | Z96: 0
A97: ='بيانات اساسية'!A97 -> 0 | B97: ='بيانات اساسية'!B97 -> 0 | C97: ='بيانات اساسية'!L97 -> 0 | D97: ='بيانات اساسية'!M97 -> 0 | E97: 0 | F97: 0 | G97: 0 | H97: 0 | I97: 0 | J97: ='بيانات اساسية'!BS97 -> 0 | K97: ='بيانات اساسية'!BT97 -> 0 | L97: 0 | M97: 0 | N97: 0 | O97: 0 | Q97: ='بيانات اساسية'!BT97 -> 0 | R97: 0 | S97: 0 | T97: 0 | V97: 0 | W97: 0 | Y97: 0 | Z97: 0
A98: ='بيانات اساسية'!A98 -> 0 | B98: ='بيانات اساسية'!B98 -> 0 | C98: ='بيانات اساسية'!L98 -> 0 | D98: ='بيانات اساسية'!M98 -> 0 | E98: 0 | F98: 0 | G98: 0 | H98: 0 | I98: 0 | J98: ='بيانات اساسية'!BS98 -> 0 | K98: ='بيانات اساسية'!BT98 -> 0 | L98: 0 | M98: 0 | N98: 0 | O98: 0 | Q98: ='بيانات اساسية'!BT98 -> 0 | R98: 0 | S98: 0 | T98: 0 | V98: 0 | W98: 0 | Y98: 0 | Z98: 0
A99: ='بيانات اساسية'!A99 -> 0 | B99: ='بيانات اساسية'!B99 -> 0 | C99: ='بيانات اساسية'!L99 -> 0 | D99: ='بيانات اساسية'!M99 -> 0 | E99: 0 | F99: 0 | G99: 0 | H99: 0 | I99: 0 | J99: ='بيانات اساسية'!BS99 -> 0 | K99: ='بيانات اساسية'!BT99 -> 0 | L99: 0 | M99: 0 | N99: 0 | O99: 0 | Q99: ='بيانات اساسية'!BT99 -> 0 | R99: 0 | S99: 0 | T99: 0 | V99: 0 | W99: 0 | Y99: 0 | Z99: 0
A100: ='بيانات اساسية'!A100 -> 0 | B100: ='بيانات اساسية'!B100 -> 0 | C100: ='بيانات اساسية'!L100 -> 0 | D100: ='بيانات اساسية'!M100 -> 0 | E100: 0 | F100: 0 | G100: 0 | H100: 0 | I100: 0 | J100: ='بيانات اساسية'!BS100 -> 0 | K100: ='بيانات اساسية'!BT100 -> 0 | L100: 0 | M100: 0 | N100: 0 | O100: 0 | Q100: ='بيانات اساسية'!BT100 -> 0 | R100: 0 | S100: 0 | T100: 0 | V100: 0 | W100: 0 | Y100: 0 | Z100: 0
A101: ='بيانات اساسية'!A101 -> 0 | B101: ='بيانات اساسية'!B101 -> 0 | C101: ='بيانات اساسية'!L101 -> 0 | D101: ='بيانات اساسية'!M101 -> 0 | E101: 0 | F101: 0 | G101: 0 | H101: 0 | I101: 0 | J101: ='بيانات اساسية'!BS101 -> 0 | K101: ='بيانات اساسية'!BT101 -> 0 | L101: 0 | M101: 0 | N101: 0 | O101: 0 | Q101: ='بيانات اساسية'!BT101 -> 0 | R101: 0 | S101: 0 | T101: 0 | V101: 0 | W101: 0 | Y101: 0 | Z101: 0
A102: ='بيانات اساسية'!A102 -> 0 | B102: ='بيانات اساسية'!B102 -> 0 | C102: ='بيانات اساسية'!L102 -> 0 | D102: ='بيانات اساسية'!M102 -> 0 | E102: 0 | F102: 0 | G102: 0 | H102: 0 | I102: 0 | J102: ='بيانات اساسية'!BS102 -> 0 | K102: ='بيانات اساسية'!BT102 -> 0 | L102: 0 | M102: 0 | N102: 0 | O102: 0 | Q102: ='بيانات اساسية'!BT102 -> 0 | R102: 0 | S102: 0 | T102: 0 | V102: 0 | W102: 0 | Y102: 0 | Z102: 0
A103: ='بيانات اساسية'!A103 -> 0 | B103: ='بيانات اساسية'!B103 -> 0 | C103: ='بيانات اساسية'!L103 -> 0 | D103: ='بيانات اساسية'!M103 -> 0 | E103: 0 | F103: 0 | G103: 0 | H103: 0 | I103: 0 | J103: ='بيانات اساسية'!BS103 -> 0 | K103: ='بيانات اساسية'!BT103 -> 0 | L103: 0 | M103: 0 | N103: 0 | O103: 0 | Q103: ='بيانات اساسية'!BT103 -> 0 | R103: 0 | S103: 0 | T103: 0 | V103: 0 | W103: 0 | Y103: 0 | Z103: 0
A104: ='بيانات اساسية'!A104 -> 0 | B104: ='بيانات اساسية'!B104 -> 0 | C104: ='بيانات اساسية'!L104 -> 0 | D104: ='بيانات اساسية'!M104 -> 0 | E104: 0 | F104: 0 | G104: 0 | H104: 0 | I104: 0 | J104: ='بيانات اساسية'!BS104 -> 0 | K104: ='بيانات اساسية'!BT104 -> 0 | L104: 0 | M104: 0 | N104: 0 | O104: 0 | Q104: ='بيانات اساسية'!BT104 -> 0 | R104: 0 | S104: 0 | T104: 0 | V104: 0 | W104: 0 | Y104: 0 | Z104: 0
A105: ='بيانات اساسية'!A105 -> 0 | B105: ='بيانات اساسية'!B105 -> 0 | C105: ='بيانات اساسية'!L105 -> 0 | D105: ='بيانات اساسية'!M105 -> 0 | E105: 0 | F105: 0 | G105: 0 | H105: 0 | I105: 0 | J105: ='بيانات اساسية'!BS105 -> 0 | K105: ='بيانات اساسية'!BT105 -> 0 | L105: 0 | M105: 0 | N105: 0 | O105: 0 | Q105: ='بيانات اساسية'!BT105 -> 0 | R105: 0 | S105: 0 | T105: 0 | V105: 0 | W105: 0 | Y105: 0 | Z105: 0
A106: ='بيانات اساسية'!A106 -> 0 | B106: ='بيانات اساسية'!B106 -> 0 | C106: ='بيانات اساسية'!L106 -> 0 | D106: ='بيانات اساسية'!M106 -> 0 | E106: 0 | F106: 0 | G106: 0 | H106: 0 | I106: 0 | J106: ='بيانات اساسية'!BS106 -> 0 | K106: ='بيانات اساسية'!BT106 -> 0 | L106: 0 | M106: 0 | N106: 0 | O106: 0 | Q106: ='بيانات اساسية'!BT106 -> 0 | R106: 0 | S106: 0 | T106: 0 | V106: 0 | W106: 0 | Y106: 0 | Z106: 0
A107: ='بيانات اساسية'!A107 -> 0 | B107: ='بيانات اساسية'!B107 -> 0 | C107: ='بيانات اساسية'!L107 -> 0 | D107: ='بيانات اساسية'!M107 -> 0 | E107: 0 | F107: 0 | G107: 0 | H107: 0 | I107: 0 | J107: ='بيانات اساسية'!BS107 -> 0 | K107: ='بيانات اساسية'!BT107 -> 0 | L107: 0 | M107: 0 | N107: 0 | O107: 0 | Q107: ='بيانات اساسية'!BT107 -> 0 | R107: 0 | S107: 0 | T107: 0 | V107: 0 | W107: 0 | Y107: 0 | Z107: 0
A108: ='بيانات اساسية'!A108 -> 0 | B108: ='بيانات اساسية'!B108 -> 0 | C108: ='بيانات اساسية'!L108 -> 0 | D108: ='بيانات اساسية'!M108 -> 0 | E108: 0 | F108: 0 | G108: 0 | H108: 0 | I108: 0 | J108: ='بيانات اساسية'!BS108 -> 0 | K108: ='بيانات اساسية'!BT108 -> 0 | L108: 0 | M108: 0 | N108: 0 | O108: 0 | Q108: ='بيانات اساسية'!BT108 -> 0 | R108: 0 | S108: 0 | T108: 0 | V108: 0 | W108: 0 | Y108: 0 | Z108: 0
A109: ='بيانات اساسية'!A109 -> 0 | B109: ='بيانات اساسية'!B109 -> 0 | C109: ='بيانات اساسية'!L109 -> 0 | D109: ='بيانات اساسية'!M109 -> 0 | E109: 0 | F109: 0 | G109: 0 | H109: 0 | I109: 0 | J109: ='بيانات اساسية'!BS109 -> 0 | K109: ='بيانات اساسية'!BT109 -> 0 | L109: 0 | M109: 0 | N109: 0 | O109: 0 | Q109: ='بيانات اساسية'!BT109 -> 0 | R109: 0 | S109: 0 | T109: 0 | V109: 0 | W109: 0 | Y109: 0 | Z109: 0
A110: ='بيانات اساسية'!A110 -> 0 | B110: ='بيانات اساسية'!B110 -> 0 | C110: ='بيانات اساسية'!L110 -> 0 | D110: ='بيانات اساسية'!M110 -> 0 | E110: 0 | F110: 0 | G110: 0 | H110: 0 | I110: 0 | J110: ='بيانات اساسية'!BS110 -> 0 | K110: ='بيانات اساسية'!BT110 -> 0 | L110: 0 | M110: 0 | N110: 0 | O110: 0 | Q110: ='بيانات اساسية'!BT110 -> 0 | R110: 0 | S110: 0 | T110: 0 | V110: 0 | W110: 0 | Y110: 0 | Z110: 0
A111: ='بيانات اساسية'!A111 -> 0 | B111: ='بيانات اساسية'!B111 -> 0 | C111: ='بيانات اساسية'!L111 -> 0 | D111: ='بيانات اساسية'!M111 -> 0 | E111: 0 | F111: 0 | G111: 0 | H111: 0 | I111: 0 | J111: ='بيانات اساسية'!BS111 -> 0 | K111: ='بيانات اساسية'!BT111 -> 0 | L111: 0 | M111: 0 | N111: 0 | O111: 0 | Q111: ='بيانات اساسية'!BT111 -> 0 | R111: 0 | S111: 0 | T111: 0 | V111: 0 | W111: 0 | Y111: 0 | Z111: 0
A112: ='بيانات اساسية'!A112 -> 0 | B112: ='بيانات اساسية'!B112 -> 0 | C112: ='بيانات اساسية'!L112 -> 0 | D112: ='بيانات اساسية'!M112 -> 0 | E112: 0 | F112: 0 | G112: 0 | H112: 0 | I112: 0 | J112: ='بيانات اساسية'!BS112 -> 0 | K112: ='بيانات اساسية'!BT112 -> 0 | L112: 0 | M112: 0 | N112: 0 | O112: 0 | Q112: ='بيانات اساسية'!BT112 -> 0 | R112: 0 | S112: 0 | T112: 0 | V112: 0 | W112: 0 | Y112: 0 | Z112: 0
A113: ='بيانات اساسية'!A113 -> 0 | B113: ='بيانات اساسية'!B113 -> 0 | C113: ='بيانات اساسية'!L113 -> 0 | D113: ='بيانات اساسية'!M113 -> 0 | E113: 0 | F113: 0 | G113: 0 | H113: 0 | I113: 0 | J113: ='بيانات اساسية'!BS113 -> 0 | K113: ='بيانات اساسية'!BT113 -> 0 | L113: 0 | M113: 0 | N113: 0 | O113: 0 | Q113: ='بيانات اساسية'!BT113 -> 0 | R113: 0 | S113: 0 | T113: 0 | V113: 0 | W113: 0 | Y113: 0 | Z113: 0
A114: ='بيانات اساسية'!A114 -> 0 | B114: ='بيانات اساسية'!B114 -> 0 | C114: ='بيانات اساسية'!L114 -> 0 | D114: ='بيانات اساسية'!M114 -> 0 | E114: 0 | F114: 0 | G114: 0 | H114: 0 | I114: 0 | J114: ='بيانات اساسية'!BS114 -> 0 | K114: ='بيانات اساسية'!BT114 -> 0 | L114: 0 | M114: 0 | N114: 0 | O114: 0 | Q114: ='بيانات اساسية'!BT114 -> 0 | R114: 0 | S114: 0 | T114: 0 | V114: 0 | W114: 0 | Y114: 0 | Z114: 0
A115: ='بيانات اساسية'!A115 -> 0 | B115: ='بيانات اساسية'!B115 -> 0 | C115: ='بيانات اساسية'!L115 -> 0 | D115: ='بيانات اساسية'!M115 -> 0 | E115: 0 | F115: 0 | G115: 0 | H115: 0 | I115: 0 | J115: ='بيانات اساسية'!BS115 -> 0 | K115: ='بيانات اساسية'!BT115 -> 0 | L115: 0 | M115: 0 | N115: 0 | O115: 0 | Q115: ='بيانات اساسية'!BT115 -> 0 | R115: 0 | S115: 0 | T115: 0 | V115: 0 | W115: 0 | Y115: 0 | Z115: 0
A116: ='بيانات اساسية'!A116 -> 0 | B116: ='بيانات اساسية'!B116 -> 0 | C116: ='بيانات اساسية'!L116 -> 0 | D116: ='بيانات اساسية'!M116 -> 0 | E116: 0 | F116: 0 | G116: 0 | H116: 0 | I116: 0 | J116: ='بيانات اساسية'!BS116 -> 0 | K116: ='بيانات اساسية'!BT116 -> 0 | L116: 0 | M116: 0 | N116: 0 | O116: 0 | Q116: ='بيانات اساسية'!BT116 -> 0 | R116: 0 | S116: 0 | T116: 0 | V116: 0 | W116: 0 | Y116: 0 | Z116: 0
A117: ='بيانات اساسية'!A117 -> 0 | B117: ='بيانات اساسية'!B117 -> 0 | C117: ='بيانات اساسية'!L117 -> 0 | D117: ='بيانات اساسية'!M117 -> 0 | E117: 0 | F117: 0 | G117: 0 | H117: 0 | I117: 0 | J117: ='بيانات اساسية'!BS117 -> 0 | K117: ='بيانات اساسية'!BT117 -> 0 | L117: 0 | M117: 0 | N117: 0 | O117: 0 | Q117: ='بيانات اساسية'!BT117 -> 0 | R117: 0 | S117: 0 | T117: 0 | V117: 0 | W117: 0 | Y117: 0 | Z117: 0
A118: ='بيانات اساسية'!A118 -> 0 | B118: ='بيانات اساسية'!B118 -> 0 | C118: ='بيانات اساسية'!L118 -> 0 | D118: ='بيانات اساسية'!M118 -> 0 | E118: 0 | F118: 0 | G118: 0 | H118: 0 | I118: 0 | J118: ='بيانات اساسية'!BS118 -> 0 | K118: ='بيانات اساسية'!BT118 -> 0 | L118: 0 | M118: 0 | N118: 0 | O118: 0 | Q118: ='بيانات اساسية'!BT118 -> 0 | R118: 0 | S118: 0 | T118: 0 | V118: 0 | W118: 0 | Y118: 0 | Z118: 0
A119: ='بيانات اساسية'!A119 -> 0 | B119: ='بيانات اساسية'!B119 -> 0 | C119: ='بيانات اساسية'!L119 -> 0 | D119: ='بيانات اساسية'!M119 -> 0 | E119: 0 | F119: 0 | G119: 0 | H119: 0 | I119: 0 | J119: ='بيانات اساسية'!BS119 -> 0 | K119: ='بيانات اساسية'!BT119 -> 0 | L119: 0 | M119: 0 | N119: 0 | O119: 0 | Q119: ='بيانات اساسية'!BT119 -> 0 | R119: 0 | S119: 0 | T119: 0 | V119: 0 | W119: 0 | Y119: 0 | Z119: 0
A120: ='بيانات اساسية'!A120 -> 0 | B120: ='بيانات اساسية'!B120 -> 0 | C120: ='بيانات اساسية'!L120 -> 0 | D120: ='بيانات اساسية'!M120 -> 0 | E120: 0 | F120: 0 | G120: 0 | H120: 0 | I120: 0 | J120: ='بيانات اساسية'!BS120 -> 0 | K120: ='بيانات اساسية'!BT120 -> 0 | L120: 0 | M120: 0 | N120: 0 | O120: 0 | Q120: ='بيانات اساسية'!BT120 -> 0 | R120: 0 | S120: 0 | T120: 0 | V120: 0 | W120: 0 | Y120: 0 | Z120: 0
A121: ='بيانات اساسية'!A121 -> 0 | B121: ='بيانات اساسية'!B121 -> 0 | C121: ='بيانات اساسية'!L121 -> 0 | D121: ='بيانات اساسية'!M121 -> 0 | E121: 0 | F121: 0 | G121: 0 | H121: 0 | I121: 0 | J121: ='بيانات اساسية'!BS121 -> 0 | K121: ='بيانات اساسية'!BT121 -> 0 | L121: 0 | M121: 0 | N121: 0 | O121: 0 | Q121: ='بيانات اساسية'!BT121 -> 0 | R121: 0 | S121: 0 | T121: 0 | V121: 0 | W121: 0 | Y121: 0 | Z121: 0
A122: ='بيانات اساسية'!A122 -> 0 | B122: ='بيانات اساسية'!B122 -> 0 | C122: ='بيانات اساسية'!L122 -> 0 | D122: ='بيانات اساسية'!M122 -> 0 | E122: 0 | F122: 0 | G122: 0 | H122: 0 | I122: 0 | J122: ='بيانات اساسية'!BS122 -> 0 | K122: ='بيانات اساسية'!BT122 -> 0 | L122: 0 | M122: 0 | N122: 0 | O122: 0 | Q122: ='بيانات اساسية'!BT122 -> 0 | R122: 0 | S122: 0 | T122: 0 | V122: 0 | W122: 0 | Y122: 0 | Z122: 0
A123: ='بيانات اساسية'!A123 -> 0 | B123: ='بيانات اساسية'!B123 -> 0 | C123: ='بيانات اساسية'!L123 -> 0 | D123: ='بيانات اساسية'!M123 -> 0 | E123: 0 | F123: 0 | G123: 0 | H123: 0 | I123: 0 | J123: ='بيانات اساسية'!BS123 -> 0 | K123: ='بيانات اساسية'!BT123 -> 0 | L123: 0 | M123: 0 | N123: 0 | O123: 0 | Q123: ='بيانات اساسية'!BT123 -> 0 | R123: 0 | S123: 0 | T123: 0 | V123: 0 | W123: 0 | Y123: 0 | Z123: 0
A124: ='بيانات اساسية'!A124 -> 0 | B124: ='بيانات اساسية'!B124 -> 0 | C124: ='بيانات اساسية'!L124 -> 0 | D124: ='بيانات اساسية'!M124 -> 0 | E124: 0 | F124: 0 | G124: 0 | H124: 0 | I124: 0 | J124: ='بيانات اساسية'!BS124 -> 0 | K124: ='بيانات اساسية'!BT124 -> 0 | L124: 0 | M124: 0 | N124: 0 | O124: 0 | Q124: ='بيانات اساسية'!BT124 -> 0 | R124: 0 | S124: 0 | T124: 0 | V124: 0 | W124: 0 | Y124: 0 | Z124: 0
A125: ='بيانات اساسية'!A125 -> 0 | B125: ='بيانات اساسية'!B125 -> 0 | C125: ='بيانات اساسية'!L125 -> 0 | D125: ='بيانات اساسية'!M125 -> 0 | E125: 0 | F125: 0 | G125: 0 | H125: 0 | I125: 0 | J125: ='بيانات اساسية'!BS125 -> 0 | K125: ='بيانات اساسية'!BT125 -> 0 | L125: 0 | M125: 0 | N125: 0 | O125: 0 | Q125: ='بيانات اساسية'!BT125 -> 0 | R125: 0 | S125: 0 | T125: 0 | V125: 0 | W125: 0 | Y125: 0 | Z125: 0
A126: ='بيانات اساسية'!A126 -> 0 | B126: ='بيانات اساسية'!B126 -> 0 | C126: ='بيانات اساسية'!L126 -> 0 | D126: ='بيانات اساسية'!M126 -> 0 | E126: 0 | F126: 0 | G126: 0 | H126: 0 | I126: 0 | J126: ='بيانات اساسية'!BS126 -> 0 | K126: ='بيانات اساسية'!BT126 -> 0 | L126: 0 | M126: 0 | N126: 0 | O126: 0 | Q126: ='بيانات اساسية'!BT126 -> 0 | R126: 0 | S126: 0 | T126: 0 | V126: 0 | W126: 0 | Y126: 0 | Z126: 0
A127: ='بيانات اساسية'!A127 -> 0 | B127: ='بيانات اساسية'!B127 -> 0 | C127: ='بيانات اساسية'!L127 -> 0 | D127: ='بيانات اساسية'!M127 -> 0 | E127: 0 | F127: 0 | G127: 0 | H127: 0 | I127: 0 | J127: ='بيانات اساسية'!BS127 -> 0 | K127: ='بيانات اساسية'!BT127 -> 0 | L127: 0 | M127: 0 | N127: 0 | O127: 0 | Q127: ='بيانات اساسية'!BT127 -> 0 | R127: 0 | S127: 0 | T127: 0 | V127: 0 | W127: 0 | Y127: 0 | Z127: 0
A128: ='بيانات اساسية'!A128 -> 0 | B128: ='بيانات اساسية'!B128 -> 0 | C128: ='بيانات اساسية'!L128 -> 0 | D128: ='بيانات اساسية'!M128 -> 0 | E128: 0 | F128: 0 | G128: 0 | H128: 0 | I128: 0 | J128: ='بيانات اساسية'!BS128 -> 0 | K128: ='بيانات اساسية'!BT128 -> 0 | L128: 0 | M128: 0 | N128: 0 | O128: 0 | Q128: ='بيانات اساسية'!BT128 -> 0 | R128: 0 | S128: 0 | T128: 0 | V128: 0 | W128: 0 | Y128: 0 | Z128: 0
A129: ='بيانات اساسية'!A129 -> 0 | B129: ='بيانات اساسية'!B129 -> 0 | C129: ='بيانات اساسية'!L129 -> 0 | D129: ='بيانات اساسية'!M129 -> 0 | E129: 0 | F129: 0 | G129: 0 | H129: 0 | I129: 0 | J129: ='بيانات اساسية'!BS129 -> 0 | K129: ='بيانات اساسية'!BT129 -> 0 | L129: 0 | M129: 0 | N129: 0 | O129: 0 | Q129: ='بيانات اساسية'!BT129 -> 0 | R129: 0 | S129: 0 | T129: 0 | V129: 0 | W129: 0 | Y129: 0 | Z129: 0
A130: ='بيانات اساسية'!A130 -> 0 | B130: ='بيانات اساسية'!B130 -> 0 | C130: ='بيانات اساسية'!L130 -> 0 | D130: ='بيانات اساسية'!M130 -> 0 | E130: 0 | F130: 0 | G130: 0 | H130: 0 | I130: 0 | J130: ='بيانات اساسية'!BS130 -> 0 | K130: ='بيانات اساسية'!BT130 -> 0 | L130: 0 | M130: 0 | N130: 0 | O130: 0 | Q130: ='بيانات اساسية'!BT130 -> 0 | R130: 0 | S130: 0 | T130: 0 | V130: 0 | W130: 0 | Y130: 0 | Z130: 0
A131: ='بيانات اساسية'!A131 -> 0 | B131: ='بيانات اساسية'!B131 -> 0 | C131: ='بيانات اساسية'!L131 -> 0 | D131: ='بيانات اساسية'!M131 -> 0 | E131: 0 | F131: 0 | G131: 0 | H131: 0 | I131: 0 | J131: ='بيانات اساسية'!BS131 -> 0 | K131: ='بيانات اساسية'!BT131 -> 0 | L131: 0 | M131: 0 | N131: 0 | O131: 0 | Q131: ='بيانات اساسية'!BT131 -> 0 | R131: 0 | S131: 0 | T131: 0 | V131: 0 | W131: 0 | Y131: 0 | Z131: 0
A132: ='بيانات اساسية'!A132 -> 0 | B132: ='بيانات اساسية'!B132 -> 0 | C132: ='بيانات اساسية'!L132 -> 0 | D132: ='بيانات اساسية'!M132 -> 0 | E132: 0 | F132: 0 | G132: 0 | H132: 0 | I132: 0 | J132: ='بيانات اساسية'!BS132 -> 0 | K132: ='بيانات اساسية'!BT132 -> 0 | L132: 0 | M132: 0 | N132: 0 | O132: 0 | Q132: ='بيانات اساسية'!BT132 -> 0 | R132: 0 | S132: 0 | T132: 0 | V132: 0 | W132: 0 | Y132: 0 | Z132: 0
A133: ='بيانات اساسية'!A133 -> 0 | B133: ='بيانات اساسية'!B133 -> 0 | C133: ='بيانات اساسية'!L133 -> 0 | D133: ='بيانات اساسية'!M133 -> 0 | E133: 0 | F133: 0 | G133: 0 | H133: 0 | I133: 0 | J133: ='بيانات اساسية'!BS133 -> 0 | K133: ='بيانات اساسية'!BT133 -> 0 | L133: 0 | M133: 0 | N133: 0 | O133: 0 | Q133: ='بيانات اساسية'!BT133 -> 0 | R133: 0 | S133: 0 | T133: 0 | V133: 0 | W133: 0 | Y133: 0 | Z133: 0
A134: ='بيانات اساسية'!A134 -> 0 | B134: ='بيانات اساسية'!B134 -> 0 | C134: ='بيانات اساسية'!L134 -> 0 | D134: ='بيانات اساسية'!M134 -> 0 | E134: 0 | F134: 0 | G134: 0 | H134: 0 | I134: 0 | J134: ='بيانات اساسية'!BS134 -> 0 | K134: ='بيانات اساسية'!BT134 -> 0 | L134: 0 | M134: 0 | N134: 0 | O134: 0 | Q134: ='بيانات اساسية'!BT134 -> 0 | R134: 0 | S134: 0 | T134: 0 | V134: 0 | W134: 0 | Y134: 0 | Z134: 0
A135: ='بيانات اساسية'!A135 -> 0 | B135: ='بيانات اساسية'!B135 -> 0 | C135: ='بيانات اساسية'!L135 -> 0 | D135: ='بيانات اساسية'!M135 -> 0 | E135: 0 | F135: 0 | G135: 0 | H135: 0 | I135: 0 | J135: ='بيانات اساسية'!BS135 -> 0 | K135: ='بيانات اساسية'!BT135 -> 0 | L135: 0 | M135: 0 | N135: 0 | O135: 0 | Q135: ='بيانات اساسية'!BT135 -> 0 | R135: 0 | S135: 0 | T135: 0 | V135: 0 | W135: 0 | Y135: 0 | Z135: 0
A136: ='بيانات اساسية'!A136 -> 0 | B136: ='بيانات اساسية'!B136 -> 0 | C136: ='بيانات اساسية'!L136 -> 0 | D136: ='بيانات اساسية'!M136 -> 0 | E136: =C136-D136 -> 0 | F136: =TRUNC(E136,2) -> 0 | G136: 0 | H136: =TRUNC(G136,2) -> 0 | I136: 0 | J136: ='بيانات اساسية'!BS136 -> 0 | K136: ='بيانات اساسية'!BT136 -> 0 | L136: =SUM(J136*30) -> 0 | M136: =L136*I136 -> 0 | N136: =TRUNC(M136,2) -> 0 | O136: =H136/180 -> 0 | Q136: ='بيانات اساسية'!BT136 -> 0 | R136: =SUM((Q136*15),P136) -> 0 | S136: =R136*O136 -> 0 | T136: =TRUNC(S136,2) -> 0 | V136: 0 | W136: =J136+Q136 -> 0 | Y136: =T136+N136 -> 0 | Z136: =TRUNC(Y136,2) -> 0
A137: ='بيانات اساسية'!A137 -> 0 | B137: ='بيانات اساسية'!B137 -> 0 | C137: ='بيانات اساسية'!L137 -> 0 | D137: ='بيانات اساسية'!M137 -> 0 | E137: 0 | F137: 0 | G137: 0 | H137: 0 | I137: 0 | J137: ='بيانات اساسية'!BS137 -> 0 | K137: ='بيانات اساسية'!BT137 -> 0 | L137: 0 | M137: 0 | N137: 0 | O137: 0 | Q137: ='بيانات اساسية'!BT137 -> 0 | R137: 0 | S137: 0 | T137: 0 | V137: 0 | W137: 0 | Y137: 0 | Z137: 0
A138: ='بيانات اساسية'!A138 -> 0 | B138: ='بيانات اساسية'!B138 -> 0 | C138: ='بيانات اساسية'!L138 -> 0 | D138: ='بيانات اساسية'!M138 -> 0 | E138: 0 | F138: 0 | G138: 0 | H138: 0 | I138: 0 | J138: ='بيانات اساسية'!BS138 -> 0 | K138: ='بيانات اساسية'!BT138 -> 0 | L138: 0 | M138: 0 | N138: 0 | O138: 0 | Q138: ='بيانات اساسية'!BT138 -> 0 | R138: 0 | S138: 0 | T138: 0 | V138: 0 | W138: 0 | Y138: 0 | Z138: 0
A139: ='بيانات اساسية'!A139 -> 0 | B139: ='بيانات اساسية'!B139 -> 0 | C139: ='بيانات اساسية'!L139 -> 0 | D139: ='بيانات اساسية'!M139 -> 0 | E139: 0 | F139: 0 | G139: 0 | H139: 0 | I139: 0 | J139: ='بيانات اساسية'!BS139 -> 0 | K139: ='بيانات اساسية'!BT139 -> 0 | L139: 0 | M139: 0 | N139: 0 | O139: 0 | Q139: ='بيانات اساسية'!BT139 -> 0 | R139: 0 | S139: 0 | T139: 0 | V139: 0 | W139: 0 | Y139: 0 | Z139: 0
A140: ='بيانات اساسية'!A140 -> 0 | B140: ='بيانات اساسية'!B140 -> 0 | C140: ='بيانات اساسية'!L140 -> 0 | D140: ='بيانات اساسية'!M140 -> 0 | E140: 0 | F140: 0 | G140: 0 | H140: 0 | I140: 0 | J140: ='بيانات اساسية'!BS140 -> 0 | K140: ='بيانات اساسية'!BT140 -> 0 | L140: 0 | M140: 0 | N140: 0 | O140: 0 | Q140: ='بيانات اساسية'!BT140 -> 0 | R140: 0 | S140: 0 | T140: 0 | V140: 0 | W140: 0 | Y140: 0 | Z140: 0
A141: ='بيانات اساسية'!A141 -> 0 | B141: ='بيانات اساسية'!B141 -> 0 | C141: ='بيانات اساسية'!L141 -> 0 | D141: ='بيانات اساسية'!M141 -> 0 | E141: 0 | F141: 0 | G141: 0 | H141: 0 | I141: 0 | J141: ='بيانات اساسية'!BS141 -> 0 | K141: ='بيانات اساسية'!BT141 -> 0 | L141: 0 | M141: 0 | N141: 0 | O141: 0 | Q141: ='بيانات اساسية'!BT141 -> 0 | R141: 0 | S141: 0 | T141: 0 | V141: 0 | W141: 0 | Y141: 0 | Z141: 0
A142: ='بيانات اساسية'!A142 -> 0 | B142: ='بيانات اساسية'!B142 -> 0 | C142: ='بيانات اساسية'!L142 -> 0 | D142: ='بيانات اساسية'!M142 -> 0 | E142: 0 | F142: 0 | G142: 0 | H142: 0 | I142: 0 | J142: ='بيانات اساسية'!BS142 -> 0 | K142: ='بيانات اساسية'!BT142 -> 0 | L142: 0 | M142: 0 | N142: 0 | O142: 0 | Q142: ='بيانات اساسية'!BT142 -> 0 | R142: 0 | S142: 0 | T142: 0 | V142: 0 | W142: 0 | Y142: 0 | Z142: 0
A143: ='بيانات اساسية'!A143 -> 0 | B143: ='بيانات اساسية'!B143 -> 0 | C143: ='بيانات اساسية'!L143 -> 0 | D143: ='بيانات اساسية'!M143 -> 0 | E143: 0 | F143: 0 | G143: =F143*10 -> 0 | H143: 0 | I143: =H143/180 -> 0 | J143: ='بيانات اساسية'!BS143 -> 0 | K143: ='بيانات اساسية'!BT143 -> 0 | L143: 0 | M143: 0 | N143: 0 | O143: 0 | Q143: ='بيانات اساسية'!BT143 -> 0 | R143: 0 | S143: 0 | T143: 0 | V143: 0 | W143: 0 | Y143: 0 | Z143: 0
A144: ='بيانات اساسية'!A144 -> 0 | B144: ='بيانات اساسية'!B144 -> 0 | C144: ='بيانات اساسية'!L144 -> 0 | D144: ='بيانات اساسية'!M144 -> 0 | E144: 0 | F144: 0 | G144: 0 | H144: 0 | I144: 0 | J144: ='بيانات اساسية'!BS144 -> 0 | K144: ='بيانات اساسية'!BT144 -> 0 | L144: 0 | M144: 0 | N144: 0 | O144: 0 | Q144: ='بيانات اساسية'!BT144 -> 0 | R144: 0 | S144: 0 | T144: 0 | V144: 0 | W144: 0 | Y144: 0 | Z144: 0
A145: ='بيانات اساسية'!A145 -> 0 | B145: ='بيانات اساسية'!B145 -> 0 | C145: ='بيانات اساسية'!L145 -> 0 | D145: ='بيانات اساسية'!M145 -> 0 | E145: 0 | F145: 0 | G145: 0 | H145: 0 | I145: 0 | J145: ='بيانات اساسية'!BS145 -> 0 | K145: ='بيانات اساسية'!BT145 -> 0 | L145: 0 | M145: 0 | N145: 0 | O145: 0 | Q145: ='بيانات اساسية'!BT145 -> 0 | R145: 0 | S145: 0 | T145: 0 | V145: 0 | W145: 0 | Y145: 0 | Z145: 0
A146: ='بيانات اساسية'!A146 -> 0 | B146: ='بيانات اساسية'!B146 -> 0 | C146: ='بيانات اساسية'!L146 -> 0 | D146: ='بيانات اساسية'!M146 -> 0 | E146: 0 | F146: 0 | G146: 0 | H146: 0 | I146: 0 | J146: ='بيانات اساسية'!BS146 -> 0 | K146: ='بيانات اساسية'!BT146 -> 0 | L146: 0 | M146: 0 | N146: 0 | O146: 0 | Q146: ='بيانات اساسية'!BT146 -> 0 | R146: 0 | S146: 0 | T146: 0 | V146: 0 | W146: 0 | Y146: 0 | Z146: 0
A147: ='بيانات اساسية'!A147 -> 0 | B147: ='بيانات اساسية'!B147 -> 0 | C147: ='بيانات اساسية'!L147 -> 0 | D147: ='بيانات اساسية'!M147 -> 0 | E147: 0 | F147: 0 | G147: 0 | H147: 0 | I147: 0 | J147: ='بيانات اساسية'!BS147 -> 0 | K147: ='بيانات اساسية'!BT147 -> 0 | L147: 0 | M147: 0 | N147: 0 | O147: 0 | Q147: ='بيانات اساسية'!BT147 -> 0 | R147: 0 | S147: 0 | T147: 0 | V147: 0 | W147: 0 | Y147: 0 | Z147: 0
A148: ='بيانات اساسية'!A148 -> 1 | B148: ='بيانات اساسية'!B148 -> منى عبده على مسعود | C148: ='بيانات اساسية'!L148 -> 941.3 | D148: ='بيانات اساسية'!M148 -> 810.81 | E148: 130.49 | F148: 130.49 | G148: 1304.9 | H148: 1304.9 | I148: 7.249444444 | J148: ='بيانات اساسية'!BS148 -> 0 | K148: ='بيانات اساسية'!BT148 -> 72 | L148: 0 | M148: 0 | N148: 0 | O148: 7.249444444 | Q148: ='بيانات اساسية'!BT148 -> 72 | R148: 1080 | S148: 7829.4 | T148: 7829.4 | V148: 0 | W148: 72 | Y148: 7829.4 | Z148: 7829.4
A149: ='بيانات اساسية'!A149 -> 2 | B149: ='بيانات اساسية'!B149 -> جمالات محمد مصطفى ابراهيم | C149: ='بيانات اساسية'!L149 -> 962.11 | D149: ='بيانات اساسية'!M149 -> 824.27 | E149: 137.84 | F149: 137.84 | G149: 1378.4 | H149: 1378.4 | I149: 7.657777778 | J149: ='بيانات اساسية'!BS149 -> 0 | K149: ='بيانات اساسية'!BT149 -> 72 | L149: 0 | M149: 0 | N149: 0 | O149: 7.657777778 | Q149: ='بيانات اساسية'!BT149 -> 72 | R149: 1080 | S149: 8270.4 | T149: 8270.4 | V149: 0 | W149: 72 | Y149: 8270.4 | Z149: 8270.4
A150: ='بيانات اساسية'!A150 -> 3 | B150: ='بيانات اساسية'!B150 -> فوزيه ثابت محمد حسن | C150: ='بيانات اساسية'!L150 -> 813.13 | D150: ='بيانات اساسية'!M150 -> 700.32 | E150: 112.81 | F150: 112.81 | G150: 1128.1 | H150: 1128.1 | I150: 6.267222222 | J150: ='بيانات اساسية'!BS150 -> 0 | K150: ='بيانات اساسية'!BT150 -> 72 | L150: 0 | M150: 0 | N150: 0 | O150: 6.267222222 | Q150: ='بيانات اساسية'!BT150 -> 72 | R150: 1080 | S150: 6768.6 | T150: 6768.6 | V150: 0 | W150: 72 | Y150: 6768.6 | Z150: 6768.6
A151: ='بيانات اساسية'!A151 -> 4 | B151: ='بيانات اساسية'!B151 -> رجاء بهلول محمد عبد اللاه | C151: ='بيانات اساسية'!L151 -> 973.89 | D151: ='بيانات اساسية'!M151 -> 833.93 | E151: 139.96 | F151: 139.96 | G151: 1399.6 | H151: 1399.6 | I151: 7.775555556 | J151: ='بيانات اساسية'!BS151 -> 0 | K151: ='بيانات اساسية'!BT151 -> 72 | L151: 0 | M151: 0 | N151: 0 | O151: 7.775555556 | Q151: ='بيانات اساسية'!BT151 -> 72 | R151: 1080 | S151: 8397.6 | T151: 8397.6 | V151: 0 | W151: 72 | Y151: 8397.6 | Z151: 8397.6
A152: ='بيانات اساسية'!A152 -> 5 | B152: ='بيانات اساسية'!B152 -> ماجده عبد الرحمن على حسان | C152: ='بيانات اساسية'!L152 -> 967.86 | D152: ='بيانات اساسية'!M152 -> 828.84 | E152: 139.02 | F152: 139.02 | G152: 1390.2 | H152: 1390.2 | I152: 7.723333333 | J152: ='بيانات اساسية'!BS152 -> 0 | K152: ='بيانات اساسية'!BT152 -> 72 | L152: 0 | M152: 0 | N152: 0 | O152: 7.723333333 | Q152: ='بيانات اساسية'!BT152 -> 72 | R152: 1080 | S152: 8341.2 | T152: 8341.2 | V152: 0 | W152: 72 | Y152: 8341.2 | Z152: 8341.2
A153: ='بيانات اساسية'!A153 -> 6 | B153: ='بيانات اساسية'!B153 -> علا عبد الحميد على كحيله | C153: ='بيانات اساسية'!L153 -> 1052.42 | D153: ='بيانات اساسية'!M153 -> 901.56 | E153: 150.86 | F153: 150.86 | G153: 1508.6 | H153: 1508.6 | I153: 8.381111111 | J153: ='بيانات اساسية'!BS153 -> 0 | K153: ='بيانات اساسية'!BT153 -> 72 | L153: 0 | M153: 0 | N153: 0 | O153: 8.381111111 | Q153: ='بيانات اساسية'!BT153 -> 72 | R153: 1080 | S153: 9051.6 | T153: 9051.6 | V153: 0 | W153: 72 | Y153: 9051.6 | Z153: 9051.6
A154: ='بيانات اساسية'!A154 -> 7 | B154: ='بيانات اساسية'!B154 -> ميمي نجيب توفيق حنين | C154: ='بيانات اساسية'!L154 -> 653.64 | D154: ='بيانات اساسية'!M154 -> 563.51 | E154: 90.13 | F154: 90.13 | G154: 901.3 | H154: 901.3 | I154: 5.007222222 | J154: ='بيانات اساسية'!BS154 -> 0 | K154: ='بيانات اساسية'!BT154 -> 72 | L154: 0 | M154: 0 | N154: 0 | O154: 5.007222222 | Q154: ='بيانات اساسية'!BT154 -> 72 | R154: 1080 | S154: 5407.8 | T154: 5407.8 | V154: 0 | W154: 72 | Y154: 5407.8 | Z154: 5407.8
A155: ='بيانات اساسية'!A155 -> 8 | B155: ='بيانات اساسية'!B155 -> ايمان عبد الرحيم سيد محمد | C155: ='بيانات اساسية'!L155 -> 906.17 | D155: ='بيانات اساسية'!M155 -> 779.66 | E155: 126.51 | F155: 126.51 | G155: 1265.1 | H155: 1265.1 | I155: 7.028333333 | J155: ='بيانات اساسية'!BS155 -> 0 | K155: ='بيانات اساسية'!BT155 -> 72 | L155: 0 | M155: 0 | N155: 0 | O155: 7.028333333 | Q155: ='بيانات اساسية'!BT155 -> 72 | R155: 1080 | S155: 7590.6 | T155: 7590.6 | V155: 0 | W155: 72 | Y155: 7590.6 | Z155: 7590.6
A156: ='بيانات اساسية'!A156 -> 9 | B156: ='بيانات اساسية'!B156 -> عصام الدين صلاح ثابت حسن | C156: ='بيانات اساسية'!L156 -> 804.4 | D156: ='بيانات اساسية'!M156 -> 693.44 | E156: 110.96 | F156: 110.96 | G156: 1109.6 | H156: 1109.6 | I156: 6.164444444 | J156: ='بيانات اساسية'!BS156 -> 0 | K156: ='بيانات اساسية'!BT156 -> 72 | L156: 0 | M156: 0 | N156: 0 | O156: 6.164444444 | Q156: ='بيانات اساسية'!BT156 -> 72 | R156: 1080 | S156: 6657.6 | T156: 6657.6 | V156: 0 | W156: 72 | Y156: 6657.6 | Z156: 6657.6
A157: ='بيانات اساسية'!A157 -> 10 | B157: ='بيانات اساسية'!B157 -> عزه عبد العظيم كامل محمد | C157: ='بيانات اساسية'!L157 -> 915.6 | D157: ='بيانات اساسية'!M157 -> 787.74 | E157: 127.86 | F157: 127.86 | G157: 1278.6 | H157: 1278.6 | I157: 7.103333333 | J157: ='بيانات اساسية'!BS157 -> 0 | K157: ='بيانات اساسية'!BT157 -> 72 | L157: 0 | M157: 0 | N157: 0 | O157: 7.103333333 | Q157: ='بيانات اساسية'!BT157 -> 72 | R157: 1080 | S157: 7671.6 | T157: 7671.6 | V157: 0 | W157: 72 | Y157: 7671.6 | Z157: 7671.6
A158: ='بيانات اساسية'!A158 -> 11 | B158: ='بيانات اساسية'!B158 -> ايمان كمال مصطفى وزيري | C158: ='بيانات اساسية'!L158 -> 901.77 | D158: ='بيانات اساسية'!M158 -> 775.68 | E158: 126.09 | F158: 126.09 | G158: 1260.9 | H158: 1260.9 | I158: 7.005 | J158: ='بيانات اساسية'!BS158 -> 0 | K158: ='بيانات اساسية'!BT158 -> 72 | L158: 0 | M158: 0 | N158: 0 | O158: 7.005 | Q158: ='بيانات اساسية'!BT158 -> 72 | R158: 1080 | S158: 7565.4 | T158: 7565.4 | V158: 0 | W158: 72 | Y158: 7565.4 | Z158: 7565.4
A159: ='بيانات اساسية'!A159 -> 12 | B159: ='بيانات اساسية'!B159 -> رجاء محمد عيسى محمد | C159: ='بيانات اساسية'!L159 -> 1025.47 | D159: ='بيانات اساسية'!M159 -> 877.86 | E159: 147.61 | F159: 147.61 | G159: 1476.1 | H159: 1476.1 | I159: 8.200555556 | J159: ='بيانات اساسية'!BS159 -> 0 | K159: ='بيانات اساسية'!BT159 -> 72 | L159: 0 | M159: 0 | N159: 0 | O159: 8.200555556 | Q159: ='بيانات اساسية'!BT159 -> 72 | R159: 1080 | S159: 8856.6 | T159: 8856.6 | V159: 0 | W159: 72 | Y159: 8856.6 | Z159: 8856.6
A160: ='بيانات اساسية'!A160 -> 13 | B160: ='بيانات اساسية'!B160 -> راشد جميل وهبه منقريوس | C160: ='بيانات اساسية'!L160 -> 1177.17 | D160: ='بيانات اساسية'!M160 -> 1010.55 | E160: 166.62 | F160: 166.62 | G160: 1666.2 | H160: 1666.2 | I160: 9.256666667 | J160: ='بيانات اساسية'!BS160 -> 0 | K160: ='بيانات اساسية'!BT160 -> 72 | L160: 0 | M160: 0 | N160: 0 | O160: 9.256666667 | Q160: ='بيانات اساسية'!BT160 -> 72 | R160: 1080 | S160: 9997.2 | T160: 9997.2 | V160: 0 | W160: 72 | Y160: 9997.2 | Z160: 9997.2
A161: ='بيانات اساسية'!A161 -> 14 | B161: ='بيانات اساسية'!B161 -> سهير رمزى وهيب مرقص | C161: ='بيانات اساسية'!L161 -> 1139.86 | D161: ='بيانات اساسية'!M161 -> 977.14 | E161: 162.72 | F161: 162.72 | G161: 1627.2 | H161: 1627.2 | I161: 9.04 | J161: ='بيانات اساسية'!BS161 -> 0 | K161: ='بيانات اساسية'!BT161 -> 72 | L161: 0 | M161: 0 | N161: 0 | O161: 9.04 | Q161: ='بيانات اساسية'!BT161 -> 72 | R161: 1080 | S161: 9763.2 | T161: 9763.2 | V161: 0 | W161: 72 | Y161: 9763.2 | Z161: 9763.2
A162: ='بيانات اساسية'!A162 -> 15 | B162: ='بيانات اساسية'!B162 -> ليلى كامل ايوب سعيد | C162: ='بيانات اساسية'!L162 -> 940.02 | D162: ='بيانات اساسية'!M162 -> 809.71 | E162: 130.31 | F162: 130.31 | G162: 1303.1 | H162: 1303.1 | I162: 7.239444444 | J162: ='بيانات اساسية'!BS162 -> 0 | K162: ='بيانات اساسية'!BT162 -> 72 | L162: 0 | M162: 0 | N162: 0 | O162: 7.239444444 | Q162: ='بيانات اساسية'!BT162 -> 72 | R162: 1080 | S162: 7818.6 | T162: 7818.6 | V162: 0 | W162: 72 | Y162: 7818.6 | Z162: 7818.6
A163: ='بيانات اساسية'!A163 -> 16 | B163: ='بيانات اساسية'!B163 -> ايمان فهمى ويصا ابو السعود | C163: ='بيانات اساسية'!L163 -> 972.99 | D163: ='بيانات اساسية'!M163 -> 834.12 | E163: 138.87 | F163: 138.87 | G163: 1388.7 | H163: 1388.7 | I163: 7.715 | J163: ='بيانات اساسية'!BS163 -> 0 | K163: ='بيانات اساسية'!BT163 -> 72 | L163: 0 | M163: 0 | N163: 0 | O163: 7.715 | Q163: ='بيانات اساسية'!BT163 -> 72 | R163: 1080 | S163: 8332.2 | T163: 8332.2 | V163: 0 | W163: 72 | Y163: 8332.2 | Z163: 8332.2
A164: ='بيانات اساسية'!A164 -> 17 | B164: ='بيانات اساسية'!B164 -> عبد الحميد سيد محمد ابراهيم | C164: ='بيانات اساسية'!L164 -> 894.66 | D164: ='بيانات اساسية'!M164 -> 769.51 | E164: 125.15 | F164: 125.15 | G164: 1251.5 | H164: 1251.5 | I164: 6.952777778 | J164: ='بيانات اساسية'!BS164 -> 0 | K164: ='بيانات اساسية'!BT164 -> 72 | L164: 0 | M164: 0 | N164: 0 | O164: 6.952777778 | Q164: ='بيانات اساسية'!BT164 -> 72 | R164: 1080 | S164: 7509 | T164: 7509 | V164: 0 | W164: 72 | Y164: 7509 | Z164: 7509
A165: ='بيانات اساسية'!A165 -> 18 | B165: ='بيانات اساسية'!B165 -> هانى راغب بطرس ابراهيم | C165: ='بيانات اساسية'!L165 -> 624.15 | D165: ='بيانات اساسية'!M165 -> 539 | E165: 85.15 | F165: 85.15 | G165: 851.5 | H165: 851.5 | I165: 4.730555556 | J165: ='بيانات اساسية'!BS165 -> 0 | K165: ='بيانات اساسية'!BT165 -> 72 | L165: 0 | M165: 0 | N165: 0 | O165: 4.730555556 | Q165: ='بيانات اساسية'!BT165 -> 72 | R165: 1080 | S165: 5109 | T165: 5109 | V165: 0 | W165: 72 | Y165: 5109 | Z165: 5109
A166: ='بيانات اساسية'!A166 -> 19 | B166: ='بيانات اساسية'!B166 -> ابراهيم احمد سيد احمدالشريف | C166: ='بيانات اساسية'!L166 -> 870.39 | D166: ='بيانات اساسية'!M166 -> 748.8 | E166: 121.59 | F166: 121.59 | G166: 1215.9 | H166: 1215.9 | I166: 6.755 | J166: ='بيانات اساسية'!BS166 -> 0 | K166: ='بيانات اساسية'!BT166 -> 72 | L166: 0 | M166: 0 | N166: 0 | O166: 6.755 | Q166: ='بيانات اساسية'!BT166 -> 72 | R166: 1080 | S166: 7295.4 | T166: 7295.4 | V166: 0 | W166: 72 | Y166: 7295.4 | Z166: 7295.4
A167: ='بيانات اساسية'!A167 -> 20 | B167: ='بيانات اساسية'!B167 -> نور الدين احمد احمد ضيف | C167: ='بيانات اساسية'!L167 -> 962.08 | D167: ='بيانات اساسية'!M167 -> 824.25 | E167: 137.83 | F167: 137.83 | G167: 1378.3 | H167: 1378.3 | I167: 7.657222222 | J167: ='بيانات اساسية'!BS167 -> 0 | K167: ='بيانات اساسية'!BT167 -> 72 | L167: 0 | M167: 0 | N167: 0 | O167: 7.657222222 | Q167: ='بيانات اساسية'!BT167 -> 72 | R167: 1080 | S167: 8269.8 | T167: 8269.8 | V167: 0 | W167: 72 | Y167: 8269.8 | Z167: 8269.8
A168: ='بيانات اساسية'!A168 -> 21 | B168: ='بيانات اساسية'!B168 -> ذكرى فهمى سمعان مقار | C168: ='بيانات اساسية'!L168 -> 1214.47 | D168: ='بيانات اساسية'!M168 -> 1051.95 | E168: 162.52 | F168: 162.52 | G168: 1625.2 | H168: 1625.2 | I168: 9.028888889 | J168: ='بيانات اساسية'!BS168 -> 0 | K168: ='بيانات اساسية'!BT168 -> 72 | L168: 0 | M168: 0 | N168: 0 | O168: 9.028888889 | Q168: ='بيانات اساسية'!BT168 -> 72 | R168: 1080 | S168: 9751.2 | T168: 9751.2 | V168: 0 | W168: 72 | Y168: 9751.2 | Z168: 9751.2
A169: ='بيانات اساسية'!A169 -> 22 | B169: ='بيانات اساسية'!B169 -> قمر شكرى صليب مقار | C169: ='بيانات اساسية'!L169 -> 995.7 | D169: ='بيانات اساسية'!M169 -> 852.55 | E169: 143.15 | F169: 143.15 | G169: 1431.5 | H169: 1431.5 | I169: 7.952777778 | J169: ='بيانات اساسية'!BS169 -> 0 | K169: ='بيانات اساسية'!BT169 -> 72 | L169: 0 | M169: 0 | N169: 0 | O169: 7.952777778 | Q169: ='بيانات اساسية'!BT169 -> 72 | R169: 1080 | S169: 8589 | T169: 8589 | V169: 0 | W169: 72 | Y169: 8589 | Z169: 8589
A170: ='بيانات اساسية'!A170 -> 23 | B170: ='بيانات اساسية'!B170 -> ساور محمد احمد محمد عبد الله | C170: ='بيانات اساسية'!L170 -> 880.97 | D170: ='بيانات اساسية'!M170 -> 757.85 | E170: 123.12 | F170: 123.12 | G170: 1231.2 | H170: 1231.2 | I170: 6.84 | J170: ='بيانات اساسية'!BS170 -> 0 | K170: ='بيانات اساسية'!BT170 -> 72 | L170: 0 | M170: 0 | N170: 0 | O170: 6.84 | Q170: ='بيانات اساسية'!BT170 -> 72 | R170: 1080 | S170: 7387.2 | T170: 7387.2 | V170: 0 | W170: 72 | Y170: 7387.2 | Z170: 7387.2
A171: ='بيانات اساسية'!A171 -> 24 | B171: ='بيانات اساسية'!B171 -> عبد المنعم محمد خليل الجمال | C171: ='بيانات اساسية'!L171 -> 914.87 | D171: ='بيانات اساسية'!M171 -> 787.18 | E171: 127.69 | F171: 127.69 | G171: 1276.9 | H171: 1276.9 | I171: 7.093888889 | J171: ='بيانات اساسية'!BS171 -> 0 | K171: ='بيانات اساسية'!BT171 -> 72 | L171: 0 | M171: 0 | N171: 0 | O171: 7.093888889 | Q171: ='بيانات اساسية'!BT171 -> 72 | R171: 1080 | S171: 7661.4 | T171: 7661.4 | V171: 0 | W171: 72 | Y171: 7661.4 | Z171: 7661.4
A172: ='بيانات اساسية'!A172 -> 25 | B172: ='بيانات اساسية'!B172 -> ممدوح مسعود عبد الله مسعود | C172: ='بيانات اساسية'!L172 -> 866.21 | D172: ='بيانات اساسية'!M172 -> 745.14 | E172: 121.07 | F172: 121.07 | G172: 1210.7 | H172: 1210.7 | I172: 6.726111111 | J172: ='بيانات اساسية'!BS172 -> 0 | K172: ='بيانات اساسية'!BT172 -> 72 | L172: 0 | M172: 0 | N172: 0 | O172: 6.726111111 | Q172: ='بيانات اساسية'!BT172 -> 72 | R172: 1080 | S172: 7264.2 | T172: 7264.2 | V172: 0 | W172: 72 | Y172: 7264.2 | Z172: 7264.2
A173: ='بيانات اساسية'!A173 -> 26 | B173: ='بيانات اساسية'!B173 -> مارسيل قلدس تادرس قلدس | C173: ='بيانات اساسية'!L173 -> 666.82 | D173: ='بيانات اساسية'!M173 -> 574.84 | E173: 91.98 | F173: 91.98 | G173: 919.8 | H173: 919.8 | I173: 5.11 | J173: ='بيانات اساسية'!BS173 -> 0 | K173: ='بيانات اساسية'!BT173 -> 72 | L173: 0 | M173: 0 | N173: 0 | O173: 5.11 | Q173: ='بيانات اساسية'!BT173 -> 72 | R173: 1080 | S173: 5518.8 | T173: 5518.8 | V173: 0 | W173: 72 | Y173: 5518.8 | Z173: 5518.8
A174: ='بيانات اساسية'!A174 -> 27 | B174: ='بيانات اساسية'!B174 -> جميله صديق عبد الفتاح كرم | C174: ='بيانات اساسية'!L174 -> 805.88 | D174: ='بيانات اساسية'!M174 -> 688.11 | E174: 117.77 | F174: 117.77 | G174: 1177.7 | H174: 1177.7 | I174: 6.542777778 | J174: ='بيانات اساسية'!BS174 -> 0 | K174: ='بيانات اساسية'!BT174 -> 72 | L174: 0 | M174: 0 | N174: 0 | O174: 6.542777778 | Q174: ='بيانات اساسية'!BT174 -> 72 | R174: 1080 | S174: 7066.2 | T174: 7066.2 | V174: 0 | W174: 72 | Y174: 7066.2 | Z174: 7066.2
A175: ='بيانات اساسية'!A175 -> 28 | B175: ='بيانات اساسية'!B175 -> ابراهيم عمر عبد الرحيم ابراهيم | C175: ='بيانات اساسية'!L175 -> 722.38 | D175: ='بيانات اساسية'!M175 -> 623.47 | E175: 98.91 | F175: 98.91 | G175: 989.1 | H175: 989.1 | I175: 5.495 | J175: ='بيانات اساسية'!BS175 -> 0 | K175: ='بيانات اساسية'!BT175 -> 72 | L175: 0 | M175: 0 | N175: 0 | O175: 5.495 | Q175: ='بيانات اساسية'!BT175 -> 72 | R175: 1080 | S175: 5934.6 | T175: 5934.6 | V175: 0 | W175: 72 | Y175: 5934.6 | Z175: 5934.6
A176: ='بيانات اساسية'!A176 -> 29 | B176: ='بيانات اساسية'!B176 -> سهير محمد محمد سيد | C176: ='بيانات اساسية'!L176 -> 754.99 | D176: ='بيانات اساسية'!M176 -> 649.7 | E176: 105.29 | F176: 105.29 | G176: 1052.9 | H176: 1052.9 | I176: 5.849444444 | J176: ='بيانات اساسية'!BS176 -> 0 | K176: ='بيانات اساسية'!BT176 -> 72 | L176: 0 | M176: 0 | N176: 0 | O176: 5.849444444 | Q176: ='بيانات اساسية'!BT176 -> 72 | R176: 1080 | S176: 6317.4 | T176: 6317.4 | V176: 0 | W176: 72 | Y176: 6317.4 | Z176: 6317.4
A177: ='بيانات اساسية'!A177 -> 30 | B177: ='بيانات اساسية'!B177 -> هانى منصور سند حنا | C177: ='بيانات اساسية'!L177 -> 1070.14 | D177: ='بيانات اساسية'!M177 -> 917.2 | E177: 152.94 | F177: 152.94 | G177: 1529.4 | H177: 1529.4 | I177: 8.496666667 | J177: ='بيانات اساسية'!BS177 -> 0 | K177: ='بيانات اساسية'!BT177 -> 72 | L177: 0 | M177: 0 | N177: 0 | O177: 8.496666667 | Q177: ='بيانات اساسية'!BT177 -> 72 | R177: 1080 | S177: 9176.4 | T177: 9176.4 | V177: 0 | W177: 72 | Y177: 9176.4 | Z177: 9176.4
A178: ='بيانات اساسية'!A178 -> 31 | B178: ='بيانات اساسية'!B178 -> 0 | C178: ='بيانات اساسية'!L178 -> 0 | D178: ='بيانات اساسية'!M178 -> 0 | E178: 0 | F178: 0 | G178: 0 | H178: 0 | I178: 0 | J178: ='بيانات اساسية'!BS178 -> 0 | K178: ='بيانات اساسية'!BT178 -> 0 | L178: 0 | M178: 0 | N178: 0 | O178: 0 | Q178: ='بيانات اساسية'!BT178 -> 0 | R178: 0 | S178: 0 | T178: 0 | V178: 0 | W178: 0 | Y178: 0 | Z178: 0
A179: ='بيانات اساسية'!A179 -> 32 | B179: ='بيانات اساسية'!B179 -> 0 | C179: ='بيانات اساسية'!L179 -> 0 | D179: ='بيانات اساسية'!M179 -> 0 | E179: 0 | F179: 0 | G179: 0 | H179: 0 | I179: 0 | J179: ='بيانات اساسية'!BS179 -> 0 | K179: ='بيانات اساسية'!BT179 -> 0 | L179: 0 | M179: 0 | N179: 0 | O179: 0 | Q179: ='بيانات اساسية'!BT179 -> 0 | R179: 0 | S179: 0 | T179: 0 | V179: 0 | W179: 0 | Y179: 0 | Z179: 0
A180: ='بيانات اساسية'!A180 -> 33 | B180: ='بيانات اساسية'!B180 -> 0 | C180: ='بيانات اساسية'!L180 -> 0 | D180: ='بيانات اساسية'!M180 -> 0 | E180: 0 | F180: 0 | G180: 0 | H180: 0 | I180: 0 | J180: ='بيانات اساسية'!BS180 -> 0 | K180: ='بيانات اساسية'!BT180 -> 0 | L180: 0 | M180: 0 | N180: 0 | O180: 0 | Q180: ='بيانات اساسية'!BT180 -> 0 | R180: 0 | S180: 0 | T180: 0 | V180: 0 | W180: 0 | Y180: 0 | Z180: 0
A181: ='بيانات اساسية'!A181 -> 34 | B181: ='بيانات اساسية'!B181 -> 0 | C181: ='بيانات اساسية'!L181 -> 0 | D181: ='بيانات اساسية'!M181 -> 0 | E181: 0 | F181: 0 | G181: 0 | H181: 0 | I181: 0 | J181: ='بيانات اساسية'!BS181 -> 0 | K181: ='بيانات اساسية'!BT181 -> 0 | L181: 0 | M181: 0 | N181: 0 | O181: 0 | Q181: ='بيانات اساسية'!BT181 -> 0 | R181: 0 | S181: 0 | T181: 0 | V181: 0 | W181: 0 | Y181: 0 | Z181: 0
A182: ='بيانات اساسية'!A182 -> 35 | B182: ='بيانات اساسية'!B182 -> 0 | C182: ='بيانات اساسية'!L182 -> 0 | D182: ='بيانات اساسية'!M182 -> 0 | E182: 0 | F182: 0 | G182: 0 | H182: 0 | I182: 0 | J182: ='بيانات اساسية'!BS182 -> 0 | K182: ='بيانات اساسية'!BT182 -> 0 | L182: 0 | M182: 0 | N182: 0 | O182: 0 | Q182: ='بيانات اساسية'!BT182 -> 0 | R182: 0 | S182: 0 | T182: 0 | V182: 0 | W182: 0 | Y182: 0 | Z182: 0
A183: ='بيانات اساسية'!A183 -> 36 | B183: ='بيانات اساسية'!B183 -> 0 | C183: ='بيانات اساسية'!L183 -> 0 | D183: ='بيانات اساسية'!M183 -> 0 | E183: 0 | F183: 0 | G183: 0 | H183: 0 | I183: 0 | J183: ='بيانات اساسية'!BS183 -> 0 | K183: ='بيانات اساسية'!BT183 -> 0 | L183: 0 | M183: 0 | N183: 0 | O183: 0 | Q183: ='بيانات اساسية'!BT183 -> 0 | R183: 0 | S183: 0 | T183: 0 | V183: 0 | W183: 0 | Y183: 0 | Z183: 0
A184: ='بيانات اساسية'!A184 -> 37 | B184: ='بيانات اساسية'!B184 -> 0 | C184: ='بيانات اساسية'!L184 -> 0 | D184: ='بيانات اساسية'!M184 -> 0 | E184: 0 | F184: 0 | G184: 0 | H184: 0 | I184: 0 | J184: ='بيانات اساسية'!BS184 -> 0 | K184: ='بيانات اساسية'!BT184 -> 0 | L184: 0 | M184: 0 | N184: 0 | O184: 0 | Q184: ='بيانات اساسية'!BT184 -> 0 | R184: 0 | S184: 0 | T184: 0 | V184: 0 | W184: 0 | Y184: 0 | Z184: 0
A185: ='بيانات اساسية'!A185 -> 38 | B185: ='بيانات اساسية'!B185 -> 0 | C185: ='بيانات اساسية'!L185 -> 0 | D185: ='بيانات اساسية'!M185 -> 0 | E185: 0 | F185: 0 | G185: 0 | H185: 0 | I185: 0 | J185: ='بيانات اساسية'!BS185 -> 0 | K185: ='بيانات اساسية'!BT185 -> 0 | L185: 0 | M185: 0 | N185: 0 | O185: 0 | Q185: ='بيانات اساسية'!BT185 -> 0 | R185: 0 | S185: 0 | T185: 0 | V185: 0 | W185: 0 | Y185: 0 | Z185: 0
A186: ='بيانات اساسية'!A186 -> 39 | B186: ='بيانات اساسية'!B186 -> 0 | C186: ='بيانات اساسية'!L186 -> 0 | D186: ='بيانات اساسية'!M186 -> 0 | E186: 0 | F186: 0 | G186: 0 | H186: 0 | I186: 0 | J186: ='بيانات اساسية'!BS186 -> 0 | K186: ='بيانات اساسية'!BT186 -> 0 | L186: 0 | M186: 0 | N186: 0 | O186: 0 | Q186: ='بيانات اساسية'!BT186 -> 0 | R186: 0 | S186: 0 | T186: 0 | V186: 0 | W186: 0 | Y186: 0 | Z186: 0
A187: ='بيانات اساسية'!A187 -> 40 | B187: ='بيانات اساسية'!B187 -> 0 | C187: ='بيانات اساسية'!L187 -> 0 | D187: ='بيانات اساسية'!M187 -> 0 | E187: 0 | F187: 0 | G187: 0 | H187: 0 | I187: 0 | J187: ='بيانات اساسية'!BS187 -> 0 | K187: ='بيانات اساسية'!BT187 -> 0 | L187: 0 | M187: 0 | N187: 0 | O187: 0 | Q187: ='بيانات اساسية'!BT187 -> 0 | R187: 0 | S187: 0 | T187: 0 | V187: 0 | W187: 0 | Y187: 0 | Z187: 0
A188: ='بيانات اساسية'!A188 -> 41 | B188: ='بيانات اساسية'!B188 -> 0 | C188: ='بيانات اساسية'!L188 -> 0 | D188: ='بيانات اساسية'!M188 -> 0 | E188: 0 | F188: 0 | G188: 0 | H188: 0 | I188: 0 | J188: ='بيانات اساسية'!BS188 -> 0 | K188: ='بيانات اساسية'!BT188 -> 0 | L188: 0 | M188: 0 | N188: 0 | O188: 0 | Q188: ='بيانات اساسية'!BT188 -> 0 | R188: 0 | S188: 0 | T188: 0 | V188: 0 | W188: 0 | Y188: 0 | Z188: 0
A189: ='بيانات اساسية'!A189 -> 42 | B189: ='بيانات اساسية'!B189 -> 0 | C189: ='بيانات اساسية'!L189 -> 0 | D189: ='بيانات اساسية'!M189 -> 0 | E189: 0 | F189: 0 | G189: 0 | H189: 0 | I189: 0 | J189: ='بيانات اساسية'!BS189 -> 0 | K189: ='بيانات اساسية'!BT189 -> 0 | L189: 0 | M189: 0 | N189: 0 | O189: 0 | Q189: ='بيانات اساسية'!BT189 -> 0 | R189: 0 | S189: 0 | T189: 0 | V189: 0 | W189: 0 | Y189: 0 | Z189: 0
A190: ='بيانات اساسية'!A190 -> 43 | B190: ='بيانات اساسية'!B190 -> 0 | C190: ='بيانات اساسية'!L190 -> 0 | D190: ='بيانات اساسية'!M190 -> 0 | E190: 0 | F190: 0 | G190: 0 | H190: 0 | I190: 0 | J190: ='بيانات اساسية'!BS190 -> 0 | K190: ='بيانات اساسية'!BT190 -> 0 | L190: 0 | M190: 0 | N190: 0 | O190: 0 | Q190: ='بيانات اساسية'!BT190 -> 0 | R190: 0 | S190: 0 | T190: 0 | V190: 0 | W190: 0 | Y190: 0 | Z190: 0
A191: ='بيانات اساسية'!A191 -> 44 | B191: ='بيانات اساسية'!B191 -> 0 | C191: ='بيانات اساسية'!L191 -> 0 | D191: ='بيانات اساسية'!M191 -> 0 | E191: 0 | F191: 0 | G191: 0 | H191: 0 | I191: 0 | J191: ='بيانات اساسية'!BS191 -> 0 | K191: ='بيانات اساسية'!BT191 -> 0 | L191: 0 | M191: 0 | N191: 0 | O191: 0 | Q191: ='بيانات اساسية'!BT191 -> 0 | R191: 0 | S191: 0 | T191: 0 | V191: 0 | W191: 0 | Y191: 0 | Z191: 0
A192: ='بيانات اساسية'!A192 -> 45 | B192: ='بيانات اساسية'!B192 -> 0 | C192: ='بيانات اساسية'!L192 -> 0 | D192: ='بيانات اساسية'!M192 -> 0 | E192: 0 | F192: 0 | G192: 0 | H192: 0 | I192: 0 | J192: ='بيانات اساسية'!BS192 -> 0 | K192: ='بيانات اساسية'!BT192 -> 0 | L192: 0 | M192: 0 | N192: 0 | O192: 0 | Q192: ='بيانات اساسية'!BT192 -> 0 | R192: 0 | S192: 0 | T192: 0 | V192: 0 | W192: 0 | Y192: 0 | Z192: 0

Sheet بيانات اساسية
B1: محافظة اسيوط
B2: مديرية التربية والتعليم
B3: ادارة اسيوط التعليمية | D3: مذكرة للعرض على / السيد اللواء الوزير / محافظ اسيوط
B4: ادارة الموارد البشرية
B5: قسم الماهيات
B6: الموضوع : تنفيذ الاحكام القضائية الصادرة لللمعلمين بديوان ادارة اسيوط التعليمية ومدارسها باحقيتهم فى صرف الحوافز ومكافاة الامتحانات والاعمال الاضافية وجميع المزايا النقدية والعينية المقررة
B7: على اساس المرتب فى 30/6/2016 مع ما يترتب على ذلك من اثار من بند بدل المعلم 4 / 45 وبند حافز الاداء 3 / 23 وبند حافز الاثابة 3 / 3 وبند المكافاة 3 / 14 وبند الجهود الغير عادية | BP7: 333
B8: العرض : صدر الكتاب الدورى رقم (1) لسنة 2020 من الجهاز المركزى للتنظيم والادارة بشان الاجراءات والمستندات اللازمة لموافاة الجهاز بها بتنفيذ الاحكام القضائية ضد الجهاز الادارى للدولة حيث نص بند (1)
B9: من وعلى ارفاق مذكرة معتمدة من السلطة المختصة متضمنه التكاليف اللازمة لتنفيذ الحكم والبند والنوع المطلوب للتنفيذ منه وحيث وردت الاحكام الاتية باجمالى مبلغ ( ) جنيه مصري لعدد ( ) | S9: تظهر | W9: جمع | AA9: تظهر | AE9: جمع | AF9: تظهر | AJ9: تظهر | AN9: جمع | AO9: تظهر | AS9: تظهر | AW9: جمع | AX9: تظهر | BB9: تظهر | BF9: جمع | BG9: تظهر | BK9: تظهر | BO9: جمع | BS9: تظهر | BW9: جمع | CA9: تظهر | CE9: جمع
A10: البند المطلوب تعزيزة : بند بدل المعلم 4 / 45 وبند بدل الاعتماد 4 / 46 وبند حافز الاداء 3 / 23 وبند حافز الاثابة 3 / 3 وبند المكافاة 3 / 14 وبند الجهود غير العادية للمعلمين بادارة اسيوط التعليمية ومدارسها الصادرة لهم احكام قضائية وبياناتهم كالاتى | N10: الفرق | O10: الفرق | P10: بدل معلم | Q10: بدل معلم | R10: بدل معلم | S10: بدل معلم | U10: عدد الشهور | V10: مبلغ المدة | W10: مبلغ المدة | X10: حافز ( 25 % ) | Y10: حافز ( 25 % ) | Z10: عدد الشهور | AA10: حافز 25 % | AC10: عدد الشهور | AD10: مبلغ المدة | AE10: مبلغ المدة | AF10: بدل اعتماد 1111 | AG10: قيمة الشهر | AH10: قيمة الشهر | AI10: عدد الشهور | AJ10: بدل اعتماد 1111 | AL10: عدد الشهور | AM10: مبلغ المدة | AN10: مبلغ المدة | AO10: بدل اعتماد 2222 | AP10: قيمة الشهر | AQ10: قيمة الشهر | AR10: عدد الشهور | AS10: بدل اعتماد 2222 | AU10: عدد الشهور | AV10: مبلغ المدة | AW10: مبلغ المدة | AX10: حافز اداء 1111 | AY10: قيمة الشهر | AZ10: قيمة الشهر | BA10: عدد الشهور | BB10: حافز اداء 1111 | BD10: عدد الشهور | BE10: مبلغ المدة | BF10: مبلغ المدة | BG10: حافز اداء 2222 | BH10: قيمة الشهر | BI10: قيمة الشهر | BJ10: عدد الشهور | BK10: حافز اداء 2222 | BM10: عدد الشهور | BN10: مبلغ المدة | BO10: مبلغ المدة | BP10: مكافاة الامتحانات | BQ10: مكافاة الامتحانات | BR10: عدد الشهور | BS10: مكافاة الامتحانات | BU10: عدد الشهور | BV10: مبلغ المدة | BW10: مبلغ المدة | BX10: جهود غير عادية | BY10: جهود غير عادية | BZ10: عدد الشهور | CA10: جهود غير عادية | CC10: عدد الشهور | CD10: مبلغ المدة | CE10: مبلغ المدة | CF10: صافى | CG10: التفقيط | CH10: الرقم القومى | CI10: مكان العمل | CJ10: بدل اعتماد | CK10: حافز اداء | CL10: معاش | CM10: ترقية | CN10: مسلسل | CO10: ملف
A11: م | B11: الاسم رباعى | C11: الرقم القومى | D11: المحكمة | E11: الدائرة | F11: اسم المدعى عليه | G11: رقم الدعوى | H11: تاريخ جلسة الحكم | I11: الفترة المستحق عنها الصرف | K11: اجمالى المبلغ | L11: الاساسي فى | P11: م ( 50 % ) | Q11: م ( 50 % ) | R11: فى | S11: عدد الشهور المستحقة | U11: المستحقة | Z11: المستحقة | AA11: عدد الشهور المستحقة | AC11: المستحقة | AI11: المستحقة | AJ11: عدد الشهور المستحقة | AL11: المستحقة | AR11: المستحقة | AS11: عدد الشهور المستحقة | AU11: المستحقة | BA11: المستحقة | BB11: عدد الشهور المستحقة | BD11: المستحقة | BJ11: المستحقة | BK11: عدد الشهور المستحقة | BM11: المستحقة | BR11: المستحقة | BS11: المكافاة | BU11: المستحقة | BZ11: المستحقة | CA11: عدد الشهور المستحقة | CC11: المستحقة | CL11: استقالة | CN11: الترتيب | CO11: رقم
E12: التابعة | I12: من | J12: الى | L12: 2016-06-30 | M12: 2015-06-30 | O12: للطباعة | R12: اليوم | S12: يوم | T12: شهر | U12: باليوم | V12: المستحقة | W12: المستحقة | Z12: باليوم | AA12: يوم | AB12: شهر | AC12: باليوم | AD12: المستحقة | AE12: المستحقة | AI12: باليوم | AJ12: يوم | AK12: شهر | AL12: باليوم | AM12: المستحقة | AN12: المستحقة | AR12: باليوم | AS12: يوم | AT12: شهر | AU12: باليوم | AV12: المستحقة | AW12: المستحقة | BA12: باليوم | BB12: يوم | BC12: شهر | BD12: باليوم | BE12: المستحقة | BF12: المستحقة | BJ12: باليوم | BK12: يوم | BL12: شهر | BM12: باليوم | BN12: المستحقة | BO12: المستحقة | BR12: باليوم | BS12: يوم | BT12: شهر | BU12: باليوم | BV12: المستحقة | BW12: المستحقة | BZ12: باليوم | CA12: يوم | CB12: شهر | CC12: باليوم | CD12: المستحقة | CE12: المستحقة | CF12: المبلغ | CL12: وفاة
A13: 1 | B13: مصطفى كامل حمدان شعبان | C13: 25801052502451 | D13: محكمة القضاء الادارى باسيوط | E13: 104 | F13: وزير التربية والتعليم ـ محافظ اسيوط - وكيل وزارة التربية والتعليم | G13: 9633لسنة32ق | H13: 2021-10-19 | I13: 2016-07-01 | J13: 2017-12-31 | K13: =CE13+BW13+BO13+BF13+AW13+AN13+AE13+W13 -> 9892.23 | L13: 962.11 | M13: 824.27 | N13: =L13-M13 -> 137.84 | O13: =TRUNC(N13,2) -> 137.84 | P13: =O13*50/100 -> 68.92 | Q13: =TRUNC(P13,2) -> 68.92 | R13: =Q13/30 -> 2.297333333 | S13: 0 | T13: 18 | U13: =SUM((T13*30),S13) -> 540 | V13: =U13*R13 -> 1240.56 | W13: =TRUNC(V13,2) -> 1240.56 | X13: =O13*25/100 -> 34.46 | Y13: =TRUNC(X13,2) -> 34.46 | Z13: =Y13/30 -> 1.148666667 | AA13: 0 | AB13: 18 | AC13: =SUM((AB13*30),AA13) -> 540 | AD13: =AC13*Z13 -> 620.28 | AE13: =TRUNC(AD13,2) -> 620.28 | AF13: بدل اعتماد معلم خبير ( 175 % ) | AG13: =IF(AF13="بدل اعتماد معلم ( 100 % )",O13*100/100,IF(AF13="بدل اعتماد معلم أول ( 125 % )",O13*125/100,IF(AF13="بدل اعتماد معلم أول أ ( 150 % )",O13*150/100,IF(AF13="بدل اعتماد معلم خبير ( 175 % )",O13*175/100,IF(AF13="بدل اعتماد كبير معلمين ( 200 % )",O13*200/100))))) -> 241.22 | AH13: =TRUNC(AG13,2) -> 241.22 | AI13: =AH13/30 -> 8.040666667 | AJ13: 0 | AK13: 18 | AL13: =SUM((AK13*30),AJ13) -> 540 | AM13: =AL13*AI13 -> 4341.96 | AN13: =TRUNC(AM13,2) -> 4341.96 | AO13: بدل اعتماد معلم خبير ( 175 % ) | AP13: =IF(AO13="بدل اعتماد معلم ( 100 % )",O13*100/100,IF(AO13="بدل اعتماد معلم أول ( 125 % )",O13*125/100,IF(AO13="بدل اعتماد معلم أول أ ( 150 % )",O13*150/100,IF(AO13="بدل اعتماد معلم خبير ( 175 % )",O13*175/100,IF(AO13="بدل اعتماد كبير معلمين ( 200 % )",O13*200/100))))) -> 241.22 | AQ13: =TRUNC(AP13,2) -> 241.22 | AR13: =AQ13/30 -> 8.040666667 | AS13: 0 | AT13: 0 | AU13: =SUM((AT13*30),AS13) -> 0 | AV13: =AU13*AR13 -> 0 | AW13: =TRUNC(AV13,2) -> 0 | AX13: حافز اداء معلم خبير ( 25 % ) | AY13: =IF(AX13="حافز اداء معلم ( 75 % )",O13*75/100,IF(AX13="حافز اداء معلم أول ( 50 % )",O13*50/100,IF(AX13="حافز اداء معلم أول أ ( 25 % )",O13*25/100,IF(AX13="حافز اداء معلم خبير ( 25 % )",O13*25/100,IF(AX13="حافز اداء كبير معلمين ( 25 % )",O13*25/100))))) -> 34.46 | AZ13: =TRUNC(AY13,2) -> 34.46 | BA13: =AZ13/30 -> 1.148666667 | BB13: 0 | BC13: 18 | BD13: =SUM((BC13*30),BB13) -> 540 | BE13: =BD13*BA13 -> 620.28 | BF13: =TRUNC(BE13,2) -> 620.28 | BG13: حافز اداء معلم خبير ( 25 % ) | BH13: =IF(BG13="حافز اداء معلم ( 75 % )",O13*75/100,IF(BG13="حافز اداء معلم أول ( 50 % )",O13*50/100,IF(BG13="حافز اداء معلم أول أ ( 25 % )",O13*25/100,IF(BG13="حافز اداء معلم خبير ( 25 % )",O13*25/100,IF(BG13="حافز اداء كبير معلمين ( 25 % )",O13*25/100))))) -> 34.46 | BI13: =TRUNC(BH13,2) -> 34.46 | BJ13: =BI13/30 -> 1.148666667 | BK13: 0 | BL13: 0 | BM13: =SUM((BL13*30),BK13) -> 0 | BN13: =BM13*BJ13 -> 0 | BO13: =TRUNC(BN13,2) -> 0 | BP13: =O13*10 -> 1378.4 | BQ13: =TRUNC(BP13,2) -> 1378.4 | BR13: =BQ13/360 -> 3.828888889 | BS13: 0 | BT13: 16 | BV13: 2297.33 | BW13: 2297.33 | BX13: =O13*40/100 -> 55.136 | BY13: =TRUNC(BX13,2) -> 55.13 | BZ13: =BY13/30 -> 1.837666667 | CA13: 0 | CB13: 14 | CC13: =SUM((CB13*30),CA13) -> 420 | CD13: =CC13*BZ13 -> 771.82 | CE13: =TRUNC(CD13,2) -> 771.82 | CF13: =CE13+BW13+BO13+BF13+AW13+AN13+AE13+W13 -> 9892.23 | CG13: =" فقط "&ArbNum2Text(CF13, 2,3,"جنيه","جنيهات",1,"قرش","قروش",1) -> فقط تسعة آلافٍ وثمانمائة واثنتانِ وتسعونَ جنيهاً و 23 قرش فقطُ لا غيرَ | CH13: =C13 -> 25801052502451 | CI13: مصطفى كامل | CJ13: =AW13+AN13 -> 4341.96 | CK13: =BO13+BF13 -> 620.28 | CL13: 2018-01-04 | CM13: 2012-09-01 | CN13: 13 | CO13: 1
A14: 2 | B14: سناء على عبد المجيد محمد | C14: 25807282501185 | D14: محكمة القضاء الادارى باسيوط | E14: 104 | F14: محافظ اسيوط - وكيل وزارة التربية والتعليم | G14: 23264لسنة32ق | H14: 2021-10-19 | I14: 2016-07-01 | J14: 2018-06-30 | K14: 11821.48 | L14: 936.4 | M14: 807.34 | N14: 129.06 | O14: 129.06 | P14: 64.53 | Q14: 64.53 | R14: 2.151 | S14: 0 | T14: 24 | U14: 720 | V14: 1548.72 | W14: 1548.72 | X14: 32.265 | Y14: 32.26 | Z14: 1.075333333 | AA14: 0 | AB14: 24 | AC14: 720 | AD14: 774.24 | AE14: 774.24 | AF14: بدل اعتماد معلم خبير ( 175 % ) | AG14: 225.855 | AH14: 225.85 | AI14: 7.528333333 | AJ14: 0 | AK14: 24 | AL14: 720 | AM14: 5420.4 | AN14: 5420.4 | AO14: بدل اعتماد معلم خبير ( 175 % ) | AP14: 225.855 | AQ14: 225.85 | AR14: 7.528333333 | AS14: 0 | AT14: 0 | AU14: 0 | AV14: 0 | AW14: 0 | AX14: حافز اداء معلم خبير ( 25 % ) | AY14: 32.265 | AZ14: 32.26 | BA14: 1.075333333 | BB14: 0 | BC14: 24 | BD14: 720 | BE14: 774.24 | BF14: 774.24 | BG14: حافز اداء معلم خبير ( 25 % ) | BH14: 32.265 | BI14: 32.26 | BJ14: 1.075333333 | BK14: 0 | BL14: 0 | BM14: 0 | BN14: 0 | BO14: 0 | BP14: 1290.6 | BQ14: 1290.6 | BR14: 3.585 | BS14: 0 | BT14: 24 | BV14: 2581.2 | BW14: 2581.2 | BX14: 51.624 | BY14: 51.62 | BZ14: 1.720666667 | CA14: 0 | CB14: 14 | CC14: 420 | CD14: 722.68 | CE14: 722.68 | CF14: 11821.48 | CG14: فقط أحدَ عشر ألفاً وثمانمائة وإحدَى وعشرونَ جنيهاً و 48 قرش فقطُ لا غيرَ | CH14: 25807282501185 | CI14: ديوان الادارة | CJ14: 5420.4 | CK14: 774.24 | CL14: 2018-07-27 | CM14: 2014-10-01 | CN14: 14 | CO14: 1
A15: 3 | B15: كريمة سالم سيد فرغلي | C15: 26102152500144 | D15: محكمة القضاء الادارى باسيوط | E15: 104 | F15: محافظ اسيوط - وكيل وزارة التربية والتعليم | G15: 22995لسنة32ق | H15: 2021-10-19 | I15: 2016-07-01 | J15: 2021-01-31 | K15: 26513.75 | L15: 900.9 | M15: 775.79 | N15: 125.11 | O15: 125.11 | P15: 62.555 | Q15: 62.55 | R15: 2.085 | S15: 0 | T15: 55 | U15: 1650 | V15: 3440.25 | W15: 3440.25 | X15: 31.2775 | Y15: 31.27 | Z15: 1.042333333 | AA15: 0 | AB15: 55 | AC15: 1650 | AD15: 1719.85 | AE15: 1719.85 | AF15: بدل اعتماد معلم خبير ( 175 % ) | AG15: 218.9425 | AH15: 218.94 | AI15: 7.298 | AJ15: 0 | AK15: 28 | AL15: 840 | AM15: 6130.32 | AN15: 6130.32 | AO15: بدل اعتماد كبير معلمين ( 200 % ) | AP15: 250.22 | AQ15: 250.22 | AR15: 8.340666667 | AS15: 0 | AT15: 27 | AU15: 810 | AV15: 6755.94 | AW15: 6755.94 | AX15: حافز اداء معلم خبير ( 25 % ) | AY15: 31.2775 | AZ15: 31.27 | BA15: 1.042333333 | BB15: 0 | BC15: 28 | BD15: 840 | BE15: 875.56 | BF15: 875.56 | BG15: حافز اداء كبير معلمين ( 25 % ) | BH15: 31.2775 | BI15: 31.27 | BJ15: 1.042333333 | BK15: 0 | BL15: 27 | BM15: 810 | BN15: 844.29 | BO15: 844.29 | BP15: 1251.1 | BQ15: 1251.1 | BR15: 3.475277778 | BS15: 0 | BT15: 53 | BV15: 6046.98 | BW15: 6046.98 | BX15: 50.044 | BY15: 50.04 | BZ15: 1.668 | CA15: 0 | CB15: 14 | CC15: 420 | CD15: 700.56 | CE15: 700.56 | CF15: 26513.75 | CG15: فقط ستة وعشرونَ ألفاً وخمسمائة وثلاث عشرة جنيهاً و 75 قرش فقطُ لا غيرَ | CH15: 26102152500144 | CI15: ديوان الادارة | CJ15: 12886.26 | CK15: =BO15+BF15 -> 1719.85 | CL15: 2021-02-14 | CM15: 2018-11-01 | CN15: 15 | CO15: 1
A16: 4 | B16: ليلى عبد المنعم محمود طاهر | C16: 26102112500087 | D16: محكمة القضاء الادارى باسيوط | E16: 104 | F16: محافظ اسيوط - وكيل وزارة التربية والتعليم | G16: 23328لسنة32ق | H16: 2021-10-19 | I16: 2016-07-01 | J16: 2021-01-31 | K16: 29850.05 | L16: 980.1 | M16: 839.25 | N16: 140.85 | O16: 140.85 | P16: 70.425 | Q16: 70.42 | R16: 2.347333333 | S16: 0 | T16: 55 | U16: 1650 | V16: 3873.1 | W16: 3873.1 | X16: 35.2125 | Y16: 35.21 | Z16: 1.173666667 | AA16: 0 | AB16: 55 | AC16: 1650 | AD16: 1936.55 | AE16: 1936.55 | AF16: بدل اعتماد معلم خبير ( 175 % ) | AG16: 246.4875 | AH16: 246.48 | AI16: 8.216 | AJ16: 0 | AK16: 28 | AL16: 840 | AM16: 6901.44 | AN16: 6901.44 | AO16: بدل اعتماد كبير معلمين ( 200 % ) | AP16: 281.7 | AQ16: 281.7 | AR16: 9.39 | AS16: 0 | AT16: 27 | AU16: 810 | AV16: 7605.9 | AW16: 7605.9 | AX16: حافز اداء معلم خبير ( 25 % ) | AY16: 35.2125 | AZ16: 35.21 | BA16: 1.173666667 | BB16: 0 | BC16: 28 | BD16: 840 | BE16: 985.88 | BF16: 985.88 | BG16: حافز اداء كبير معلمين ( 25 % ) | BH16: 35.2125 | BI16: 35.21 | BJ16: 1.173666667 | BK16: 0 | BL16: 27 | BM16: 810 | BN16: 950.67 | BO16: 950.67 | BP16: 1408.5 | BQ16: 1408.5 | BR16: 3.9125 | BS16: 0 | BT16: 53 | BV16: 6807.75 | BW16: 6807.75 | BX16: 56.34 | BY16: 56.34 | BZ16: 1.878 | CA16: 0 | CB16: 14 | CC16: 420 | CD16: 788.76 | CE16: 788.76 | CF16: 29850.05 | CG16: فقط تسعة وعشرونَ ألفاً وثمانمائة وخمسونَ جنيهاً و 5 قروش فقطُ لا غيرَ | CH16: 26102112500087 | CI16: ديوان الادارة | CJ16: 14507.34 | CK16: 1936.55 | CL16: 2021-02-10 | CM16: 2018-11-01 | CN16: 16 | CO16: 1
A17: 5 | B17: عز الدين محمد احمد محمد الليثي | C17: 25909302500072 | D17: محكمة القضاء الادارى باسيوط | E17: 104 | F17: محافظ اسيوط - وكيل وزارة التربية والتعليم | G17: 9367لسنة32ق | H17: 2021-10-19 | I17: 2016-07-01 | J17: 2019-09-29 | K17: 20911.86 | L17: 988.96 | M17: 846.96 | N17: 142 | O17: 142 | P17: 71 | Q17: 71 | R17: 2.366666667 | S17: 0 | T17: 39 | U17: 1170 | V17: 2769 | W17: 2769 | X17: 35.5 | Y17: 35.5 | Z17: 1.183333333 | AA17: 0 | AB17: 39 | AC17: 1170 | AD17: 1384.5 | AE17: 1384.5 | AF17: بدل اعتماد معلم خبير ( 175 % ) | AG17: 248.5 | AH17: 248.5 | AI17: 8.283333333 | AJ17: 0 | AK17: 28 | AL17: 840 | AM17: 6958 | AN17: 6958 | AO17: بدل اعتماد كبير معلمين ( 200 % ) | AP17: 284 | AQ17: 284 | AR17: 9.466666667 | AS17: 0 | AT17: 11 | AU17: 330 | AV17: 3124 | AW17: 3124 | AX17: حافز اداء معلم خبير ( 25 % ) | AY17: 35.5 | AZ17: 35.5 | BA17: 1.183333333 | BB17: 0 | BC17: 28 | BD17: 840 | BE17: 994 | BF17: 994 | BG17: حافز اداء كبير معلمين ( 25 % ) | BH17: 35.5 | BI17: 35.5 | BJ17: 1.183333333 | BK17: 0 | BL17: 11 | BM17: 330 | BN17: 390.5 | BO17: 390.5 | BP17: 1420 | BQ17: 1420 | BR17: 3.944444444 | BS17: 0 | BT17: 37 | BV17: 4496.66 | BW17: 4496.66 | BX17: 56.8 | BY17: 56.8 | BZ17: 1.893333333 | CA17: 0 | CB17: 14 | CC17: 420 | CD17: 795.2 | CE17: 795.2 | CF17: 20911.86 | CG17: فقط عشرونَ ألفاً وتسعمائة وإحدَى عشرة جنيهاً و 86 قرش فقطُ لا غيرَ | CH17: 25909302500072 | CI17: ديوان الادارة | CJ17: 10082 | CK17: 1384.5 | CL17: 2019-09-29 | CM17: 2018-11-01 | CN17: 17 | CO17: 1
A18: 6 | B18: سوزان سام جبرائيل ينى | C18: 25710292401266 | D18: محكمة القضاء الادارى باسيوط | E18: 104 | F18: محافظ اسيوط - وكيل وزارة التربية والتعليم | G18: 10918لسنة32ق | H18: 2021-10-19 | I18: 2016-07-01 | J18: 2017-10-28 | K18: 9721.31 | L18: 1005.41 | M18: 860.17 | N18: 145.24 | O18: 145.24 | P18: 72.62 | Q18: 72.62 | R18: 2.420666667 | S18: 0 | T18: 16 | U18: 480 | V18: 1161.92 | W18: 1161.92 | X18: 36.31 | Y18: 36.31 | Z18: 1.210333333 | AA18: 0 | AB18: 16 | AC18: 480 | AD18: 580.96 | AE18: 580.96 | AF18: بدل اعتماد كبير معلمين ( 200 % ) | AG18: 290.48 | AH18: 290.48 | AI18: 9.682666667 | AJ18: 0 | AK18: 16 | AL18: 480 | AM18: 4647.68 | AN18: 4647.68 | AO18: بدل اعتماد كبير معلمين ( 200 % ) | AP18: 290.48 | AQ18: 290.48 | AR18: 9.682666667 | AS18: 0 | AT18: 0 | AU18: 0 | AV18: 0 | AW18: 0 | AX18: حافز اداء كبير معلمين ( 25 % ) | AY18: 36.31 | AZ18: 36.31 | BA18: 1.210333333 | BB18: 0 | BC18: 16 | BD18: 480 | BE18: 580.96 | BF18: 580.96 | BG18: حافز اداء كبير معلمين ( 25 % ) | BH18: 36.31 | BI18: 36.31 | BJ18: 1.210333333 | BK18: 0 | BL18: 0 | BM18: 0 | BN18: 0 | BO18: 0 | BP18: 1452.4 | BQ18: 1452.4 | BR18: 4.034444444 | BS18: 0 | BT18: 14 | BV18: 1936.53 | BW18: 1936.53 | BX18: 58.096 | BY18: 58.09 | BZ18: 1.936333333 | CA18: 0 | CB18: 14 | CC18: 420 | CD18: 813.26 | CE18: 813.26 | CF18: 9721.31 | CG18: فقط تسعة آلافٍ وسبعمائة وإحدَى وعشرونَ جنيهاً و 31 قرش فقطُ لا غيرَ | CH18: 25710292401266 | CI18: ديوان الادارة | CJ18: 4647.68 | CK18: 580.96 | CL18: 2017-10-28 | CM18: 2014-10-01 | CN18: 18 | CO18: 1
A19: 7 | B19: منير زكريا حبيب كرلس | C19: 26010142500659 | D19: محكمة القضاء الادارى باسيوط | E19: 104 | F19: محافظ اسيوط - وكيل وزارة التربية والتعليم | G19: 10166لسنة32ق | H19: 2021-10-19 | I19: 2016-07-01 | J19: 2020-09-30 | K19: 27162.54 | L19: 977.5 | M19: 836.95 | N19: 140.55 | O19: 140.55 | P19: 70.275 | Q19: 70.27 | R19: 2.342333333 | S19: 0 | T19: 51 | U19: 1530 | V19: 3583.77 | W19: 3583.77 | X19: 35.1375 | Y19: 35.13 | Z19: 1.171 | AA19: 0 | AB19: 51 | AC19: 1530 | AD19: 1791.63 | AE19: 1791.63 | AF19: بدل اعتماد معلم خبير ( 175 % ) | AG19: 245.9625 | AH19: 245.96 | AI19: 8.198666667 | AJ19: 0 | AK19: 28 | AL19: 840 | AM19: 6886.88 | AN19: 6886.88 | AO19: بدل اعتماد كبير معلمين ( 200 % ) | AP19: 281.1 | AQ19: 281.1 | AR19: 9.37 | AS19: 0 | AT19: 23 | AU19: 690 | AV19: 6465.3 | AW19: 6465.3 | AX19: حافز اداء معلم خبير ( 25 % ) | AY19: 35.1375 | AZ19: 35.13 | BA19: 1.171 | BB19: 0 | BC19: 28 | BD19: 840 | BE19: 983.64 | BF19: 983.64 | BG19: حافز اداء كبير معلمين ( 25 % ) | BH19: 35.1375 | BI19: 35.13 | BJ19: 1.171 | BK19: 0 | BL19: 23 | BM19: 690 | BN19: 807.99 | BO19: 807.99 | BP19: 1405.5 | BQ19: 1405.5 | BR19: 3.904166667 | BS19: 0 | BT19: 49 | BV19: 5856.25 | BW19: 5856.25 | BX19: 56.22 | BY19: 56.22 | BZ19: 1.874 | CA19: 0 | CB19: 14 | CC19: 420 | CD19: 787.08 | CE19: 787.08 | CF19: 27162.54 | CG19: فقط سبعة وعشرونَ ألفاً ومائة واثنتانِ وستونَ جنيهاً و 54 قرش فقطُ لا غيرَ | CH19: 26010142500659 | CI19: ديوان الادارة | CJ19: 13352.18 | CK19: 1791.63 | CL19: 2020-10-13 | CM19: 2018-11-01 | CN19: 19 | CO19: 1
A20: 8 | B20: وفاء محمود عمر عبد الرحمن | C20: 26004132500189 | D20: محكمة القضاء الادارى باسيوط | E20: 104 | F20: محافظ اسيوط - وكيل وزارة التربية والتعليم | G20: 23549لسنة32ق | H20: 2021-10-19 | I20: 2016-07-01 | J20: 2020-03-31 | K20: 17021.39 | L20: 776.42 | M20: 668.75 | N20: 107.67 | O20: 107.67 | P20: 53.835 | Q20: 53.83 | R20: 1.794333333 | S20: 0 | T20: 45 | U20: 1350 | V20: 2422.35 | W20: 2422.35 | X20: 26.9175 | Y20: 26.91 | Z20: 0.897 | AA20: 0 | AB20: 45 | AC20: 1350 | AD20: 1210.95 | AE20: 1210.95 | AF20: بدل اعتماد معلم أول أ ( 150 % ) | AG20: 161.505 | AH20: 161.5 | AI20: 5.383333333 | AJ20: 0 | AK20: 45 | AL20: 1350 | AM20: 7267.5 | AN20: 7267.5 | AO20: بدل اعتماد معلم أول أ ( 150 % ) | AP20: 161.505 | AQ20: 161.5 | AR20: 5.383333333 | AS20: 0 | AT20: 0 | AU20: 0 | AV20: 0 | AW20: 0 | AX20: حافز اداء معلم أول أ ( 25 % ) | AY20: 26.9175 | AZ20: 26.91 | BA20: 0.897 | BB20: 0 | BC20: 45 | BD20: 1350 | BE20: 1210.95 | BF20: 1210.95 | BG20: حافز اداء معلم أول أ ( 25 % ) | BH20: 26.9175 | BI20: 26.91 | BJ20: 0.897 | BK20: 0 | BL20: 0 | BM20: 0 | BN20: 0 | BO20: 0 | BP20: 1076.7 | BQ20: 1076.7 | BR20: 2.990833333 | BS20: 0 | BT20: 48 | BV20: 4306.8 | BW20: 4306.8 | BX20: 43.068 | BY20: 43.06 | BZ20: 1.435333333 | CA20: 0 | CB20: 14 | CC20: 420 | CD20: 602.84 | CE20: 602.84 | CF20: 17021.39 | CG20: فقط سبعة عشر ألفاً وإحدَى وعشرونَ جنيهاً و 39 قرش فقطُ لا غيرَ | CH20: 26004132500189 | CI20: النصرالابتدائية | CJ20: 7267.5 | CK20: 1210.95 | CL20: 2020-04-12 | CM20: 2012-09-01 | CN20: 20 | CO20: 1
A21: 9 | B21: وفاء ابراهيم عبد العزيز ابراهيم | C21: 26101172500063 | D21: محكمة القضاء الادارى باسيوط | E21: 104 | F21: محافظ اسيوط - وكيل وزارة التربية والتعليم | G21: 22964لسنة32ق | H21: 2021-10-19 | I21: 2016-07-01 | J21: 2020-12-31 | K21: 22554.92 | L21: 800.2 | M21: 687.85 | N21: 112.35 | O21: 112.35 | P21: 56.175 | Q21: 56.17 | R21: 1.872333333 | S21: 0 | T21: 54 | U21: 1620 | V21: 3033.18 | W21: 3033.18 | X21: 28.0875 | Y21: 28.08 | Z21: 0.936 | AA21: 0 | AB21: 54 | AC21: 1620 | AD21: 1516.32 | AE21: 1516.32 | AF21: بدل اعتماد معلم خبير ( 175 % ) | AG21: 196.6125 | AH21: 196.61 | AI21: 6.553666667 | AJ21: 0 | AK21: 54 | AL21: 1620 | AM21: 10616.94 | AN21: 10616.94 | AO21: بدل اعتماد معلم خبير ( 175 % ) | AP21: 196.6125 | AQ21: 196.61 | AR21: 6.553666667 | AS21: 0 | AT21: 0 | AU21: 0 | AV21: 0 | AW21: 0 | AX21: حافز اداء معلم خبير ( 25 % ) | AY21: 28.0875 | AZ21: 28.08 | BA21: 0.936 | BB21: 0 | BC21: 54 | BD21: 1620 | BE21: 1516.32 | BF21: 1516.32 | BG21: حافز اداء معلم خبير ( 25 % ) | BH21: 28.0875 | BI21: 28.08 | BJ21: 0.936 | BK21: 0 | BL21: 0 | BM21: 0 | BN21: 0 | BO21: 0 | BP21: 1123.5 | BQ21: 1123.5 | BR21: 3.120833333 | BS21: 0 | BT21: 52 | BV21: 5243 | BW21: 5243 | BX21: 44.94 | BY21: 44.94 | BZ21: 1.498 | CA21: 0 | CB21: 14 | CC21: 420 | CD21: 629.16 | CE21: 629.16 | CF21: 22554.92 | CG21: فقط اثنانِ وعشرونَ ألفاً وخمسمائة وأربع وخمسونَ جنيهاً و 92 قرش فقطُ لا غيرَ | CH21: 26101172500063 | CI21: الامام على بن ابى طالب باسيوط | CJ21: 10616.94 | CK21: 1516.32 | CL21: 2021-01-16 | CM21: 2014-10-01 | CN21: 21 | CO21: 1
A22: 10 | B22: مديحه ابراهيم عثمان فراج | C22: 25907072500768 | D22: محكمة القضاء الادارى باسيوط | E22: 104 | F22: محافظ اسيوط - وكيل وزارة التربية والتعليم | G22: 10345لسنة32ق | H22: 2021-10-19 | I22: 2016-07-01 | J22: 2019-06-30 | K22: 16716.58 | L22: 878.37 | M22: 755.99 | N22: 122.38 | O22: 122.38 | P22: 61.19 | Q22: 61.19 | R22: 2.039666667 | S22: 0 | T22: 36 | U22: 1080 | V22: 2202.84 | W22: 2202.84 | X22: 30.595 | Y22: 30.59 | Z22: 1.019666667 | AA22: 0 | AB22: 36 | AC22: 1080 | AD22: 1101.24 | AE22: 1101.24 | AF22: بدل اعتماد معلم خبير ( 175 % ) | AG22: 214.165 | AH22: 214.16 | AI22: 7.138666667 | AJ22: 0 | AK22: 28 | AL22: 840 | AM22: 5996.48 | AN22: 5996.48 | AO22: بدل اعتماد كبير معلمين ( 200 % ) | AP22: 244.76 | AQ22: 244.76 | AR22: 8.158666667 | AS22: 0 | AT22: 8 | AU22: 240 | AV22: 1958.08 | AW22: 1958.08 | AX22: حافز اداء معلم خبير ( 25 % ) | AY22: 30.595 | AZ22: 30.59 | BA22: 1.019666667 | BB22: 0 | BC22: 28 | BD22: 840 | BE22: 856.52 | BF22: 856.52 | BG22: حافز اداء كبير معلمين ( 25 % ) | BH22: 30.595 | BI22: 30.59 | BJ22: 1.019666667 | BK22: 0 | BL22: 8 | BM22: 240 | BN22: 244.72 | BO22: 244.72 | BP22: 1223.8 | BQ22: 1223.8 | BR22: 3.399444444 | BS22: 0 | BT22: 36 | BV22: 3671.4 | BW22: 3671.4 | BX22: 48.952 | BY22: 48.95 | BZ22: 1.631666667 | CA22: 0 | CB22: 14 | CC22: 420 | CD22: 685.3 | CE22: 685.3 | CF22: 16716.58 | CG22: فقط ستة عشر ألفاً وسبعمائة وست عشرة جنيهاً و 58 قرش فقطُ لا غيرَ | CH22: 25907072500768 | CI22: التجارة الثانوية بنات | CJ22: 7954.56 | CK22: 1101.24 | CL22: 2019-07-06 | CM22: 2018-11-01 | CN22: 22 | CO22: 1
A23: 11 | B23: جمال حسين محمد حسين | C23: 25803302500657 | D23: محكمة القضاء الادارى باسيوط | E23: 104 | F23: محافظ اسيوط - وكيل وزارة التربية والتعليم | G23: 24132لسنة32ق | H23: 2021-10-19 | I23: 2016-07-01 | J23: 2018-03-29 | K23: 13074.38 | L23: 1024.63 | M23: 877.06 | N23: 147.57 | O23: 147.57 | P23: 73.785 | Q23: 73.78 | R23: 2.459333333 | S23: 0 | T23: 21 | U23: 630 | V23: 1549.38 | W23: 1549.38 | X23: 36.8925 | Y23: 36.89 | Z23: 1.229666667 | AA23: 0 | AB23: 21 | AC23: 630 | AD23: 774.69 | AE23: 774.69 | AF23: بدل اعتماد كبير معلمين ( 200 % ) | AG23: 295.14 | AH23: 295.14 | AI23: 9.838 | AJ23: 0 | AK23: 21 | AL23: 630 | AM23: 6197.94 | AN23: 6197.94 | AO23: بدل اعتماد كبير معلمين ( 200 % ) | AP23: 295.14 | AQ23: 295.14 | AR23: 9.838 | AS23: 0 | AT23: 0 | AU23: 0 | AV23: 0 | AW23: 0 | AX23: حافز اداء كبير معلمين ( 25 % ) | AY23: 36.8925 | AZ23: 36.89 | BA23: 1.229666667 | BB23: 0 | BC23: 21 | BD23: 630 | BE23: 774.69 | BF23: 774.69 | BG23: حافز اداء كبير معلمين ( 25 % ) | BH23: 36.8925 | BI23: 36.89 | BJ23: 1.229666667 | BK23: 0 | BL23: 0 | BM23: 0 | BN23: 0 | BO23: 0 | BP23: 1475.7 | BQ23: 1475.7 | BR23: 4.099166667 | BS23: 0 | BT23: 24 | BV23: 2951.4 | BW23: 2951.4 | BX23: 59.028 | BY23: 59.02 | BZ23: 1.967333333 | CA23: 0 | CB23: 14 | CC23: 420 | CD23: 826.28 | CE23: 826.28 | CF23: 13074.38 | CG23: فقط ثلاثة عشر ألفاً وأربع وسبعونَ جنيهاً و 38 قرش فقطُ لا غيرَ | CH23: 25803302500657 | CI23: ريفا الثانوية | CJ23: 6197.94 | CK23: 774.69 | CL23: 2018-03-29 | CM23: 2014-10-01 | CN23: 23 | CO23: 1
A24: 12 | B24: رمضان مصطفى مهدى محمد | C24: 25904122500838 | D24: محكمة القضاء الادارى باسيوط | E24: 104 | F24: محافظ اسيوط - وكيل وزارة التربية والتعليم | G24: 22993لسنة32ق | H24: 2021-10-19 | I24: 2016-07-01 | J24: 2019-03-31 | K24: 20071.44 | L24: 1034.89 | M24: 885.77 | N24: 149.12 | O24: 149.12 | P24: 74.56 | Q24: 74.56 | R24: 2.485333333 | S24: 0 | T24: 33 | U24: 990 | V24: 2460.48 | W24: 2460.48 | X24: 37.28 | Y24: 37.28 | Z24: 1.242666667 | AA24: 0 | AB24: 33 | AC24: 990 | AD24: 1230.24 | AE24: 1230.24 | AF24: بدل اعتماد كبير معلمين ( 200 % ) | AG24: 298.24 | AH24: 298.24 | AI24: 9.941333333 | AJ24: 0 | AK24: 33 | AL24: 990 | AM24: 9841.92 | AN24: 9841.92 | AO24: بدل اعتماد كبير معلمين ( 200 % ) | AP24: 298.24 | AQ24: 298.24 | AR24: 9.941333333 | AS24: 0 | AT24: 0 | AU24: 0 | AV24: 0 | AW24: 0 | AX24: حافز اداء كبير معلمين ( 25 % ) | AY24: 37.28 | AZ24: 37.28 | BA24: 1.242666667 | BB24: 0 | BC24: 33 | BD24: 990 | BE24: 1230.24 | BF24: 1230.24 | BG24: حافز اداء كبير معلمين ( 25 % ) | BH24: 37.28 | BI24: 37.28 | BJ24: 1.242666667 | BK24: 0 | BL24: 0 | BM24: 0 | BN24: 0 | BO24: 0 | BP24: 1491.2 | BQ24: 1491.2 | BR24: 4.142222222 | BS24: 0 | BT24: 36 | BV24: 4473.6 | BW24: 4473.6 | BX24: 59.648 | BY24: 59.64 | BZ24: 1.988 | CA24: 0 | CB24: 14 | CC24: 420 | CD24: 834.96 | CE24: 834.96 | CF24: 20071.44 | CG24: فقط عشرونَ ألفاً وإحدَى وسبعونَ جنيهاً و 44 قرش فقطُ لا غيرَ | CH24: 25904122500838 | CI24: ريفا الثانوية | CJ24: 9841.92 | CK24: 1230.24 | CL24: 2019-04-11 | CM24: 2014-10-01 | CN24: 24 | CO24: 1
A25: 13 | B25: خالد احمد سيد عبد العال | C25: 26101272501334 | D25: محكمة القضاء الادارى باسيوط | E25: 104 | F25: محافظ اسيوط - وكيل وزارة التربية والتعليم | G25: 23104لسنة32ق | H25: 2021-10-19 | I25: 2016-07-01 | J25: 2020-12-31 | K25: 26241.22 | L25: 904.81 | M25: 778.2 | N25: 126.61 | O25: 126.61 | P25: 63.305 | Q25: 63.3 | R25: 2.11 | S25: 0 | T25: 54 | U25: 1620 | V25: 3418.2 | W25: 3418.2 | X25: 31.6525 | Y25: 31.65 | Z25: 1.055 | AA25: 0 | AB25: 54 | AC25: 1620 | AD25: 1709.1 | AE25: 1709.1 | AF25: بدل اعتماد معلم خبير ( 175 % ) | AG25: 221.5675 | AH25: 221.56 | AI25: 7.385333333 | AJ25: 0 | AK25: 28 | AL25: 840 | AM25: 6203.68 | AN25: 6203.68 | AO25: بدل اعتماد كبير معلمين ( 200 % ) | AP25: 253.22 | AQ25: 253.22 | AR25: 8.440666667 | AS25: 0 | AT25: 26 | AU25: 780 | AV25: 6583.72 | AW25: 6583.72 | AX25: حافز اداء معلم خبير ( 25 % ) | AY25: 31.6525 | AZ25: 31.65 | BA25: 1.055 | BB25: 0 | BC25: 28 | BD25: 840 | BE25: 886.2 | BF25: 886.2 | BG25: حافز اداء كبير معلمين ( 25 % ) | BH25: 31.6525 | BI25: 31.65 | BJ25: 1.055 | BK25: 0 | BL25: 26 | BM25: 780 | BN25: 822.9 | BO25: 822.9 | BP25: 1266.1 | BQ25: 1266.1 | BR25: 3.516944444 | BS25: 0 | BT25: 52 | BV25: 5908.46 | BW25: 5908.46 | BX25: 50.644 | BY25: 50.64 | BZ25: 1.688 | CA25: 0 | CB25: 14 | CC25: 420 | CD25: 708.96 | CE25: 708.96 | CF25: 26241.22 | CG25: فقط ستة وعشرونَ ألفاً ومائتان وإحدَى وأربعونَ جنيهاً و 22 قرش فقطُ لا غيرَ | CH25: 26101272501334 | CI25: الخياط الثانوية | CJ25: 12787.4 | CK25: 1709.1 | CL25: 2021-01-26 | CM25: 2018-11-01 | CN25: 25 | CO25: 1
A26: 14 | B26: زغلول محمد حسن على | C26: 26006022500631 | D26: محكمة القضاء الادارى باسيوط | E26: 104 | F26: محافظ اسيوط - وكيل وزارة التربية والتعليم | G26: 10288لسنة32ق | H26: 2021-10-19 | I26: 2016-07-01 | J26: 2020-05-31 | K26: 23467.21 | L26: 935.61 | M26: 804.94 | N26: 130.67 | O26: 130.67 | P26: 65.335 | Q26: 65.33 | R26: 2.177666667 | S26: 0 | T26: 47 | U26: 1410 | V26: 3070.51 | W26: 3070.51 | X26: 32.6675 | Y26: 32.66 | Z26: 1.088666667 | AA26: 0 | AB26: 47 | AC26: 1410 | AD26: 1535.02 | AE26: 1535.02 | AF26: بدل اعتماد معلم خبير ( 175 % ) | AG26: 228.6725 | AH26: 228.67 | AI26: 7.622333333 | AJ26: 0 | AK26: 28 | AL26: 840 | AM26: 6402.76 | AN26: 6402.76 | AO26: بدل اعتماد كبير معلمين ( 200 % ) | AP26: 261.34 | AQ26: 261.34 | AR26: 8.711333333 | AS26: 0 | AT26: 19 | AU26: 570 | AV26: 4965.46 | AW26: 4965.46 | AX26: حافز اداء معلم خبير ( 25 % ) | AY26: 32.6675 | AZ26: 32.66 | BA26: 1.088666667 | BB26: 0 | BC26: 28 | BD26: 840 | BE26: 914.48 | BF26: 914.48 | BG26: حافز اداء كبير معلمين ( 25 % ) | BH26: 32.6675 | BI26: 32.66 | BJ26: 1.088666667 | BK26: 0 | BL26: 19 | BM26: 570 | BN26: 620.54 | BO26: 620.54 | BP26: 1306.7 | BQ26: 1306.7 | BR26: 3.629722222 | BS26: 0 | BT26: 48 | BV26: 5226.8 | BW26: 5226.8 | BX26: 52.268 | BY26: 52.26 | BZ26: 1.742 | CA26: 0 | CB26: 14 | CC26: 420 | CD26: 731.64 | CE26: 731.64 | CF26: 23467.21 | CG26: فقط ثلاثة وعشرونَ ألفاً وأربعمائة وسبع وستونَ جنيهاً و 21 قرش فقطُ لا غيرَ | CH26: 26006022500631 | CI26: ناصر الاعدادية ببهيج | CJ26: 11368.22 | CK26: 1535.02 | CL26: 2020-06-01 | CM26: 2018-11-01 | CN26: 26 | CO26: 1
A27: 15 | B27: سميره احمد عبد القادر سليم | C27: 26103182500641 | D27: محكمة القضاء الادارى باسيوط | E27: 104 | F27: محافظ اسيوط - وكيل وزارة التربية والتعليم | G27: 10281لسنة32ق | H27: 2021-10-19 | I27: 2016-07-01 | J27: 2021-02-28 | K27: 28383.34 | L27: 921.91 | M27: 789.85 | N27: 132.06 | O27: 132.06 | P27: 66.03 | Q27: 66.03 | R27: 2.201 | S27: 0 | T27: 56 | U27: 1680 | V27: 3697.68 | W27: 3697.68 | X27: 33.015 | Y27: 33.01 | Z27: 1.100333333 | AA27: 0 | AB27: 56 | AC27: 1680 | AD27: 1848.56 | AE27: 1848.56 | AF27: بدل اعتماد معلم خبير ( 175 % ) | AG27: 231.105 | AH27: 231.1 | AI27: 7.703333333 | AJ27: 0 | AK27: 28 | AL27: 840 | AM27: 6470.8 | AN27: 6470.8 | AO27: بدل اعتماد كبير معلمين ( 200 % ) | AP27: 264.12 | AQ27: 264.12 | AR27: 8.804 | AS27: 0 | AT27: 28 | AU27: 840 | AV27: 7395.36 | AW27: 7395.36 | AX27: حافز اداء معلم خبير ( 25 % ) | AY27: 33.015 | AZ27: 33.01 | BA27: 1.100333333 | BB27: 0 | BC27: 28 | BD27: 840 | BE27: 924.28 | BF27: 924.28 | BG27: حافز اداء كبير معلمين ( 25 % ) | BH27: 33.015 | BI27: 33.01 | BJ27: 1.100333333 | BK27: 0 | BL27: 28 | BM27: 840 | BN27: 924.28 | BO27: 924.28 | BP27: 1320.6 | BQ27: 1320.6 | BR27: 3.668333333 | BS27: 0 | BT27: 53 | BV27: 6382.9 | BW27: 6382.9 | BX27: 52.824 | BY27: 52.82 | BZ27: 1.760666667 | CA27: 0 | CB27: 14 | CC27: 420 | CD27: 739.48 | CE27: 739.48 | CF27: 28383.34 | CG27: فقط ثمانية وعشرونَ ألفاً وثلاثمائة وثلاث وثمانونَ جنيهاً و 34 قرش فقطُ لا غيرَ | CH27: 26103182500641 | CI27: عمر بن الخطاب اسيوط | CJ27: 13866.16 | CK27: 1848.56 | CL27: 2021-03-17 | CM27: 2018-11-01 | CN27: 27 | CO27: 1
A28: 16 | B28: زينب محمد محمود احمد | C28: 26812022500085 | D28: محكمة القضاء الادارى باسيوط | E28: 104 | F28: محافظ اسيوط - وكيل وزارة التربية والتعليم | G28: 10280لسنة32ق | H28: 2021-10-19 | I28: 2016-07-01 | J28: 2019-08-31 | K28: 9437.4 | L28: 529.46 | M28: 457.19 | N28: 72.27 | O28: 72.27 | P28: 36.135 | Q28: 36.13 | R28: 1.204333333 | S28: 0 | T28: 38 | U28: 1140 | V28: 1372.94 | W28: 1372.94 | X28: 18.0675 | Y28: 18.06 | Z28: 0.602 | AA28: 0 | AB28: 38 | AC28: 1140 | AD28: 686.28 | AE28: 686.28 | AF28: بدل اعتماد معلم أول أ ( 150 % ) | AG28: 108.405 | AH28: 108.4 | AI28: 3.613333333 | AJ28: 0 | AK28: 38 | AL28: 1140 | AM28: 4119.2 | AN28: 4119.2 | AO28: بدل اعتماد معلم أول أ ( 150 % ) | AP28: 108.405 | AQ28: 108.4 | AR28: 3.613333333 | AS28: 0 | AT28: 0 | AU28: 0 | AV28: 0 | AW28: 0 | AX28: حافز اداء معلم أول أ ( 25 % ) | AY28: 18.0675 | AZ28: 18.06 | BA28: 0.602 | BB28: 0 | BC28: 38 | BD28: 1140 | BE28: 686.28 | BF28: 686.28 | BG28: حافز اداء معلم أول أ ( 25 % ) | BH28: 18.0675 | BI28: 18.06 | BJ28: 0.602 | BK28: 0 | BL28: 0 | BM28: 0 | BN28: 0 | BO28: 0 | BP28: 722.7 | BQ28: 722.7 | BR28: 2.0075 | BS28: 0 | BT28: 36 | BV28: 2168.1 | BW28: 2168.1 | BX28: 28.908 | BY28: 28.9 | BZ28: 0.9633333333 | CA28: 0 | CB28: 14 | CC28: 420 | CD28: 404.6 | CE28: 404.6 | CF28: 9437.4 | CG28: فقط تسعة آلافٍ وأربعمائة وسبع وثلاثونَ جنيهاً و 40 قرش فقطُ لا غيرَ | CH28: 26812022500085 | CI28: خديجة بنت خويلد | CJ28: 4119.2 | CK28: 686.28 | CL28: 2019-09-07 | CM28: 2014-10-01 | CN28: 28 | CO28: 1
A29: 17 | B29: نبيل بخيت عبد اللطيف بخيت | C29: 26102262500077 | D29: محكمة القضاء الادارى باسيوط | E29: 104 | F29: محافظ اسيوط - وكيل وزارة التربية والتعليم | G29: 24121لسنة32ق | H29: 2021-10-19 | I29: 2016-07-01 | J29: 2020-01-31 | K29: 18313.63 | L29: 812.64 | M29: 699.72 | N29: 112.92 | O29: 112.92 | P29: 56.46 | Q29: 56.46 | R29: 1.882 | S29: 0 | T29: 43 | U29: 1290 | V29: 2427.78 | W29: 2427.78 | X29: 28.23 | Y29: 28.23 | Z29: 0.941 | AA29: 0 | AB29: 43 | AC29: 1290 | AD29: 1213.89 | AE29: 1213.89 | AF29: بدل اعتماد معلم خبير ( 175 % ) | AG29: 197.61 | AH29: 197.61 | AI29: 6.587 | AJ29: 0 | AK29: 43 | AL29: 1290 | AM29: 8497.23 | AN29: 8497.23 | AO29: بدل اعتماد معلم خبير ( 175 % ) | AP29: 197.61 | AQ29: 197.61 | AR29: 6.587 | AS29: 0 | AT29: 0 | AU29: 0 | AV29: 0 | AW29: 0 | AX29: حافز اداء معلم خبير ( 25 % ) | AY29: 28.23 | AZ29: 28.23 | BA29: 0.941 | BB29: 0 | BC29: 43 | BD29: 1290 | BE29: 1213.89 | BF29: 1213.89 | BG29: حافز اداء معلم خبير ( 25 % ) | BH29: 28.23 | BI29: 28.23 | BJ29: 0.941 | BK29: 0 | BL29: 0 | BM29: 0 | BN29: 0 | BO29: 0 | BP29: 1129.2 | BQ29: 1129.2 | BR29: 3.136666667 | BS29: 0 | BT29: 41 | BV29: 4328.6 | BW29: 4328.6 | BX29: 45.168 | BY29: 45.16 | BZ29: 1.505333333 | CA29: 0 | CB29: 14 | CC29: 420 | CD29: 632.24 | CE29: 632.24 | CF29: 18313.63 | CG29: فقط ثمانة عشر ألفاً وثلاثمائة وثلاث عشرة جنيهاً و 63 قرش فقطُ لا غيرَ | CH29: 26102262500077 | CI29: قطاع قبلى | CJ29: 8497.23 | CK29: 1213.89 | CL29: 2021-02-25 | CM29: 2014-10-01 | CN29: 29 | CO29: 1
A30: 18 | B30: جمال محمد خلاف محمد | C30: 26105112500671 | D30: محكمة القضاء الادارى باسيوط | E30: 90 | F30: محافظ اسيوط - مدير مديرية التربية والتعليم | G30: 13871لسنة32ق | H30: 2021-06-22 | I30: 2016-07-01 | J30: 2021-04-30 | K30: 26070.8 | L30: 838.73 | M30: 721.61 | N30: 117.12 | O30: 117.12 | P30: 58.56 | Q30: 58.56 | R30: 1.952 | S30: 0 | T30: 58 | U30: 1740 | V30: 3396.48 | W30: 3396.48 | X30: 29.28 | Y30: 29.28 | Z30: 0.976 | AA30: 0 | AB30: 58 | AC30: 1740 | AD30: 1698.24 | AE30: 1698.24 | AF30: بدل اعتماد معلم خبير ( 175 % ) | AG30: 204.96 | AH30: 204.96 | AI30: 6.832 | AJ30: 0 | AK30: 28 | AL30: 840 | AM30: 5738.88 | AN30: 5738.88 | AO30: بدل اعتماد كبير معلمين ( 200 % ) | AP30: 234.24 | AQ30: 234.24 | AR30: 7.808 | AS30: 0 | AT30: 30 | AU30: 900 | AV30: 7027.2 | AW30: 7027.2 | AX30: حافز اداء معلم خبير ( 25 % ) | AY30: 29.28 | AZ30: 29.28 | BA30: 0.976 | BB30: 0 | BC30: 28 | BD30: 840 | BE30: 819.84 | BF30: 819.84 | BG30: حافز اداء كبير معلمين ( 25 % ) | BH30: 29.28 | BI30: 29.28 | BJ30: 0.976 | BK30: 0 | BL30: 30 | BM30: 900 | BN30: 878.4 | BO30: 878.4 | BP30: 1171.2 | BQ30: 1171.2 | BR30: 3.253333333 | BS30: 0 | BT30: 60 | BV30: 5856 | BW30: 5856 | BX30: 46.848 | BY30: 46.84 | BZ30: 1.561333333 | CA30: 0 | CB30: 14 | CC30: 420 | CD30: 655.76 | CE30: 655.76 | CF30: 26070.8 | CG30: فقط ستة وعشرونَ ألفاً وسبعونَ جنيهاً و 80 قرش فقطُ لا غيرَ | CH30: 26105112500671 | CI30: العسكرية الرياضة | CJ30: 12766.08 | CK30: 1698.24 | CL30: 2021-05-10 | CM30: 2018-11-01 | CN30: 30 | CO30: 1
A31: 19 | B31: محمد احمد حسن امام | C31: 26003292500871 | D31: محكمة القضاء الادارى باسيوط | E31: 104 | F31: محافظ اسيوط - وكيل وزارة التربية والتعليم | G31: 23271لسنة32ق | H31: 2021-10-19 | I31: 2016-07-01 | J31: 2020-02-28 | K31: 20130.56764 | L31: 888.33 | M31: 766.8 | N31: 121.53 | O31: 121.53 | P31: =N31*50/100 -> 60.765 | Q31: 60.76 | R31: 2.025333333 | S31: 0 | T31: 44 | U31: 1320 | V31: 2673.44 | W31: 2673.44 | X31: 30.3825 | Y31: 30.38 | Z31: 1.012666667 | AA31: 0 | AB31: 44 | AC31: 1320 | AD31: 1336.72 | AE31: 1336.72 | AF31: بدل اعتماد معلم خبير ( 175 % ) | AG31: =IF(AF31="بدل اعتماد معلم ( 50 % )",O31*100/100,IF(AF31="بدل اعتماد معلم أول ( 125 % )",O31*125/100,IF(AF31="بدل اعتماد معلم أول أ ( 150 % )",O31*150/100,IF(AF31="بدل اعتماد معلم خبير ( 175 % )",O31*175/100,IF(AF31="بدل اعتماد كبير معلمين ( 200 % )",O31*200/100))))) -> 212.6775 | AH31: 212.67 | AI31: 7.089 | AJ31: 0 | AK31: 28 | AL31: 840 | AM31: 5954.76 | AN31: 5954.76 | AO31: بدل اعتماد كبير معلمين ( 200 % ) | AP31: 243.06 | AQ31: 243.06 | AR31: 8.102 | AS31: 0 | AT31: 16 | AU31: 480 | AV31: 3888.96 | AW31: 3888.96 | AX31: حافز اداء معلم خبير ( 25 % ) | AY31: 30.3825 | AZ31: 30.38 | BA31: 1.012666667 | BB31: 0 | BC31: 28 | BD31: 840 | BE31: 850.64 | BF31: 850.64 | BG31: حافز اداء كبير معلمين ( 25 % ) | BH31: 30.3825 | BI31: 30.38 | BJ31: 1.012666667 | BK31: 0 | BL31: 16 | BM31: 480 | BN31: 486.08 | BO31: 486.08 | BP31: 1215.3 | BQ31: 1215.3 | BR31: 3.375833333 | BS31: 0 | BT31: 48 | BV31: 4861.2 | BW31: 4861.2 | BX31: 48.612 | BY31: 48.61 | BZ31: 1.620333333 | CA31: 0 | CB31: 14 | CC31: 420 | CD31: 680.54 | CE31: =BZ31*BX31 -> 78.767644 | CF31: 20130.56764 | CG31: فقط عشرونَ ألفاً ومائة وثلاثونَ جنيهاً و 57 قرش فقطُ لا غيرَ | CH31: 26003292500871 | CI31: ناصر الثانوية | CJ31: 9843.72 | CK31: 1336.72 | CL31: 2020-03-28 | CM31: 2018-11-01 | CN31: 31 | CO31: 1
A32: 20 | B32: اقبال فخرى بشاى غبريال | C32: 26003092501326 | D32: محكمة القضاء الادارى باسيوط | E32: 104 | F32: محافظ اسيوط - وكيل وزارة التربية والتعليم | G32: 8506لسنة32ق | H32: 2021-10-19 | I32: 2016-07-01 | J32: 2020-02-28 | K32: 20568.61047 | L32: 890.78 | M32: 766.62 | N32: 124.16 | O32: 124.16 | P32: 62.08 | Q32: 62.08 | R32: 2.069333333 | S32: 0 | T32: 44 | U32: 1320 | V32: 2731.52 | W32: 2731.52 | X32: 31.04 | Y32: 31.04 | Z32: 1.034666667 | AA32: 0 | AB32: 44 | AC32: 1320 | AD32: 1365.76 | AE32: 1365.76 | AF32: بدل اعتماد معلم خبير ( 175 % ) | AG32: 217.28 | AH32: 217.28 | AI32: 7.242666667 | AJ32: 0 | AK32: 28 | AL32: 840 | AM32: 6083.84 | AN32: 6083.84 | AO32: بدل اعتماد كبير معلمين ( 200 % ) | AP32: 248.32 | AQ32: 248.32 | AR32: 8.277333333 | AS32: 0 | AT32: 16 | AU32: 480 | AV32: 3973.12 | AW32: 3973.12 | AX32: حافز اداء معلم خبير ( 25 % ) | AY32: 31.04 | AZ32: 31.04 | BA32: 1.034666667 | BB32: 0 | BC32: 28 | BD32: 840 | BE32: 869.12 | BF32: 869.12 | BG32: حافز اداء كبير معلمين ( 25 % ) | BH32: 31.04 | BI32: 31.04 | BJ32: 1.034666667 | BK32: 0 | BL32: 16 | BM32: 480 | BN32: 496.64 | BO32: 496.64 | BP32: 1241.6 | BQ32: 1241.6 | BR32: 3.448888889 | BS32: 0 | BT32: 48 | BV32: 4966.4 | BW32: 4966.4 | BX32: 49.664 | BY32: 49.66 | BZ32: 1.655333333 | CA32: 0 | CB32: 14 | CC32: 420 | CD32: 695.24 | CE32: 82.21047467 | CF32: 20568.61047 | CG32: فقط عشرونَ ألفاً وخمسمائة وثمان وستونَ جنيهاً و 61 قرش فقطُ لا غيرَ | CH32: 26003092501326 | CI32: التحرير بنات | CJ32: 10056.96 | CK32: 1365.76 | CL32: 2020-03-08 | CM32: 2018-11-01 | CN32: 32 | CO32: 1
A33: 21 | B33: علاء الدين حلمى محمد احمد | C33: 26103052500879 | D33: محكمة القضاء الادارى باسيوط | E33: 104 | F33: محافظ اسيوط - وكيل وزارة التربية والتعليم | G33: 10284لسنة32ق | H33: 2021-10-19 | I33: 2016-07-01 | J33: 2021-02-28 | K33: 23296.26981 | L33: 819.46 | M33: 705.74 | N33: 113.72 | O33: 113.72 | P33: 56.86 | Q33: 56.86 | R33: 1.895333333 | S33: 0 | T33: 56 | U33: 1680 | V33: 3184.16 | W33: 3184.16 | X33: 28.43 | Y33: 28.43 | Z33: 0.9476666667 | AA33: 0 | AB33: 56 | AC33: 1680 | AD33: 1592.08 | AE33: 1592.08 | AF33: بدل اعتماد معلم خبير ( 175 % ) | AG33: 199.01 | AH33: 199.01 | AI33: 6.633666667 | AJ33: 0 | AK33: 55 | AL33: 1650 | AM33: 10945.55 | AN33: 10945.55 | AO33: بدل اعتماد كبير معلمين ( 200 % ) | AP33: 227.44 | AQ33: 227.44 | AR33: 7.581333333 | AS33: 0 | AT33: 1 | AU33: 30 | AV33: 227.44 | AW33: 227.44 | AX33: حافز اداء معلم خبير ( 25 % ) | AY33: 28.43 | AZ33: 28.43 | BA33: 0.9476666667 | BB33: 0 | BC33: 55 | BD33: 1650 | BE33: 1563.65 | BF33: 1563.65 | BG33: حافز اداء كبير معلمين ( 25 % ) | BH33: 28.43 | BI33: 28.43 | BJ33: 0.9476666667 | BK33: 0 | BL33: 1 | BM33: 30 | BN33: 28.43 | BO33: 28.43 | BP33: 1137.2 | BQ33: 1137.2 | BR33: 3.158888889 | BS33: 0 | BT33: 60 | BV33: 5686 | BW33: 5686 | BX33: 45.488 | BY33: 45.48 | BZ33: 1.516 | CA33: 0 | CB33: 14 | CC33: 420 | CD33: 636.72 | CE33: 68.959808 | CF33: 23296.26981 | CG33: فقط ثلاثة وعشرونَ ألفاً ومائتان وست وتسعونَ جنيهاً و 27 قرش فقطُ لا غيرَ | CH33: 26103052500879 | CI33: الشاعر فوزى عنتيل | CJ33: 11172.99 | CK33: 1592.08 | CL33: 2021-03-04 | CM33: 2021-02-01 | CN33: 33 | CO33: 1
A34: 22 | B34: نجاه محروس شحاته عبد الكريم | C34: 25908232500961 | D34: محكمة القضاء الادارى باسيوط | E34: 104 | F34: محافظ اسيوط - وكيل وزارة التربية والتعليم | G34: 9893لسنة32ق | H34: 2021-10-19 | I34: 2016-07-01 | J34: 2019-07-31 | K34: 16419.80628 | L34: 872.96 | M34: 751.01 | N34: 121.95 | O34: 121.95 | P34: 60.975 | Q34: 60.97 | R34: 2.032333333 | S34: 0 | T34: 37 | U34: 1110 | V34: 2255.89 | W34: 2255.89 | X34: 30.4875 | Y34: 30.48 | Z34: 1.016 | AA34: 0 | AB34: 37 | AC34: 1110 | AD34: 1127.76 | AE34: 1127.76 | AF34: بدل اعتماد معلم خبير ( 175 % ) | AG34: 213.4125 | AH34: 213.41 | AI34: 7.113666667 | AJ34: 0 | AK34: 28 | AL34: 840 | AM34: 5975.48 | AN34: 5975.48 | AO34: بدل اعتماد كبير معلمين ( 200 % ) | AP34: 243.9 | AQ34: 243.9 | AR34: 8.13 | AS34: 0 | AT34: 9 | AU34: 270 | AV34: 2195.1 | AW34: 2195.1 | AX34: حافز اداء معلم خبير ( 25 % ) | AY34: 30.4875 | AZ34: 30.48 | BA34: 1.016 | BB34: 0 | BC34: 28 | BD34: 840 | BE34: 853.44 | BF34: 853.44 | BG34: حافز اداء كبير معلمين ( 25 % ) | BH34: 30.4875 | BI34: 30.48 | BJ34: 1.016 | BK34: 0 | BL34: 9 | BM34: 270 | BN34: 274.32 | BO34: 274.32 | BP34: 1219.5 | BQ34: 1219.5 | BR34: 3.3875 | BS34: 0 | BT34: 36 | BV34: 3658.5 | BW34: 3658.5 | BX34: 48.78 | BY34: 48.78 | BZ34: 1.626 | CA34: 0 | CB34: 14 | CC34: 420 | CD34: 682.92 | CE34: 79.31628 | CF34: 16419.80628 | CG34: فقط ستة عشر ألفاً وأربعمائة وتسع عشرة جنيهاً و 81 قرش فقطُ لا غيرَ | CH34: 25908232500961 | CI34: انس بن ملك بالمطيعة | CJ34: 8170.58 | CK34: 1127.76 | CL34: 2019-08-22 | CM34: 2018-11-01 | CN34: 34 | CO34: 1
A35: 23 | B35: سهير عبد المسيح بولس عبد المسيح | C35: 25807212500866 | D35: محكمة القضاء الادارى باسيوط | E35: 104 | F35: محافظ اسيوط - وكيل وزارة التربية والتعليم | G35: 22963لسنة32ق | H35: 2021-10-19 | I35: 2016-07-01 | J35: 2018-06-30 | K35: 7636.991571 | L35: 693.89 | M35: 599.02 | N35: 94.87 | O35: 94.87 | P35: 47.435 | Q35: 47.43 | R35: 1.581 | S35: 0 | T35: 24 | U35: 720 | V35: 1138.32 | W35: 1138.32 | X35: 23.7175 | Y35: 23.71 | Z35: 0.7903333333 | AA35: 0 | AB35: 24 | AC35: 720 | AD35: 569.04 | AE35: 569.04 | AF35: بدل اعتماد معلم أول أ ( 150 % ) | AG35: 142.305 | AH35: 142.3 | AI35: 4.743333333 | AJ35: 0 | AK35: 24 | AL35: 720 | AM35: 3415.2 | AN35: 3415.2 | AO35: بدل اعتماد معلم أول أ ( 150 % ) | AP35: 142.305 | AQ35: 142.3 | AR35: 4.743333333 | AS35: 0 | AT35: 0 | AU35: 0 | AV35: 0 | AW35: 0 | AX35: حافز اداء معلم أول أ ( 25 % ) | AY35: 23.7175 | AZ35: 23.71 | BA35: 0.7903333333 | BB35: 0 | BC35: 24 | BD35: 720 | BE35: 569.04 | BF35: 569.04 | BG35: حافز اداء معلم أول أ ( 25 % ) | BH35: 23.7175 | BI35: 23.71 | BJ35: 0.7903333333 | BK35: 0 | BL35: 0 | BM35: 0 | BN35: 0 | BO35: 0 | BP35: 948.7 | BQ35: 948.7 | BR35: 2.635277778 | BS35: 0 | BT35: 24 | BV35: 1897.4 | BW35: 1897.4 | BX35: 37.948 | BY35: 37.94 | BZ35: 1.264666667 | CA35: 0 | CB35: 14 | CC35: 420 | CD35: 531.16 | CE35: 47.99157067 | CF35: 7636.991571 | CG35: فقط سبعة آلافٍ وستمائة وست وثلاثونَ جنيهاً و 99 قرش فقطُ لا غيرَ | CH35: 25807212500866 | CI35: درية الحسينى | CJ35: 3415.2 | CK35: 569.04 | CL35: 2018-07-20 | CM35: 2012-11-01 | CN35: 35 | CO35: 1
A36: 24 | B36: ايمان محمد سيد حسانين | C36: 26012272500068 | D36: محكمة القضاء الادارى باسيوط | E36: 104 | F36: محافظ اسيوط - وكيل وزارة التربية والتعليم | G36: 9364لسنة32ق | H36: 2021-10-19 | I36: 2016-07-01 | J36: 2020-11-30 | K36: 25577.9791 | L36: 938.64 | M36: 809.25 | N36: 129.39 | O36: 129.39 | P36: 64.695 | Q36: 64.69 | R36: 2.156333333 | S36: 0 | T36: 53 | U36: 1590 | V36: 3428.57 | W36: 3428.57 | X36: 32.3475 | Y36: 32.34 | Z36: 1.078 | AA36: 0 | AB36: 53 | AC36: 1590 | AD36: 1714.02 | AE36: 1714.02 | AF36: بدل اعتماد معلم خبير ( 175 % ) | AG36: 226.4325 | AH36: 226.43 | AI36: 7.547666667 | AJ36: 0 | AK36: 28 | AL36: 840 | AM36: 6340.04 | AN36: 6340.04 | AO36: بدل اعتماد كبير معلمين ( 200 % ) | AP36: 258.78 | AQ36: 258.78 | AR36: 8.626 | AS36: 0 | AT36: 25 | AU36: 750 | AV36: 6469.5 | AW36: 6469.5 | AX36: حافز اداء معلم خبير ( 25 % ) | AY36: 32.3475 | AZ36: 32.34 | BA36: 1.078 | BB36: 0 | BC36: 28 | BD36: 840 | BE36: 905.52 | BF36: 905.52 | BG36: حافز اداء كبير معلمين ( 25 % ) | BH36: 32.3475 | BI36: 32.34 | BJ36: 1.078 | BK36: 0 | BL36: 25 | BM36: 750 | BN36: 808.5 | BO36: 808.5 | BP36: 1293.9 | BQ36: 1293.9 | BR36: 3.594166667 | BS36: 0 | BT36: 51 | BV36: 5822.55 | BW36: 5822.55 | BX36: 51.756 | BY36: 51.75 | BZ36: 1.725 | CA36: 0 | CB36: 14 | CC36: 420 | CD36: 724.5 | CE36: 89.2791 | CF36: 25577.9791 | CG36: فقط خمسة وعشرونَ ألفاً وخمسمائة وسبع وسبعونَ جنيهاً و 98 قرش فقطُ لا غيرَ | CH36: 26012272500068 | CI36: الزهراء الاعدادية | CJ36: 12809.54 | CK36: 1714.02 | CL36: 2020-12-26 | CM36: 2018-11-01 | CN36: 36 | CO36: 1
A37: 25 | B37: ملكه محمود احمد ابراهيم | C37: 25712220400446 | D37: محكمة القضاء الادارى باسيوط | E37: 104 | F37: محافظ اسيوط - وكيل وزارة التربية والتعليم | G37: 10348لسنة32ق | H37: 2021-10-19 | I37: 2016-07-01 | J37: 2017-11-30 | K37: 7321.93614 | L37: 838.99 | M37: 721.6 | N37: 117.39 | O37: 117.39 | P37: 58.695 | Q37: 58.69 | R37: 1.956333333 | S37: 0 | T37: 17 | U37: 510 | V37: 997.73 | W37: 997.73 | X37: 29.3475 | Y37: 29.34 | Z37: 0.978 | AA37: 0 | AB37: 17 | AC37: 510 | AD37: 498.78 | AE37: 498.78 | AF37: بدل اعتماد معلم خبير ( 175 % ) | AG37: 205.4325 | AH37: 205.43 | AI37: 6.847666667 | AJ37: 0 | AK37: 17 | AL37: 510 | AM37: 3492.31 | AN37: 3492.31 | AO37: بدل اعتماد معلم خبير ( 175 % ) | AP37: 205.4325 | AQ37: 205.43 | AR37: 6.847666667 | AS37: 0 | AT37: 0 | AU37: 0 | AV37: 0 | AW37: 0 | AX37: حافز اداء معلم خبير ( 25 % ) | AY37: 29.3475 | AZ37: 29.34 | BA37: 0.978 | BB37: 0 | BC37: 17 | BD37: 510 | BE37: 498.78 | BF37: 498.78 | BG37: حافز اداء معلم خبير ( 25 % ) | BH37: 29.3475 | BI37: 29.34 | BJ37: 0.978 | BK37: 0 | BL37: 0 | BM37: 0 | BN37: 0 | BO37: 0 | BP37: 1173.9 | BQ37: 1173.9 | BR37: 3.260833333 | BS37: 0 | BT37: 15 | BV37: 1760.85 | BW37: 1760.85 | BX37: 46.956 | BY37: 46.95 | BZ37: 1.565 | CA37: 0 | CB37: 14 | CC37: 420 | CD37: 657.3 | CE37: 73.48614 | CF37: 7321.93614 | CG37: فقط سبعة آلافٍ وثلاثمائة وإحدَى وعشرونَ جنيهاً و 94 قرش فقطُ لا غيرَ | CH37: 25712220400446 | CI37: زيد بن حارثة | CJ37: 3492.31 | CK37: 498.78 | CL37: 2017-12-21 | CM37: 2014-10-01 | CN37: 37 | CO37: 1
A38: 26 | B38: نورا حسن حسانين عمر | C38: 26010082501286 | D38: محكمة القضاء الادارى باسيوط | E38: 104 | F38: محافظ اسيوط - وكيل وزارة التربية والتعليم | G38: 24125لسنة32ق | H38: 2021-10-19 | I38: 2016-07-01 | J38: 2020-09-30 | K38: 18092.7311 | L38: 711.39 | M38: 612.21 | N38: 99.18 | O38: 99.17 | P38: 49.59 | Q38: 49.59 | R38: 1.653 | S38: 0 | T38: 51 | U38: 1530 | V38: 2529.09 | W38: 2529.09 | X38: 24.7925 | Y38: 24.79 | Z38: 0.8263333333 | AA38: 0 | AB38: 51 | AC38: 1530 | AD38: 1264.29 | AE38: 1264.29 | AF38: بدل اعتماد معلم خبير ( 175 % ) | AG38: 173.5475 | AH38: 173.54 | AI38: 5.784666667 | AJ38: 0 | AK38: 51 | AL38: 1530 | AM38: 8850.54 | AN38: 8850.54 | AO38: بدل اعتماد معلم خبير ( 175 % ) | AP38: 173.5475 | AQ38: 173.54 | AR38: 5.784666667 | AS38: 0 | AT38: 0 | AU38: 0 | AV38: 0 | AW38: 0 | AX38: حافز اداء معلم خبير ( 25 % ) | AY38: 24.7925 | AZ38: 24.79 | BA38: 0.8263333333 | BB38: 0 | BC38: 51 | BD38: 1530 | BE38: 1264.29 | BF38: 1264.29 | BG38: حافز اداء معلم خبير ( 25 % ) | BH38: 24.7925 | BI38: 24.79 | BJ38: 0.8263333333 | BK38: 0 | BL38: 0 | BM38: 0 | BN38: 0 | BO38: 0 | BP38: 991.7 | BQ38: 991.7 | BR38: 2.754722222 | BS38: 0 | BT38: 49 | BV38: 4132.08 | BW38: 4132.08 | BX38: 39.668 | BY38: 39.66 | BZ38: 1.322 | CA38: 0 | CB38: 14 | CC38: 420 | CD38: 555.24 | CE38: 52.441096 | CF38: 18092.7311 | CG38: فقط ثمانة عشر ألفاً واثنتانِ وتسعونَ جنيهاً و 73 قرش فقطُ لا غيرَ | CH38: 26010082501286 | CI38: محمد سميح الاعدادية | CJ38: 8850.54 | CK38: 1264.29 | CL38: 2020-10-07 | CM38: 2014-10-01 | CN38: 38 | CO38: 1
A39: 27 | B39: عبد المنعم محمد مرسي بخيت | C39: 25805302500838 | D39: محكمة القضاء الادارى باسيوط | E39: 104 | F39: محافظ اسيوط - وكيل وزارة التربية والتعليم | G39: 9892لسنة32ق | H39: 2021-10-19 | I39: 2016-07-01 | J39: 2018-04-30 | K39: 10756.26974 | L39: 963.68 | M39: 831.22 | N39: 132.46 | O39: 132.46 | P39: 66.23 | Q39: 66.23 | R39: 2.207666667 | S39: 0 | T39: 22 | U39: 660 | V39: 1457.06 | W39: 1457.06 | X39: 33.115 | Y39: 33.11 | Z39: 1.103666667 | AA39: 0 | AB39: 22 | AC39: 660 | AD39: 728.42 | AE39: 728.42 | AF39: بدل اعتماد معلم خبير ( 175 % ) | AG39: 231.805 | AH39: 231.8 | AI39: 7.726666667 | AJ39: 0 | AK39: 22 | AL39: 660 | AM39: 5099.6 | AN39: 5099.6 | AO39: بدل اعتماد معلم خبير ( 175 % ) | AP39: 231.805 | AQ39: 231.8 | AR39: 7.726666667 | AS39: 0 | AT39: 0 | AU39: 0 | AV39: 0 | AW39: 0 | AX39: حافز اداء معلم خبير ( 25 % ) | AY39: 33.115 | AZ39: 33.11 | BA39: 1.103666667 | BB39: 0 | BC39: 22 | BD39: 660 | BE39: 728.42 | BF39: 728.42 | BG39: حافز اداء معلم خبير ( 25 % ) | BH39: 33.115 | BI39: 33.11 | BJ39: 1.103666667 | BK39: 0 | BL39: 0 | BM39: 0 | BN39: 0 | BO39: 0 | BP39: 1324.6 | BQ39: 1324.6 | BR39: 3.679444444 | BS39: 0 | BT39: 24 | BV39: 2649.2 | BW39: 2649.2 | BX39: 52.984 | BY39: 52.98 | BZ39: 1.766 | CA39: 0 | CB39: 14 | CC39: 420 | CD39: 741.72 | CE39: 93.569744 | CF39: 10756.26974 | CG39: فقط عشرة آلافٍ وسبعمائة وست وخمسونَ جنيهاً و 27 قرش فقطُ لا غيرَ | CH39: 25805302500838 | CI39: عمر مكرم الابتدائية | CJ39: 5099.6 | CK39: 728.42 | CL39: 2018-05-29 | CM39: 2012-11-01 | CN39: 39 | CO39: 1
A40: 28 | B40: هدى احمد محمود نشات | C40: 25901231200306 | D40: محكمة القضاء الادارى باسيوط | E40: 104 | F40: محافظ اسيوط - وكيل وزارة التربية والتعليم | G40: 10350لسنة32ق | H40: 2021-10-19 | I40: 2016-07-01 | J40: 2018-12-31 | K40: 13138.78903 | L40: 859.91 | M40: 740.25 | N40: 119.66 | O40: 119.66 | P40: 59.83 | Q40: 59.83 | R40: 1.994333333 | S40: 0 | T40: 30 | U40: 900 | V40: 1794.9 | W40: 1794.9 | X40: 29.915 | Y40: 29.91 | Z40: 0.997 | AA40: 0 | AB40: 30 | AC40: 900 | AD40: 897.3 | AE40: 897.3 | AF40: بدل اعتماد معلم خبير ( 175 % ) | AG40: 209.405 | AH40: 209.4 | AI40: 6.98 | AJ40: 0 | AK40: 30 | AL40: 900 | AM40: 6282 | AN40: 6282 | AO40: بدل اعتماد معلم خبير ( 175 % ) | AP40: 209.405 | AQ40: 209.4 | AR40: 6.98 | AS40: 0 | AT40: 0 | AU40: 0 | AV40: 0 | AW40: 0 | AX40: حافز اداء معلم خبير ( 25 % ) | AY40: 29.915 | AZ40: 29.91 | BA40: 0.997 | BB40: 0 | BC40: 30 | BD40: 900 | BE40: 897.3 | BF40: 897.3 | BG40: حافز اداء معلم خبير ( 25 % ) | BH40: 29.915 | BI40: 29.91 | BJ40: 0.997 | BK40: 0 | BL40: 0 | BM40: 0 | BN40: 0 | BO40: 0 | BP40: 1196.6 | BQ40: 1196.6 | BR40: 3.323888889 | BS40: 0 | BT40: 28 | BV40: 3190.93 | BW40: 3190.93 | BX40: 47.864 | BY40: 47.86 | BZ40: 1.595333333 | CA40: 0 | CB40: 14 | CC40: 420 | CD40: 670.04 | CE40: 76.35903467 | CF40: 13138.78903 | CG40: فقط ثلاثة عشر ألفاً ومائة وثمان وثلاثونَ جنيهاً و 79 قرش فقطُ لا غيرَ | CH40: 25901231200306 | CI40: النصر الابتدائية الحديثة | CJ40: 6282 | CK40: 897.3 | CL40: 2019-01-22 | CM40: 2014-10-01 | CN40: 40 | CO40: 1
A41: 29 | B41: راندا لوس ابراهيم لوس | C41: 26107012501126 | D41: محكمة القضاء الادارى باسيوط | E41: 104 | F41: محافظ اسيوط - وكيل وزارة التربية والتعليم | G41: 25089لسنة32ق | H41: 2021-10-19 | I41: 2016-07-01 | J41: 2021-06-30 | K41: 21861.8377 | L41: 706.97 | M41: 609.16 | N41: 97.81 | O41: 97.81 | P41: 48.905 | Q41: 48.9 | R41: 1.63 | S41: 0 | T41: 60 | U41: 1800 | V41: 2934 | W41: 2934 | X41: 24.4525 | Y41: 24.45 | Z41: 0.815 | AA41: 0 | AB41: 60 | AC41: 1800 | AD41: 1467 | AE41: 1467 | AF41: بدل اعتماد معلم خبير ( 175 % ) | AG41: 171.1675 | AH41: 171.16 | AI41: 5.705333333 | AJ41: 0 | AK41: 28 | AL41: 840 | AM41: 4792.48 | AN41: 4792.48 | AO41: بدل اعتماد كبير معلمين ( 200 % ) | AP41: 195.62 | AQ41: 195.62 | AR41: 6.520666667 | AS41: 0 | AT41: 32 | AU41: 960 | AV41: 6259.84 | AW41: 6259.84 | AX41: حافز اداء معلم خبير ( 25 % ) | AY41: 24.4525 | AZ41: 24.45 | BA41: 0.815 | BB41: 0 | BC41: 28 | BD41: 840 | BE41: 684.6 | BF41: 684.6 | BG41: حافز اداء كبير معلمين ( 25 % ) | BH41: 24.4525 | BI41: 24.45 | BJ41: 0.815 | BK41: 0 | BL41: 32 | BM41: 960 | BN41: 782.4 | BO41: 782.4 | BP41: 978.1 | BQ41: 978.1 | BR41: 2.716944444 | BS41: 0 | BT41: 60 | BV41: 4890.5 | BW41: 4890.5 | BX41: 39.124 | BY41: 39.12 | BZ41: 1.304 | CA41: 0 | CB41: 14 | CC41: 420 | CD41: 547.68 | CE41: 51.017696 | CF41: 21861.8377 | CG41: فقط واحد وعشرونَ ألفاً وثمانمائة وإحدَى وستونَ جنيهاً و 84 قرش فقطُ لا غيرَ | CH41: 26107012501126 | CI41: قناطر الاعدادية القديمة | CJ41: 11052.32 | CK41: 1467 | CL41: 2021-06-30 | CM41: 2018-11-01 | CN41: 41 | CO41: 1
A42: 30 | B42: احمد محمد احمد همام | C42: 25809222500638 | D42: محكمة القضاء الادارى باسيوط | E42: 104 | F42: محافظ اسيوط - وكيل وزارة التربية والتعليم | G42: 10349لسنة32ق | H42: 2021-10-19 | I42: 2016-07-01 | J42: 2018-08-31 | K42: 14435.35177 | L42: 1013.16 | M42: 867.02 | N42: 146.14 | O42: 146.14 | P42: 73.07 | Q42: 73.07 | R42: 2.435666667 | S42: 0 | T42: 26 | U42: 780 | V42: 1899.82 | W42: 1899.82 | X42: 36.535 | Y42: 36.53 | Z42: 1.217666667 | AA42: 0 | AB42: 26 | AC42: 780 | AD42: 949.78 | AE42: 949.78 | AF42: بدل اعتماد كبير معلمين ( 200 % ) | AG42: 292.28 | AH42: 292.28 | AI42: 9.742666667 | AJ42: 0 | AK42: 26 | AL42: 780 | AM42: 7599.28 | AN42: 7599.28 | AO42: بدل اعتماد كبير معلمين ( 200 % ) | AP42: 292.28 | AQ42: 292.28 | AR42: 9.742666667 | AS42: 0 | AT42: 0 | AU42: 0 | AV42: 0 | AW42: 0 | AX42: حافز اداء كبير معلمين ( 25 % ) | AY42: 36.535 | AZ42: 36.53 | BA42: 1.217666667 | BB42: 0 | BC42: 26 | BD42: 780 | BE42: 949.78 | BF42: 949.78 | BG42: حافز اداء كبير معلمين ( 25 % ) | BH42: 36.535 | BI42: 36.53 | BJ42: 1.217666667 | BK42: 0 | BL42: 0 | BM42: 0 | BN42: 0 | BO42: 0 | BP42: 1461.4 | BQ42: 1461.4 | BR42: 4.059444444 | BS42: 0 | BT42: 24 | BV42: 2922.8 | BW42: 2922.8 | BX42: 58.456 | BY42: 58.45 | BZ42: 1.948333333 | CA42: 0 | CB42: 14 | CC42: 420 | CD42: 818.3 | CE42: 113.8917733 | CF42: 14435.35177 | CG42: فقط أربعة عشر ألفاً وأربعمائة وخمس وثلاثونَ جنيهاً و 35 قرش فقطُ لا غيرَ | CH42: 25809222500638 | CI42: ريفا الاعدادية بنات | CJ42: 7599.28 | CK42: 949.78 | CL42: 2018-09-21 | CM42: 2014-10-01 | CN42: 42 | CO42: 1
A43: 31 | B43: ايهاب عباس عبد النعيم عليوه | C43: 25908292500277 | D43: محكمة القضاء الادارى باسيوط | E43: 104 | F43: محافظ اسيوط - وكيل وزارة التربية والتعليم | G43: 25047لسنة32ق | H43: 2021-10-19 | I43: 2016-07-01 | J43: 2019-07-31 | K43: 17426.7291 | L43: 937.14 | M43: 807.75 | N43: 129.39 | O43: 129.39 | P43: 64.695 | Q43: 64.69 | R43: 2.156333333 | S43: 0 | T43: 37 | U43: 1110 | V43: 2393.53 | W43: 2393.53 | X43: 32.3475 | Y43: 32.34 | Z43: 1.078 | AA43: 0 | AB43: 37 | AC43: 1110 | AD43: 1196.58 | AE43: 1196.58 | AF43: بدل اعتماد معلم خبير ( 175 % ) | AG43: 226.4325 | AH43: 226.43 | AI43: 7.547666667 | AJ43: 0 | AK43: 28 | AL43: 840 | AM43: 6340.04 | AN43: 6340.04 | AO43: بدل اعتماد كبير معلمين ( 200 % ) | AP43: 258.78 | AQ43: 258.78 | AR43: 8.626 | AS43: 0 | AT43: 9 | AU43: 270 | AV43: 2329.02 | AW43: 2329.02 | AX43: حافز اداء معلم خبير ( 25 % ) | AY43: 32.3475 | AZ43: 32.34 | BA43: 1.078 | BB43: 0 | BC43: 28 | BD43: 840 | BE43: 905.52 | BF43: 905.52 | BG43: حافز اداء كبير معلمين ( 25 % ) | BH43: 32.3475 | BI43: 32.34 | BJ43: 1.078 | BK43: 0 | BL43: 9 | BM43: 270 | BN43: 291.06 | BO43: 291.06 | BP43: 1293.9 | BQ43: 1293.9 | BR43: 3.594166667 | BS43: 0 | BT43: 36 | BV43: 3881.7 | BW43: 3881.7 | BX43: 51.756 | BY43: 51.75 | BZ43: 1.725 | CA43: 0 | CB43: 14 | CC43: 420 | CD43: 724.5 | CE43: 89.2791 | CF43: 17426.7291 | CG43: فقط سبعة عشر ألفاً وأربعمائة وست وعشرونَ جنيهاً و 73 قرش فقطُ لا غيرَ | CH43: 25908292500277 | CI43: خديجة يوسف الثانوية | CJ43: 8669.06 | CK43: 1196.58 | CL43: 2019-08-28 | CM43: 2018-11-01 | CN43: 43 | CO43: 1
A44: 32 | B44: احمد عبد الحافظ محمد عبد الحافظ | C44: 26107112500691 | D44: محكمة القضاء الادارى باسيوط | E44: 104 | F44: محافظ اسيوط - وكيل وزارة التربية والتعليم | G44: 23327لسنة32ق | H44: 2021-10-19 | I44: 2016-07-01 | J44: 2021-06-30 | K44: 19482.07804 | L44: 676.45 | M44: 583.01 | N44: 93.44 | O44: 93.44 | P44: 46.72 | Q44: 46.72 | R44: 1.557333333 | S44: 0 | T44: 60 | U44: 1800 | V44: 2803.2 | W44: 2803.2 | X44: 23.36 | Y44: 23.36 | Z44: 0.7786666667 | AA44: 0 | AB44: 60 | AC44: 1800 | AD44: 1401.6 | AE44: 1401.6 | AF44: بدل اعتماد معلم أول أ ( 150 % ) | AG44: 140.16 | AH44: 140.16 | AI44: 4.672 | AJ44: 0 | AK44: 28 | AL44: 840 | AM44: 3924.48 | AN44: 3924.48 | AO44: بدل اعتماد معلم خبير ( 175 % ) | AP44: 163.52 | AQ44: 163.52 | AR44: 5.450666667 | AS44: 0 | AT44: 32 | AU44: 960 | AV44: 5232.64 | AW44: 5232.64 | AX44: حافز اداء معلم أول أ ( 25 % ) | AY44: 23.36 | AZ44: 23.36 | BA44: 0.7786666667 | BB44: 0 | BC44: 28 | BD44: 840 | BE44: 654.08 | BF44: 654.08 | BG44: حافز اداء معلم خبير ( 25 % ) | BH44: 23.36 | BI44: 23.36 | BJ44: 0.7786666667 | BK44: 0 | BL44: 32 | BM44: 960 | BN44: 747.52 | BO44: 747.52 | BP44: 934.4 | BQ44: 934.4 | BR44: 2.595555556 | BS44: 0 | BT44: 60 | BV44: 4672 | BW44: 4672 | BX44: 37.376 | BY44: 37.37 | BZ44: 1.245666667 | CA44: 0 | CB44: 14 | CC44: 420 | CD44: 523.18 | CE44: 46.55803733 | CF44: 19482.07804 | CG44: فقط تسعة عشر ألفاً وأربعمائة واثنتانِ وثمانونَ جنيهاً و 8 قروش فقطُ لا غيرَ | CH44: 26107112500691 | CI44: اولاد ابراهيم الابتدائية | CJ44: 9157.12 | CK44: 1401.6 | CL44: 2021-07-10 | CM44: 2018-11-01 | CN44: 44 | CO44: 1
A45: 33 | B45: حمديه محمد حسين يوسف | C45: 26003022501221 | D45: محكمة القضاء الادارى باسيوط | E45: 104 | F45: محافظ اسيوط - وكيل وزارة التربية والتعليم | G45: 10343لسنة32ق | H45: 2021-10-19 | I45: 2016-07-01 | J45: 2020-02-28 | K45: =CE45+BW45+BO45+BF45+AW45+AN45+AE45+W45 -> 23062.06785 | L45: 968.77 | M45: 829.62 | N45: =L45-M45 -> 139.15 | O45: =TRUNC(N45,2) -> 139.15 | P45: 69.575 | Q45: =TRUNC(P45,2) -> 69.57 | R45: =Q45/30 -> 2.319 | S45: 0 | T45: 44 | U45: =SUM((T45*30),S45) -> 1320 | V45: =U45*R45 -> 3061.08 | W45: =TRUNC(V45,2) -> 3061.08 | X45: =O45*25/100 -> 34.7875 | Y45: =TRUNC(X45,2) -> 34.78 | Z45: =Y45/30 -> 1.159333333 | AA45: 0 | AB45: 44 | AC45: =SUM((AB45*30),AA45) -> 1320 | AD45: =AC45*Z45 -> 1530.32 | AE45: =TRUNC(AD45,2) -> 1530.32 | AF45: بدل اعتماد معلم خبير ( 175 % ) | AG45: 243.5125 | AH45: =TRUNC(AG45,2) -> 243.51 | AI45: =AH45/30 -> 8.117 | AJ45: 0 | AK45: 28 | AL45: =SUM((AK45*30),AJ45) -> 840 | AM45: =AL45*AI45 -> 6818.28 | AN45: =TRUNC(AM45,2) -> 6818.28 | AO45: بدل اعتماد كبير معلمين ( 200 % ) | AP45: =IF(AO45="بدل اعتماد معلم ( 100 % )",O45*100/100,IF(AO45="بدل اعتماد معلم أول ( 125 % )",O45*125/100,IF(AO45="بدل اعتماد معلم أول أ ( 150 % )",O45*150/100,IF(AO45="بدل اعتماد معلم خبير ( 175 % )",O45*175/100,IF(AO45="بدل اعتماد كبير معلمين ( 200 % )",O45*200/100))))) -> 278.3 | AQ45: =TRUNC(AP45,2) -> 278.3 | AR45: =AQ45/30 -> 9.276666667 | AS45: 0 | AT45: 16 | AU45: =SUM((AT45*30),AS45) -> 480 | AV45: =AU45*AR45 -> 4452.8 | AW45: =TRUNC(AV45,2) -> 4452.8 | AX45: حافز اداء معلم خبير ( 25 % ) | AY45: =IF(AX45="حافز اداء معلم ( 75 % )",O45*75/100,IF(AX45="حافز اداء معلم أول ( 50 % )",O45*50/100,IF(AX45="حافز اداء معلم أول أ ( 25 % )",O45*25/100,IF(AX45="حافز اداء معلم خبير ( 25 % )",O45*25/100,IF(AX45="حافز اداء كبير معلمين ( 25 % )",O45*25/100))))) -> 34.7875 | AZ45: =TRUNC(AY45,2) -> 34.78 | BA45: =AZ45/30 -> 1.159333333 | BB45: 0 | BC45: 28 | BD45: =SUM((BC45*30),BB45) -> 840 | BE45: =BD45*BA45 -> 973.84 | BF45: =TRUNC(BE45,2) -> 973.84 | BG45: حافز اداء كبير معلمين ( 25 % ) | BH45: =IF(BG45="حافز اداء معلم ( 75 % )",O45*75/100,IF(BG45="حافز اداء معلم أول ( 50 % )",O45*50/100,IF(BG45="حافز اداء معلم أول أ ( 25 % )",O45*25/100,IF(BG45="حافز اداء معلم خبير ( 25 % )",O45*25/100,IF(BG45="حافز اداء كبير معلمين ( 25 % )",O45*25/100))))) -> 34.7875 | BI45: =TRUNC(BH45,2) -> 34.78 | BJ45: =BI45/30 -> 1.159333333 | BK45: 0 | BL45: 16 | BM45: =SUM((BL45*30),BK45) -> 480 | BN45: =BM45*BJ45 -> 556.48 | BO45: =TRUNC(BN45,2) -> 556.48 | BP45: =O45*10 -> 1391.5 | BQ45: =TRUNC(BP45,2) -> 1391.5 | BR45: =BQ45/360 -> 3.865277778 | BS45: 0 | BT45: 48 | BV45: 5566 | BW45: 5566 | BX45: =O45*40/100 -> 55.66 | BY45: =TRUNC(BX45,2) -> 55.66 | BZ45: =BY45/30 -> 1.855333333 | CA45: 0 | CB45: 14 | CC45: =SUM((CB45*30),CA45) -> 420 | CD45: =CC45*BZ45 -> 779.24 | CE45: 103.2678533 | CF45: =CE45+BW45+BO45+BF45+AW45+AN45+AE45+W45 -> 23062.06785 | CG45: =" فقط "&ArbNum2Text(CF45, 2,3,"جنيه","جنيهات",1,"قرش","قروش",1) -> فقط ثلاثة وعشرونَ ألفاً واثنتانِ وستونَ جنيهاً و 7 قروش فقطُ لا غيرَ | CH45: =C45 -> 26003022501221 | CI45: مبارك بالاربعين | CJ45: =AW45+AN45 -> 11271.08 | CK45: =BO45+BF45 -> 1530.32 | CL45: 2020-03-01 | CM45: 2018-11-01 | CN45: 45 | CO45: 1
A46: 34 | B46: سحر ابراهيم محمد حسن | C46: 26106042500403 | D46: محكمة القضاء الادارى باسيوط | E46: 104 | F46: محافظ اسيوط - مدير مديرية التربية والتعليم | G46: 23671لسنة32ق | H46: 2021-10-19 | I46: 2016-07-01 | J46: 2021-05-31 | K46: 26190.10134 | L46: 851.8 | M46: 733.09 | N46: 118.71 | O46: 118.71 | P46: 59.355 | Q46: 59.35 | R46: 1.978333333 | S46: 0 | T46: 59 | U46: 1770 | V46: 3501.65 | W46: 3501.65 | X46: 29.6775 | Y46: 29.67 | Z46: 0.989 | AA46: 0 | AB46: 59 | AC46: 1770 | AD46: 1750.53 | AE46: 1750.53 | AF46: بدل اعتماد معلم خبير ( 175 % ) | AG46: 207.7425 | AH46: 207.74 | AI46: 6.924666667 | AJ46: 0 | AK46: 28 | AL46: 840 | AM46: 5816.72 | AN46: 5816.72 | AO46: بدل اعتماد كبير معلمين ( 200 % ) | AP46: 237.42 | AQ46: 237.42 | AR46: 7.914 | AS46: 0 | AT46: 31 | AU46: 930 | AV46: 7360.02 | AW46: 7360.02 | AX46: حافز اداء معلم خبير ( 25 % ) | AY46: 29.6775 | AZ46: 29.67 | BA46: 0.989 | BB46: 0 | BC46: 28 | BD46: 840 | BE46: 830.76 | BF46: 830.76 | BG46: حافز اداء كبير معلمين ( 25 % ) | BH46: 29.6775 | BI46: 29.67 | BJ46: 0.989 | BK46: 0 | BL46: 31 | BM46: 930 | BN46: 919.77 | BO46: 919.77 | BP46: 1187.1 | BQ46: 1187.1 | BR46: 3.2975 | BS46: 0 | BT46: 60 | BV46: 5935.5 | BW46: 5935.5 | BX46: 47.484 | BY46: 47.48 | BZ46: 1.582666667 | CA46: 0 | CB46: 14 | CC46: 420 | CD46: 664.72 | CE46: 75.151344 | CF46: 26190.10134 | CG46: فقط ستة وعشرونَ ألفاً ومائة وتسعونَ جنيهاً و 10 قروش فقطُ لا غيرَ | CH46: 26106042500403 | CI46: طه حنفى | CJ46: 13176.74 | CK46: 1750.53 | CL46: 2021-06-03 | CM46: 2018-11-01 | CN46: 46 | CO46: 1
A47: 35 | B47: ايمان حمودى محمد حمودى | C47: 26104112501728 | D47: محكمة القضاء الادارى باسيوط | E47: 104 | F47: وكيل وزارة التربية والتعليم ـ محافظ اسيوط | G47: 23323لسنة32ق | H47: 2021-10-19 | I47: 2016-07-01 | J47: 2021-03-31 | K47: 26347.65033 | L47: 884.69 | M47: 761.94 | N47: 122.75 | O47: 122.75 | P47: 61.375 | Q47: 61.37 | R47: 2.045666667 | S47: 0 | T47: 57 | U47: 1710 | V47: 3498.09 | W47: 3498.09 | X47: 30.6875 | Y47: 30.68 | Z47: 1.022666667 | AA47: 0 | AB47: 57 | AC47: 1710 | AD47: 1748.76 | AE47: 1748.76 | AF47: بدل اعتماد معلم خبير ( 175 % ) | AG47: 214.8125 | AH47: 214.81 | AI47: 7.160333333 | AJ47: 0 | AK47: 28 | AL47: 840 | AM47: 6014.68 | AN47: 6014.68 | AO47: بدل اعتماد كبير معلمين ( 200 % ) | AP47: 245.5 | AQ47: 245.5 | AR47: 8.183333333 | AS47: 0 | AT47: 29 | AU47: 870 | AV47: 7119.5 | AW47: 7119.5 | AX47: حافز اداء معلم خبير ( 25 % ) | AY47: 30.6875 | AZ47: 30.68 | BA47: 1.022666667 | BB47: 0 | BC47: 28 | BD47: 840 | BE47: 859.04 | BF47: 859.04 | BG47: حافز اداء كبير معلمين ( 25 % ) | BH47: 30.6875 | BI47: 30.68 | BJ47: 1.022666667 | BK47: 0 | BL47: 29 | BM47: 870 | BN47: 889.72 | BO47: 889.72 | BP47: 1227.5 | BQ47: 1227.5 | BR47: 3.409722222 | BS47: 0 | BT47: 60 | BV47: 6137.5 | BW47: 6137.5 | BX47: 49.1 | BY47: 49.1 | BZ47: 1.636666667 | CA47: 0 | CB47: 14 | CC47: 420 | CD47: 687.4 | CE47: 80.36033333 | CF47: 26347.65033 | CG47: فقط ستة وعشرونَ ألفاً وثلاثمائة وسبع وأربعونَ جنيهاً و 65 قرش فقطُ لا غيرَ | CH47: 26104112501728 | CI47: الجلاء الاعدادية | CJ47: 13134.18 | CK47: 1748.76 | CL47: 2021-04-10 | CM47: 2018-11-01 | CN47: 47 | CO47: 1
A48: 36 | B48: عبد المنصف عبد الوهاب سليمان عطيه | C48: 26104052500654 | D48: محكمة القضاء الادارى باسيوط | E48: 104 | F48: محافظ اسيوط - مدير مديرية التربية والتعليم | G48: 7221لسنة32ق | H48: 2021-10-19 | I48: 2016-07-01 | J48: 2021-03-31 | K48: 29943.84758 | L48: 973.13 | M48: 833.69 | N48: 139.44 | O48: 139.44 | P48: 69.72 | Q48: 69.72 | R48: 2.324 | S48: 0 | T48: 57 | U48: 1710 | V48: 3974.04 | W48: 3974.04 | X48: 34.86 | Y48: 34.86 | Z48: 1.162 | AA48: 0 | AB48: 57 | AC48: 1710 | AD48: 1987.02 | AE48: 1987.02 | AF48: بدل اعتماد معلم خبير ( 175 % ) | AG48: 244.02 | AH48: 244.02 | AI48: 8.134 | AJ48: 0 | AK48: 28 | AL48: 840 | AM48: 6832.56 | AN48: 6832.56 | AO48: بدل اعتماد كبير معلمين ( 200 % ) | AP48: 278.88 | AQ48: 278.88 | AR48: 9.296 | AS48: 0 | AT48: 29 | AU48: 870 | AV48: 8087.52 | AW48: 8087.52 | AX48: حافز اداء معلم خبير ( 25 % ) | AY48: 34.86 | AZ48: 34.86 | BA48: 1.162 | BB48: 0 | BC48: 28 | BD48: 840 | BE48: 976.08 | BF48: 976.08 | BG48: حافز اداء كبير معلمين ( 25 % ) | BH48: 34.86 | BI48: 34.86 | BJ48: 1.162 | BK48: 0 | BL48: 29 | BM48: 870 | BN48: 1010.94 | BO48: 1010.94 | BP48: 1394.4 | BQ48: 1394.4 | BR48: 3.873333333 | BS48: 0 | BT48: 60 | BV48: 6972 | BW48: 6972 | BX48: 55.776 | BY48: 55.77 | BZ48: 1.859 | CA48: 0 | CB48: 14 | CC48: 420 | CD48: 780.78 | CE48: 103.687584 | CF48: 29943.84758 | CG48: فقط تسعة وعشرونَ ألفاً وتسعمائة وثلاث وأربعونَ جنيهاً و 85 قرش فقطُ لا غيرَ | CH48: 26104052500654 | CI48: خديجة يوسف الثانوية | CJ48: 14920.08 | CK48: 1987.02 | CL48: 2021-04-04 | CM48: 2018-11-01 | CN48: 48 | CO48: 1
A49: 37 | B49: سامى لويز ملك حنا | C49: 25909122500732 | D49: محكمة القضاء الادارى باسيوط | E49: 104 | F49: محافظ اسيوط - مدير مديرية التربية والتعليم | G49: 24024لسنة32ق | H49: 2021-10-19 | I49: 2016-07-01 | J49: 2019-08-31 | K49: 16735.83896 | L49: 870.39 | M49: 748.8 | N49: 121.59 | O49: 121.59 | P49: 60.795 | Q49: 60.79 | R49: 2.026333333 | S49: 0 | T49: 38 | U49: 1140 | V49: 2310.02 | W49: 2310.02 | X49: 30.3975 | Y49: 30.39 | Z49: 1.013 | AA49: 0 | AB49: 38 | AC49: 1140 | AD49: 1154.82 | AE49: 1154.82 | AF49: بدل اعتماد معلم خبير ( 175 % ) | AG49: 212.7825 | AH49: 212.78 | AI49: 7.092666667 | AJ49: 0 | AK49: 28 | AL49: 840 | AM49: 5957.84 | AN49: 5957.84 | AO49: بدل اعتماد كبير معلمين ( 200 % ) | AP49: 243.18 | AQ49: 243.18 | AR49: 8.106 | AS49: 0 | AT49: 10 | AU49: 300 | AV49: 2431.8 | AW49: 2431.8 | AX49: حافز اداء معلم خبير ( 25 % ) | AY49: 30.3975 | AZ49: 30.39 | BA49: 1.013 | BB49: 0 | BC49: 28 | BD49: 840 | BE49: 850.92 | BF49: 850.92 | BG49: حافز اداء كبير معلمين ( 25 % ) | BH49: 30.3975 | BI49: 30.39 | BJ49: 1.013 | BK49: 0 | BL49: 10 | BM49: 300 | BN49: 303.9 | BO49: 303.9 | BP49: 1215.9 | BQ49: 1215.9 | BR49: 3.3775 | BS49: 0 | BT49: 36 | BV49: 3647.7 | BW49: 3647.7 | BX49: 48.636 | BY49: 48.63 | BZ49: 1.621 | CA49: 0 | CB49: 14 | CC49: 420 | CD49: 680.82 | CE49: 78.838956 | CF49: 16735.83896 | CG49: فقط ستة عشر ألفاً وسبعمائة وخمس وثلاثونَ جنيهاً و 84 قرش فقطُ لا غيرَ | CH49: 25909122500732 | CI49: النهضة الاعدادية | CJ49: 8389.64 | CK49: 1154.82 | CL49: 2019-09-11 | CM49: 2018-11-01 | CN49: 49 | CO49: 1
A50: 38 | B50: ايمان بخيت محمد بخيت | C50: 26203222500181 | D50: محكمة القضاء الادارى باسيوط | E50: 104 | F50: محافظ اسيوط - مدير مديرية التربية والتعليم | G50: 23878لسنة32ق | H50: 2021-10-19 | I50: 2016-07-01 | J50: 2022-02-28 | K50: 32363.33525 | L50: 897.78 | M50: 772.18 | N50: 125.6 | O50: 125.6 | P50: 62.8 | Q50: 62.8 | R50: 2.093333333 | S50: 0 | T50: 68 | U50: 2040 | V50: 4270.4 | W50: 4270.4 | X50: 31.4 | Y50: 31.4 | Z50: 1.046666667 | AA50: 0 | AB50: 68 | AC50: 2040 | AD50: 2135.2 | AE50: 2135.2 | AF50: بدل اعتماد معلم خبير ( 175 % ) | AG50: 219.8 | AH50: 219.8 | AI50: 7.326666667 | AJ50: 0 | AK50: 28 | AL50: 840 | AM50: 6154.4 | AN50: 6154.4 | AO50: بدل اعتماد كبير معلمين ( 200 % ) | AP50: 251.2 | AQ50: 251.2 | AR50: 8.373333333 | AS50: 0 | AT50: 40 | AU50: 1200 | AV50: 10048 | AW50: 10048 | AX50: حافز اداء معلم خبير ( 25 % ) | AY50: 31.4 | AZ50: 31.4 | BA50: 1.046666667 | BB50: 0 | BC50: 28 | BD50: 840 | BE50: 879.2 | BF50: 879.2 | BG50: حافز اداء كبير معلمين ( 25 % ) | BH50: 31.4 | BI50: 31.4 | BJ50: 1.046666667 | BK50: 0 | BL50: 40 | BM50: 1200 | BN50: 1256 | BO50: 1256 | BP50: 1256 | BQ50: 1256 | BR50: 3.488888889 | BS50: 0 | BT50: 72 | BV50: 7536 | BW50: 7536 | BX50: 50.24 | BY50: 50.24 | BZ50: 1.674666667 | CA50: 0 | CB50: 14 | CC50: 420 | CD50: 703.36 | CE50: 84.13525333 | CF50: 32363.33525 | CG50: فقط اثنانِ وثلاثونَ ألفاً وثلاثمائة وثلاث وستونَ جنيهاً و 34 قرش فقطُ لا غيرَ | CH50: 26203222500181 | CI50: طه حنفى | CJ50: 16202.4 | CK50: 2135.2 | CL50: 2022-03-21 | CM50: 2018-11-01 | CN50: 50 | CO50: 1
A51: 39 | B51: ماجده يوسف محمود يوسف | C51: 26106132500186 | D51: محكمة القضاء الادارى باسيوط | E51: 104 | F51: محافظ اسيوط - مدير مديرية التربية والتعليم | G51: 23760لسنة32ق | H51: 2021-10-19 | I51: 2016-07-01 | J51: 2021-05-31 | K51: 28797.80364 | L51: 941.23 | M51: 810.74 | N51: 130.49 | O51: 130.49 | P51: 65.245 | Q51: 65.24 | R51: 2.174666667 | S51: 0 | T51: 59 | U51: 1770 | V51: 3849.16 | W51: 3849.16 | X51: 32.6225 | Y51: 32.62 | Z51: 1.087333333 | AA51: 0 | AB51: 59 | AC51: 1770 | AD51: 1924.58 | AE51: 1924.58 | AF51: بدل اعتماد معلم خبير ( 175 % ) | AG51: 228.3575 | AH51: 228.35 | AI51: 7.611666667 | AJ51: 0 | AK51: 28 | AL51: 840 | AM51: 6393.8 | AN51: 6393.8 | AO51: بدل اعتماد كبير معلمين ( 200 % ) | AP51: 260.98 | AQ51: 260.98 | AR51: 8.699333333 | AS51: 0 | AT51: 31 | AU51: 930 | AV51: 8090.38 | AW51: 8090.38 | AX51: حافز اداء معلم خبير ( 25 % ) | AY51: 32.6225 | AZ51: 32.62 | BA51: 1.087333333 | BB51: 0 | BC51: 28 | BD51: 840 | BE51: 913.36 | BF51: 913.36 | BG51: حافز اداء كبير معلمين ( 25 % ) | BH51: 32.6225 | BI51: 32.62 | BJ51: 1.087333333 | BK51: 0 | BL51: 31 | BM51: 930 | BN51: 1011.22 | BO51: 1011.22 | BP51: 1304.9 | BQ51: 1304.9 | BR51: 3.624722222 | BS51: 0 | BT51: 60 | BV51: 6524.5 | BW51: 6524.5 | BX51: 52.196 | BY51: 52.19 | BZ51: 1.739666667 | CA51: 0 | CB51: 14 | CC51: 420 | CD51: 730.66 | CE51: 90.80364133 | CF51: 28797.80364 | CG51: فقط ثمانية وعشرونَ ألفاً وسبعمائة وسبع وتسعونَ جنيهاً و 80 قرش فقطُ لا غيرَ | CH51: 26106132500186 | CI51: طه حنفى | CJ51: 14484.18 | CK51: 1924.58 | CL51: 2021-06-12 | CM51: 2018-11-01 | CN51: 51 | CO51: 1
A52: 40 | B52: بهجه عبد الحميد مصطفى شرقاوى | C52: 26202172500102 | D52: محكمة القضاء الادارى باسيوط | E52: 104 | F52: محافظ اسيوط - مدير مديرية التربية والتعليم | G52: 23761لسنة32ق | H52: 2021-10-19 | I52: 2016-07-01 | J52: 2022-01-31 | K52: 32006.63208 | L52: 906.24 | M52: 779.73 | N52: 126.51 | O52: 126.51 | P52: 63.255 | Q52: 63.25 | R52: 2.108333333 | S52: 0 | T52: 67 | U52: 2010 | V52: 4237.75 | W52: 4237.75 | X52: 31.6275 | Y52: 31.62 | Z52: 1.054 | AA52: 0 | AB52: 67 | AC52: 2010 | AD52: 2118.54 | AE52: 2118.54 | AF52: بدل اعتماد معلم خبير ( 175 % ) | AG52: 221.3925 | AH52: 221.39 | AI52: 7.379666667 | AJ52: 0 | AK52: 28 | AL52: 840 | AM52: 6198.92 | AN52: 6198.92 | AO52: بدل اعتماد كبير معلمين ( 200 % ) | AP52: 253.02 | AQ52: 253.02 | AR52: 8.434 | AS52: 0 | AT52: 39 | AU52: 1170 | AV52: 9867.78 | AW52: 9867.78 | AX52: حافز اداء معلم خبير ( 25 % ) | AY52: 31.6275 | AZ52: 31.62 | BA52: 1.054 | BB52: 0 | BC52: 28 | BD52: 840 | BE52: 885.36 | BF52: 885.36 | BG52: حافز اداء كبير معلمين ( 25 % ) | BH52: 31.6275 | BI52: 31.62 | BJ52: 1.054 | BK52: 0 | BL52: 39 | BM52: 1170 | BN52: 1233.18 | BO52: 1233.18 | BP52: 1265.1 | BQ52: 1265.1 | BR52: 3.514166667 | BS52: 0 | BT52: 65 | BV52: 7379.75 | BW52: 7379.75 | BX52: 50.604 | BY52: 50.6 | BZ52: 1.686666667 | CA52: 0 | CB52: 14 | CC52: 420 | CD52: 708.4 | CE52: 85.35208 | CF52: 32006.63208 | CG52: فقط اثنانِ وثلاثونَ ألفاً وست جنيهات و 63 قرش فقطُ لا غيرَ | CH52: 26202172500102 | CI52: طه حنفى | CJ52: 16066.7 | CK52: 2118.54 | CL52: 2022-02-16 | CM52: 2018-11-01 | CN52: 52 | CO52: 1
A53: 41 | B53: صباح محمدحسين هريدى | C53: 26203102501221 | D53: محكمة القضاء الادارى باسيوط | E53: 90 | F53: محافظ اسيوط - مدير مديرية التربية والتعليم | G53: 12010لسنة32ق | H53: 2021-06-22 | I53: 2016-07-01 | J53: 2022-02-28 | K53: 28376.51398 | L53: 814.28 | M53: 701.16 | N53: 113.12 | O53: 113.12 | P53: 56.56 | Q53: 56.56 | R53: 1.885333333 | S53: 0 | T53: 68 | U53: 2040 | V53: 3846.08 | W53: 3846.08 | X53: 28.28 | Y53: 28.28 | Z53: 0.9426666667 | AA53: 0 | AB53: 68 | AC53: 2040 | AD53: 1923.04 | AE53: 1923.04 | AF53: بدل اعتماد معلم خبير ( 175 % ) | AG53: 197.96 | AH53: 197.96 | AI53: 6.598666667 | AJ53: 0 | AK53: 55 | AL53: 1650 | AM53: 10887.8 | AN53: 10887.8 | AO53: بدل اعتماد كبير معلمين ( 200 % ) | AP53: 226.24 | AQ53: 226.24 | AR53: 7.541333333 | AS53: 0 | AT53: 13 | AU53: 390 | AV53: 2941.12 | AW53: 2941.12 | AX53: حافز اداء معلم خبير ( 25 % ) | AY53: 28.28 | AZ53: 28.28 | BA53: 0.9426666667 | BB53: 0 | BC53: 55 | BD53: 1650 | BE53: 1555.4 | BF53: 1555.4 | BG53: حافز اداء كبير معلمين ( 25 % ) | BH53: 28.28 | BI53: 28.28 | BJ53: 0.9426666667 | BK53: 0 | BL53: 13 | BM53: 390 | BN53: 367.64 | BO53: 367.64 | BP53: 1131.2 | BQ53: 1131.2 | BR53: 3.142222222 | BS53: 0 | BT53: 72 | BV53: 6787.2 | BW53: 6787.2 | BX53: 45.248 | BY53: 45.24 | BZ53: 1.508 | CA53: 0 | CB53: 14 | CC53: 420 | CD53: 633.36 | CE53: 68.233984 | CF53: 28376.51398 | CG53: فقط ثمانية وعشرونَ ألفاً وثلاثمائة وست وسبعونَ جنيهاً و 51 قرش فقطُ لا غيرَ | CH53: 26203102501221 | CI53: قطاع قبلى | CJ53: 13828.92 | CK53: 1923.04 | CL53: 2022-03-09 | CM53: 2021-02-01 | CN53: 53 | CO53: 1
A54: 42 | B54: مجدى فوزى ثابت ابراهيم | C54: 26103092500111 | D54: محكمة القضاء الادارى باسيوط | E54: 90 | F54: محافظ اسيوط - مدير مديرية التربية والتعليم | G54: 14093لسنة32ق | H54: 2021-06-22 | I54: 2016-07-01 | J54: 2021-02-28 | K54: 29084.9281 | L54: 950.54 | M54: 813.17 | N54: 137.37 | O54: 137.37 | P54: 68.685 | Q54: 68.68 | R54: 2.289333333 | S54: 0 | T54: 56 | U54: 1680 | V54: 3846.08 | W54: 3846.08 | X54: 34.3425 | Y54: 34.34 | Z54: 1.144666667 | AA54: 0 | AB54: 56 | AC54: 1680 | AD54: 1923.04 | AE54: 1923.04 | AF54: بدل اعتماد معلم خبير ( 175 % ) | AG54: 240.3975 | AH54: 240.39 | AI54: 8.013 | AJ54: 0 | AK54: 28 | AL54: 840 | AM54: 6730.92 | AN54: 6730.92 | AO54: بدل اعتماد كبير معلمين ( 200 % ) | AP54: 274.74 | AQ54: 274.74 | AR54: 9.158 | AS54: 0 | AT54: 28 | AU54: 840 | AV54: 7692.72 | AW54: 7692.72 | AX54: حافز اداء معلم خبير ( 25 % ) | AY54: 34.3425 | AZ54: 34.34 | BA54: 1.144666667 | BB54: 0 | BC54: 28 | BD54: 840 | BE54: 961.52 | BF54: 961.52 | BG54: حافز اداء كبير معلمين ( 25 % ) | BH54: 34.3425 | BI54: 34.34 | BJ54: 1.144666667 | BK54: 0 | BL54: 28 | BM54: 840 | BN54: 961.52 | BO54: 961.52 | BP54: 1373.7 | BQ54: 1373.7 | BR54: 3.815833333 | BS54: 0 | BT54: 60 | BV54: 6868.5 | BW54: 6868.5 | BX54: 54.948 | BY54: 54.94 | BZ54: 1.831333333 | CA54: 0 | CB54: 14 | CC54: 420 | CD54: 769.16 | CE54: 100.628104 | CF54: 29084.9281 | CG54: فقط تسعة وعشرونَ ألفاً وأربع وثمانونَ جنيهاً و 93 قرش فقطُ لا غيرَ | CH54: 26103092500111 | CI54: التجارة بنين | CJ54: 14423.64 | CK54: 1923.04 | CL54: 2021-03-08 | CM54: 2018-11-01 | CN54: 54 | CO54: 1
A55: 43 | B55: رافت برسوم ابسخرون جريس | C55: 25807292501175 | D55: محكمة القضاء الادارى باسيوط | E55: 90 | F55: محافظ اسيوط - مدير مديرية التربية والتعليم | G55: 12877لسنة32ق | H55: 2021-06-22 | I55: 2016-07-01 | J55: 2018-06-30 | K55: 14004.69237 | L55: 1054.16 | M55: 903.25 | N55: 150.91 | O55: 150.91 | P55: 75.455 | Q55: 75.45 | R55: 2.515 | S55: 0 | T55: 24 | U55: 720 | V55: 1810.8 | W55: 1810.8 | X55: 37.7275 | Y55: 37.72 | Z55: 1.257333333 | AA55: 0 | AB55: 24 | AC55: 720 | AD55: 905.28 | AE55: 905.28 | AF55: بدل اعتماد كبير معلمين ( 200 % ) | AG55: 301.82 | AH55: 301.82 | AI55: 10.06066667 | AJ55: 0 | AK55: 24 | AL55: 720 | AM55: 7243.68 | AN55: 7243.68 | AO55: بدل اعتماد كبير معلمين ( 200 % ) | AP55: 301.82 | AQ55: 301.82 | AR55: 10.06066667 | AS55: 0 | AT55: 0 | AU55: 0 | AV55: 0 | AW55: 0 | AX55: حافز اداء كبير معلمين ( 25 % ) | AY55: 37.7275 | AZ55: 37.72 | BA55: 1.257333333 | BB55: 0 | BC55: 24 | BD55: 720 | BE55: 905.28 | BF55: 905.28 | BG55: حافز اداء كبير معلمين ( 25 % ) | BH55: 37.7275 | BI55: 37.72 | BJ55: 1.257333333 | BK55: 0 | BL55: 0 | BM55: 0 | BN55: 0 | BO55: 0 | BP55: 1509.1 | BQ55: 1509.1 | BR55: 4.191944444 | BS55: 0 | BT55: 24 | BV55: 3018.2 | BW55: 3018.2 | BX55: 60.364 | BY55: 60.36 | BZ55: 2.012 | CA55: 0 | CB55: 14 | CC55: 420 | CD55: 845.04 | CE55: 121.452368 | CF55: 14004.69237 | CG55: فقط أربعة عشر ألفاً وأربع جنيهات و 69 قرش فقطُ لا غيرَ | CH55: 25807292501175 | CI55: ديوان الادارة | CJ55: 7243.68 | CK55: 905.28 | CL55: 2018-07-28 | CM55: 2014-10-01 | CN55: 55 | CO55: 1
A56: 44 | B56: نرجس نجيب منصور تاضروس | C56: 26111012500224 | D56: محكمة القضاء الادارى باسيوط | E56: 90 | F56: محافظ اسيوط - مدير مديرية التربية والتعليم | G56: 12292لسنة32ق | H56: 2021-06-22 | I56: 2016-07-01 | J56: 2021-10-31 | K56: 30018.79525 | L56: 897.78 | M56: 772.18 | N56: 125.6 | O56: 125.6 | P56: 62.8 | Q56: 62.8 | R56: 2.093333333 | S56: 0 | T56: 64 | U56: 1920 | V56: 4019.2 | W56: 4019.2 | X56: 31.4 | Y56: 31.4 | Z56: 1.046666667 | AA56: 0 | AB56: 64 | AC56: 1920 | AD56: 2009.6 | AE56: 2009.6 | AF56: بدل اعتماد معلم خبير ( 175 % ) | AG56: 219.8 | AH56: 219.8 | AI56: 7.326666667 | AJ56: 0 | AK56: 28 | AL56: 840 | AM56: 6154.4 | AN56: 6154.4 | AO56: بدل اعتماد كبير معلمين ( 200 % ) | AP56: 251.2 | AQ56: 251.2 | AR56: 8.373333333 | AS56: 0 | AT56: 36 | AU56: 1080 | AV56: 9043.2 | AW56: 9043.2 | AX56: حافز اداء معلم خبير ( 25 % ) | AY56: 31.4 | AZ56: 31.4 | BA56: 1.046666667 | BB56: 0 | BC56: 28 | BD56: 840 | BE56: 879.2 | BF56: 879.2 | BG56: حافز اداء كبير معلمين ( 25 % ) | BH56: 31.4 | BI56: 31.4 | BJ56: 1.046666667 | BK56: 0 | BL56: 36 | BM56: 1080 | BN56: 1130.4 | BO56: 1130.4 | BP56: 1256 | BQ56: 1256 | BR56: 3.488888889 | BS56: 0 | BT56: 62 | BV56: 6698.66 | BW56: 6698.66 | BX56: 50.24 | BY56: 50.24 | BZ56: 1.674666667 | CA56: 0 | CB56: 14 | CC56: 420 | CD56: 703.36 | CE56: 84.13525333 | CF56: 30018.79525 | CG56: فقط ثلاثونَ ألفاً وثمان عشرة جنيهاً و 80 قرش فقطُ لا غيرَ | CH56: 26111012500224 | CI56: ديوان الادارة | CJ56: 15197.6 | CK56: 2009.6 | CL56: 31/11/2021 | CM56: 2018-11-01 | CN56: 56 | CO56: 1
A57: 45 | B57: نبيله عياد مينا قلدس | C57: 26112141601521 | D57: محكمة القضاء الادارى باسيوط | E57: 90 | F57: محافظ اسيوط - مدير مديرية التربية والتعليم | G57: 12703لسنة32ق | H57: 2021-06-22 | I57: 2016-07-01 | J57: 2021-11-30 | K57: 30155.3616 | L57: 892.7 | M57: 768.94 | N57: 123.76 | O57: 123.76 | P57: 61.88 | Q57: 61.88 | R57: 2.062666667 | S57: 0 | T57: 65 | U57: 1950 | V57: 4022.2 | W57: 4022.2 | X57: 30.94 | Y57: 30.94 | Z57: 1.031333333 | AA57: 0 | AB57: 65 | AC57: 1950 | AD57: 2011.1 | AE57: 2011.1 | AF57: بدل اعتماد معلم خبير ( 175 % ) | AG57: 216.58 | AH57: 216.58 | AI57: 7.219333333 | AJ57: 0 | AK57: 28 | AL57: 840 | AM57: 6064.24 | AN57: 6064.24 | AO57: بدل اعتماد كبير معلمين ( 200 % ) | AP57: 247.52 | AQ57: 247.52 | AR57: 8.250666667 | AS57: 0 | AT57: 37 | AU57: 1110 | AV57: 9158.24 | AW57: 9158.24 | AX57: حافز اداء معلم خبير ( 25 % ) | AY57: 30.94 | AZ57: 30.94 | BA57: 1.031333333 | BB57: 0 | BC57: 28 | BD57: 840 | BE57: 866.32 | BF57: 866.32 | BG57: حافز اداء كبير معلمين ( 25 % ) | BH57: 30.94 | BI57: 30.94 | BJ57: 1.031333333 | BK57: 0 | BL57: 37 | BM57: 1110 | BN57: 1144.78 | BO57: 1144.78 | BP57: 1237.6 | BQ57: 1237.6 | BR57: 3.437777778 | BS57: 0 | BT57: 63 | BV57: 6806.8 | BW57: 6806.8 | BX57: 49.504 | BY57: 49.5 | BZ57: 1.65 | CA57: 0 | CB57: 14 | CC57: 420 | CD57: 693 | CE57: 81.6816 | CF57: 30155.3616 | CG57: فقط ثلاثونَ ألفاً ومائة وخمس وخمسونَ جنيهاً و 36 قرش فقطُ لا غيرَ | CH57: 26112141601521 | CI57: ديوان الادارة | CJ57: 15222.48 | CK57: 2011.1 | CL57: 2021-12-13 | CM57: 2018-11-01 | CN57: 57 | CO57: 1
A148: 1 | B148: منى عبده على مسعود | C148: 26101132500206 | D148: محكمة القضاء الادارى باسيوط | E148: 90 | F148: محافظ اسيوط - وكيل وزارة التربية والتعليم | G148: 12490لسنة32ق | H148: 2021-06-22 | I148: 2016-07-01 | J148: 2020-12-31 | K148: =CE148+BW148+BO148+BF148+AW148+AN148+AE148+W148 -> 27362.28364 | L148: 941.3 | M148: 810.81 | N148: =L148-M148 -> 130.49 | O148: =TRUNC(N148,2) -> 130.49 | P148: =N148*50/100 -> 65.245 | Q148: =TRUNC(P148,2) -> 65.24 | R148: =Q148/30 -> 2.174666667 | S148: 0 | T148: 72 | U148: =SUM((T148*30),S148) -> 2160 | V148: =U148*R148 -> 4697.28 | W148: =TRUNC(V148,2) -> 4697.28 | X148: =O148*25/100 -> 32.6225 | Y148: =TRUNC(X148,2) -> 32.62 | Z148: =Y148/30 -> 1.087333333 | AA148: 0 | AB148: 72 | AC148: =SUM((AB148*30),AA148) -> 2160 | AD148: =AC148*Z148 -> 2348.64 | AE148: =TRUNC(AD148,2) -> 2348.64 | AF148: بدل اعتماد معلم خبير ( 175 % ) | AG148: =IF(AF148="بدل اعتماد معلم ( 50 % )",O148*100/100,IF(AF148="بدل اعتماد معلم أول ( 125 % )",O148*125/100,IF(AF148="بدل اعتماد معلم أول أ ( 150 % )",O148*150/100,IF(AF148="بدل اعتماد معلم خبير ( 175 % )",O148*175/100,IF(AF148="بدل اعتماد كبير معلمين ( 200 % )",O148*200/100))))) -> 228.3575 | AH148: =TRUNC(AG148,2) -> 228.35 | AI148: =AH148/30 -> 7.611666667 | AJ148: 0 | AK148: 28 | AL148: =SUM((AK148*30),AJ148) -> 840 | AM148: =AL148*AI148 -> 6393.8 | AN148: =TRUNC(AM148,2) -> 6393.8 | AO148: بدل اعتماد كبير معلمين ( 200 % ) | AP148: =IF(AO148="بدل اعتماد معلم ( 100 % )",O148*100/100,IF(AO148="بدل اعتماد معلم أول ( 125 % )",O148*125/100,IF(AO148="بدل اعتماد معلم أول أ ( 150 % )",O148*150/100,IF(AO148="بدل اعتماد معلم خبير ( 175 % )",O148*175/100,IF(AO148="بدل اعتماد كبير معلمين ( 200 % )",O148*200/100))))) -> 260.98 | AQ148: =TRUNC(AP148,2) -> 260.98 | AR148: =AQ148/30 -> 8.699333333 | AS148: 0 | AT148: 44 | AU148: =SUM((AT148*30),AS148) -> 1320 | AV148: =AU148*AR148 -> 11483.12 | AW148: =TRUNC(AV148,2) -> 11483.12 | AX148: حافز اداء معلم خبير ( 25 % ) | AY148: =IF(AX148="حافز اداء معلم ( 75 % )",O148*75/100,IF(AX148="حافز اداء معلم أول ( 50 % )",O148*50/100,IF(AX148="حافز اداء معلم أول أ ( 25 % )",O148*25/100,IF(AX148="حافز اداء معلم خبير ( 25 % )",O148*25/100,IF(AX148="حافز اداء كبير معلمين ( 25 % )",O148*25/100))))) -> 32.6225 | AZ148: =TRUNC(AY148,2) -> 32.62 | BA148: =AZ148/30 -> 1.087333333 | BB148: 0 | BC148: 28 | BD148: =SUM((BC148*30),BB148) -> 840 | BE148: =BD148*BA148 -> 913.36 | BF148: =TRUNC(BE148,2) -> 913.36 | BG148: حافز اداء كبير معلمين ( 25 % ) | BH148: =IF(BG148="حافز اداء معلم ( 75 % )",O148*75/100,IF(BG148="حافز اداء معلم أول ( 50 % )",O148*50/100,IF(BG148="حافز اداء معلم أول أ ( 25 % )",O148*25/100,IF(BG148="حافز اداء معلم خبير ( 25 % )",O148*25/100,IF(BG148="حافز اداء كبير معلمين ( 25 % )",O148*25/100))))) -> 32.6225 | BI148: =TRUNC(BH148,2) -> 32.62 | BJ148: =BI148/30 -> 1.087333333 | BK148: 0 | BL148: 44 | BM148: =SUM((BL148*30),BK148) -> 1320 | BN148: =BM148*BJ148 -> 1435.28 | BO148: =TRUNC(BN148,2) -> 1435.28 | BP148: =O148*10 -> 1304.9 | BQ148: =TRUNC(BP148,2) -> 1304.9 | BR148: =BQ148/360 -> 3.624722222 | BS148: 0 | BT148: 72 | BV148: =المكافأة!S58 -> 0 | BW148: =TRUNC(BV148,2) -> 0 | BX148: =O148*40/100 -> 52.196 | BY148: =TRUNC(BX148,2) -> 52.19 | BZ148: =BY148/30 -> 1.739666667 | CA148: 0 | CB148: 14 | CC148: =SUM((CB148*30),CA148) -> 420 | CD148: =CC148*BZ148 -> 730.66 | CE148: =BZ148*BX148 -> 90.80364133 | CF148: =CE148+BW148+BO148+BF148+AW148+AN148+AE148+W148 -> 27362.28364 | CG148: =" فقط "&ArbNum2Text(CF148, 2,3,"جنيه","جنيهات",1,"قرش","قروش",1) -> فقط سبعة وعشرونَ ألفاً وثلاثمائة واثنتانِ وستونَ جنيهاً و 28 قرش فقطُ لا غيرَ | CH148: =C148 -> 26101132500206 | CI148: ديوان الادارة | CJ148: =AW148+AN148 -> 17876.92 | CK148: =BO148+BF148 -> 2348.64 | CN148: 300 | CO148: 1
A149: 2 | B149: جمالات محمد مصطفى ابراهيم | C149: 25904142500842 | D149: محكمة القضاء الادارى باسيوط | E149: 90 | F149: محافظ اسيوط - وكيل وزارة التربية والتعليم | G149: 14316لسنة32ق | H149: 2021-06-22 | I149: 2016-07-01 | J149: 2019-03-31 | K149: 28909.88159 | L149: 962.11 | M149: 824.27 | N149: 137.84 | O149: 137.84 | P149: 68.92 | Q149: 68.92 | R149: 2.297333333 | S149: 0 | T149: 72 | U149: 2160 | V149: 4962.24 | W149: 4962.24 | X149: 34.46 | Y149: 34.46 | Z149: 1.148666667 | AA149: 0 | AB149: 72 | AC149: 2160 | AD149: 2481.12 | AE149: 2481.12 | AF149: بدل اعتماد معلم خبير ( 175 % ) | AG149: 241.22 | AH149: 241.22 | AI149: 8.040666667 | AJ149: 0 | AK149: 28 | AL149: 840 | AM149: 6754.16 | AN149: 6754.16 | AO149: بدل اعتماد كبير معلمين ( 200 % ) | AP149: 275.68 | AQ149: 275.68 | AR149: 9.189333333 | AS149: 0 | AT149: 44 | AU149: 1320 | AV149: 12129.92 | AW149: 12129.92 | AX149: حافز اداء معلم خبير ( 25 % ) | AY149: 34.46 | AZ149: 34.46 | BA149: 1.148666667 | BB149: 0 | BC149: 28 | BD149: 840 | BE149: 964.88 | BF149: 964.88 | BG149: حافز اداء كبير معلمين ( 25 % ) | BH149: 34.46 | BI149: 34.46 | BJ149: 1.148666667 | BK149: 0 | BL149: 44 | BM149: 1320 | BN149: 1516.24 | BO149: 1516.24 | BP149: 1378.4 | BQ149: 1378.4 | BR149: 3.828888889 | BS149: 0 | BT149: 72 | BV149: =المكافأة!S59 -> 0 | BW149: 0 | BX149: 55.136 | BY149: 55.13 | BZ149: 1.837666667 | CA149: 0 | CB149: 14 | CC149: 420 | CD149: 771.82 | CE149: 101.3215893 | CF149: 28909.88159 | CG149: فقط ثمانية وعشرونَ ألفاً وتسعمائة وتسع جنيهات و 88 قرش فقطُ لا غيرَ | CH149: 25904142500842 | CI149: عبد الله النديم | CJ149: 18884.08 | CK149: 2481.12 | CN149: 300 | CO149: 1
A150: 3 | B150: فوزيه ثابت محمد حسن | C150: 26001272500244 | D150: محكمة القضاء الادارى باسيوط | E150: 90 | F150: محافظ اسيوط - وكيل وزارة التربية والتعليم | G150: 1254لسنة32ق | H150: 2021-06-22 | I150: 2016-07-01 | J150: 2019-12-31 | K150: 22402.9865 | L150: 813.13 | M150: 700.32 | N150: 112.81 | O150: 112.81 | P150: 56.405 | Q150: 56.4 | R150: 1.88 | S150: 0 | T150: 72 | U150: 2160 | V150: 4060.8 | W150: 4060.8 | X150: 28.2025 | Y150: 28.2 | Z150: 0.94 | AA150: 0 | AB150: 72 | AC150: 2160 | AD150: 2030.4 | AE150: 2030.4 | AF150: بدل اعتماد معلم خبير ( 175 % ) | AG150: 197.4175 | AH150: 197.41 | AI150: 6.580333333 | AJ150: 0 | AK150: 28 | AL150: 840 | AM150: 5527.48 | AN150: 5527.48 | AO150: بدل اعتماد معلم خبير ( 175 % ) | AP150: 197.4175 | AQ150: 197.41 | AR150: 6.580333333 | AS150: 0 | AT150: 44 | AU150: 1320 | AV150: 8686.04 | AW150: 8686.04 | AX150: حافز اداء معلم خبير ( 25 % ) | AY150: 28.2025 | AZ150: 28.2 | BA150: 0.94 | BB150: 0 | BC150: 28 | BD150: 840 | BE150: 789.6 | BF150: 789.6 | BG150: حافز اداء معلم خبير ( 25 % ) | BH150: 28.2025 | BI150: 28.2 | BJ150: 0.94 | BK150: 0 | BL150: 44 | BM150: 1320 | BN150: 1240.8 | BO150: 1240.8 | BP150: 1128.1 | BQ150: 1128.1 | BR150: 3.133611111 | BS150: 0 | BT150: 72 | BV150: =المكافأة!S60 -> 0 | BW150: 0 | BX150: 45.124 | BY150: 45.12 | BZ150: 1.504 | CA150: 0 | CB150: 14 | CC150: 420 | CD150: 631.68 | CE150: 67.866496 | CF150: 22402.9865 | CG150: فقط اثنانِ وعشرونَ ألفاً وأربعمائة وجنيهانِ اثنتانِ و 99 قرش فقطُ لا غيرَ | CH150: 26001272500244 | CI150: الحرية بالاربعين | CJ150: 14213.52 | CK150: 2030.4 | CN150: 300 | CO150: 1
A151: 4 | B151: رجاء بهلول محمد عبد اللاه | C151: 25912292500461 | D151: محكمة القضاء الادارى باسيوط | E151: 90 | F151: محافظ اسيوط - وكيل وزارة التربية والتعليم | G151: 14318لسنة32ق | H151: 2021-06-22 | I151: 2016-07-01 | J151: 2019-11-30 | K151: 27816.54614 | L151: 973.89 | M151: 833.93 | N151: 139.96 | O151: 139.96 | P151: 69.98 | Q151: 69.98 | R151: 2.332666667 | S151: 0 | T151: 72 | U151: 2160 | V151: 5038.56 | W151: 5038.56 | X151: 34.99 | Y151: 34.99 | Z151: 1.166333333 | AA151: 0 | AB151: 72 | AC151: 2160 | AD151: 2519.28 | AE151: 2519.28 | AF151: بدل اعتماد معلم خبير ( 175 % ) | AG151: 244.93 | AH151: 244.93 | AI151: 8.164333333 | AJ151: 0 | AK151: 28 | AL151: 840 | AM151: 6858.04 | AN151: 6858.04 | AO151: بدل اعتماد معلم خبير ( 175 % ) | AP151: 244.93 | AQ151: 244.93 | AR151: 8.164333333 | AS151: 0 | AT151: 44 | AU151: 1320 | AV151: 10776.92 | AW151: 10776.92 | AX151: حافز اداء معلم خبير ( 25 % ) | AY151: 34.99 | AZ151: 34.99 | BA151: 1.166333333 | BB151: 0 | BC151: 28 | BD151: 840 | BE151: 979.72 | BF151: 979.72 | BG151: حافز اداء معلم خبير ( 25 % ) | BH151: 34.99 | BI151: 34.99 | BJ151: 1.166333333 | BK151: 0 | BL151: 44 | BM151: 1320 | BN151: 1539.56 | BO151: 1539.56 | BP151: 1399.6 | BQ151: 1399.6 | BR151: 3.887777778 | BS151: 0 | BT151: 72 | BV151: =المكافأة!S61 -> 0 | BW151: 0 | BX151: 55.984 | BY151: 55.98 | BZ151: 1.866 | CA151: 0 | CB151: 14 | CC151: 420 | CD151: 783.72 | CE151: 104.466144 | CF151: 27816.54614 | CG151: فقط سبعة وعشرونَ ألفاً وثمانمائة وست عشرة جنيهاً و 55 قرش فقطُ لا غيرَ | CH151: 25912292500461 | CI151: مجمعه موشا | CJ151: 17634.96 | CK151: 2519.28 | CN151: 300 | CO151: 1
A152: 5 | B152: ماجده عبد الرحمن على حسان | C152: 25905292500049 | D152: محكمة القضاء الادارى باسيوط | E152: 90 | F152: محافظ اسيوط - وكيل وزارة التربية والتعليم | G152: 12573لسنة32ق | H152: 2021-06-22 | I152: 2016-07-01 | J152: 2019-04-30 | K152: 29157.38016 | L152: 967.86 | M152: 828.84 | N152: 139.02 | O152: 139.02 | P152: 69.51 | Q152: 69.51 | R152: 2.317 | S152: 0 | T152: 72 | U152: 2160 | V152: 5004.72 | W152: 5004.72 | X152: 34.755 | Y152: 34.75 | Z152: 1.158333333 | AA152: 0 | AB152: 72 | AC152: 2160 | AD152: 2502 | AE152: 2502 | AF152: بدل اعتماد معلم خبير ( 175 % ) | AG152: 243.285 | AH152: 243.28 | AI152: 8.109333333 | AJ152: 0 | AK152: 28 | AL152: 840 | AM152: 6811.84 | AN152: 6811.84 | AO152: بدل اعتماد كبير معلمين ( 200 % ) | AP152: 278.04 | AQ152: 278.04 | AR152: 9.268 | AS152: 0 | AT152: 44 | AU152: 1320 | AV152: 12233.76 | AW152: 12233.76 | AX152: حافز اداء معلم خبير ( 25 % ) | AY152: 34.755 | AZ152: 34.75 | BA152: 1.158333333 | BB152: 0 | BC152: 28 | BD152: 840 | BE152: 973 | BF152: 973 | BG152: حافز اداء كبير معلمين ( 25 % ) | BH152: 34.755 | BI152: 34.75 | BJ152: 1.158333333 | BK152: 0 | BL152: 44 | BM152: 1320 | BN152: 1529 | BO152: 1529 | BP152: 1390.2 | BQ152: 1390.2 | BR152: 3.861666667 | BS152: 0 | BT152: 72 | BV152: =المكافأة!S62 -> 0 | BW152: 0 | BX152: 55.608 | BY152: 55.6 | BZ152: 1.853333333 | CA152: 0 | CB152: 14 | CC152: 420 | CD152: 778.4 | CE152: 103.06016 | CF152: 29157.38016 | CG152: فقط تسعة وعشرونَ ألفاً ومائة وسبع وخمسونَ جنيهاً و 38 قرش فقطُ لا غيرَ | CH152: 25905292500049 | CI152: الجلاء الابتدائية | CJ152: 19045.6 | CK152: 2502 | CN152: 300 | CO152: 1
A153: 6 | B153: علا عبد الحميد على كحيله | C153: 26001102500126 | D153: محكمة القضاء الادارى باسيوط | E153: 90 | F153: محافظ اسيوط - وكيل وزارة التربية والتعليم | G153: 13006لسنة32ق | H153: 2021-06-22 | I153: 2016-07-01 | J153: 2020-12-30 | K153: 29990.5719 | L153: 1052.42 | M153: 901.56 | N153: 150.86 | O153: 150.86 | P153: =N153*50/100 -> 75.43 | Q153: 75.43 | R153: 2.514333333 | S153: 0 | T153: 72 | U153: 2160 | V153: 5430.96 | W153: 5430.96 | X153: 37.715 | Y153: 37.71 | Z153: 1.257 | AA153: 0 | AB153: 72 | AC153: 2160 | AD153: 2715.12 | AE153: 2715.12 | AF153: بدل اعتماد معلم خبير ( 175 % ) | AG153: =IF(AF153="بدل اعتماد معلم ( 50 % )",O153*100/100,IF(AF153="بدل اعتماد معلم أول ( 125 % )",O153*125/100,IF(AF153="بدل اعتماد معلم أول أ ( 150 % )",O153*150/100,IF(AF153="بدل اعتماد معلم خبير ( 175 % )",O153*175/100,IF(AF153="بدل اعتماد كبير معلمين ( 200 % )",O153*200/100))))) -> 264.005 | AH153: 264 | AI153: 8.8 | AJ153: 0 | AK153: 28 | AL153: 840 | AM153: 7392 | AN153: 7392 | AO153: بدل اعتماد معلم خبير ( 175 % ) | AP153: 264.005 | AQ153: 264 | AR153: 8.8 | AS153: 0 | AT153: 44 | AU153: 1320 | AV153: 11616 | AW153: 11616 | AX153: حافز اداء معلم خبير ( 25 % ) | AY153: 37.715 | AZ153: 37.71 | BA153: 1.257 | BB153: 0 | BC153: 28 | BD153: 840 | BE153: 1055.88 | BF153: 1055.88 | BG153: حافز اداء معلم خبير ( 25 % ) | BH153: 37.715 | BI153: 37.71 | BJ153: 1.257 | BK153: 0 | BL153: 44 | BM153: 1320 | BN153: 1659.24 | BO153: 1659.24 | BP153: 1508.6 | BQ153: 1508.6 | BR153: 4.190555556 | BS153: 0 | BT153: 72 | BV153: =المكافأة!S63 -> 0 | BW153: 0 | BX153: 60.344 | BY153: 60.34 | BZ153: 2.011333333 | CA153: 0 | CB153: 14 | CC153: 420 | CD153: 844.76 | CE153: =BZ153*BX153 -> 121.3718987 | CF153: 29990.5719 | CG153: فقط تسعة وعشرونَ ألفاً وتسعمائة وتسعونَ جنيهاً و 57 قرش فقطُ لا غيرَ | CH153: 26001102500126 | CI153: الخيرية الاعدادية | CJ153: 19008 | CK153: 2715.12 | CN153: 300 | CO153: 1
A154: 7 | B154: ميمي نجيب توفيق حنين | C154: 26009182401426 | D154: محكمة القضاء الادارى باسيوط | E154: 90 | F154: محافظ اسيوط - وكيل وزارة التربية والتعليم | G154: 12791لسنة32ق | H154: 2021-06-22 | I154: 2016-07-01 | J154: 2020-08-31 | K154: 17256.96249 | L154: 653.64 | M154: 563.51 | N154: 90.13 | O154: 90.13 | P154: 45.065 | Q154: 45.06 | R154: 1.502 | S154: 0 | T154: 72 | U154: 2160 | V154: 3244.32 | W154: 3244.32 | X154: 22.5325 | Y154: 22.53 | Z154: 0.751 | AA154: 0 | AB154: 72 | AC154: 2160 | AD154: 1622.16 | AE154: 1622.16 | AF154: بدل اعتماد معلم أول أ ( 150 % ) | AG154: 135.195 | AH154: 135.19 | AI154: 4.506333333 | AJ154: 0 | AK154: 28 | AL154: 840 | AM154: 3785.32 | AN154: 3785.32 | AO154: بدل اعتماد معلم خبير ( 175 % ) | AP154: 157.7275 | AQ154: 157.72 | AR154: 5.257333333 | AS154: 0 | AT154: 44 | AU154: 1320 | AV154: 6939.68 | AW154: 6939.68 | AX154: حافز اداء معلم أول أ ( 25 % ) | AY154: 22.5325 | AZ154: 22.53 | BA154: 0.751 | BB154: 0 | BC154: 28 | BD154: 840 | BE154: 630.84 | BF154: 630.84 | BG154: حافز اداء معلم خبير ( 25 % ) | BH154: 22.5325 | BI154: 22.53 | BJ154: 0.751 | BK154: 0 | BL154: 44 | BM154: 1320 | BN154: 991.32 | BO154: 991.32 | BP154: 901.3 | BQ154: 901.3 | BR154: 2.503611111 | BS154: 0 | BT154: 72 | BV154: =المكافأة!S64 -> 0 | BW154: 0 | BX154: 36.052 | BY154: 36.05 | BZ154: 1.201666667 | CA154: 0 | CB154: 14 | CC154: 420 | CD154: 504.7 | CE154: 43.32248667 | CF154: 17256.96249 | CG154: فقط سبعة عشر ألفاً ومائتان وست وخمسونَ جنيهاً و 96 قرش فقطُ لا غيرَ | CH154: 26009182401426 | CI154: الشهيد محمد صلاح | CJ154: 10725 | CK154: 1622.16 | CN154: 300 | CO154: 1
A155: 8 | B155: ايمان عبد الرحيم سيد محمد | C155: 26205192500167 | D155: محكمة القضاء الادارى باسيوط | E155: 90 | F155: محافظ اسيوط - وكيل وزارة التربية والتعليم | G155: 7345لسنة32ق | H155: 2021-08-24 | I155: 2016-07-01 | J155: 2019-11-30 | K155: 26524.43208 | L155: 906.17 | M155: 779.66 | N155: 126.51 | O155: 126.51 | P155: 63.255 | Q155: 63.25 | R155: 2.108333333 | S155: 0 | T155: 72 | U155: 2160 | V155: 4554 | W155: 4554 | X155: 31.6275 | Y155: 31.62 | Z155: 1.054 | AA155: 0 | AB155: 72 | AC155: 2160 | AD155: 2276.64 | AE155: 2276.64 | AF155: بدل اعتماد معلم خبير ( 175 % ) | AG155: 221.3925 | AH155: 221.39 | AI155: 7.379666667 | AJ155: 0 | AK155: 28 | AL155: 840 | AM155: 6198.92 | AN155: 6198.92 | AO155: بدل اعتماد كبير معلمين ( 200 % ) | AP155: 253.02 | AQ155: 253.02 | AR155: 8.434 | AS155: 0 | AT155: 44 | AU155: 1320 | AV155: 11132.88 | AW155: 11132.88 | AX155: حافز اداء معلم خبير ( 25 % ) | AY155: 31.6275 | AZ155: 31.62 | BA155: 1.054 | BB155: 0 | BC155: 28 | BD155: 840 | BE155: 885.36 | BF155: 885.36 | BG155: حافز اداء كبير معلمين ( 25 % ) | BH155: 31.6275 | BI155: 31.62 | BJ155: 1.054 | BK155: 0 | BL155: 44 | BM155: 1320 | BN155: 1391.28 | BO155: 1391.28 | BP155: 1265.1 | BQ155: 1265.1 | BR155: 3.514166667 | BS155: 0 | BT155: 72 | BV155: =المكافأة!S65 -> 0 | BW155: 0 | BX155: 50.604 | BY155: 50.6 | BZ155: 1.686666667 | CA155: 0 | CB155: 14 | CC155: 420 | CD155: 708.4 | CE155: 85.35208 | CF155: 26524.43208 | CG155: فقط ستة وعشرونَ ألفاً وخمسمائة وأربع وعشرونَ جنيهاً و 43 قرش فقطُ لا غيرَ | CH155: 26205192500167 | CI155: الخيرية الاعدادية | CJ155: 17331.8 | CK155: 2276.64 | CN155: 300 | CO155: 1
A156: 9 | B156: عصام الدين صلاح ثابت حسن | C156: 25912292502358 | D156: محكمة القضاء الادارى باسيوط | E156: 90 | F156: محافظ اسيوط - وكيل وزارة التربية والتعليم | G156: 7321لسنة32ق | H156: 2021-08-24 | I156: 2016-07-01 | J156: 2019-11-30 | K156: 23256.29873 | L156: 804.4 | M156: 693.44 | N156: 110.96 | O156: 110.96 | P156: 55.48 | Q156: 55.48 | R156: 1.849333333 | S156: 0 | T156: 72 | U156: 2160 | V156: 3994.56 | W156: 3994.56 | X156: 27.74 | Y156: 27.74 | Z156: 0.9246666667 | AA156: 0 | AB156: 72 | AC156: 2160 | AD156: 1997.28 | AE156: 1997.28 | AF156: بدل اعتماد معلم خبير ( 175 % ) | AG156: 194.18 | AH156: 194.18 | AI156: 6.472666667 | AJ156: 0 | AK156: 28 | AL156: 840 | AM156: 5437.04 | AN156: 5437.04 | AO156: بدل اعتماد كبير معلمين ( 200 % ) | AP156: 221.92 | AQ156: 221.92 | AR156: 7.397333333 | AS156: 0 | AT156: 44 | AU156: 1320 | AV156: 9764.48 | AW156: 9764.48 | AX156: حافز اداء معلم خبير ( 25 % ) | AY156: 27.74 | AZ156: 27.74 | BA156: 0.9246666667 | BB156: 0 | BC156: 28 | BD156: 840 | BE156: 776.72 | BF156: 776.72 | BG156: حافز اداء كبير معلمين ( 25 % ) | BH156: 27.74 | BI156: 27.74 | BJ156: 0.9246666667 | BK156: 0 | BL156: 44 | BM156: 1320 | BN156: 1220.56 | BO156: 1220.56 | BP156: 1109.6 | BQ156: 1109.6 | BR156: 3.082222222 | BS156: 0 | BT156: 72 | BV156: =المكافأة!S66 -> 0 | BW156: 0 | BX156: 44.384 | BY156: 44.38 | BZ156: 1.479333333 | CA156: 0 | CB156: 14 | CC156: 420 | CD156: 621.32 | CE156: 65.65873067 | CF156: 23256.29873 | CG156: فقط ثلاثة وعشرونَ ألفاً ومائتان وست وخمسونَ جنيهاً و 30 قرش فقطُ لا غيرَ | CH156: 25912292502358 | CI156: ديوان الادارة | CJ156: 15201.52 | CK156: 1997.28 | CN156: 300 | CO156: 1
A157: 10 | B157: عزه عبد العظيم كامل محمد | C157: 26109222500061 | D157: محكمة القضاء الادارى باسيوط | E157: 90 | F157: محافظ اسيوط - مدير مديرية التربية والتعليم | G157: 8808لسنة32ق | H157: 2021-09-21 | I157: 2016-07-01 | J157: 2021-08-31 | K157: 26809.06347 | L157: 915.6 | M157: 787.74 | N157: 127.86 | O157: 127.86 | P157: 63.93 | Q157: 63.93 | R157: 2.131 | S157: 0 | T157: 72 | U157: 2160 | V157: 4602.96 | W157: 4602.96 | X157: 31.965 | Y157: 31.96 | Z157: 1.065333333 | AA157: 0 | AB157: 72 | AC157: 2160 | AD157: 2301.12 | AE157: 2301.12 | AF157: بدل اعتماد معلم خبير ( 175 % ) | AG157: 223.755 | AH157: 223.75 | AI157: 7.458333333 | AJ157: 0 | AK157: 28 | AL157: 840 | AM157: 6265 | AN157: 6265 | AO157: بدل اعتماد كبير معلمين ( 200 % ) | AP157: 255.72 | AQ157: 255.72 | AR157: 8.524 | AS157: 0 | AT157: 44 | AU157: 1320 | AV157: 11251.68 | AW157: 11251.68 | AX157: حافز اداء معلم خبير ( 25 % ) | AY157: 31.965 | AZ157: 31.96 | BA157: 1.065333333 | BB157: 0 | BC157: 28 | BD157: 840 | BE157: 894.88 | BF157: 894.88 | BG157: حافز اداء كبير معلمين ( 25 % ) | BH157: 31.965 | BI157: 31.96 | BJ157: 1.065333333 | BK157: 0 | BL157: 44 | BM157: 1320 | BN157: 1406.24 | BO157: 1406.24 | BP157: 1278.6 | BQ157: 1278.6 | BR157: 3.551666667 | BS157: 0 | BT157: 72 | BV157: =المكافأة!S67 -> 0 | BW157: 0 | BX157: 51.144 | BY157: 51.14 | BZ157: 1.704666667 | CA157: 0 | CB157: 14 | CC157: 420 | CD157: 715.96 | CE157: 87.183472 | CF157: 26809.06347 | CG157: فقط ستة وعشرونَ ألفاً وثمانمائة وتسع جنيهات و 6 قروش فقطُ لا غيرَ | CH157: 26109222500061 | CI157: ديوان الادارة | CJ157: 17516.68 | CK157: 2301.12 | CN157: 300 | CO157: 1
A158: 11 | B158: ايمان كمال مصطفى وزيري | C158: 26201282500241 | D158: محكمة القضاء الادارى باسيوط | E158: 104 | F158: محافظ اسيوط - وكيل وزارة التربية والتعليم | G158: 10645لسنة32ق | H158: 2021-10-19 | I158: 2016-07-01 | J158: 2021-12-31 | K158: 26436.66292 | L158: 901.77 | M158: 775.68 | N158: 126.09 | O158: 126.09 | P158: 63.045 | Q158: 63.04 | R158: 2.101333333 | S158: 0 | T158: 72 | U158: 2160 | V158: 4538.88 | W158: 4538.88 | X158: 31.5225 | Y158: 31.52 | Z158: 1.050666667 | AA158: 0 | AB158: 72 | AC158: 2160 | AD158: 2269.44 | AE158: 2269.44 | AF158: بدل اعتماد معلم خبير ( 175 % ) | AG158: 220.6575 | AH158: 220.65 | AI158: 7.355 | AJ158: 0 | AK158: 28 | AL158: 840 | AM158: 6178.2 | AN158: 6178.2 | AO158: بدل اعتماد كبير معلمين ( 200 % ) | AP158: 252.18 | AQ158: 252.18 | AR158: 8.406 | AS158: 0 | AT158: 44 | AU158: 1320 | AV158: 11095.92 | AW158: 11095.92 | AX158: حافز اداء معلم خبير ( 25 % ) | AY158: 31.5225 | AZ158: 31.52 | BA158: 1.050666667 | BB158: 0 | BC158: 28 | BD158: 840 | BE158: 882.56 | BF158: 882.56 | BG158: حافز اداء كبير معلمين ( 25 % ) | BH158: 31.5225 | BI158: 31.52 | BJ158: 1.050666667 | BK158: 0 | BL158: 44 | BM158: 1320 | BN158: 1386.88 | BO158: 1386.88 | BP158: 1260.9 | BQ158: 1260.9 | BR158: 3.5025 | BS158: 0 | BT158: 72 | BV158: =المكافأة!S113 -> 0 | BW158: 0 | BX158: 50.436 | BY158: 50.43 | BZ158: 1.681 | CA158: 0 | CB158: 14 | CC158: 420 | CD158: 706.02 | CE158: 84.782916 | CF158: 26436.66292 | CG158: فقط ستة وعشرونَ ألفاً وأربعمائة وست وثلاثونَ جنيهاً و 66 قرش فقطُ لا غيرَ | CH158: 26201282500241 | CI158: خديجة يوسف الثانوية | CJ158: 17274.12 | CK158: 2269.44 | CN158: 600 | CO158: 2
A159: 12 | B159: رجاء محمد عيسى محمد | C159: 25904242500505 | D159: محكمة القضاء الادارى باسيوط | E159: 104 | F159: محافظ اسيوط - وكيل وزارة التربية والتعليم | G159: 23267لسنة32ق | H159: 2021-10-19 | I159: 2016-07-01 | J159: 2019-03-31 | K159: 30965.75859 | L159: 1025.47 | M159: 877.86 | N159: 147.61 | O159: 147.61 | P159: 73.805 | Q159: 73.8 | R159: 2.46 | S159: 0 | T159: 72 | U159: 2160 | V159: 5313.6 | W159: 5313.6 | X159: 36.9025 | Y159: 36.9 | Z159: 1.23 | AA159: 0 | AB159: 72 | AC159: 2160 | AD159: 2656.8 | AE159: 2656.8 | AF159: بدل اعتماد معلم خبير ( 175 % ) | AG159: 258.3175 | AH159: 258.31 | AI159: 8.610333333 | AJ159: 0 | AK159: 28 | AL159: 840 | AM159: 7232.68 | AN159: 7232.68 | AO159: بدل اعتماد كبير معلمين ( 200 % ) | AP159: 295.22 | AQ159: 295.22 | AR159: 9.840666667 | AS159: 0 | AT159: 44 | AU159: 1320 | AV159: 12989.68 | AW159: 12989.68 | AX159: حافز اداء معلم خبير ( 25 % ) | AY159: 36.9025 | AZ159: 36.9 | BA159: 1.23 | BB159: 0 | BC159: 28 | BD159: 840 | BE159: 1033.2 | BF159: 1033.2 | BG159: حافز اداء كبير معلمين ( 25 % ) | BH159: 36.9025 | BI159: 36.9 | BJ159: 1.23 | BK159: 0 | BL159: 44 | BM159: 1320 | BN159: 1623.6 | BO159: 1623.6 | BP159: 1476.1 | BQ159: 1476.1 | BR159: 4.100277778 | BS159: 0 | BT159: 72 | BV159: =المكافأة!S114 -> 0 | BW159: 0 | BX159: 59.044 | BY159: 59.04 | BZ159: 1.968 | CA159: 0 | CB159: 14 | CC159: 420 | CD159: 826.56 | CE159: 116.198592 | CF159: 30965.75859 | CG159: فقط ثلاثونَ ألفاً وتسعمائة وخمس وستونَ جنيهاً و 76 قرش فقطُ لا غيرَ | CH159: 25904242500505 | CI159: الوليدية الاعدادية الثانوية | CJ159: 20222.36 | CK159: 2656.8 | CN159: 600 | CO159: 2
A160: 13 | B160: راشد جميل وهبه منقريوس | C160: 25802212501097 | D160: محكمة القضاء الادارى باسيوط | E160: 104 | F160: محافظ اسيوط - وكيل وزارة التربية والتعليم | G160: 10878لسنة32ق | H160: 2021-10-19 | I160: 2016-07-01 | J160: 2018-01-31 | K160: 34970.76742 | L160: 1177.17 | M160: 1010.55 | N160: 166.62 | O160: 166.62 | P160: 83.31 | Q160: 83.31 | R160: 2.777 | S160: 0 | T160: 72 | U160: 2160 | V160: 5998.32 | W160: 5998.32 | X160: 41.655 | Y160: 41.65 | Z160: 1.388333333 | AA160: 0 | AB160: 72 | AC160: 2160 | AD160: 2998.8 | AE160: 2998.8 | AF160: بدل اعتماد معلم خبير ( 175 % ) | AG160: 291.585 | AH160: 291.58 | AI160: 9.719333333 | AJ160: 0 | AK160: 28 | AL160: 840 | AM160: 8164.24 | AN160: 8164.24 | AO160: بدل اعتماد كبير معلمين ( 200 % ) | AP160: 333.24 | AQ160: 333.24 | AR160: 11.108 | AS160: 0 | AT160: 44 | AU160: 1320 | AV160: 14662.56 | AW160: 14662.56 | AX160: حافز اداء معلم خبير ( 25 % ) | AY160: 41.655 | AZ160: 41.65 | BA160: 1.388333333 | BB160: 0 | BC160: 28 | BD160: 840 | BE160: 1166.2 | BF160: 1166.2 | BG160: حافز اداء كبير معلمين ( 25 % ) | BH160: 41.655 | BI160: 41.65 | BJ160: 1.388333333 | BK160: 0 | BL160: 44 | BM160: 1320 | BN160: 1832.6 | BO160: 1832.6 | BP160: 1666.2 | BQ160: 1666.2 | BR160: 4.628333333 | BS160: 0 | BT160: 72 | BV160: =المكافأة!S115 -> 0 | BW160: 0 | BX160: 66.648 | BY160: 66.64 | BZ160: 2.221333333 | CA160: 0 | CB160: 14 | CC160: 420 | CD160: 932.96 | CE160: 148.047424 | CF160: 34970.76742 | CG160: فقط أربعة وثلاثونَ ألفاً وتسعمائة وسبعونَ جنيهاً و 77 قرش فقطُ لا غيرَ | CH160: 25802212501097 | CI160: الشهيد احمد فايز | CJ160: 22826.8 | CK160: 2998.8 | CN160: 600 | CO160: 2
A161: 14 | B161: سهير رمزى وهيب مرقص | C161: 25812112500684 | D161: محكمة القضاء الادارى باسيوط | E161: 104 | F161: محافظ اسيوط - وكيل وزارة التربية والتعليم | G161: 10650لسنة32ق | H161: 2021-10-19 | I161: 2016-07-01 | J161: 2018-11-30 | K161: 34149.67757 | L161: 1139.86 | M161: 977.14 | N161: 162.72 | O161: 162.72 | P161: 81.36 | Q161: 81.36 | R161: 2.712 | S161: 0 | T161: 72 | U161: 2160 | V161: 5857.92 | W161: 5857.92 | X161: 40.68 | Y161: 40.68 | Z161: 1.356 | AA161: 0 | AB161: 72 | AC161: 2160 | AD161: 2928.96 | AE161: 2928.96 | AF161: بدل اعتماد معلم خبير ( 175 % ) | AG161: 284.76 | AH161: 284.76 | AI161: 9.492 | AJ161: 0 | AK161: 28 | AL161: 840 | AM161: 7973.28 | AN161: 7973.28 | AO161: بدل اعتماد كبير معلمين ( 200 % ) | AP161: 325.44 | AQ161: 325.44 | AR161: 10.848 | AS161: 0 | AT161: 44 | AU161: 1320 | AV161: 14319.36 | AW161: 14319.36 | AX161: حافز اداء معلم خبير ( 25 % ) | AY161: 40.68 | AZ161: 40.68 | BA161: 1.356 | BB161: 0 | BC161: 28 | BD161: 840 | BE161: 1139.04 | BF161: 1139.04 | BG161: حافز اداء كبير معلمين ( 25 % ) | BH161: 40.68 | BI161: 40.68 | BJ161: 1.356 | BK161: 0 | BL161: 44 | BM161: 1320 | BN161: 1789.92 | BO161: 1789.92 | BP161: 1627.2 | BQ161: 1627.2 | BR161: 4.52 | BS161: 0 | BT161: 72 | BV161: =المكافأة!S116 -> 0 | BW161: 0 | BX161: 65.088 | BY161: 65.08 | BZ161: 2.169333333 | CA161: 0 | CB161: 14 | CC161: 420 | CD161: 911.12 | CE161: 141.197568 | CF161: 34149.67757 | CG161: فقط أربعة وثلاثونَ ألفاً ومائة وتسع وأربعونَ جنيهاً و 68 قرش فقطُ لا غيرَ | CH161: 25812112500684 | CI161: خديجة يوسف الثانوية | CJ161: 22292.64 | CK161: 2928.96 | CN161: 600 | CO161: 2
A162: 15 | B162: ليلى كامل ايوب سعيد | C162: 26006292500161 | D162: محكمة القضاء الادارى باسيوط | E162: 104 | F162: محافظ اسيوط - وكيل وزارة التربية والتعليم | G162: 10879لسنة32ق | H162: 2021-10-19 | I162: 2016-07-01 | J162: 2020-05-31 | K162: 27323.83676 | L162: 940.02 | M162: 809.71 | N162: 130.31 | O162: 130.31 | P162: 65.155 | Q162: 65.15 | R162: 2.171666667 | S162: 0 | T162: 72 | U162: 2160 | V162: 4690.8 | W162: 4690.8 | X162: 32.5775 | Y162: 32.57 | Z162: 1.085666667 | AA162: 0 | AB162: 72 | AC162: 2160 | AD162: 2345.04 | AE162: 2345.04 | AF162: بدل اعتماد معلم خبير ( 175 % ) | AG162: 228.0425 | AH162: 228.04 | AI162: 7.601333333 | AJ162: 0 | AK162: 28 | AL162: 840 | AM162: 6385.12 | AN162: 6385.12 | AO162: بدل اعتماد كبير معلمين ( 200 % ) | AP162: 260.62 | AQ162: 260.62 | AR162: 8.687333333 | AS162: 0 | AT162: 44 | AU162: 1320 | AV162: 11467.28 | AW162: 11467.28 | AX162: حافز اداء معلم خبير ( 25 % ) | AY162: 32.5775 | AZ162: 32.57 | BA162: 1.085666667 | BB162: 0 | BC162: 28 | BD162: 840 | BE162: 911.96 | BF162: 911.96 | BG162: حافز اداء كبير معلمين ( 25 % ) | BH162: 32.5775 | BI162: 32.57 | BJ162: 1.085666667 | BK162: 0 | BL162: 44 | BM162: 1320 | BN162: 1433.08 | BO162: 1433.08 | BP162: 1303.1 | BQ162: 1303.1 | BR162: 3.619722222 | BS162: 0 | BT162: 72 | BV162: =المكافأة!S117 -> 0 | BW162: 0 | BX162: 52.124 | BY162: 52.12 | BZ162: 1.737333333 | CA162: 0 | CB162: 14 | CC162: 420 | CD162: 729.68 | CE162: 90.55676267 | CF162: 27323.83676 | CG162: فقط سبعة وعشرونَ ألفاً وثلاثمائة وثلاث وعشرونَ جنيهاً و 84 قرش فقطُ لا غيرَ | CH162: 26006292500161 | CI162: الاسلامية الثانوية | CJ162: 17852.4 | CK162: 2345.04 | CN162: 600 | CO162: 2
A163: 16 | B163: ايمان فهمى ويصا ابو السعود | C163: 26007122500147 | D163: محكمة القضاء الادارى باسيوط | E163: 104 | F163: محافظ اسيوط - وكيل وزارة التربية والتعليم | G163: 10881لسنة32ق | H163: 2021-10-19 | I163: 2016-07-01 | J163: 2020-06-30 | K163: 29125.15786 | L163: 972.99 | M163: 834.12 | N163: 138.87 | O163: 138.87 | P163: 69.435 | Q163: 69.43 | R163: 2.314333333 | S163: 0 | T163: 72 | U163: 2160 | V163: 4998.96 | W163: 4998.96 | X163: 34.7175 | Y163: 34.71 | Z163: 1.157 | AA163: 0 | AB163: 72 | AC163: 2160 | AD163: 2499.12 | AE163: 2499.12 | AF163: بدل اعتماد معلم خبير ( 175 % ) | AG163: 243.0225 | AH163: 243.02 | AI163: 8.100666667 | AJ163: 0 | AK163: 28 | AL163: 840 | AM163: 6804.56 | AN163: 6804.56 | AO163: بدل اعتماد كبير معلمين ( 200 % ) | AP163: 277.74 | AQ163: 277.74 | AR163: 9.258 | AS163: 0 | AT163: 44 | AU163: 1320 | AV163: 12220.56 | AW163: 12220.56 | AX163: حافز اداء معلم خبير ( 25 % ) | AY163: 34.7175 | AZ163: 34.71 | BA163: 1.157 | BB163: 0 | BC163: 28 | BD163: 840 | BE163: 971.88 | BF163: 971.88 | BG163: حافز اداء كبير معلمين ( 25 % ) | BH163: 34.7175 | BI163: 34.71 | BJ163: 1.157 | BK163: 0 | BL163: 44 | BM163: 1320 | BN163: 1527.24 | BO163: 1527.24 | BP163: 1388.7 | BQ163: 1388.7 | BR163: 3.8575 | BS163: 0 | BT163: 72 | BV163: =المكافأة!S118 -> 0 | BW163: 0 | BX163: 55.548 | BY163: 55.54 | BZ163: 1.851333333 | CA163: 0 | CB163: 14 | CC163: 420 | CD163: 777.56 | CE163: 102.837864 | CF163: 29125.15786 | CG163: فقط تسعة وعشرونَ ألفاً ومائة وخمس وعشرونَ جنيهاً و 16 قرش فقطُ لا غيرَ | CH163: 26007122500147 | CI163: ناصر الثانوية | CJ163: 19025.12 | CK163: 2499.12 | CN163: 600 | CO163: 2
A164: 17 | B164: عبد الحميد سيد محمد ابراهيم | C164: 26005292500572 | D164: محكمة القضاء الادارى باسيوط | E164: 104 | F164: محافظ اسيوط - وكيل وزارة التربية والتعليم | G164: 10168لسنة32ق | H164: 2021-10-19 | I164: 2016-07-01 | J164: 2020-04-30 | K164: 26238.37345 | L164: 894.66 | M164: 769.51 | N164: 125.15 | O164: 125.15 | P164: 62.575 | Q164: 62.57 | R164: 2.085666667 | S164: 0 | T164: 72 | U164: 2160 | V164: 4505.04 | W164: 4505.04 | X164: 31.2875 | Y164: 31.28 | Z164: 1.042666667 | AA164: 0 | AB164: 72 | AC164: 2160 | AD164: 2252.16 | AE164: 2252.16 | AF164: بدل اعتماد معلم خبير ( 175 % ) | AG164: 219.0125 | AH164: 219.01 | AI164: 7.300333333 | AJ164: 0 | AK164: 28 | AL164: 840 | AM164: 6132.28 | AN164: 6132.28 | AO164: بدل اعتماد كبير معلمين ( 200 % ) | AP164: 250.3 | AQ164: 250.3 | AR164: 8.343333333 | AS164: 0 | AT164: 44 | AU164: 1320 | AV164: 11013.2 | AW164: 11013.2 | AX164: حافز اداء معلم خبير ( 25 % ) | AY164: 31.2875 | AZ164: 31.28 | BA164: 1.042666667 | BB164: 0 | BC164: 28 | BD164: 840 | BE164: 875.84 | BF164: 875.84 | BG164: حافز اداء كبير معلمين ( 25 % ) | BH164: 31.2875 | BI164: 31.28 | BJ164: 1.042666667 | BK164: 0 | BL164: 44 | BM164: 1320 | BN164: 1376.32 | BO164: 1376.32 | BP164: 1251.5 | BQ164: 1251.5 | BR164: 3.476388889 | BS164: 0 | BT164: 72 | BV164: =المكافأة!S119 -> 0 | BW164: 0 | BX164: 50.06 | BY164: 50.06 | BZ164: 1.668666667 | CA164: 0 | CB164: 14 | CC164: 420 | CD164: 700.84 | CE164: 83.53345333 | CF164: 26238.37345 | CG164: فقط ستة وعشرونَ ألفاً ومائتان وثمان وثلاثونَ جنيهاً و 37 قرش فقطُ لا غيرَ | CH164: 26005292500572 | CI164: قطاع بحرى | CJ164: 17145.48 | CK164: 2252.16 | CN164: 600 | CO164: 2
A165: 18 | B165: هانى راغب بطرس ابراهيم | C165: 26110122500711 | D165: محكمة القضاء الادارى باسيوط | E165: 104 | F165: محافظ اسيوط - وكيل وزارة التربية والتعليم | G165: 9492لسنة32ق | H165: 2021-10-19 | I165: 2016-07-01 | J165: 2021-09-30 | K165: 16300.62945 | L165: 624.15 | M165: 539 | N165: 85.15 | O165: 85.15 | P165: 42.575 | Q165: 42.57 | R165: 1.419 | S165: 0 | T165: 72 | U165: 2160 | V165: 3065.04 | W165: 3065.04 | X165: 21.2875 | Y165: 21.28 | Z165: 0.7093333333 | AA165: 0 | AB165: 72 | AC165: 2160 | AD165: 1532.16 | AE165: 1532.16 | AF165: بدل اعتماد معلم أول أ ( 150 % ) | AG165: 127.725 | AH165: 127.72 | AI165: 4.257333333 | AJ165: 0 | AK165: 28 | AL165: 840 | AM165: 3576.16 | AN165: 3576.16 | AO165: بدل اعتماد معلم خبير ( 175 % ) | AP165: 149.0125 | AQ165: 149.01 | AR165: 4.967 | AS165: 0 | AT165: 44 | AU165: 1320 | AV165: 6556.44 | AW165: 6556.44 | AX165: حافز اداء معلم أول أ ( 25 % ) | AY165: 21.2875 | AZ165: 21.28 | BA165: 0.7093333333 | BB165: 0 | BC165: 28 | BD165: 840 | BE165: 595.84 | BF165: 595.84 | BG165: حافز اداء معلم خبير ( 25 % ) | BH165: 21.2875 | BI165: 21.28 | BJ165: 0.7093333333 | BK165: 0 | BL165: 44 | BM165: 1320 | BN165: 936.32 | BO165: 936.32 | BP165: 851.5 | BQ165: 851.5 | BR165: 2.365277778 | BS165: 0 | BT165: 72 | BV165: =المكافأة!S120 -> 0 | BW165: 0 | BX165: 34.06 | BY165: 34.06 | BZ165: 1.135333333 | CA165: 0 | CB165: 14 | CC165: 420 | CD165: 476.84 | CE165: 38.66945333 | CF165: 16300.62945 | CG165: فقط ستة عشر ألفاً وثلاثمائة جنيه و 63 قرش فقطُ لا غيرَ | CH165: 26110122500711 | CI165: الشهيد جاد الرب ببهيج | CJ165: 10132.6 | CK165: 1532.16 | CN165: 600 | CO165: 2
A166: 19 | B166: ابراهيم احمد سيد احمدالشريف | C166: 26101222500132 | D166: محكمة القضاء الادارى باسيوط | E166: 104 | F166: محافظ اسيوط - وكيل وزارة التربية والتعليم | G166: 22992لسنة32ق | H166: 2021-10-19 | I166: 2016-07-01 | J166: 2020-12-31 | K166: 25489.63896 | L166: 870.39 | M166: 748.8 | N166: 121.59 | O166: 121.59 | P166: 60.795 | Q166: 60.79 | R166: 2.026333333 | S166: 0 | T166: 72 | U166: 2160 | V166: 4376.88 | W166: 4376.88 | X166: 30.3975 | Y166: 30.39 | Z166: 1.013 | AA166: 0 | AB166: 72 | AC166: 2160 | AD166: 2188.08 | AE166: 2188.08 | AF166: بدل اعتماد معلم خبير ( 175 % ) | AG166: 212.7825 | AH166: 212.78 | AI166: 7.092666667 | AJ166: 0 | AK166: 28 | AL166: 840 | AM166: 5957.84 | AN166: 5957.84 | AO166: بدل اعتماد كبير معلمين ( 200 % ) | AP166: 243.18 | AQ166: 243.18 | AR166: 8.106 | AS166: 0 | AT166: 44 | AU166: 1320 | AV166: 10699.92 | AW166: 10699.92 | AX166: حافز اداء معلم خبير ( 25 % ) | AY166: 30.3975 | AZ166: 30.39 | BA166: 1.013 | BB166: 0 | BC166: 28 | BD166: 840 | BE166: 850.92 | BF166: 850.92 | BG166: حافز اداء كبير معلمين ( 25 % ) | BH166: 30.3975 | BI166: 30.39 | BJ166: 1.013 | BK166: 0 | BL166: 44 | BM166: 1320 | BN166: 1337.16 | BO166: 1337.16 | BP166: 1215.9 | BQ166: 1215.9 | BR166: 3.3775 | BS166: 0 | BT166: 72 | BV166: =المكافأة!S121 -> 0 | BW166: 0 | BX166: 48.636 | BY166: 48.63 | BZ166: 1.621 | CA166: 0 | CB166: 14 | CC166: 420 | CD166: 680.82 | CE166: 78.838956 | CF166: 25489.63896 | CG166: فقط خمسة وعشرونَ ألفاً وأربعمائة وتسع وثمانونَ جنيهاً و 64 قرش فقطُ لا غيرَ | CH166: 26101222500132 | CI166: ناصر الثانوية | CJ166: 16657.76 | CK166: 2188.08 | CN166: 600 | CO166: 2
A167: 20 | B167: نور الدين احمد احمد ضيف | C167: 25806102402251 | D167: محكمة القضاء الادارى باسيوط | E167: 104 | F167: وزير التربية والتعليم ـ محافظ اسيوط - وكيل وزارة التربية والتعليم | G167: 9634لسنة32ق | H167: 2021-10-19 | I167: 2016-07-01 | J167: 2018-05-31 | K167: 27390.03424 | L167: 962.08 | M167: 824.25 | N167: 137.83 | O167: 137.83 | P167: 68.915 | Q167: 68.91 | R167: 2.297 | S167: 0 | T167: 72 | U167: 2160 | V167: 4961.52 | W167: 4961.52 | X167: 34.4575 | Y167: 34.45 | Z167: 1.148333333 | AA167: 0 | AB167: 72 | AC167: 2160 | AD167: 2480.4 | AE167: 2480.4 | AF167: بدل اعتماد معلم خبير ( 175 % ) | AG167: 241.2025 | AH167: 241.2 | AI167: 8.04 | AJ167: 0 | AK167: 28 | AL167: 840 | AM167: 6753.6 | AN167: 6753.6 | AO167: بدل اعتماد معلم خبير ( 175 % ) | AP167: 241.2025 | AQ167: 241.2 | AR167: 8.04 | AS167: 0 | AT167: 44 | AU167: 1320 | AV167: 10612.8 | AW167: 10612.8 | AX167: حافز اداء معلم خبير ( 25 % ) | AY167: 34.4575 | AZ167: 34.45 | BA167: 1.148333333 | BB167: 0 | BC167: 28 | BD167: 840 | BE167: 964.6 | BF167: 964.6 | BG167: حافز اداء معلم خبير ( 25 % ) | BH167: 34.4575 | BI167: 34.45 | BJ167: 1.148333333 | BK167: 0 | BL167: 44 | BM167: 1320 | BN167: 1515.8 | BO167: 1515.8 | BP167: 1378.3 | BQ167: 1378.3 | BR167: 3.828611111 | BS167: 0 | BT167: 72 | BV167: =المكافأة!S122 -> 0 | BW167: 0 | BX167: 55.132 | BY167: 55.13 | BZ167: 1.837666667 | CA167: 0 | CB167: 14 | CC167: 420 | CD167: 771.82 | CE167: 101.3142387 | CF167: 27390.03424 | CG167: فقط سبعة وعشرونَ ألفاً وثلاثمائة وتسعونَ جنيهاً و 3 قروش فقطُ لا غيرَ | CH167: 25806102402251 | CI167: طه حسين الابتدائية | CJ167: 17366.4 | CK167: 2480.4 | CN167: 600 | CO167: 2
A168: 21 | B168: ذكرى فهمى سمعان مقار | C168: 25711202501018 | D168: محكمة القضاء الادارى باسيوط | E168: 104 | F168: محافظ اسيوط - وكيل وزارة التربية والتعليم ـ وزير التربية والتعليم | G168: 25904لسنة32ق | H168: 2012-12-21 | I168: 2016-07-06 | J168: 2017-10-31 | K168: 42071.01067 | L168: 1214.47 | M168: 1051.95 | N168: 162.52 | O168: 162.52 | P168: 81.26 | Q168: 81.26 | R168: 2.708666667 | S168: 0 | T168: 72 | U168: 2160 | V168: 5850.72 | W168: 5850.72 | X168: 40.63 | Y168: 40.63 | Z168: 1.354333333 | AA168: 0 | AB168: 72 | AC168: 2160 | AD168: 2925.36 | AE168: 2925.36 | AF168: بدل اعتماد معلم خبير ( 175 % ) | AG168: 284.41 | AH168: 284.41 | AI168: 9.480333333 | AJ168: 0 | AK168: 28 | AL168: 840 | AM168: 7963.48 | AN168: 7963.48 | AO168: بدل اعتماد معلم خبير ( 175 % ) | AP168: 284.41 | AQ168: 284.41 | AR168: 9.480333333 | AS168: 0 | AT168: 44 | AU168: 1320 | AV168: 12514.04 | AW168: 12514.04 | AX168: حافز اداء معلم خبير ( 25 % ) | AY168: 40.63 | AZ168: 40.63 | BA168: 1.354333333 | BB168: 0 | BC168: 28 | BD168: 840 | BE168: 1137.64 | BF168: 1137.64 | BG168: حافز اداء معلم خبير ( 25 % ) | BH168: 40.63 | BI168: 40.63 | BJ168: 1.354333333 | BK168: 0 | BL168: 44 | BM168: 1320 | BN168: 1787.72 | BO168: 1787.72 | BP168: 1625.2 | BQ168: 1625.2 | BR168: 4.514444444 | BS168: 0 | BT168: 72 | BV168: =المكافأة!S168 -> 9751.2 | BW168: 9751.2 | BX168: 65.008 | BY168: 65 | BZ168: 2.166666667 | CA168: 0 | CB168: 14 | CC168: 420 | CD168: 910 | CE168: 140.8506667 | CF168: 42071.01067 | CG168: فقط اثنانِ وأربعونَ ألفاً وإحدَى وسبعونَ جنيهاً و 1 قرش فقطُ لا غيرَ | CH168: 25711202501018 | CI168: تمام رمضان بموشا | CJ168: 20477.52 | CK168: 2925.36 | CN168: 700 | CO168: 3
A169: 22 | B169: قمر شكرى صليب مقار | C169: 26001111400444 | D169: محكمة القضاء الادارى باسيوط | E169: 104 | F169: محافظ اسيوط - وكيل وزارة التربية والتعليم ـ وزير التربية والتعليم | G169: 25905لسنة32ق | H169: 2021-12-21 | I169: 2016-07-06 | J169: 2019-12-31 | K169: 38615.13025 | L169: 995.7 | M169: 852.55 | N169: 143.15 | O169: 143.15 | P169: 71.575 | Q169: 71.57 | R169: 2.385666667 | S169: 0 | T169: 72 | U169: 2160 | V169: 5153.04 | W169: 5153.04 | X169: 35.7875 | Y169: 35.78 | Z169: 1.192666667 | AA169: 0 | AB169: 72 | AC169: 2160 | AD169: 2576.16 | AE169: 2576.16 | AF169: بدل اعتماد معلم خبير ( 175 % ) | AG169: 250.5125 | AH169: 250.51 | AI169: 8.350333333 | AJ169: 0 | AK169: 28 | AL169: 840 | AM169: 7014.28 | AN169: 7014.28 | AO169: بدل اعتماد كبير معلمين ( 200 % ) | AP169: 286.3 | AQ169: 286.3 | AR169: 9.543333333 | AS169: 0 | AT169: 44 | AU169: 1320 | AV169: 12597.2 | AW169: 12597.2 | AX169: حافز اداء معلم خبير ( 25 % ) | AY169: 35.7875 | AZ169: 35.78 | BA169: 1.192666667 | BB169: 0 | BC169: 28 | BD169: 840 | BE169: 1001.84 | BF169: 1001.84 | BG169: حافز اداء كبير معلمين ( 25 % ) | BH169: 35.7875 | BI169: 35.78 | BJ169: 1.192666667 | BK169: 0 | BL169: 44 | BM169: 1320 | BN169: 1574.32 | BO169: 1574.32 | BP169: 1431.5 | BQ169: 1431.5 | BR169: 3.976388889 | BS169: 0 | BT169: 72 | BV169: =المكافأة!S169 -> 8589 | BW169: 8589 | BX169: 57.26 | BY169: 57.26 | BZ169: 1.908666667 | CA169: 0 | CB169: 14 | CC169: 420 | CD169: 801.64 | CE169: 109.2902533 | CF169: 38615.13025 | CG169: فقط ثمانية وثلاثونَ ألفاً وستمائة وخمس عشرة جنيهاً و 13 قرش فقطُ لا غيرَ | CH169: 26001111400444 | CI169: تمام رمضان بموشا | CJ169: 19611.48 | CK169: 2576.16 | CN169: 700 | CO169: 3
A170: 23 | B170: ساور محمد احمد محمد عبد الله | C170: 26105072501122 | D170: محكمة القضاء الادارى باسيوط | E170: 104 | F170: محافظ اسيوط - وكيل وزارة التربية والتعليم | G170: 16455لسنة32ق | H170: 2021-12-21 | I170: 2016-07-01 | J170: 2021-04-30 | K170: 33200.11238 | L170: 880.97 | M170: 757.85 | N170: 123.12 | O170: 123.12 | P170: 61.56 | Q170: 61.56 | R170: 2.052 | S170: 0 | T170: 72 | U170: 2160 | V170: 4432.32 | W170: 4432.32 | X170: 30.78 | Y170: 30.78 | Z170: 1.026 | AA170: 0 | AB170: 72 | AC170: 2160 | AD170: 2216.16 | AE170: 2216.16 | AF170: بدل اعتماد معلم خبير ( 175 % ) | AG170: 215.46 | AH170: 215.46 | AI170: 7.182 | AJ170: 0 | AK170: 28 | AL170: 840 | AM170: 6032.88 | AN170: 6032.88 | AO170: بدل اعتماد كبير معلمين ( 200 % ) | AP170: 246.24 | AQ170: 246.24 | AR170: 8.208 | AS170: 0 | AT170: 44 | AU170: 1320 | AV170: 10834.56 | AW170: 10834.56 | AX170: حافز اداء معلم خبير ( 25 % ) | AY170: 30.78 | AZ170: 30.78 | BA170: 1.026 | BB170: 0 | BC170: 28 | BD170: 840 | BE170: 861.84 | BF170: 861.84 | BG170: حافز اداء كبير معلمين ( 25 % ) | BH170: 30.78 | BI170: 30.78 | BJ170: 1.026 | BK170: 0 | BL170: 44 | BM170: 1320 | BN170: 1354.32 | BO170: 1354.32 | BP170: 1231.2 | BQ170: 1231.2 | BR170: 3.42 | BS170: 0 | BT170: 72 | BV170: =المكافأة!S170 -> 7387.2 | BW170: 7387.2 | BX170: 49.248 | BY170: 49.24 | BZ170: 1.641333333 | CA170: 0 | CB170: 14 | CC170: 420 | CD170: 689.36 | CE170: 80.832384 | CF170: 33200.11238 | CG170: فقط ثلاثة وثلاثونَ ألفاً ومائتا جنيه و 11 قرش فقطُ لا غيرَ | CH170: 26105072501122 | CI170: اللواء عبد الحليم موسى | CJ170: 16867.44 | CK170: 2216.16 | CN170: 700 | CO170: 3
A171: 24 | B171: عبد المنعم محمد خليل الجمال | C171: 26110192500611 | D171: محكمة القضاء الادارى باسيوط | E171: 90 | F171: محافظ اسيوط - وكيل وزارة التربية والتعليم | G171: 10890لسنة32ق | H171: 2021-09-21 | I171: 2016-07-01 | J171: 2021-09-30 | K171: 34434.62838 | L171: 914.87 | M171: 787.18 | N171: 127.69 | O171: 127.69 | P171: 63.845 | Q171: 63.84 | R171: 2.128 | S171: 0 | T171: 72 | U171: 2160 | V171: 4596.48 | W171: 4596.48 | X171: 31.9225 | Y171: 31.92 | Z171: 1.064 | AA171: 0 | AB171: 72 | AC171: 2160 | AD171: 2298.24 | AE171: 2298.24 | AF171: بدل اعتماد معلم خبير ( 175 % ) | AG171: 223.4575 | AH171: 223.45 | AI171: 7.448333333 | AJ171: 0 | AK171: 28 | AL171: 840 | AM171: 6256.6 | AN171: 6256.6 | AO171: بدل اعتماد كبير معلمين ( 200 % ) | AP171: 255.38 | AQ171: 255.38 | AR171: 8.512666667 | AS171: 0 | AT171: 44 | AU171: 1320 | AV171: 11236.72 | AW171: 11236.72 | AX171: حافز اداء معلم خبير ( 25 % ) | AY171: 31.9225 | AZ171: 31.92 | BA171: 1.064 | BB171: 0 | BC171: 28 | BD171: 840 | BE171: 893.76 | BF171: 893.76 | BG171: حافز اداء كبير معلمين ( 25 % ) | BH171: 31.9225 | BI171: 31.92 | BJ171: 1.064 | BK171: 0 | BL171: 44 | BM171: 1320 | BN171: 1404.48 | BO171: 1404.48 | BP171: 1276.9 | BQ171: 1276.9 | BR171: 3.546944444 | BS171: 0 | BT171: 72 | BV171: =المكافأة!S171 -> 7661.4 | BW171: 7661.4 | BX171: 51.076 | BY171: 51.07 | BZ171: 1.702333333 | CA171: 0 | CB171: 14 | CC171: 420 | CD171: 714.98 | CE171: 86.94837733 | CF171: 34434.62838 | CG171: فقط أربعة وثلاثونَ ألفاً وأربعمائة وأربع وثلاثونَ جنيهاً و 63 قرش فقطُ لا غيرَ | CH171: 26110192500611 | CI171: التجارة الثانوية | CJ171: 17493.32 | CK171: 2298.24 | CN171: 700 | CO171: 3
A172: 25 | B172: ممدوح مسعود عبد الله مسعود | C172: 26110292500058 | D172: محكمة القضاء الادارى باسيوط | E172: 90 | F172: محافظ اسيوط - وكيل وزارة التربية والتعليم | G172: 10887لسنة32ق | H172: 2021-09-21 | I172: 2016-07-01 | J172: 2021-09-30 | K172: 32644.48279 | L172: 866.21 | M172: 745.14 | N172: 121.07 | O172: 121.07 | P172: 60.535 | Q172: 60.53 | R172: 2.017666667 | S172: 0 | T172: 72 | U172: 2160 | V172: 4358.16 | W172: 4358.16 | X172: 30.2675 | Y172: 30.26 | Z172: 1.008666667 | AA172: 0 | AB172: 72 | AC172: 2160 | AD172: 2178.72 | AE172: 2178.72 | AF172: بدل اعتماد معلم خبير ( 175 % ) | AG172: 211.8725 | AH172: 211.87 | AI172: 7.062333333 | AJ172: 0 | AK172: 28 | AL172: 840 | AM172: 5932.36 | AN172: 5932.36 | AO172: بدل اعتماد كبير معلمين ( 200 % ) | AP172: 242.14 | AQ172: 242.14 | AR172: 8.071333333 | AS172: 0 | AT172: 44 | AU172: 1320 | AV172: 10654.16 | AW172: 10654.16 | AX172: حافز اداء معلم خبير ( 25 % ) | AY172: 30.2675 | AZ172: 30.26 | BA172: 1.008666667 | BB172: 0 | BC172: 28 | BD172: 840 | BE172: 847.28 | BF172: 847.28 | BG172: حافز اداء كبير معلمين ( 25 % ) | BH172: 30.2675 | BI172: 30.26 | BJ172: 1.008666667 | BK172: 0 | BL172: 44 | BM172: 1320 | BN172: 1331.44 | BO172: 1331.44 | BP172: 1210.7 | BQ172: 1210.7 | BR172: 3.363055556 | BS172: 0 | BT172: 72 | BV172: =المكافأة!S172 -> 7264.2 | BW172: 7264.2 | BX172: 48.428 | BY172: 48.42 | BZ172: 1.614 | CA172: 0 | CB172: 14 | CC172: 420 | CD172: 677.88 | CE172: 78.162792 | CF172: 32644.48279 | CG172: فقط اثنانِ وثلاثونَ ألفاً وستمائة وأربع وأربعونَ جنيهاً و 48 قرش فقطُ لا غيرَ | CH172: 26110292500058 | CI172: التجارة الثانوية | CJ172: 16586.52 | CK172: 2178.72 | CN172: 700 | CO172: 3
A173: 26 | B173: مارسيل قلدس تادرس قلدس | C173: 25901202500066 | D173: محكمة القضاء الادارى باسيوط | E173: 104 | F173: محافظ اسيوط - مدير مديرية التربية والتعليم | G173: 25008لسنة32ق | H173: 2021-10-19 | I173: 2016-07-01 | J173: 2018-12-31 | K173: 23774.87926 | L173: 666.82 | M173: 574.84 | N173: =L173-M173 -> 91.98 | O173: =TRUNC(N173,2) -> 91.98 | P173: 45.99 | Q173: =TRUNC(P173,2) -> 45.99 | R173: =Q173/30 -> 1.533 | S173: 0 | T173: 72 | U173: =SUM((T173*30),S173) -> 2160 | V173: =U173*R173 -> 3311.28 | W173: =TRUNC(V173,2) -> 3311.28 | X173: 22.995 | Y173: =TRUNC(X173,2) -> 22.99 | Z173: =Y173/30 -> 0.7663333333 | AA173: 0 | AB173: 72 | AC173: =SUM((AB173*30),AA173) -> 2160 | AD173: =AC173*Z173 -> 1655.28 | AE173: =TRUNC(AD173,2) -> 1655.28 | AF173: بدل اعتماد معلم خبير ( 175 % ) | AG173: 160.965 | AH173: =TRUNC(AG173,2) -> 160.96 | AI173: =AH173/30 -> 5.365333333 | AJ173: 0 | AK173: 28 | AL173: =SUM((AK173*30),AJ173) -> 840 | AM173: =AL173*AI173 -> 4506.88 | AN173: =TRUNC(AM173,2) -> 4506.88 | AO173: بدل اعتماد معلم خبير ( 175 % ) | AP173: =IF(AO173="بدل اعتماد معلم ( 100 % )",O173*100/100,IF(AO173="بدل اعتماد معلم أول ( 125 % )",O173*125/100,IF(AO173="بدل اعتماد معلم أول أ ( 150 % )",O173*150/100,IF(AO173="بدل اعتماد معلم خبير ( 175 % )",O173*175/100,IF(AO173="بدل اعتماد كبير معلمين ( 200 % )",O173*200/100))))) -> 160.965 | AQ173: =TRUNC(AP173,2) -> 160.96 | AR173: =AQ173/30 -> 5.365333333 | AS173: 0 | AT173: 44 | AU173: =SUM((AT173*30),AS173) -> 1320 | AV173: =AU173*AR173 -> 7082.24 | AW173: =TRUNC(AV173,2) -> 7082.24 | AX173: حافز اداء معلم خبير ( 25 % ) | AY173: =IF(AX173="حافز اداء معلم ( 75 % )",O173*75/100,IF(AX173="حافز اداء معلم أول ( 50 % )",O173*50/100,IF(AX173="حافز اداء معلم أول أ ( 25 % )",O173*25/100,IF(AX173="حافز اداء معلم خبير ( 25 % )",O173*25/100,IF(AX173="حافز اداء كبير معلمين ( 25 % )",O173*25/100))))) -> 22.995 | AZ173: =TRUNC(AY173,2) -> 22.99 | BA173: =AZ173/30 -> 0.7663333333 | BB173: 0 | BC173: 28 | BD173: =SUM((BC173*30),BB173) -> 840 | BE173: =BD173*BA173 -> 643.72 | BF173: =TRUNC(BE173,2) -> 643.72 | BG173: حافز اداء معلم خبير ( 25 % ) | BH173: =IF(BG173="حافز اداء معلم ( 75 % )",O173*75/100,IF(BG173="حافز اداء معلم أول ( 50 % )",O173*50/100,IF(BG173="حافز اداء معلم أول أ ( 25 % )",O173*25/100,IF(BG173="حافز اداء معلم خبير ( 25 % )",O173*25/100,IF(BG173="حافز اداء كبير معلمين ( 25 % )",O173*25/100))))) -> 22.995 | BI173: =TRUNC(BH173,2) -> 22.99 | BJ173: =BI173/30 -> 0.7663333333 | BK173: 0 | BL173: 44 | BM173: =SUM((BL173*30),BK173) -> 1320 | BN173: =BM173*BJ173 -> 1011.56 | BO173: =TRUNC(BN173,2) -> 1011.56 | BP173: 919.8 | BQ173: =TRUNC(BP173,2) -> 919.8 | BR173: =BQ173/360 -> 2.555 | BS173: 0 | BT173: 72 | BV173: =المكافأة!S173 -> 5518.8 | BW173: =TRUNC(BV173,2) -> 5518.8 | BX173: 36.792 | BY173: =TRUNC(BX173,2) -> 36.79 | BZ173: =BY173/30 -> 1.226333333 | CA173: 0 | CB173: 14 | CC173: =SUM((CB173*30),CA173) -> 420 | CD173: =CC173*BZ173 -> 515.06 | CE173: 45.119256 | CF173: =CE173+BW173+BO173+BF173+AW173+AN173+AE173+W173 -> 23774.87926 | CG173: =" فقط "&ArbNum2Text(CF173, 2,3,"جنيه","جنيهات",1,"قرش","قروش",1) -> فقط ثلاثة وعشرونَ ألفاً وسبعمائة وأربع وسبعونَ جنيهاً و 88 قرش فقطُ لا غيرَ | CH173: 25901202500066 | CI173: التجارة الثانوية | CJ173: 11589.12 | CK173: 1655.28 | CN173: 700 | CO173: 3
A174: 27 | B174: جميله صديق عبد الفتاح كرم | C174: 26211242501101 | D174: محكمة القضاء الادارى باسيوط | E174: 104 | F174: محافظ اسيوط - وكيل وزارة التربية والتعليم | G174: 12934لسنة32ق | H174: 2021-10-19 | I174: 2016-07-01 | J174: 2019-02-28 | K174: 30457.35956 | L174: 805.88 | M174: 688.11 | N174: 117.77 | O174: 117.77 | P174: 58.885 | Q174: 58.88 | R174: 1.962666667 | S174: 0 | T174: 72 | U174: 2160 | V174: 4239.36 | W174: 4239.36 | X174: 29.4425 | Y174: 29.44 | Z174: 0.9813333333 | AA174: 0 | AB174: 72 | AC174: 2160 | AD174: 2119.68 | AE174: 2119.68 | AF174: بدل اعتماد معلم خبير ( 175 % ) | AG174: 206.0975 | AH174: 206.09 | AI174: 6.869666667 | AJ174: 0 | AK174: 28 | AL174: 840 | AM174: 5770.52 | AN174: 5770.52 | AO174: بدل اعتماد معلم خبير ( 175 % ) | AP174: 206.0975 | AQ174: 206.09 | AR174: 6.869666667 | AS174: 0 | AT174: 44 | AU174: 1320 | AV174: 9067.96 | AW174: 9067.96 | AX174: حافز اداء معلم خبير ( 25 % ) | AY174: 29.4425 | AZ174: 29.44 | BA174: 0.9813333333 | BB174: 0 | BC174: 28 | BD174: 840 | BE174: 824.32 | BF174: 824.32 | BG174: حافز اداء معلم خبير ( 25 % ) | BH174: 29.4425 | BI174: 29.44 | BJ174: 0.9813333333 | BK174: 0 | BL174: 44 | BM174: 1320 | BN174: 1295.36 | BO174: 1295.36 | BP174: 1177.7 | BQ174: 1177.7 | BR174: 3.271388889 | BS174: 0 | BT174: 72 | BV174: =المكافأة!S174 -> 7066.2 | BW174: 7066.2 | BX174: 47.108 | BY174: 47.1 | BZ174: 1.57 | CA174: 0 | CB174: 14 | CC174: 420 | CD174: 659.4 | CE174: 73.95956 | CF174: 30457.35956 | CG174: فقط ثلاثونَ ألفاً وأربعمائة وسبع وخمسونَ جنيهاً و 36 قرش فقطُ لا غيرَ | CH174: 26211242501101 | CI174: مجمعة موشا | CJ174: 14838.48 | CK174: 2119.68 | CN174: 700 | CO174: 3
A175: 28 | B175: ابراهيم عمر عبد الرحيم ابراهيم | C175: 26204292500494 | D175: محكمة القضاء الادارى باسيوط | E175: 90 | F175: محافظ اسيوط - وكيل وزارة التربية والتعليم | G175: 11217لسنة32ق | H175: 2021-06-22 | I175: 2016-07-01 | J175: 2022-03-31 | K175: 24876.89173 | L175: 722.38 | M175: 623.47 | N175: 98.91 | O175: 98.91 | P175: 49.455 | Q175: 49.45 | R175: 1.648333333 | S175: 0 | T175: 72 | U175: 2160 | V175: 3560.4 | W175: 3560.4 | X175: 24.7275 | Y175: 24.72 | Z175: 0.824 | AA175: 0 | AB175: 72 | AC175: 2160 | AD175: 1779.84 | AE175: 1779.84 | AF175: بدل اعتماد معلم أول أ ( 150 % ) | AG175: 148.365 | AH175: 148.36 | AI175: 4.945333333 | AJ175: 0 | AK175: 28 | AL175: 840 | AM175: 4154.08 | AN175: 4154.08 | AO175: بدل اعتماد معلم خبير ( 175 % ) | AP175: 173.0925 | AQ175: 173.09 | AR175: 5.769666667 | AS175: 0 | AT175: 44 | AU175: 1320 | AV175: 7615.96 | AW175: 7615.96 | AX175: حافز اداء معلم أول أ ( 25 % ) | AY175: 24.7275 | AZ175: 24.72 | BA175: 0.824 | BB175: 0 | BC175: 28 | BD175: 840 | BE175: 692.16 | BF175: 692.16 | BG175: حافز اداء معلم خبير ( 25 % ) | BH175: 24.7275 | BI175: 24.72 | BJ175: 0.824 | BK175: 0 | BL175: 44 | BM175: 1320 | BN175: 1087.68 | BO175: 1087.68 | BP175: 989.1 | BQ175: 989.1 | BR175: 2.7475 | BS175: 0 | BT175: 72 | BV175: =المكافأة!S175 -> 5934.6 | BW175: 5934.6 | BX175: 39.564 | BY175: 39.56 | BZ175: 1.318666667 | CA175: 0 | CB175: 14 | CC175: 420 | CD175: 553.84 | CE175: 52.171728 | CF175: 24876.89173 | CG175: فقط أربعة وعشرونَ ألفاً وثمانمائة وست وسبعونَ جنيهاً و 89 قرش فقطُ لا غيرَ | CH175: 26204292500494 | CI175: عثمان بن عفان بموشا | CJ175: 11770.04 | CK175: 1779.84 | CN175: 700 | CO175: 3
A176: 29 | B176: سهير محمد محمد سيد | C176: 26104012500988 | D176: محكمة القضاء الادارى باسيوط | E176: 104 | F176: محافظ اسيوط - مدير مديرية التربية والتعليم | G176: 16348لسنة32ق | H176: 2021-11-23 | I176: 2016-07-01 | J176: 2021-03-31 | K176: 26485.71683 | L176: 754.99 | M176: 649.7 | N176: 105.29 | O176: 105.29 | P176: 52.645 | Q176: 52.64 | R176: 1.754666667 | S176: 0 | T176: 72 | U176: 2160 | V176: 3790.08 | W176: 3790.08 | X176: 26.3225 | Y176: 26.32 | Z176: 0.8773333333 | AA176: 0 | AB176: 72 | AC176: 2160 | AD176: 1895.04 | AE176: 1895.04 | AF176: بدل اعتماد معلم أول أ ( 150 % ) | AG176: 157.935 | AH176: 157.93 | AI176: 5.264333333 | AJ176: 0 | AK176: 28 | AL176: 840 | AM176: 4422.04 | AN176: 4422.04 | AO176: بدل اعتماد معلم خبير ( 175 % ) | AP176: 184.2575 | AQ176: 184.25 | AR176: 6.141666667 | AS176: 0 | AT176: 44 | AU176: 1320 | AV176: 8107 | AW176: 8107 | AX176: حافز اداء معلم أول أ ( 25 % ) | AY176: 26.3225 | AZ176: 26.32 | BA176: 0.8773333333 | BB176: 0 | BC176: 28 | BD176: 840 | BE176: 736.96 | BF176: 736.96 | BG176: حافز اداء معلم خبير ( 25 % ) | BH176: 26.3225 | BI176: 26.32 | BJ176: 0.8773333333 | BK176: 0 | BL176: 44 | BM176: 1320 | BN176: 1158.08 | BO176: 1158.08 | BP176: 1052.9 | BQ176: 1052.9 | BR176: 2.924722222 | BS176: 0 | BT176: 72 | BV176: =المكافأة!S176 -> 6317.4 | BW176: 6317.4 | BX176: 42.116 | BY176: 42.11 | BZ176: 1.403666667 | CA176: 0 | CB176: 14 | CC176: 420 | CD176: 589.54 | CE176: 59.11682533 | CF176: 26485.71683 | CG176: فقط ستة وعشرونَ ألفاً وأربعمائة وخمس وثمانونَ جنيهاً و 72 قرش فقطُ لا غيرَ | CH176: 26104012500988 | CI176: عمر بن الخطاب بموشا | CJ176: 12529.04 | CK176: 1895.04 | CN176: 700 | CO176: 3
A177: 30 | B177: هانى منصور سند حنا | C177: 26012122500175 | D177: محكمة القضاء الادارى باسيوط | E177: 90 | F177: محافظ اسيوط - وكيل وزارة التربية والتعليم | G177: 7894لسنة32ق | H177: 2021-09-21 | I177: 2016-07-01 | J177: 2020-11-30 | K177: 42335.45786 | L177: 1070.14 | M177: 917.2 | N177: 152.94 | O177: 152.94 | P177: 76.47 | Q177: 76.47 | R177: 2.549 | S177: 0 | T177: 72 | U177: 2160 | V177: 5505.84 | W177: 5505.84 | X177: 38.235 | Y177: 38.23 | Z177: 1.274333333 | AA177: 0 | AB177: 72 | AC177: 2160 | AD177: 2752.56 | AE177: 2752.56 | AF177: بدل اعتماد كبير معلمين ( 200 % ) | AG177: 305.88 | AH177: 305.88 | AI177: 10.196 | AJ177: 0 | AK177: 28 | AL177: 840 | AM177: 8564.64 | AN177: 8564.64 | AO177: بدل اعتماد كبير معلمين ( 200 % ) | AP177: 305.88 | AQ177: 305.88 | AR177: 10.196 | AS177: 0 | AT177: 44 | AU177: 1320 | AV177: 13458.72 | AW177: 13458.72 | AX177: حافز اداء كبير معلمين ( 25 % ) | AY177: 38.235 | AZ177: 38.23 | BA177: 1.274333333 | BB177: 0 | BC177: 28 | BD177: 840 | BE177: 1070.44 | BF177: 1070.44 | BG177: حافز اداء كبير معلمين ( 25 % ) | BH177: 38.235 | BI177: 38.23 | BJ177: 1.274333333 | BK177: 0 | BL177: 44 | BM177: 1320 | BN177: 1682.12 | BO177: 1682.12 | BP177: 1529.4 | BQ177: 1529.4 | BR177: 4.248333333 | BS177: 0 | BT177: 72 | BV177: =المكافأة!S177 -> 9176.4 | BW177: 9176.4 | BX177: 61.176 | BY177: 61.17 | BZ177: 2.039 | CA177: 0 | CB177: 14 | CC177: 420 | CD177: 856.38 | CE177: 124.737864 | CF177: 42335.45786 | CG177: فقط اثنانِ وأربعونَ ألفاً وثلاثمائة وخمس وثلاثونَ جنيهاً و 46 قرش فقطُ لا غيرَ | CH177: 26012122500175 | CI177: ديوان الادارة | CJ177: 22023.36 | CK177: 2752.56 | CN177: 700 | CO177: 3
A178: 31 | D178: محكمة القضاء الادارى باسيوط | F178: وزير التربية والتعليم ـ محافظ اسيوط - وكيل وزارة التربية والتعليم | K178: =CE178+BW178+BO178+BF178+AW178+AN178+AE178+W178 -> 0 | N178: =L178-M178 -> 0 | O178: =TRUNC(N178,2) -> 0 | P178: =O178*50/100 -> 0 | Q178: =TRUNC(P178,2) -> 0 | R178: =Q178/30 -> 0 | S178: 0 | U178: =SUM((T178*30),S178) -> 0 | V178: =U178*R178 -> 0 | W178: =TRUNC(V178,2) -> 0 | X178: =O178*25/100 -> 0 | Y178: =TRUNC(X178,2) -> 0 | Z178: =Y178/30 -> 0 | AA178: 0 | AC178: =SUM((AB178*30),AA178) -> 0 | AD178: =AC178*Z178 -> 0 | AE178: =TRUNC(AD178,2) -> 0 | AF178: بدل اعتماد معلم أول أ ( 150 % ) | AG178: =IF(AF178="بدل اعتماد معلم ( 100 % )",O178*100/100,IF(AF178="بدل اعتماد معلم أول ( 125 % )",O178*125/100,IF(AF178="بدل اعتماد معلم أول أ ( 150 % )",O178*150/100,IF(AF178="بدل اعتماد معلم خبير ( 175 % )",O178*175/100,IF(AF178="بدل اعتماد كبير معلمين ( 200 % )",O178*200/100))))) -> 0 | AH178: =TRUNC(AG178,2) -> 0 | AI178: =AH178/30 -> 0 | AJ178: 0 | AL178: =SUM((AK178*30),AJ178) -> 0 | AM178: =AL178*AI178 -> 0 | AN178: =TRUNC(AM178,2) -> 0 | AO178: بدل اعتماد معلم أول أ ( 150 % ) | AP178: =IF(AO178="بدل اعتماد معلم ( 100 % )",O178*100/100,IF(AO178="بدل اعتماد معلم أول ( 125 % )",O178*125/100,IF(AO178="بدل اعتماد معلم أول أ ( 150 % )",O178*150/100,IF(AO178="بدل اعتماد معلم خبير ( 175 % )",O178*175/100,IF(AO178="بدل اعتماد كبير معلمين ( 200 % )",O178*200/100))))) -> 0 | AQ178: =TRUNC(AP178,2) -> 0 | AR178: =AQ178/30 -> 0 | AS178: 0 | AU178: =SUM((AT178*30),AS178) -> 0 | AV178: =AU178*AR178 -> 0 | AW178: =TRUNC(AV178,2) -> 0 | AX178: حافز اداء معلم ( 75 % ) | AY178: =IF(AX178="حافز اداء معلم ( 75 % )",O178*75/100,IF(AX178="حافز اداء معلم أول ( 50 % )",O178*50/100,IF(AX178="حافز اداء معلم أول أ ( 25 % )",O178*25/100,IF(AX178="حافز اداء معلم خبير ( 25 % )",O178*25/100,IF(AX178="حافز اداء كبير معلمين ( 25 % )",O178*25/100))))) -> 0 | AZ178: =TRUNC(AY178,2) -> 0 | BA178: =AZ178/30 -> 0 | BB178: 0 | BD178: =SUM((BC178*30),BB178) -> 0 | BE178: =BD178*BA178 -> 0 | BF178: =TRUNC(BE178,2) -> 0 | BG178: حافز اداء معلم ( 75 % ) | BH178: =IF(BG178="حافز اداء معلم ( 75 % )",O178*75/100,IF(BG178="حافز اداء معلم أول ( 50 % )",O178*50/100,IF(BG178="حافز اداء معلم أول أ ( 25 % )",O178*25/100,IF(BG178="حافز اداء معلم خبير ( 25 % )",O178*25/100,IF(BG178="حافز اداء كبير معلمين ( 25 % )",O178*25/100))))) -> 0 | BI178: =TRUNC(BH178,2) -> 0 | BJ178: =BI178/30 -> 0 | BK178: 0 | BM178: =SUM((BL178*30),BK178) -> 0 | BN178: =BM178*BJ178 -> 0 | BO178: =TRUNC(BN178,2) -> 0 | BP178: =O178*10 -> 0 | BQ178: =TRUNC(BP178,2) -> 0 | BV178: =المكافأة!S178 -> 0 | BW178: =TRUNC(BV178,2) -> 0 | BX178: =O178*40/100 -> 0 | BY178: =TRUNC(BX178,2) -> 0 | BZ178: =BY178/30 -> 0 | CA178: 0 | CC178: =SUM((CB178*30),CA178) -> 0 | CD178: =CC178*BZ178 -> 0 | CE178: =TRUNC(CD178,2) -> 0 | CF178: =CE178+BW178+BO178+BF178+AW178+AN178+AE178+W178 -> 0 | CG178: =" فقط "&ArbNum2Text(CF178, 2,3,"جنيه","جنيهات",1,"قرش","قروش",1) -> فقط لا شيءَ جنيه فقطُ لا غيرَ | CH178: =C178 -> 0 | CJ178: =AW178+AN178 -> 0 | CK178: =BO178+BF178 -> 0
A179: 32 | D179: محكمة القضاء الادارى باسيوط | F179: وزير التربية والتعليم ـ محافظ اسيوط - وكيل وزارة التربية والتعليم | K179: 0 | N179: 0 | O179: 0 | P179: 0 | Q179: 0 | R179: 0 | S179: 0 | U179: 0 | V179: 0 | W179: 0 | X179: 0 | Y179: 0 | Z179: 0 | AA179: 0 | AC179: 0 | AD179: 0 | AE179: 0 | AF179: بدل اعتماد معلم أول أ ( 150 % ) | AG179: 0 | AH179: 0 | AI179: 0 | AJ179: 0 | AL179: 0 | AM179: 0 | AN179: 0 | AO179: بدل اعتماد معلم أول أ ( 150 % ) | AP179: 0 | AQ179: 0 | AR179: 0 | AS179: 0 | AU179: 0 | AV179: 0 | AW179: 0 | AX179: حافز اداء معلم ( 75 % ) | AY179: 0 | AZ179: 0 | BA179: 0 | BB179: 0 | BD179: 0 | BE179: 0 | BF179: 0 | BG179: حافز اداء معلم ( 75 % ) | BH179: 0 | BI179: 0 | BJ179: 0 | BK179: 0 | BM179: 0 | BN179: 0 | BO179: 0 | BP179: 0 | BQ179: 0 | BV179: =المكافأة!S179 -> 0 | BW179: 0 | BX179: 0 | BY179: 0 | BZ179: 0 | CA179: 0 | CC179: 0 | CD179: 0 | CE179: 0 | CF179: 0 | CG179: فقط لا شيءَ جنيه فقطُ لا غيرَ | CH179: 0 | CJ179: 0 | CK179: 0
A180: 33 | D180: محكمة القضاء الادارى باسيوط | F180: وزير التربية والتعليم ـ محافظ اسيوط - وكيل وزارة التربية والتعليم | K180: 0 | N180: 0 | O180: 0 | P180: 0 | Q180: 0 | R180: 0 | S180: 0 | U180: 0 | V180: 0 | W180: 0 | X180: 0 | Y180: 0 | Z180: 0 | AA180: 0 | AC180: 0 | AD180: 0 | AE180: 0 | AF180: بدل اعتماد معلم أول أ ( 150 % ) | AG180: 0 | AH180: 0 | AI180: 0 | AJ180: 0 | AL180: 0 | AM180: 0 | AN180: 0 | AO180: بدل اعتماد معلم أول أ ( 150 % ) | AP180: 0 | AQ180: 0 | AR180: 0 | AS180: 0 | AU180: 0 | AV180: 0 | AW180: 0 | AX180: حافز اداء معلم ( 75 % ) | AY180: 0 | AZ180: 0 | BA180: 0 | BB180: 0 | BD180: 0 | BE180: 0 | BF180: 0 | BG180: حافز اداء معلم ( 75 % ) | BH180: 0 | BI180: 0 | BJ180: 0 | BK180: 0 | BM180: 0 | BN180: 0 | BO180: 0 | BP180: 0 | BQ180: 0 | BV180: =المكافأة!S180 -> 0 | BW180: 0 | BX180: 0 | BY180: 0 | BZ180: 0 | CA180: 0 | CC180: 0 | CD180: 0 | CE180: 0 | CF180: 0 | CG180: فقط لا شيءَ جنيه فقطُ لا غيرَ | CH180: 0 | CJ180: 0 | CK180: 0
A181: 34 | D181: محكمة القضاء الادارى باسيوط | F181: وزير التربية والتعليم ـ محافظ اسيوط - وكيل وزارة التربية والتعليم | K181: 0 | N181: 0 | O181: 0 | P181: 0 | Q181: 0 | R181: 0 | S181: 0 | U181: 0 | V181: 0 | W181: 0 | X181: 0 | Y181: 0 | Z181: 0 | AA181: 0 | AC181: 0 | AD181: 0 | AE181: 0 | AF181: بدل اعتماد معلم أول أ ( 150 % ) | AG181: 0 | AH181: 0 | AI181: 0 | AJ181: 0 | AL181: 0 | AM181: 0 | AN181: 0 | AO181: بدل اعتماد معلم أول أ ( 150 % ) | AP181: 0 | AQ181: 0 | AR181: 0 | AS181: 0 | AU181: 0 | AV181: 0 | AW181: 0 | AX181: حافز اداء معلم ( 75 % ) | AY181: 0 | AZ181: 0 | BA181: 0 | BB181: 0 | BD181: 0 | BE181: 0 | BF181: 0 | BG181: حافز اداء معلم ( 75 % ) | BH181: 0 | BI181: 0 | BJ181: 0 | BK181: 0 | BM181: 0 | BN181: 0 | BO181: 0 | BP181: 0 | BQ181: 0 | BV181: =المكافأة!S181 -> 0 | BW181: 0 | BX181: 0 | BY181: 0 | BZ181: 0 | CA181: 0 | CC181: 0 | CD181: 0 | CE181: 0 | CF181: 0 | CG181: فقط لا شيءَ جنيه فقطُ لا غيرَ | CH181: 0 | CJ181: 0 | CK181: 0
A182: 35 | D182: محكمة القضاء الادارى باسيوط | F182: وزير التربية والتعليم ـ محافظ اسيوط - وكيل وزارة التربية والتعليم | K182: 0 | N182: 0 | O182: 0 | P182: 0 | Q182: 0 | R182: 0 | S182: 0 | U182: 0 | V182: 0 | W182: 0 | X182: 0 | Y182: 0 | Z182: 0 | AA182: 0 | AC182: 0 | AD182: 0 | AE182: 0 | AF182: بدل اعتماد معلم أول أ ( 150 % ) | AG182: 0 | AH182: 0 | AI182: 0 | AJ182: 0 | AL182: 0 | AM182: 0 | AN182: 0 | AO182: بدل اعتماد معلم أول أ ( 150 % ) | AP182: 0 | AQ182: 0 | AR182: 0 | AS182: 0 | AU182: 0 | AV182: 0 | AW182: 0 | AX182: حافز اداء معلم ( 75 % ) | AY182: 0 | AZ182: 0 | BA182: 0 | BB182: 0 | BD182: 0 | BE182: 0 | BF182: 0 | BG182: حافز اداء معلم ( 75 % ) | BH182: 0 | BI182: 0 | BJ182: 0 | BK182: 0 | BM182: 0 | BN182: 0 | BO182: 0 | BP182: 0 | BQ182: 0 | BV182: =المكافأة!S182 -> 0 | BW182: 0 | BX182: 0 | BY182: 0 | BZ182: 0 | CA182: 0 | CC182: 0 | CD182: 0 | CE182: 0 | CF182: 0 | CG182: فقط لا شيءَ جنيه فقطُ لا غيرَ | CH182: 0 | CJ182: 0 | CK182: 0
A183: 36 | D183: محكمة القضاء الادارى باسيوط | F183: وزير التربية والتعليم ـ محافظ اسيوط - وكيل وزارة التربية والتعليم | K183: 0 | N183: 0 | O183: 0 | P183: 0 | Q183: 0 | R183: 0 | S183: 0 | U183: 0 | V183: 0 | W183: 0 | X183: 0 | Y183: 0 | Z183: 0 | AA183: 0 | AC183: 0 | AD183: 0 | AE183: 0 | AF183: بدل اعتماد معلم أول أ ( 150 % ) | AG183: 0 | AH183: 0 | AI183: 0 | AJ183: 0 | AL183: 0 | AM183: 0 | AN183: 0 | AO183: بدل اعتماد معلم أول أ ( 150 % ) | AP183: 0 | AQ183: 0 | AR183: 0 | AS183: 0 | AU183: 0 | AV183: 0 | AW183: 0 | AX183: حافز اداء معلم ( 75 % ) | AY183: 0 | AZ183: 0 | BA183: 0 | BB183: 0 | BD183: 0 | BE183: 0 | BF183: 0 | BG183: حافز اداء معلم ( 75 % ) | BH183: 0 | BI183: 0 | BJ183: 0 | BK183: 0 | BM183: 0 | BN183: 0 | BO183: 0 | BP183: 0 | BQ183: 0 | BV183: =المكافأة!S183 -> 0 | BW183: 0 | BX183: 0 | BY183: 0 | BZ183: 0 | CA183: 0 | CC183: 0 | CD183: 0 | CE183: 0 | CF183: 0 | CG183: فقط لا شيءَ جنيه فقطُ لا غيرَ | CH183: 0 | CJ183: 0 | CK183: 0
A184: 37 | D184: محكمة القضاء الادارى باسيوط | F184: وزير التربية والتعليم ـ محافظ اسيوط - وكيل وزارة التربية والتعليم | K184: 0 | N184: 0 | O184: 0 | P184: 0 | Q184: 0 | R184: 0 | S184: 0 | U184: 0 | V184: 0 | W184: 0 | X184: 0 | Y184: 0 | Z184: 0 | AA184: 0 | AC184: 0 | AD184: 0 | AE184: 0 | AF184: بدل اعتماد معلم أول أ ( 150 % ) | AG184: 0 | AH184: 0 | AI184: 0 | AJ184: 0 | AL184: 0 | AM184: 0 | AN184: 0 | AO184: بدل اعتماد معلم أول أ ( 150 % ) | AP184: 0 | AQ184: 0 | AR184: 0 | AS184: 0 | AU184: 0 | AV184: 0 | AW184: 0 | AX184: حافز اداء معلم ( 75 % ) | AY184: 0 | AZ184: 0 | BA184: 0 | BB184: 0 | BD184: 0 | BE184: 0 | BF184: 0 | BG184: حافز اداء معلم ( 75 % ) | BH184: 0 | BI184: 0 | BJ184: 0 | BK184: 0 | BM184: 0 | BN184: 0 | BO184: 0 | BP184: 0 | BQ184: 0 | BV184: =المكافأة!S184 -> 0 | BW184: 0 | BX184: 0 | BY184: 0 | BZ184: 0 | CA184: 0 | CC184: 0 | CD184: 0 | CE184: 0 | CF184: 0 | CG184: فقط لا شيءَ جنيه فقطُ لا غيرَ | CH184: 0 | CJ184: 0 | CK184: 0
A185: 38 | D185: محكمة القضاء الادارى باسيوط | F185: وزير التربية والتعليم ـ محافظ اسيوط - وكيل وزارة التربية والتعليم | K185: 0 | N185: 0 | O185: 0 | P185: 0 | Q185: 0 | R185: 0 | S185: 0 | U185: 0 | V185: 0 | W185: 0 | X185: 0 | Y185: 0 | Z185: 0 | AA185: 0 | AC185: 0 | AD185: 0 | AE185: 0 | AF185: بدل اعتماد معلم أول أ ( 150 % ) | AG185: 0 | AH185: 0 | AI185: 0 | AJ185: 0 | AL185: 0 | AM185: 0 | AN185: 0 | AO185: بدل اعتماد معلم أول أ ( 150 % ) | AP185: 0 | AQ185: 0 | AR185: 0 | AS185: 0 | AU185: 0 | AV185: 0 | AW185: 0 | AX185: حافز اداء معلم ( 75 % ) | AY185: 0 | AZ185: 0 | BA185: 0 | BB185: 0 | BD185: 0 | BE185: 0 | BF185: 0 | BG185: حافز اداء معلم ( 75 % ) | BH185: 0 | BI185: 0 | BJ185: 0 | BK185: 0 | BM185: 0 | BN185: 0 | BO185: 0 | BP185: 0 | BQ185: 0 | BV185: =المكافأة!S185 -> 0 | BW185: 0 | BX185: 0 | BY185: 0 | BZ185: 0 | CA185: 0 | CC185: 0 | CD185: 0 | CE185: 0 | CF185: 0 | CG185: فقط لا شيءَ جنيه فقطُ لا غيرَ | CH185: 0 | CJ185: 0 | CK185: 0
A186: 39 | D186: محكمة القضاء الادارى باسيوط | F186: وزير التربية والتعليم ـ محافظ اسيوط - وكيل وزارة التربية والتعليم | K186: 0 | N186: 0 | O186: 0 | P186: 0 | Q186: 0 | R186: 0 | S186: 0 | U186: 0 | V186: 0 | W186: 0 | X186: 0 | Y186: 0 | Z186: 0 | AA186: 0 | AC186: 0 | AD186: 0 | AE186: 0 | AF186: بدل اعتماد معلم أول أ ( 150 % ) | AG186: 0 | AH186: 0 | AI186: 0 | AJ186: 0 | AL186: 0 | AM186: 0 | AN186: 0 | AO186: بدل اعتماد معلم أول أ ( 150 % ) | AP186: 0 | AQ186: 0 | AR186: 0 | AS186: 0 | AU186: 0 | AV186: 0 | AW186: 0 | AX186: حافز اداء معلم ( 75 % ) | AY186: 0 | AZ186: 0 | BA186: 0 | BB186: 0 | BD186: 0 | BE186: 0 | BF186: 0 | BG186: حافز اداء معلم ( 75 % ) | BH186: 0 | BI186: 0 | BJ186: 0 | BK186: 0 | BM186: 0 | BN186: 0 | BO186: 0 | BP186: 0 | BQ186: 0 | BV186: =المكافأة!S186 -> 0 | BW186: 0 | BX186: 0 | BY186: 0 | BZ186: 0 | CA186: 0 | CC186: 0 | CD186: 0 | CE186: 0 | CF186: 0 | CG186: فقط لا شيءَ جنيه فقطُ لا غيرَ | CH186: 0 | CJ186: 0 | CK186: 0
A187: 40 | D187: محكمة القضاء الادارى باسيوط | F187: وزير التربية والتعليم ـ محافظ اسيوط - وكيل وزارة التربية والتعليم | K187: 0 | N187: 0 | O187: 0 | P187: 0 | Q187: 0 | R187: 0 | S187: 0 | U187: 0 | V187: 0 | W187: 0 | X187: 0 | Y187: 0 | Z187: 0 | AA187: 0 | AC187: 0 | AD187: 0 | AE187: 0 | AF187: بدل اعتماد معلم أول أ ( 150 % ) | AG187: 0 | AH187: 0 | AI187: 0 | AJ187: 0 | AL187: 0 | AM187: 0 | AN187: 0 | AO187: بدل اعتماد معلم أول أ ( 150 % ) | AP187: 0 | AQ187: 0 | AR187: 0 | AS187: 0 | AU187: 0 | AV187: 0 | AW187: 0 | AX187: حافز اداء معلم ( 75 % ) | AY187: 0 | AZ187: 0 | BA187: 0 | BB187: 0 | BD187: 0 | BE187: 0 | BF187: 0 | BG187: حافز اداء معلم ( 75 % ) | BH187: 0 | BI187: 0 | BJ187: 0 | BK187: 0 | BM187: 0 | BN187: 0 | BO187: 0 | BP187: 0 | BQ187: 0 | BV187: =المكافأة!S187 -> 0 | BW187: 0 | BX187: 0 | BY187: 0 | BZ187: 0 | CA187: 0 | CC187: 0 | CD187: 0 | CE187: 0 | CF187: 0 | CG187: فقط لا شيءَ جنيه فقطُ لا غيرَ | CH187: 0 | CJ187: 0 | CK187: 0
A188: 41 | D188: محكمة القضاء الادارى باسيوط | F188: وزير التربية والتعليم ـ محافظ اسيوط - وكيل وزارة التربية والتعليم | K188: 0 | N188: 0 | O188: 0 | P188: 0 | Q188: 0 | R188: 0 | S188: 0 | U188: 0 | V188: 0 | W188: 0 | X188: 0 | Y188: 0 | Z188: 0 | AA188: 0 | AC188: 0 | AD188: 0 | AE188: 0 | AF188: بدل اعتماد معلم أول أ ( 150 % ) | AG188: 0 | AH188: 0 | AI188: 0 | AJ188: 0 | AL188: 0 | AM188: 0 | AN188: 0 | AO188: بدل اعتماد معلم أول أ ( 150 % ) | AP188: 0 | AQ188: 0 | AR188: 0 | AS188: 0 | AU188: 0 | AV188: 0 | AW188: 0 | AX188: حافز اداء معلم ( 75 % ) | AY188: 0 | AZ188: 0 | BA188: 0 | BB188: 0 | BD188: 0 | BE188: 0 | BF188: 0 | BG188: حافز اداء معلم ( 75 % ) | BH188: 0 | BI188: 0 | BJ188: 0 | BK188: 0 | BM188: 0 | BN188: 0 | BO188: 0 | BP188: 0 | BQ188: 0 | BV188: =المكافأة!S188 -> 0 | BW188: 0 | BX188: 0 | BY188: 0 | BZ188: 0 | CA188: 0 | CC188: 0 | CD188: 0 | CE188: 0 | CF188: 0 | CG188: فقط لا شيءَ جنيه فقطُ لا غيرَ | CH188: 0 | CJ188: 0 | CK188: 0
A189: 42 | D189: محكمة القضاء الادارى باسيوط | F189: وزير التربية والتعليم ـ محافظ اسيوط - وكيل وزارة التربية والتعليم | K189: 0 | N189: 0 | O189: 0 | P189: 0 | Q189: 0 | R189: 0 | S189: 0 | U189: 0 | V189: 0 | W189: 0 | X189: 0 | Y189: 0 | Z189: 0 | AA189: 0 | AC189: 0 | AD189: 0 | AE189: 0 | AF189: بدل اعتماد معلم أول أ ( 150 % ) | AG189: 0 | AH189: 0 | AI189: 0 | AJ189: 0 | AL189: 0 | AM189: 0 | AN189: 0 | AO189: بدل اعتماد معلم أول أ ( 150 % ) | AP189: 0 | AQ189: 0 | AR189: 0 | AS189: 0 | AU189: 0 | AV189: 0 | AW189: 0 | AX189: حافز اداء معلم ( 75 % ) | AY189: 0 | AZ189: 0 | BA189: 0 | BB189: 0 | BD189: 0 | BE189: 0 | BF189: 0 | BG189: حافز اداء معلم ( 75 % ) | BH189: 0 | BI189: 0 | BJ189: 0 | BK189: 0 | BM189: 0 | BN189: 0 | BO189: 0 | BP189: 0 | BQ189: 0 | BV189: =المكافأة!S189 -> 0 | BW189: 0 | BX189: 0 | BY189: 0 | BZ189: 0 | CA189: 0 | CC189: 0 | CD189: 0 | CE189: 0 | CF189: 0 | CG189: فقط لا شيءَ جنيه فقطُ لا غيرَ | CH189: 0 | CJ189: 0 | CK189: 0
A190: 43 | D190: محكمة القضاء الادارى باسيوط | F190: وزير التربية والتعليم ـ محافظ اسيوط - وكيل وزارة التربية والتعليم | K190: 0 | N190: 0 | O190: 0 | P190: 0 | Q190: 0 | R190: 0 | S190: 0 | U190: 0 | V190: 0 | W190: 0 | X190: 0 | Y190: 0 | Z190: 0 | AA190: 0 | AC190: 0 | AD190: 0 | AE190: 0 | AF190: بدل اعتماد معلم أول أ ( 150 % ) | AG190: 0 | AH190: 0 | AI190: 0 | AJ190: 0 | AL190: 0 | AM190: 0 | AN190: 0 | AO190: بدل اعتماد معلم أول أ ( 150 % ) | AP190: 0 | AQ190: 0 | AR190: 0 | AS190: 0 | AU190: 0 | AV190: 0 | AW190: 0 | AX190: حافز اداء معلم ( 75 % ) | AY190: 0 | AZ190: 0 | BA190: 0 | BB190: 0 | BD190: 0 | BE190: 0 | BF190: 0 | BG190: حافز اداء معلم ( 75 % ) | BH190: 0 | BI190: 0 | BJ190: 0 | BK190: 0 | BM190: 0 | BN190: 0 | BO190: 0 | BP190: 0 | BQ190: 0 | BV190: =المكافأة!S190 -> 0 | BW190: 0 | BX190: 0 | BY190: 0 | BZ190: 0 | CA190: 0 | CC190: 0 | CD190: 0 | CE190: 0 | CF190: 0 | CG190: فقط لا شيءَ جنيه فقطُ لا غيرَ | CH190: 0 | CJ190: 0 | CK190: 0
A191: 44 | D191: محكمة القضاء الادارى باسيوط | F191: وزير التربية والتعليم ـ محافظ اسيوط - وكيل وزارة التربية والتعليم | K191: 0 | N191: 0 | O191: 0 | P191: 0 | Q191: 0 | R191: 0 | S191: 0 | U191: 0 | V191: 0 | W191: 0 | X191: 0 | Y191: 0 | Z191: 0 | AA191: 0 | AC191: 0 | AD191: 0 | AE191: 0 | AF191: بدل اعتماد معلم أول أ ( 150 % ) | AG191: 0 | AH191: 0 | AI191: 0 | AJ191: 0 | AL191: 0 | AM191: 0 | AN191: 0 | AO191: بدل اعتماد معلم أول أ ( 150 % ) | AP191: 0 | AQ191: 0 | AR191: 0 | AS191: 0 | AU191: 0 | AV191: 0 | AW191: 0 | AX191: حافز اداء معلم ( 75 % ) | AY191: 0 | AZ191: 0 | BA191: 0 | BB191: 0 | BD191: 0 | BE191: 0 | BF191: 0 | BG191: حافز اداء معلم ( 75 % ) | BH191: 0 | BI191: 0 | BJ191: 0 | BK191: 0 | BM191: 0 | BN191: 0 | BO191: 0 | BP191: 0 | BQ191: 0 | BV191: =المكافأة!S191 -> 0 | BW191: 0 | BX191: 0 | BY191: 0 | BZ191: 0 | CA191: 0 | CC191: 0 | CD191: 0 | CE191: 0 | CF191: 0 | CG191: فقط لا شيءَ جنيه فقطُ لا غيرَ | CH191: 0 | CJ191: 0 | CK191: 0
A192: 45 | D192: محكمة القضاء الادارى باسيوط | F192: وزير التربية والتعليم ـ محافظ اسيوط - وكيل وزارة التربية والتعليم | K192: 0 | N192: 0 | O192: 0 | P192: 0 | Q192: 0 | R192: 0 | S192: 0 | U192: 0 | V192: 0 | W192: 0 | X192: 0 | Y192: 0 | Z192: 0 | AA192: 0 | AC192: 0 | AD192: 0 | AE192: 0 | AF192: بدل اعتماد معلم أول أ ( 150 % ) | AG192: 0 | AH192: 0 | AI192: 0 | AJ192: 0 | AL192: 0 | AM192: 0 | AN192: 0 | AO192: بدل اعتماد معلم أول أ ( 150 % ) | AP192: 0 | AQ192: 0 | AR192: 0 | AS192: 0 | AU192: 0 | AV192: 0 | AW192: 0 | AX192: حافز اداء معلم ( 75 % ) | AY192: 0 | AZ192: 0 | BA192: 0 | BB192: 0 | BD192: 0 | BE192: 0 | BF192: 0 | BG192: حافز اداء معلم ( 75 % ) | BH192: 0 | BI192: 0 | BJ192: 0 | BK192: 0 | BM192: 0 | BN192: 0 | BO192: 0 | BP192: 0 | BQ192: 0 | BV192: =المكافأة!S192 -> 0 | BW192: 0 | BX192: 0 | BY192: 0 | BZ192: 0 | CA192: 0 | CC192: 0 | CD192: 0 | CE192: 0 | CF192: 0 | CG192: فقط لا شيءَ جنيه فقطُ لا غيرَ | CH192: 0 | CJ192: 0 | CK192: 0

Sheet ورقة2 (hidden)
A1: بدل اعتماد معلم ( 100 % ) | B1: حافز اداء معلم ( 75 % )
A2: بدل اعتماد معلم أول ( 125 % ) | B2: حافز اداء معلم أول ( 50 % )
A3: بدل اعتماد معلم أول أ ( 150 % ) | B3: حافز اداء معلم أول أ ( 25 % )
A4: بدل اعتماد معلم خبير ( 175 % ) | B4: حافز اداء معلم خبير ( 25 % )
A5: بدل اعتماد كبير معلمين ( 200 % ) | B5: حافز اداء كبير معلمين ( 25 % )

Sheet للطباعة فردى
B1: محافظة اسيوط | T1: جماعي
B2: مديرية التربية والتعليم | T2: 25801052502451
B3: ادارة اسيوط التعليمية | T3: 25801052502451
B4: قسم الماهيات
B5: السيد الاستاذ / مدير مديرية التنظيم والادارة بأسيوط ( ادارة التدريب والتنظيم )
C6: تحية طيبة وبعد
B7: وردت الينا الدعوى رقم | C7: 302لسنة32ق | D7: والمقامة من السيد /
B8: بمدرسة / | E8: رقم قومى /
B9: ضد /
B10: بشان صرف الحوافز والمكافات ومقابل الجهود غير العادية وجميع المزايا النقدية والعينية المقررة له
B11: وفقا لاجره المستحق فى 30 / 6 / 2016 مع ما يترتب على ذلك من اثار وفروق مالية
B12: ومرفق طيه صورة ضوئية من الدعوى حيث انه تم عمل اللازم نحو حساب المستحقات لسيادتكم كالتالى
B13: وذلك عن المدة من : | D13: حتى :
B14: أساسى | C14: أساسى | D14: الفرق | G14: ملاحظات
B15: 2016-06-30 | C15: 2015-06-30
B18: البند | D18: قيمة | E18: عدد الشهور المستحقة | G18: مبلغ المدة | H18: ملاحظات
D19: الشهر | E19: يوم | F19: شهر | G19: المستحقة
B20: بدل معلم ( 50 % )
B21: حافز ( 25 % )
B26: مكافاة الامتحانات ( 200 يوم * 5 % )
B27: جهود غير عادية
B28: الاجمالى
B29: وبذلك يستحق السيد المذكور مبلغ
B30: ونرجو الموافقة على الترخيص بصرف المبلغ المذكور أعلاه للمدعى على اساسي 30 / 6 / 2016
B31: معاش - استقالة - وفاة | E31: ترقية فى
B32: المرفقات :
B33: عدد (2) صورة من الحكم معتمدة ومختومة ومزيلة بالصيغة التنفيذية
B34: عدد (2) صورة طبق الاصل من هيئة قضايا الدولة معتمدة ومختومة
B35: عدد (2) بيان تكاليف معتمدة ومختومة
B36: عدد (2) صورة الرقم القومى معتمدة ومختومة وسارية
B37: وتفضلوا سيادتكم بقبول وافر التحية و الاحترام
B38: المختص | C38: رئيس قسم الماهيات | D38: مدير ادارة الموارد البشرية | F38: المدير المالى والادارى | H38: ختم شعار الجمهورية

Sheet للطباعة جماعى
B1: محافظة اسيوط
B2: مديرية التربية والتعليم
B3: ادارة اسيوط التعليمية | D3: مذكرة للعرض على / السيد اللواء الوزير / محافظ اسيوط
B4: قسم الماهيات
B6: الموضوع : تنفيذ الاحكام القضائية الصادرة لللمعلمين بديوان ادارة اسيوط التعليمية ومدارسها باحقيتهم فى صرف الحوافز ومكافاة الامتحانات والاعمال الاضافية وجميع المزايا النقدية والعينية المقررة
B7: على اساس المرتب فى 30/6/2016 مع ما يترتب على ذلك من اثار من بند بدل المعلم 4 / 45 وبند حافز الاداء 3 / 23 وبند حافز الاثابة 3 / 3 وبند المكافاة 3 / 14 وبند الجهود الغير عادية
B8: العرض : صدر الكتاب الدورى رقم (1) لسنة 2020 من الجهاز المركزى للتنظيم والادارة بشان الاجراءات والمستندات اللازمة لموافاة الجهاز بها بتنفيذ الاحكام القضائية ضد الجهاز الادارى للدولة حيث نص بند (1)
B9: من وعلى ارفاق مذكرة معتمدة من السلطة المختصة متضمنه التكاليف اللازمة لتنفيذ الحكم والبند والنوع المطلوب للتنفيذ منه وحيث وردت الاحكام الاتية باجمالى مبلغ | M9: لعدد (45 )
A10: البند المطلوب تعزيزة : بند بدل المعلم 45 / 4 وبند بدل الاعتماد 46 / 4 وبند حافز الاداء 3 / 21 وبند حافز الاثابة 3 / 3 وبند المكافاة 14 / 3 وبند الجهود غير العادية للمعلمين بادارة اسيوط التعليمية ومدارسها الصادرة لهم احكام قضائية وبياناتهم كالاتى
A11: م | B11: الاسم رباعى | C11: الرقم القومى | D11: المحكمة | E11: الدائرة | F11: اسم المدعى عليه | G11: رقم الدعوى | H11: تاريخ جلسة | I11: بند 4/45 | J11: بند 4/46 | K11: بند 21/3 | L11: بند 3 / 3 | M11: بند 14 / 3 | N11: جهود | O11: اجمالى المستحق
E12: التابعة | H12: الحكم | I12: بدل معلم | J12: بدل اعتماد | K12: حافز اداء | L12: حافز اثابة | M12: مكافاة امتحانات | N12: غير عادية
A13: ='بيانات اساسية'!A13 -> 1 | B13: ='بيانات اساسية'!B13 -> مصطفى كامل حمدان شعبان | C13: ='بيانات اساسية'!C13 -> 25801052502451 | D13: ='بيانات اساسية'!D13 -> محكمة القضاء الادارى باسيوط | E13: ='بيانات اساسية'!E13 -> 104 | F13: ='بيانات اساسية'!F13 -> وزير التربية والتعليم ـ محافظ اسيوط - وكيل وزارة التربية والتعليم | G13: ='بيانات اساسية'!G13 -> 9633لسنة32ق | H13: ='بيانات اساسية'!H13 -> 2021-10-19 | I13: ='بيانات اساسية'!W13 -> 1240.56 | J13: ='بيانات اساسية'!CJ13 -> 4341.96 | K13: ='بيانات اساسية'!CK13 -> 620.28 | L13: ='بيانات اساسية'!AE13 -> 620.28 | M13: ='بيانات اساسية'!BW13 -> 2297.33 | N13: ='بيانات اساسية'!CE13 -> 771.82 | O13: ='بيانات اساسية'!K13 -> 9892.23
A14: ='بيانات اساسية'!A14 -> 2 | B14: ='بيانات اساسية'!B14 -> سناء على عبد المجيد محمد | C14: ='بيانات اساسية'!C14 -> 25807282501185 | D14: ='بيانات اساسية'!D14 -> محكمة القضاء الادارى باسيوط | E14: ='بيانات اساسية'!E14 -> 104 | F14: ='بيانات اساسية'!F14 -> محافظ اسيوط - وكيل وزارة التربية والتعليم | G14: ='بيانات اساسية'!G14 -> 23264لسنة32ق | H14: ='بيانات اساسية'!H14 -> 2021-10-19 | I14: ='بيانات اساسية'!W14 -> 1548.72 | J14: ='بيانات اساسية'!CJ14 -> 5420.4 | K14: ='بيانات اساسية'!CK14 -> 774.24 | L14: ='بيانات اساسية'!AE14 -> 774.24 | M14: ='بيانات اساسية'!BW14 -> 2581.2 | N14: ='بيانات اساسية'!CE14 -> 722.68 | O14: ='بيانات اساسية'!K14 -> 11821.48
A15: ='بيانات اساسية'!A15 -> 3 | B15: ='بيانات اساسية'!B15 -> كريمة سالم سيد فرغلي | C15: ='بيانات اساسية'!C15 -> 26102152500144 | D15: ='بيانات اساسية'!D15 -> محكمة القضاء الادارى باسيوط | E15: ='بيانات اساسية'!E15 -> 104 | F15: ='بيانات اساسية'!F15 -> محافظ اسيوط - وكيل وزارة التربية والتعليم | G15: ='بيانات اساسية'!G15 -> 22995لسنة32ق | H15: ='بيانات اساسية'!H15 -> 2021-10-19 | I15: ='بيانات اساسية'!W15 -> 3440.25 | J15: ='بيانات اساسية'!CJ15 -> 12886.26 | K15: ='بيانات اساسية'!CK15 -> 1719.85 | L15: ='بيانات اساسية'!AE15 -> 1719.85 | M15: ='بيانات اساسية'!BW15 -> 6046.98 | N15: ='بيانات اساسية'!CE15 -> 700.56 | O15: ='بيانات اساسية'!K15 -> 26513.75
A16: ='بيانات اساسية'!A16 -> 4 | B16: ='بيانات اساسية'!B16 -> ليلى عبد المنعم محمود طاهر | C16: ='بيانات اساسية'!C16 -> 26102112500087 | D16: ='بيانات اساسية'!D16 -> محكمة القضاء الادارى باسيوط | E16: ='بيانات اساسية'!E16 -> 104 | F16: ='بيانات اساسية'!F16 -> محافظ اسيوط - وكيل وزارة التربية والتعليم | G16: ='بيانات اساسية'!G16 -> 23328لسنة32ق | H16: ='بيانات اساسية'!H16 -> 2021-10-19 | I16: ='بيانات اساسية'!W16 -> 3873.1 | J16: ='بيانات اساسية'!CJ16 -> 14507.34 | K16: ='بيانات اساسية'!CK16 -> 1936.55 | L16: ='بيانات اساسية'!AE16 -> 1936.55 | M16: ='بيانات اساسية'!BW16 -> 6807.75 | N16: ='بيانات اساسية'!CE16 -> 788.76 | O16: ='بيانات اساسية'!K16 -> 29850.05
A17: ='بيانات اساسية'!A17 -> 5 | B17: ='بيانات اساسية'!B17 -> عز الدين محمد احمد محمد الليثي | C17: ='بيانات اساسية'!C17 -> 25909302500072 | D17: ='بيانات اساسية'!D17 -> محكمة القضاء الادارى باسيوط | E17: ='بيانات اساسية'!E17 -> 104 | F17: ='بيانات اساسية'!F17 -> محافظ اسيوط - وكيل وزارة التربية والتعليم | G17: ='بيانات اساسية'!G17 -> 9367لسنة32ق | H17: ='بيانات اساسية'!H17 -> 2021-10-19 | I17: ='بيانات اساسية'!W17 -> 2769 | J17: ='بيانات اساسية'!CJ17 -> 10082 | K17: ='بيانات اساسية'!CK17 -> 1384.5 | L17: ='بيانات اساسية'!AE17 -> 1384.5 | M17: ='بيانات اساسية'!BW17 -> 4496.66 | N17: ='بيانات اساسية'!CE17 -> 795.2 | O17: ='بيانات اساسية'!K17 -> 20911.86
A18: ='بيانات اساسية'!A18 -> 6 | B18: ='بيانات اساسية'!B18 -> سوزان سام جبرائيل ينى | C18: ='بيانات اساسية'!C18 -> 25710292401266 | D18: ='بيانات اساسية'!D18 -> محكمة القضاء الادارى باسيوط | E18: ='بيانات اساسية'!E18 -> 104 | F18: ='بيانات اساسية'!F18 -> محافظ اسيوط - وكيل وزارة التربية والتعليم | G18: ='بيانات اساسية'!G18 -> 10918لسنة32ق | H18: ='بيانات اساسية'!H18 -> 2021-10-19 | I18: ='بيانات اساسية'!W18 -> 1161.92 | J18: ='بيانات اساسية'!CJ18 -> 4647.68 | K18: ='بيانات اساسية'!CK18 -> 580.96 | L18: ='بيانات اساسية'!AE18 -> 580.96 | M18: ='بيانات اساسية'!BW18 -> 1936.53 | N18: ='بيانات اساسية'!CE18 -> 813.26 | O18: ='بيانات اساسية'!K18 -> 9721.31
A19: ='بيانات اساسية'!A19 -> 7 | B19: ='بيانات اساسية'!B19 -> منير زكريا حبيب كرلس | C19: ='بيانات اساسية'!C19 -> 26010142500659 | D19: ='بيانات اساسية'!D19 -> محكمة القضاء الادارى باسيوط | E19: ='بيانات اساسية'!E19 -> 104 | F19: ='بيانات اساسية'!F19 -> محافظ اسيوط - وكيل وزارة التربية والتعليم | G19: ='بيانات اساسية'!G19 -> 10166لسنة32ق | H19: ='بيانات اساسية'!H19 -> 2021-10-19 | I19: ='بيانات اساسية'!W19 -> 3583.77 | J19: ='بيانات اساسية'!CJ19 -> 13352.18 | K19: ='بيانات اساسية'!CK19 -> 1791.63 | L19: ='بيانات اساسية'!AE19 -> 1791.63 | M19: ='بيانات اساسية'!BW19 -> 5856.25 | N19: ='بيانات اساسية'!CE19 -> 787.08 | O19: ='بيانات اساسية'!K19 -> 27162.54
A20: ='بيانات اساسية'!A20 -> 8 | B20: ='بيانات اساسية'!B20 -> وفاء محمود عمر عبد الرحمن | C20: ='بيانات اساسية'!C20 -> 26004132500189 | D20: ='بيانات اساسية'!D20 -> محكمة القضاء الادارى باسيوط | E20: ='بيانات اساسية'!E20 -> 104 | F20: ='بيانات اساسية'!F20 -> محافظ اسيوط - وكيل وزارة التربية والتعليم | G20: ='بيانات اساسية'!G20 -> 23549لسنة32ق | H20: ='بيانات اساسية'!H20 -> 2021-10-19 | I20: ='بيانات اساسية'!W20 -> 2422.35 | J20: ='بيانات اساسية'!CJ20 -> 7267.5 | K20: ='بيانات اساسية'!CK20 -> 1210.95 | L20: ='بيانات اساسية'!AE20 -> 1210.95 | M20: ='بيانات اساسية'!BW20 -> 4306.8 | N20: ='بيانات اساسية'!CE20 -> 602.84 | O20: ='بيانات اساسية'!K20 -> 17021.39
A21: ='بيانات اساسية'!A21 -> 9 | B21: ='بيانات اساسية'!B21 -> وفاء ابراهيم عبد العزيز ابراهيم | C21: ='بيانات اساسية'!C21 -> 26101172500063 | D21: ='بيانات اساسية'!D21 -> محكمة القضاء الادارى باسيوط | E21: ='بيانات اساسية'!E21 -> 104 | F21: ='بيانات اساسية'!F21 -> محافظ اسيوط - وكيل وزارة التربية والتعليم | G21: ='بيانات اساسية'!G21 -> 22964لسنة32ق | H21: ='بيانات اساسية'!H21 -> 2021-10-19 | I21: ='بيانات اساسية'!W21 -> 3033.18 | J21: ='بيانات اساسية'!CJ21 -> 10616.94 | K21: ='بيانات اساسية'!CK21 -> 1516.32 | L21: ='بيانات اساسية'!AE21 -> 1516.32 | M21: ='بيانات اساسية'!BW21 -> 5243 | N21: ='بيانات اساسية'!CE21 -> 629.16 | O21: ='بيانات اساسية'!K21 -> 22554.92
A22: ='بيانات اساسية'!A22 -> 10 | B22: ='بيانات اساسية'!B22 -> مديحه ابراهيم عثمان فراج | C22: ='بيانات اساسية'!C22 -> 25907072500768 | D22: ='بيانات اساسية'!D22 -> محكمة القضاء الادارى باسيوط | E22: ='بيانات اساسية'!E22 -> 104 | F22: ='بيانات اساسية'!F22 -> محافظ اسيوط - وكيل وزارة التربية والتعليم | G22: ='بيانات اساسية'!G22 -> 10345لسنة32ق | H22: ='بيانات اساسية'!H22 -> 2021-10-19 | I22: ='بيانات اساسية'!W22 -> 2202.84 | J22: ='بيانات اساسية'!CJ22 -> 7954.56 | K22: ='بيانات اساسية'!CK22 -> 1101.24 | L22: ='بيانات اساسية'!AE22 -> 1101.24 | M22: ='بيانات اساسية'!BW22 -> 3671.4 | N22: ='بيانات اساسية'!CE22 -> 685.3 | O22: ='بيانات اساسية'!K22 -> 16716.58
A23: ='بيانات اساسية'!A23 -> 11 | B23: ='بيانات اساسية'!B23 -> جمال حسين محمد حسين | C23: ='بيانات اساسية'!C23 -> 25803302500657 | D23: ='بيانات اساسية'!D23 -> محكمة القضاء الادارى باسيوط | E23: ='بيانات اساسية'!E23 -> 104 | F23: ='بيانات اساسية'!F23 -> محافظ اسيوط - وكيل وزارة التربية والتعليم | G23: ='بيانات اساسية'!G23 -> 24132لسنة32ق | H23: ='بيانات اساسية'!H23 -> 2021-10-19 | I23: ='بيانات اساسية'!W23 -> 1549.38 | J23: ='بيانات اساسية'!CJ23 -> 6197.94 | K23: ='بيانات اساسية'!CK23 -> 774.69 | L23: ='بيانات اساسية'!AE23 -> 774.69 | M23: ='بيانات اساسية'!BW23 -> 2951.4 | N23: ='بيانات اساسية'!CE23 -> 826.28 | O23: ='بيانات اساسية'!K23 -> 13074.38
A24: ='بيانات اساسية'!A24 -> 12 | B24: ='بيانات اساسية'!B24 -> رمضان مصطفى مهدى محمد | C24: ='بيانات اساسية'!C24 -> 25904122500838 | D24: ='بيانات اساسية'!D24 -> محكمة القضاء الادارى باسيوط | E24: ='بيانات اساسية'!E24 -> 104 | F24: ='بيانات اساسية'!F24 -> محافظ اسيوط - وكيل وزارة التربية والتعليم | G24: ='بيانات اساسية'!G24 -> 22993لسنة32ق | H24: ='بيانات اساسية'!H24 -> 2021-10-19 | I24: ='بيانات اساسية'!W24 -> 2460.48 | J24: ='بيانات اساسية'!CJ24 -> 9841.92 | K24: ='بيانات اساسية'!CK24 -> 1230.24 | L24: ='بيانات اساسية'!AE24 -> 1230.24 | M24: ='بيانات اساسية'!BW24 -> 4473.6 | N24: ='بيانات اساسية'!CE24 -> 834.96 | O24: ='بيانات اساسية'!K24 -> 20071.44
A25: ='بيانات اساسية'!A25 -> 13 | B25: ='بيانات اساسية'!B25 -> خالد احمد سيد عبد العال | C25: ='بيانات اساسية'!C25 -> 26101272501334 | D25: ='بيانات اساسية'!D25 -> محكمة القضاء الادارى باسيوط | E25: ='بيانات اساسية'!E25 -> 104 | F25: ='بيانات اساسية'!F25 -> محافظ اسيوط - وكيل وزارة التربية والتعليم | G25: ='بيانات اساسية'!G25 -> 23104لسنة32ق | H25: ='بيانات اساسية'!H25 -> 2021-10-19 | I25: ='بيانات اساسية'!W25 -> 3418.2 | J25: ='بيانات اساسية'!CJ25 -> 12787.4 | K25: ='بيانات اساسية'!CK25 -> 1709.1 | L25: ='بيانات اساسية'!AE25 -> 1709.1 | M25: ='بيانات اساسية'!BW25 -> 5908.46 | N25: ='بيانات اساسية'!CE25 -> 708.96 | O25: ='بيانات اساسية'!K25 -> 26241.22
A26: ='بيانات اساسية'!A26 -> 14 | B26: ='بيانات اساسية'!B26 -> زغلول محمد حسن على | C26: ='بيانات اساسية'!C26 -> 26006022500631 | D26: ='بيانات اساسية'!D26 -> محكمة القضاء الادارى باسيوط | E26: ='بيانات اساسية'!E26 -> 104 | F26: ='بيانات اساسية'!F26 -> محافظ اسيوط - وكيل وزارة التربية والتعليم | G26: ='بيانات اساسية'!G26 -> 10288لسنة32ق | H26: ='بيانات اساسية'!H26 -> 2021-10-19 | I26: ='بيانات اساسية'!W26 -> 3070.51 | J26: ='بيانات اساسية'!CJ26 -> 11368.22 | K26: ='بيانات اساسية'!CK26 -> 1535.02 | L26: ='بيانات اساسية'!AE26 -> 1535.02 | M26: ='بيانات اساسية'!BW26 -> 5226.8 | N26: ='بيانات اساسية'!CE26 -> 731.64 | O26: ='بيانات اساسية'!K26 -> 23467.21
A27: ='بيانات اساسية'!A27 -> 15 | B27: ='بيانات اساسية'!B27 -> سميره احمد عبد القادر سليم | C27: ='بيانات اساسية'!C27 -> 26103182500641 | D27: ='بيانات اساسية'!D27 -> محكمة القضاء الادارى باسيوط | E27: ='بيانات اساسية'!E27 -> 104 | F27: ='بيانات اساسية'!F27 -> محافظ اسيوط - وكيل وزارة التربية والتعليم | G27: ='بيانات اساسية'!G27 -> 10281لسنة32ق | H27: ='بيانات اساسية'!H27 -> 2021-10-19 | I27: ='بيانات اساسية'!W27 -> 3697.68 | J27: ='بيانات اساسية'!CJ27 -> 13866.16 | K27: ='بيانات اساسية'!CK27 -> 1848.56 | L27: ='بيانات اساسية'!AE27 -> 1848.56 | M27: ='بيانات اساسية'!BW27 -> 6382.9 | N27: ='بيانات اساسية'!CE27 -> 739.48 | O27: ='بيانات اساسية'!K27 -> 28383.34
A28: ='بيانات اساسية'!A28 -> 16 | B28: ='بيانات اساسية'!B28 -> زينب محمد محمود احمد | C28: ='بيانات اساسية'!C28 -> 26812022500085 | D28: ='بيانات اساسية'!D28 -> محكمة القضاء الادارى باسيوط | E28: ='بيانات اساسية'!E28 -> 104 | F28: ='بيانات اساسية'!F28 -> محافظ اسيوط - وكيل وزارة التربية والتعليم | G28: ='بيانات اساسية'!G28 -> 10280لسنة32ق | H28: ='بيانات اساسية'!H28 -> 2021-10-19 | I28: ='بيانات اساسية'!W28 -> 1372.94 | J28: ='بيانات اساسية'!CJ28 -> 4119.2 | K28: ='بيانات اساسية'!CK28 -> 686.28 | L28: ='بيانات اساسية'!AE28 -> 686.28 | M28: ='بيانات اساسية'!BW28 -> 2168.1 | N28: ='بيانات اساسية'!CE28 -> 404.6 | O28: ='بيانات اساسية'!K28 -> 9437.4
A29: ='بيانات اساسية'!A29 -> 17 | B29: ='بيانات اساسية'!B29 -> نبيل بخيت عبد اللطيف بخيت | C29: ='بيانات اساسية'!C29 -> 26102262500077 | D29: ='بيانات اساسية'!D29 -> محكمة القضاء الادارى باسيوط | E29: ='بيانات اساسية'!E29 -> 104 | F29: ='بيانات اساسية'!F29 -> محافظ اسيوط - وكيل وزارة التربية والتعليم | G29: ='بيانات اساسية'!G29 -> 24121لسنة32ق | H29: ='بيانات اساسية'!H29 -> 2021-10-19 | I29: ='بيانات اساسية'!W29 -> 2427.78 | J29: ='بيانات اساسية'!CJ29 -> 8497.23 | K29: ='بيانات اساسية'!CK29 -> 1213.89 | L29: ='بيانات اساسية'!AE29 -> 1213.89 | M29: ='بيانات اساسية'!BW29 -> 4328.6 | N29: ='بيانات اساسية'!CE29 -> 632.24 | O29: ='بيانات اساسية'!K29 -> 18313.63
A30: ='بيانات اساسية'!A30 -> 18 | B30: ='بيانات اساسية'!B30 -> جمال محمد خلاف محمد | C30: ='بيانات اساسية'!C30 -> 26105112500671 | D30: ='بيانات اساسية'!D30 -> محكمة القضاء الادارى باسيوط | E30: ='بيانات اساسية'!E30 -> 90 | F30: ='بيانات اساسية'!F30 -> محافظ اسيوط - مدير مديرية التربية والتعليم | G30: ='بيانات اساسية'!G30 -> 13871لسنة32ق | H30: ='بيانات اساسية'!H30 -> 2021-06-22 | I30: ='بيانات اساسية'!W30 -> 3396.48 | J30: ='بيانات اساسية'!CJ30 -> 12766.08 | K30: ='بيانات اساسية'!CK30 -> 1698.24 | L30: ='بيانات اساسية'!AE30 -> 1698.24 | M30: ='بيانات اساسية'!BW30 -> 5856 | N30: ='بيانات اساسية'!CE30 -> 655.76 | O30: ='بيانات اساسية'!K30 -> 26070.8
A31: ='بيانات اساسية'!A31 -> 19 | B31: ='بيانات اساسية'!B31 -> محمد احمد حسن امام | C31: ='بيانات اساسية'!C31 -> 26003292500871 | D31: ='بيانات اساسية'!D31 -> محكمة القضاء الادارى باسيوط | E31: ='بيانات اساسية'!E31 -> 104 | F31: ='بيانات اساسية'!F31 -> محافظ اسيوط - وكيل وزارة التربية والتعليم | G31: ='بيانات اساسية'!G31 -> 23271لسنة32ق | H31: ='بيانات اساسية'!H31 -> 2021-10-19 | I31: ='بيانات اساسية'!W31 -> 2673.44 | J31: ='بيانات اساسية'!CJ31 -> 9843.72 | K31: ='بيانات اساسية'!CK31 -> 1336.72 | L31: ='بيانات اساسية'!AE31 -> 1336.72 | M31: ='بيانات اساسية'!BW31 -> 4861.2 | N31: ='بيانات اساسية'!CE31 -> 78.767644 | O31: ='بيانات اساسية'!K31 -> 20130.56764
A32: ='بيانات اساسية'!A32 -> 20 | B32: ='بيانات اساسية'!B32 -> اقبال فخرى بشاى غبريال | C32: ='بيانات اساسية'!C32 -> 26003092501326 | D32: ='بيانات اساسية'!D32 -> محكمة القضاء الادارى باسيوط | E32: ='بيانات اساسية'!E32 -> 104 | F32: ='بيانات اساسية'!F32 -> محافظ اسيوط - وكيل وزارة التربية والتعليم | G32: ='بيانات اساسية'!G32 -> 8506لسنة32ق | H32: ='بيانات اساسية'!H32 -> 2021-10-19 | I32: ='بيانات اساسية'!W32 -> 2731.52 | J32: ='بيانات اساسية'!CJ32 -> 10056.96 | K32: ='بيانات اساسية'!CK32 -> 1365.76 | L32: ='بيانات اساسية'!AE32 -> 1365.76 | M32: ='بيانات اساسية'!BW32 -> 4966.4 | N32: ='بيانات اساسية'!CE32 -> 82.21047467 | O32: ='بيانات اساسية'!K32 -> 20568.61047
A33: ='بيانات اساسية'!A33 -> 21 | B33: ='بيانات اساسية'!B33 -> علاء الدين حلمى محمد احمد | C33: ='بيانات اساسية'!C33 -> 26103052500879 | D33: ='بيانات اساسية'!D33 -> محكمة القضاء الادارى باسيوط | E33: ='بيانات اساسية'!E33 -> 104 | F33: ='بيانات اساسية'!F33 -> محافظ اسيوط - وكيل وزارة التربية والتعليم | G33: ='بيانات اساسية'!G33 -> 10284لسنة32ق | H33: ='بيانات اساسية'!H33 -> 2021-10-19 | I33: ='بيانات اساسية'!W33 -> 3184.16 | J33: ='بيانات اساسية'!CJ33 -> 11172.99 | K33: ='بيانات اساسية'!CK33 -> 1592.08 | L33: ='بيانات اساسية'!AE33 -> 1592.08 | M33: ='بيانات اساسية'!BW33 -> 5686 | N33: ='بيانات اساسية'!CE33 -> 68.959808 | O33: ='بيانات اساسية'!K33 -> 23296.26981
A34: ='بيانات اساسية'!A34 -> 22 | B34: ='بيانات اساسية'!B34 -> نجاه محروس شحاته عبد الكريم | C34: ='بيانات اساسية'!C34 -> 25908232500961 | D34: ='بيانات اساسية'!D34 -> محكمة القضاء الادارى باسيوط | E34: ='بيانات اساسية'!E34 -> 104 | F34: ='بيانات اساسية'!F34 -> محافظ اسيوط - وكيل وزارة التربية والتعليم | G34: ='بيانات اساسية'!G34 -> 9893لسنة32ق | H34: ='بيانات اساسية'!H34 -> 2021-10-19 | I34: ='بيانات اساسية'!W34 -> 2255.89 | J34: ='بيانات اساسية'!CJ34 -> 8170.58 | K34: ='بيانات اساسية'!CK34 -> 1127.76 | L34: ='بيانات اساسية'!AE34 -> 1127.76 | M34: ='بيانات اساسية'!BW34 -> 3658.5 | N34: ='بيانات اساسية'!CE34 -> 79.31628 | O34: ='بيانات اساسية'!K34 -> 16419.80628
A35: ='بيانات اساسية'!A35 -> 23 | B35: ='بيانات اساسية'!B35 -> سهير عبد المسيح بولس عبد المسيح | C35: ='بيانات اساسية'!C35 -> 25807212500866 | D35: ='بيانات اساسية'!D35 -> محكمة القضاء الادارى باسيوط | E35: ='بيانات اساسية'!E35 -> 104 | F35: ='بيانات اساسية'!F35 -> محافظ اسيوط - وكيل وزارة التربية والتعليم | G35: ='بيانات اساسية'!G35 -> 22963لسنة32ق | H35: ='بيانات اساسية'!H35 -> 2021-10-19 | I35: ='بيانات اساسية'!W35 -> 1138.32 | J35: ='بيانات اساسية'!CJ35 -> 3415.2 | K35: ='بيانات اساسية'!CK35 -> 569.04 | L35: ='بيانات اساسية'!AE35 -> 569.04 | M35: ='بيانات اساسية'!BW35 -> 1897.4 | N35: ='بيانات اساسية'!CE35 -> 47.99157067 | O35: ='بيانات اساسية'!K35 -> 7636.991571
A36: ='بيانات اساسية'!A36 -> 24 | B36: ='بيانات اساسية'!B36 -> ايمان محمد سيد حسانين | C36: ='بيانات اساسية'!C36 -> 26012272500068 | D36: ='بيانات اساسية'!D36 -> محكمة القضاء الادارى باسيوط | E36: ='بيانات اساسية'!E36 -> 104 | F36: ='بيانات اساسية'!F36 -> محافظ اسيوط - وكيل وزارة التربية والتعليم | G36: ='بيانات اساسية'!G36 -> 9364لسنة32ق | H36: ='بيانات اساسية'!H36 -> 2021-10-19 | I36: ='بيانات اساسية'!W36 -> 3428.57 | J36: ='بيانات اساسية'!CJ36 -> 12809.54 | K36: ='بيانات اساسية'!CK36 -> 1714.02 | L36: ='بيانات اساسية'!AE36 -> 1714.02 | M36: ='بيانات اساسية'!BW36 -> 5822.55 | N36: ='بيانات اساسية'!CE36 -> 89.2791 | O36: ='بيانات اساسية'!K36 -> 25577.9791
A37: ='بيانات اساسية'!A37 -> 25 | B37: ='بيانات اساسية'!B37 -> ملكه محمود احمد ابراهيم | C37: ='بيانات اساسية'!C37 -> 25712220400446 | D37: ='بيانات اساسية'!D37 -> محكمة القضاء الادارى باسيوط | E37: ='بيانات اساسية'!E37 -> 104 | F37: ='بيانات اساسية'!F37 -> محافظ اسيوط - وكيل وزارة التربية والتعليم | G37: ='بيانات اساسية'!G37 -> 10348لسنة32ق | H37: ='بيانات اساسية'!H37 -> 2021-10-19 | I37: ='بيانات اساسية'!W37 -> 997.73 | J37: ='بيانات اساسية'!CJ37 -> 3492.31 | K37: ='بيانات اساسية'!CK37 -> 498.78 | L37: ='بيانات اساسية'!AE37 -> 498.78 | M37: ='بيانات اساسية'!BW37 -> 1760.85 | N37: ='بيانات اساسية'!CE37 -> 73.48614 | O37: ='بيانات اساسية'!K37 -> 7321.93614
A38: ='بيانات اساسية'!A38 -> 26 | B38: ='بيانات اساسية'!B38 -> نورا حسن حسانين عمر | C38: ='بيانات اساسية'!C38 -> 26010082501286 | D38: ='بيانات اساسية'!D38 -> محكمة القضاء الادارى باسيوط | E38: ='بيانات اساسية'!E38 -> 104 | F38: ='بيانات اساسية'!F38 -> محافظ اسيوط - وكيل وزارة التربية والتعليم | G38: ='بيانات اساسية'!G38 -> 24125لسنة32ق | H38: ='بيانات اساسية'!H38 -> 2021-10-19 | I38: ='بيانات اساسية'!W38 -> 2529.09 | J38: ='بيانات اساسية'!CJ38 -> 8850.54 | K38: ='بيانات اساسية'!CK38 -> 1264.29 | L38: ='بيانات اساسية'!AE38 -> 1264.29 | M38: ='بيانات اساسية'!BW38 -> 4132.08 | N38: ='بيانات اساسية'!CE38 -> 52.441096 | O38: ='بيانات اساسية'!K38 -> 18092.7311
A39: ='بيانات اساسية'!A39 -> 27 | B39: ='بيانات اساسية'!B39 -> عبد المنعم محمد مرسي بخيت | C39: ='بيانات اساسية'!C39 -> 25805302500838 | D39: ='بيانات اساسية'!D39 -> محكمة القضاء الادارى باسيوط | E39: ='بيانات اساسية'!E39 -> 104 | F39: ='بيانات اساسية'!F39 -> محافظ اسيوط - وكيل وزارة التربية والتعليم | G39: ='بيانات اساسية'!G39 -> 9892لسنة32ق | H39: ='بيانات اساسية'!H39 -> 2021-10-19 | I39: ='بيانات اساسية'!W39 -> 1457.06 | J39: ='بيانات اساسية'!CJ39 -> 5099.6 | K39: ='بيانات اساسية'!CK39 -> 728.42 | L39: ='بيانات اساسية'!AE39 -> 728.42 | M39: ='بيانات اساسية'!BW39 -> 2649.2 | N39: ='بيانات اساسية'!CE39 -> 93.569744 | O39: ='بيانات اساسية'!K39 -> 10756.26974
A40: ='بيانات اساسية'!A40 -> 28 | B40: ='بيانات اساسية'!B40 -> هدى احمد محمود نشات | C40: ='بيانات اساسية'!C40 -> 25901231200306 | D40: ='بيانات اساسية'!D40 -> محكمة القضاء الادارى باسيوط | E40: ='بيانات اساسية'!E40 -> 104 | F40: ='بيانات اساسية'!F40 -> محافظ اسيوط - وكيل وزارة التربية والتعليم | G40: ='بيانات اساسية'!G40 -> 10350لسنة32ق | H40: ='بيانات اساسية'!H40 -> 2021-10-19 | I40: ='بيانات اساسية'!W40 -> 1794.9 | J40: ='بيانات اساسية'!CJ40 -> 6282 | K40: ='بيانات اساسية'!CK40 -> 897.3 | L40: ='بيانات اساسية'!AE40 -> 897.3 | M40: ='بيانات اساسية'!BW40 -> 3190.93 | N40: ='بيانات اساسية'!CE40 -> 76.35903467 | O40: ='بيانات اساسية'!K40 -> 13138.78903
A41: ='بيانات اساسية'!A41 -> 29 | B41: ='بيانات اساسية'!B41 -> راندا لوس ابراهيم لوس | C41: ='بيانات اساسية'!C41 -> 26107012501126 | D41: ='بيانات اساسية'!D41 -> محكمة القضاء الادارى باسيوط | E41: ='بيانات اساسية'!E41 -> 104 | F41: ='بيانات اساسية'!F41 -> محافظ اسيوط - وكيل وزارة التربية والتعليم | G41: ='بيانات اساسية'!G41 -> 25089لسنة32ق | H41: ='بيانات اساسية'!H41 -> 2021-10-19 | I41: ='بيانات اساسية'!W41 -> 2934 | J41: ='بيانات اساسية'!CJ41 -> 11052.32 | K41: ='بيانات اساسية'!CK41 -> 1467 | L41: ='بيانات اساسية'!AE41 -> 1467 | M41: ='بيانات اساسية'!BW41 -> 4890.5 | N41: ='بيانات اساسية'!CE41 -> 51.017696 | O41: ='بيانات اساسية'!K41 -> 21861.8377
A42: ='بيانات اساسية'!A42 -> 30 | B42: ='بيانات اساسية'!B42 -> احمد محمد احمد همام | C42: ='بيانات اساسية'!C42 -> 25809222500638 | D42: ='بيانات اساسية'!D42 -> محكمة القضاء الادارى باسيوط | E42: ='بيانات اساسية'!E42 -> 104 | F42: ='بيانات اساسية'!F42 -> محافظ اسيوط - وكيل وزارة التربية والتعليم | G42: ='بيانات اساسية'!G42 -> 10349لسنة32ق | H42: ='بيانات اساسية'!H42 -> 2021-10-19 | I42: ='بيانات اساسية'!W42 -> 1899.82 | J42: ='بيانات اساسية'!CJ42 -> 7599.28 | K42: ='بيانات اساسية'!CK42 -> 949.78 | L42: ='بيانات اساسية'!AE42 -> 949.78 | M42: ='بيانات اساسية'!BW42 -> 2922.8 | N42: ='بيانات اساسية'!CE42 -> 113.8917733 | O42: ='بيانات اساسية'!K42 -> 14435.35177
A43: ='بيانات اساسية'!A43 -> 31 | B43: ='بيانات اساسية'!B43 -> ايهاب عباس عبد النعيم عليوه | C43: ='بيانات اساسية'!C43 -> 25908292500277 | D43: ='بيانات اساسية'!D43 -> محكمة القضاء الادارى باسيوط | E43: ='بيانات اساسية'!E43 -> 104 | F43: ='بيانات اساسية'!F43 -> محافظ اسيوط - وكيل وزارة التربية والتعليم | G43: ='بيانات اساسية'!G43 -> 25047لسنة32ق | H43: ='بيانات اساسية'!H43 -> 2021-10-19 | I43: ='بيانات اساسية'!W43 -> 2393.53 | J43: ='بيانات اساسية'!CJ43 -> 8669.06 | K43: ='بيانات اساسية'!CK43 -> 1196.58 | L43: ='بيانات اساسية'!AE43 -> 1196.58 | M43: ='بيانات اساسية'!BW43 -> 3881.7 | N43: ='بيانات اساسية'!CE43 -> 89.2791 | O43: ='بيانات اساسية'!K43 -> 17426.7291
A44: ='بيانات اساسية'!A44 -> 32 | B44: ='بيانات اساسية'!B44 -> احمد عبد الحافظ محمد عبد الحافظ | C44: ='بيانات اساسية'!C44 -> 26107112500691 | D44: ='بيانات اساسية'!D44 -> محكمة القضاء الادارى باسيوط | E44: ='بيانات اساسية'!E44 -> 104 | F44: ='بيانات اساسية'!F44 -> محافظ اسيوط - وكيل وزارة التربية والتعليم | G44: ='بيانات اساسية'!G44 -> 23327لسنة32ق | H44: ='بيانات اساسية'!H44 -> 2021-10-19 | I44: ='بيانات اساسية'!W44 -> 2803.2 | J44: ='بيانات اساسية'!CJ44 -> 9157.12 | K44: ='بيانات اساسية'!CK44 -> 1401.6 | L44: ='بيانات اساسية'!AE44 -> 1401.6 | M44: ='بيانات اساسية'!BW44 -> 4672 | N44: ='بيانات اساسية'!CE44 -> 46.55803733 | O44: ='بيانات اساسية'!K44 -> 19482.07804
A45: ='بيانات اساسية'!A45 -> 33 | B45: ='بيانات اساسية'!B45 -> حمديه محمد حسين يوسف | C45: ='بيانات اساسية'!C45 -> 26003022501221 | D45: ='بيانات اساسية'!D45 -> محكمة القضاء الادارى باسيوط | E45: ='بيانات اساسية'!E45 -> 104 | F45: ='بيانات اساسية'!F45 -> محافظ اسيوط - وكيل وزارة التربية والتعليم | G45: ='بيانات اساسية'!G45 -> 10343لسنة32ق | H45: ='بيانات اساسية'!H45 -> 2021-10-19 | I45: ='بيانات اساسية'!W45 -> 3061.08 | J45: ='بيانات اساسية'!CJ45 -> 11271.08 | K45: ='بيانات اساسية'!CK45 -> 1530.32 | L45: ='بيانات اساسية'!AE45 -> 1530.32 | M45: ='بيانات اساسية'!BW45 -> 5566 | N45: ='بيانات اساسية'!CE45 -> 103.2678533 | O45: ='بيانات اساسية'!K45 -> 23062.06785
A46: ='بيانات اساسية'!A46 -> 34 | B46: ='بيانات اساسية'!B46 -> سحر ابراهيم محمد حسن | C46: ='بيانات اساسية'!C46 -> 26106042500403 | D46: ='بيانات اساسية'!D46 -> محكمة القضاء الادارى باسيوط | E46: ='بيانات اساسية'!E46 -> 104 | F46: ='بيانات اساسية'!F46 -> محافظ اسيوط - مدير مديرية التربية والتعليم | G46: ='بيانات اساسية'!G46 -> 23671لسنة32ق | H46: ='بيانات اساسية'!H46 -> 2021-10-19 | I46: ='بيانات اساسية'!W46 -> 3501.65 | J46: ='بيانات اساسية'!CJ46 -> 13176.74 | K46: ='بيانات اساسية'!CK46 -> 1750.53 | L46: ='بيانات اساسية'!AE46 -> 1750.53 | M46: ='بيانات اساسية'!BW46 -> 5935.5 | N46: ='بيانات اساسية'!CE46 -> 75.151344 | O46: ='بيانات اساسية'!K46 -> 26190.10134
A47: ='بيانات اساسية'!A47 -> 35 | B47: ='بيانات اساسية'!B47 -> ايمان حمودى محمد حمودى | C47: ='بيانات اساسية'!C47 -> 26104112501728 | D47: ='بيانات اساسية'!D47 -> محكمة القضاء الادارى باسيوط | E47: ='بيانات اساسية'!E47 -> 104 | F47: ='بيانات اساسية'!F47 -> وكيل وزارة التربية والتعليم ـ محافظ اسيوط | G47: ='بيانات اساسية'!G47 -> 23323لسنة32ق | H47: ='بيانات اساسية'!H47 -> 2021-10-19 | I47: ='بيانات اساسية'!W47 -> 3498.09 | J47: ='بيانات اساسية'!CJ47 -> 13134.18 | K47: ='بيانات اساسية'!CK47 -> 1748.76 | L47: ='بيانات اساسية'!AE47 -> 1748.76 | M47: ='بيانات اساسية'!BW47 -> 6137.5 | N47: ='بيانات اساسية'!CE47 -> 80.36033333 | O47: ='بيانات اساسية'!K47 -> 26347.65033
A48: ='بيانات اساسية'!A48 -> 36 | B48: ='بيانات اساسية'!B48 -> عبد المنصف عبد الوهاب سليمان عطيه | C48: ='بيانات اساسية'!C48 -> 26104052500654 | D48: ='بيانات اساسية'!D48 -> محكمة القضاء الادارى باسيوط | E48: ='بيانات اساسية'!E48 -> 104 | F48: ='بيانات اساسية'!F48 -> محافظ اسيوط - مدير مديرية التربية والتعليم | G48: ='بيانات اساسية'!G48 -> 7221لسنة32ق | H48: ='بيانات اساسية'!H48 -> 2021-10-19 | I48: ='بيانات اساسية'!W48 -> 3974.04 | J48: ='بيانات اساسية'!CJ48 -> 14920.08 | K48: ='بيانات اساسية'!CK48 -> 1987.02 | L48: ='بيانات اساسية'!AE48 -> 1987.02 | M48: ='بيانات اساسية'!BW48 -> 6972 | N48: ='بيانات اساسية'!CE48 -> 103.687584 | O48: ='بيانات اساسية'!K48 -> 29943.84758
A49: ='بيانات اساسية'!A49 -> 37 | B49: ='بيانات اساسية'!B49 -> سامى لويز ملك حنا | C49: ='بيانات اساسية'!C49 -> 25909122500732 | D49: ='بيانات اساسية'!D49 -> محكمة القضاء الادارى باسيوط | E49: ='بيانات اساسية'!E49 -> 104 | F49: ='بيانات اساسية'!F49 -> محافظ اسيوط - مدير مديرية التربية والتعليم | G49: ='بيانات اساسية'!G49 -> 24024لسنة32ق | H49: ='بيانات اساسية'!H49 -> 2021-10-19 | I49: ='بيانات اساسية'!W49 -> 2310.02 | J49: ='بيانات اساسية'!CJ49 -> 8389.64 | K49: ='بيانات اساسية'!CK49 -> 1154.82 | L49: ='بيانات اساسية'!AE49 -> 1154.82 | M49: ='بيانات اساسية'!BW49 -> 3647.7 | N49: ='بيانات اساسية'!CE49 -> 78.838956 | O49: ='بيانات اساسية'!K49 -> 16735.83896
A50: ='بيانات اساسية'!A50 -> 38 | B50: ='بيانات اساسية'!B50 -> ايمان بخيت محمد بخيت | C50: ='بيانات اساسية'!C50 -> 26203222500181 | D50: ='بيانات اساسية'!D50 -> محكمة القضاء الادارى باسيوط | E50: ='بيانات اساسية'!E50 -> 104 | F50: ='بيانات اساسية'!F50 -> محافظ اسيوط - مدير مديرية التربية والتعليم | G50: ='بيانات اساسية'!G50 -> 23878لسنة32ق | H50: ='بيانات اساسية'!H50 -> 2021-10-19 | I50: ='بيانات اساسية'!W50 -> 4270.4 | J50: ='بيانات اساسية'!CJ50 -> 16202.4 | K50: ='بيانات اساسية'!CK50 -> 2135.2 | L50: ='بيانات اساسية'!AE50 -> 2135.2 | M50: ='بيانات اساسية'!BW50 -> 7536 | N50: ='بيانات اساسية'!CE50 -> 84.13525333 | O50: ='بيانات اساسية'!K50 -> 32363.33525
A51: ='بيانات اساسية'!A51 -> 39 | B51: ='بيانات اساسية'!B51 -> ماجده يوسف محمود يوسف | C51: ='بيانات اساسية'!C51 -> 26106132500186 | D51: ='بيانات اساسية'!D51 -> محكمة القضاء الادارى باسيوط | E51: ='بيانات اساسية'!E51 -> 104 | F51: ='بيانات اساسية'!F51 -> محافظ اسيوط - مدير مديرية التربية والتعليم | G51: ='بيانات اساسية'!G51 -> 23760لسنة32ق | H51: ='بيانات اساسية'!H51 -> 2021-10-19 | I51: ='بيانات اساسية'!W51 -> 3849.16 | J51: ='بيانات اساسية'!CJ51 -> 14484.18 | K51: ='بيانات اساسية'!CK51 -> 1924.58 | L51: ='بيانات اساسية'!AE51 -> 1924.58 | M51: ='بيانات اساسية'!BW51 -> 6524.5 | N51: ='بيانات اساسية'!CE51 -> 90.80364133 | O51: ='بيانات اساسية'!K51 -> 28797.80364
A52: ='بيانات اساسية'!A52 -> 40 | B52: ='بيانات اساسية'!B52 -> بهجه عبد الحميد مصطفى شرقاوى | C52: ='بيانات اساسية'!C52 -> 26202172500102 | D52: ='بيانات اساسية'!D52 -> محكمة القضاء الادارى باسيوط | E52: ='بيانات اساسية'!E52 -> 104 | F52: ='بيانات اساسية'!F52 -> محافظ اسيوط - مدير مديرية التربية والتعليم | G52: ='بيانات اساسية'!G52 -> 23761لسنة32ق | H52: ='بيانات اساسية'!H52 -> 2021-10-19 | I52: ='بيانات اساسية'!W52 -> 4237.75 | J52: ='بيانات اساسية'!CJ52 -> 16066.7 | K52: ='بيانات اساسية'!CK52 -> 2118.54 | L52: ='بيانات اساسية'!AE52 -> 2118.54 | M52: ='بيانات اساسية'!BW52 -> 7379.75 | N52: ='بيانات اساسية'!CE52 -> 85.35208 | O52: ='بيانات اساسية'!K52 -> 32006.63208
A53: ='بيانات اساسية'!A53 -> 41 | B53: ='بيانات اساسية'!B53 -> صباح محمدحسين هريدى | C53: ='بيانات اساسية'!C53 -> 26203102501221 | D53: ='بيانات اساسية'!D53 -> محكمة القضاء الادارى باسيوط | E53: ='بيانات اساسية'!E53 -> 90 | F53: ='بيانات اساسية'!F53 -> محافظ اسيوط - مدير مديرية التربية والتعليم | G53: ='بيانات اساسية'!G53 -> 12010لسنة32ق | H53: ='بيانات اساسية'!H53 -> 2021-06-22 | I53: ='بيانات اساسية'!W53 -> 3846.08 | J53: ='بيانات اساسية'!CJ53 -> 13828.92 | K53: ='بيانات اساسية'!CK53 -> 1923.04 | L53: ='بيانات اساسية'!AE53 -> 1923.04 | M53: ='بيانات اساسية'!BW53 -> 6787.2 | N53: ='بيانات اساسية'!CE53 -> 68.233984 | O53: ='بيانات اساسية'!K53 -> 28376.51398
A54: ='بيانات اساسية'!A54 -> 42 | B54: ='بيانات اساسية'!B54 -> مجدى فوزى ثابت ابراهيم | C54: ='بيانات اساسية'!C54 -> 26103092500111 | D54: ='بيانات اساسية'!D54 -> محكمة القضاء الادارى باسيوط | E54: ='بيانات اساسية'!E54 -> 90 | F54: ='بيانات اساسية'!F54 -> محافظ اسيوط - مدير مديرية التربية والتعليم | G54: ='بيانات اساسية'!G54 -> 14093لسنة32ق | H54: ='بيانات اساسية'!H54 -> 2021-06-22 | I54: ='بيانات اساسية'!W54 -> 3846.08 | J54: ='بيانات اساسية'!CJ54 -> 14423.64 | K54: ='بيانات اساسية'!CK54 -> 1923.04 | L54: ='بيانات اساسية'!AE54 -> 1923.04 | M54: ='بيانات اساسية'!BW54 -> 6868.5 | N54: ='بيانات اساسية'!CE54 -> 100.628104 | O54: ='بيانات اساسية'!K54 -> 29084.9281
A55: ='بيانات اساسية'!A55 -> 43 | B55: ='بيانات اساسية'!B55 -> رافت برسوم ابسخرون جريس | C55: ='بيانات اساسية'!C55 -> 25807292501175 | D55: ='بيانات اساسية'!D55 -> محكمة القضاء الادارى باسيوط | E55: ='بيانات اساسية'!E55 -> 90 | F55: ='بيانات اساسية'!F55 -> محافظ اسيوط - مدير مديرية التربية والتعليم | G55: ='بيانات اساسية'!G55 -> 12877لسنة32ق | H55: ='بيانات اساسية'!H55 -> 2021-06-22 | I55: ='بيانات اساسية'!W55 -> 1810.8 | J55: ='بيانات اساسية'!CJ55 -> 7243.68 | K55: ='بيانات اساسية'!CK55 -> 905.28 | L55: ='بيانات اساسية'!AE55 -> 905.28 | M55: ='بيانات اساسية'!BW55 -> 3018.2 | N55: ='بيانات اساسية'!CE55 -> 121.452368 | O55: ='بيانات اساسية'!K55 -> 14004.69237
A56: ='بيانات اساسية'!A56 -> 44 | B56: ='بيانات اساسية'!B56 -> نرجس نجيب منصور تاضروس | C56: ='بيانات اساسية'!C56 -> 26111012500224 | D56: ='بيانات اساسية'!D56 -> محكمة القضاء الادارى باسيوط | E56: ='بيانات اساسية'!E56 -> 90 | F56: ='بيانات اساسية'!F56 -> محافظ اسيوط - مدير مديرية التربية والتعليم | G56: ='بيانات اساسية'!G56 -> 12292لسنة32ق | H56: ='بيانات اساسية'!H56 -> 2021-06-22 | I56: ='بيانات اساسية'!W56 -> 4019.2 | J56: ='بيانات اساسية'!CJ56 -> 15197.6 | K56: ='بيانات اساسية'!CK56 -> 2009.6 | L56: ='بيانات اساسية'!AE56 -> 2009.6 | M56: ='بيانات اساسية'!BW56 -> 6698.66 | N56: ='بيانات اساسية'!CE56 -> 84.13525333 | O56: ='بيانات اساسية'!K56 -> 30018.79525
A57: ='بيانات اساسية'!A57 -> 45 | B57: ='بيانات اساسية'!B57 -> نبيله عياد مينا قلدس | C57: ='بيانات اساسية'!C57 -> 26112141601521 | D57: ='بيانات اساسية'!D57 -> محكمة القضاء الادارى باسيوط | E57: ='بيانات اساسية'!E57 -> 90 | F57: ='بيانات اساسية'!F57 -> محافظ اسيوط - مدير مديرية التربية والتعليم | G57: ='بيانات اساسية'!G57 -> 12703لسنة32ق | H57: ='بيانات اساسية'!H57 -> 2021-06-22 | I57: ='بيانات اساسية'!W57 -> 4022.2 | J57: ='بيانات اساسية'!CJ57 -> 15222.48 | K57: ='بيانات اساسية'!CK57 -> 2011.1 | L57: ='بيانات اساسية'!AE57 -> 2011.1 | M57: ='بيانات اساسية'!BW57 -> 6806.8 | N57: ='بيانات اساسية'!CE57 -> 81.6816 | O57: ='بيانات اساسية'!K57 -> 30155.3616
A58: 0 | B58: الاجمالى | I58: =SUM(I13:I57) -> 125136.92 | J58: =SUM(J13:J57) -> 459753.51 | K58: 62563.5 | L58: 62563.5 | M58: 215410.18 | N58: 15031.43585 | O58: 940459.0459
B59: ترى ادارة اسيوط التعليمية : موافقة سيادتكم على تعزيز بند بدل المعلم 4 / 45 وبند بدل الاعتماد 4 / 46 وبند حافز الاداء 3 / 23 وبند الاثابة 3 / 3 وبند المكافاة 3 / 14
B60: وبند الجهود غير العادية لعدد ( 45 ) من المعلمين بادارة اسيوط التعليمية ومدارسها الصادر لهم احكام قضائية باحقيتهم فى صرفها
B61: رفع موافقة سيادتكم لمديرية النظيم والادارة باسيوط للدراسة واتخاذ اللازم
B62: المختص رئيس القسم مدير الموارد البشرية المدير المالى والادارى المدير العام مدير عام الشئون المالية والادارية وكيل الوزارة
A73: 1 | B73: صلاح الدين سيد بدوى عبد الرازق | C73: 25709132500154 | D73: محكمة القضاء الادارى باسيوط | E73: 90 | F73: محافظ اسيوط - وكيل وزارة التربية والتعليم | G73: 12489لسنة32ق | H73: 2021-06-22 | I73: 1118.04 | J73: 3913.14 | K73: 559.02 | L73: 559.02 | M73: 1597.2 | N73: 894.32 | O73: 8640.74
A74: 2 | B74: مواهب حسن سليمان محمد | C74: 25901182501281 | D74: محكمة القضاء الادارى باسيوط | E74: 90 | F74: محافظ اسيوط - وكيل وزارة التربية والتعليم | G74: 7093لسنة32ق | H74: 2021-08-24 | I74: 2123.1 | J74: 7502.08 | K74: 1061.4 | L74: 1061.4 | M74: 4246.5 | N74: 792.68 | O74: 16787.16
A75: 3 | B75: وفاء حمدى محمد سلامه | C75: 26008052501368 | D75: محكمة القضاء الادارى باسيوط | E75: 90 | F75: محافظ اسيوط - وكيل وزارة التربية والتعليم | G75: 6936لسنة32ق | H75: 2021-08-24 | I75: 3469.69 | J75: 12887.28 | K75: 1734.6 | L75: 1734.6 | M75: 5664.8 | N75: 792.96 | O75: 26283.93
A76: 4 | B76: هناء وليم نصر الله ميخائيل | C76: 25806292500563 | D76: محكمة القضاء الادارى باسيوط | E76: 90 | F76: محافظ اسيوط - وكيل وزارة التربية والتعليم | G76: 7640لسنة32ق | H76: 2021-08-24 | I76: 1495.23 | J76: 5233.19 | K76: 747.5 | L76: 747.5 | M76: 2600.4 | N76: 728 | O76: 11551.82
A77: 5 | B77: رضا حسانين سيد حسانين | C77: 26012012502725 | D77: محكمة القضاء الادارى باسيوط | E77: 90 | F77: محافظ اسيوط - وكيل وزارة التربية والتعليم | G77: 7347لسنة32ق | H77: 2021-08-24 | I77: 3666.54 | J77: 13698.42 | K77: 1833.27 | L77: 1833.27 | M77: 6226.65 | N77: 774.76 | O77: 28032.91
A78: 6 | B78: سلوى عبد الرحيم سيد محمد | C78: 25907262500047 | D78: محكمة القضاء الادارى باسيوط | E78: 90 | F78: محافظ اسيوط - وكيل وزارة التربية والتعليم | G78: 7348لسنة32ق | H78: 2021-08-24 | I78: 2678.4 | J78: 10714.32 | K78: 1339.2 | L78: 1339.2 | M78: 4464.3 | N78: 833.28 | O78: 21368.7
A79: 7 | B79: عنايات جعيدى مصطفى جعيدى | C79: 26012062500201 | D79: محكمة القضاء الادارى باسيوط | E79: 90 | F79: محافظ اسيوط - وكيل وزارة التربية والتعليم | G79: 7346لسنة32ق | H79: 2021-08-24 | I79: 3328.93 | J79: 12436.24 | K79: 1664.2 | L79: 1664.2 | M79: 5652.9 | N79: 703.36 | O79: 25449.83
A80: 8 | B80: ذكرى هندى مهنى ابسخرون | C80: 25803012502176 | D80: محكمة القضاء الادارى باسيوط | E80: 104 | F80: وزير التربية والتعليم ـ محافظ اسيوط - وكيل وزارة التربية والتعليم | G80: 15057لسنة32ق | H80: 2021-11-23 | I80: 1158.4 | J80: 4054.6 | K80: 579.2 | L80: 579.2 | M80: 2317 | N80: 648.76 | O80: 9337.16
A81: 9 | B81: نعمات سيد حسن سيد | C81: 26112132502162 | D81: محكمة القضاء الادارى باسيوط | E81: 104 | F81: محافظ اسيوط - مدير مديرية التربية والتعليم | G81: 17658لسنة32ق | H81: 2021-11-23 | I81: 4144.4 | J81: 16578.9 | K81: 2072.2 | L81: 2072.2 | M81: 7014.15 | N81: 714.14 | O81: 32595.99
A82: 10 | B82: زكريا سيد رفاعى حسنين | C82: 26102212500076 | D82: محكمة القضاء الادارى باسيوط | E82: 104 | F82: محافظ اسيوط - مدير مديرية التربية والتعليم | G82: 17336لسنة32ق | H82: 2021-11-23 | I82: 3343.45 | J82: 12523.7 | K82: 1671.45 | L82: 1671.45 | M82: 5876.85 | N82: 680.82 | O82: 25767.72
A83: 11 | B83: احمد محمد فراج منصور | C83: 25812052501899 | D83: محكمة القضاء الادارى باسيوط | E83: 104 | F83: محافظ اسيوط - مدير مديرية التربية والتعليم | G83: 13114لسنة32ق | H83: 2021-11-23 | I83: 2109.17 | J83: 7418.32 | K83: 1054.44 | L83: 1054.44 | M83: 3636.5 | N83: 814.52 | O83: 16087.39
A84: 12 | B84: حسن محمد على حسن | C84: 26009302500491 | D84: محكمة القضاء الادارى باسيوط | E84: 104 | F84: محافظ اسيوط - وكيل وزارة التربية والتعليم | G84: 15644لسنة32ق | H84: 2021-11-23 | I84: 2202 | J84: 6606.5 | K84: 1101 | L84: 1101 | M84: 3523.6 | N84: 493.22 | O84: 15027.32
A85: 13 | B85: ليلى احمد محمود فرغلى | C85: 26010292500126 | D85: محكمة القضاء الادارى باسيوط | E85: 104 | F85: محافظ اسيوط - وكيل وزارة التربية والتعليم | G85: 13333لسنة32ق | H85: 2021-11-23 | I85: 3714.33 | J85: 14857.32 | K85: 1856.91 | L85: 1856.91 | M85: 6069.16 | N85: 815.64 | O85: 29170.27
A86: 14 | B86: بدرى محمد عمار محمد | C86: 26107122501351 | D86: محكمة القضاء الادارى باسيوط | E86: 104 | F86: محافظ اسيوط - وكيل وزارة التربية والتعليم | G86: 15645لسنة32ق | H86: 2021-11-23 | I86: 2798.4 | J86: 9142.04 | K86: 1399.2 | L86: 1399.2 | M86: 4664.5 | N86: 522.34 | O86: 19925.68
A87: 15 | B87: لوريس منير شاكر بسطوروس | C87: 25807162600082 | D87: محكمة القضاء الادارى باسيوط | E87: 90 | F87: محافظ اسيوط - وكيل وزارة التربية والتعليم | G87: 7899لسنة32ق | H87: 2021-09-21 | I87: 1777.2 | J87: 7108.8 | K87: 888.48 | L87: 888.48 | M87: 2962 | N87: 829.36 | O87: 14454.32
A88: 16 | B88: رجاء احمد ابراهيم محمد | C88: 25810282501526 | D88: محكمة القضاء الادارى باسيوط | E88: 90 | F88: محافظ اسيوط - وكيل وزارة التربية والتعليم | G88: 7896لسنة32ق | H88: 2021-09-21 | I88: 1987.74 | J88: 7951.5 | K88: 993.87 | L88: 993.87 | M88: 3190.41 | N88: 824.6 | O88: 15941.99
A89: 17 | B89: سميحه محمد احمد حماد | C89: 26004292500584 | D89: محكمة القضاء الادارى باسيوط | E89: 90 | F89: محافظ اسيوط - وكيل وزارة التربية والتعليم | G89: 7322لسنة32ق | H89: 2021-08-24 | I89: 3125.25 | J89: 11528.56 | K89: 1562.4 | L89: 1562.4 | M89: 5556 | N89: 777.84 | O89: 24112.45
A90: 18 | B90: نمرود صادق سعد نصر الله | C90: 26011272501912 | D90: محكمة القضاء الادارى باسيوط | E90: 104 | F90: محافظ اسيوط - وكيل وزارة التربية والتعليم | G90: 19964لسنة32ق | H90: 2022-01-18 | I90: 3420.56 | J90: 12761.32 | K90: 1710.28 | L90: 1710.28 | M90: 5700.93 | N90: 736.68 | O90: 26040.05
A91: 19 | B91: حسين محمد سيد عمر | C91: 26110312500114 | D91: محكمة القضاء الادارى باسيوط | E91: 90 | F91: محافظ اسيوط - مدير مديرية التربية والتعليم | G91: 14085لسنة32ق | H91: 2021-06-22 | I91: 3780 | J91: 14280 | K91: 1890 | L91: 1890 | M91: 6200 | N91: 76.8 | O91: 28116.8
A92: 20 | B92: جميل سامى سعد سنبل | C92: 26107032500177 | D92: محكمة القضاء الادارى باسيوط | E92: 104 | F92: وزير التربية والتعليم ـ محافظ اسيوط - وكيل وزارة التربية والتعليم | G92: 16119لسنة32ق | H92: 2021-11-23 | I92: 3768.6 | J92: 14194.92 | K92: 1884 | L92: 1884 | M92: 6281 | N92: 84.14865067 | O92: 28096.66865
A93: 21 | B93: سهير محمد سيد حسن | C93: 25802182500961 | D93: محكمة القضاء الادارى باسيوط | E93: 104 | F93: وزير التربية والتعليم ـ محافظ اسيوط - وكيل وزارة التربية والتعليم | G93: 15051لسنة32ق | H93: 2021-11-23 | I93: 1100.48 | J93: 3851.68 | K93: 550.24 | L93: 550.24 | M93: 2123.73 | N93: 71.55822933 | O93: 8247.928229
A94: 22 | B94: ناديه فورى عرفه جاد | C94: 26105032500042 | D94: محكمة القضاء الادارى باسيوط | E94: 90 | F94: وزير التربية والتعليم ـ محافظة اسيوط - وكيل وزارة التربية والتعليم | G94: 10836لسنة31ق | H94: 2021-02-23 | I94: 3730.56 | J94: 14021.76 | K94: 1865.28 | L94: 1865.28 | M94: 6432 | N94: 88.24704 | O94: 28003.12704
A95: 23 | B95: احلام هاشم على مكرم الله | C95: 26111162500044 | D95: محكمة القضاء الادارى باسيوط | E95: 90 | F95: محافظ اسيوط - وكيل وزارة التربية والتعليم | G95: 10886لسنة32ق | H95: 2021-09-21 | I95: 4083.84 | J95: 15443.16 | K95: 2041.6 | L95: 2041.6 | M95: 6806.93 | N95: 86.87348667 | O95: 30504.00349
A96: 24 | B96: سيد فرغلى عبد العزيز احمد | C96: 26006182500514 | D96: محكمة القضاء الادارى باسيوط | E96: 90 | F96: محافظ اسيوط - وكيل وزارة التربية والتعليم | G96: 4755لسنة32ق | H96: 2021-07-27 | I96: 3517.01 | J96: 14068.98 | K96: 1758.27 | L96: 1758.27 | M96: 5986.8 | N96: 119.456616 | O96: 27208.78662
A97: 25 | B97: سوزان باسيلي قلدس جرجس | C97: 26105032500107 | D97: محكمة القضاء الادارى باسيوط | E97: 104 | F97: محافظ اسيوط - مدير مديرية التربية والتعليم | G97: 25662لسنة32ق | H97: 2021-12-21 | I97: 2876.22 | J97: 10065.32 | K97: 1437.82 | L97: 1437.82 | M97: 4958.5 | N97: 52.441096 | O97: 20828.1211
A98: 26 | B98: نبيل فخرى فرج جرجس | C98: 25910192500576 | D98: محكمة القضاء الادارى باسيوط | E98: 90 | F98: محافظ اسيوط - وكيل وزارة التربية والتعليم | G98: 10651لسنة32ق | H98: 2021-10-19 | I98: 2529.54 | J98: 9210.12 | K98: 1264.77 | L98: 1264.77 | M98: 4107.8 | N98: 89.731648 | O98: 18466.73165
A99: 27 | B99: مصطفى احمد احمد محمود | C99: 25904292500638 | D99: محكمة القضاء الادارى باسيوط | E99: 104 | F99: محافظ اسيوط - وكيل وزارة التربية والتعليم | G99: 23272لسنة32ق | H99: 2021-10-19 | I99: 2094.84 | J99: 7491.02 | K99: 1047.42 | L99: 1047.42 | M99: 3809.1 | N99: 85.96715467 | O99: 15575.76715
A100: 28 | B100: سحر محمد رشدى احمد | C100: 25808012501341 | D100: محكمة القضاء الادارى باسيوط | E100: 104 | F100: محافظ اسيوط - وكيل وزارة التربية والتعليم | G100: 23480لسنة32ق | H100: 2021-10-19 | I100: 2031.5 | J100: 8126 | K100: 1015.75 | L100: 1015.75 | M100: 3250.4 | N100: 140.8506667 | O100: 15580.25067
A101: 29 | B101: ورثة محمود على هلال عويس | C101: 26608052500075 | D101: محكمة القضاء الادارى باسيوط | E101: 104 | F101: محافظ اسيوط - وكيل وزارة التربية والتعليم | G101: 23952لسنة32ق | H101: 2021-10-19 | I101: 1289.4 | J101: 3891.51 | K101: 644.56 | L101: 644.56 | M101: 2149.23 | N101: 45.244432 | O101: 8664.504432
A102: 30 | B102: باسم عبد الحفيظ على محمد | C102: 26110202502332 | D102: محكمة القضاء الادارى باسيوط | E102: 104 | F102: محافظ اسيوط - مدير مديرية التربية والتعليم | G102: 14827لسنة32ق | H102: 2022-01-18 | I102: 4085.55 | J102: 15435.42 | K102: 2042.46 | L102: 2042.46 | M102: 6701.68 | N102: 89.72473067 | O102: 30397.29473
A103: 31 | B103: ابراهيم عبد الهادى عقيلى محمد | C103: 26006122501457 | D103: محكمة القضاء الادارى باسيوط | E103: 104 | F103: محافظ اسيوط - وكيل وزارة التربية والتعليم ـ وزير التربية والتعليم | G103: 26911لسنة32ق | H103: 2021-12-21 | I103: 2108.18 | J103: 6760.48 | K103: 1053.86 | L103: 1053.86 | M103: 3666.8 | N103: 44.808296 | O103: 14687.9883
A104: 32 | B104: ممدوح ثابت ناروز بشاى | C104: 25903302501593 | D104: محكمة القضاء الادارى باسيوط | E104: 104 | F104: محافظ اسيوط - مدير مديرية التربية والتعليم | G104: 16826لسنة32ق | H104: 2022-01-18 | I104: 2284.48 | J104: 8138.96 | K104: 1142.08 | L104: 1142.08 | M104: 4283.7 | N104: 108.7298253 | O104: 17100.02983
A105: 33 | B105: على عبد الظاهر سليمان شعبان | C105: 26112252503316 | D105: محكمة القضاء الادارى باسيوط | E105: 104 | F105: محافظ اسيوط - وكيل وزارة التربية والتعليم | G105: 23684لسنة32ق | H105: 2021-10-19 | I105: 3643.9 | J105: 13790.76 | K105: 1821.95 | L105: 1821.95 | M105: 6166.6 | N105: 67.03281067 | O105: 27312.19281
A106: 34 | B106: ساميه عزيز سعد سنبل | C106: 26112252500147 | D106: محكمة القضاء الادارى باسيوط | E106: 104 | F106: محافظ اسيوط - وكيل وزارة التربية والتعليم | G106: 16799لسنة32ق | H106: 2021-11-23 | I106: 4022.2 | J106: 15222.48 | K106: 2011.1 | L106: 2011.1 | M106: 6806.8 | N106: 81.6816 | O106: 30155.3616
A107: 35 | B107: فاطمه احمد مصطفى احمد | C107: 26005282500426 | D107: محكمة القضاء الادارى باسيوط | E107: 104 | F107: محافظ اسيوط - وكيل وزارة التربية والتعليم ـ وزير التربية والتعليم | G107: 25897لسنة32ق | H107: 2021-12-21 | I107: 2221.65 | J107: 7109.82 | K107: 1110.6 | L107: 1110.6 | M107: 3950 | N107: 52.00833333 | O107: 15554.67833
A108: 36 | B108: نجاح علم الدين احمد السيد | C108: 26001062600106 | D108: محكمة القضاء الادارى باسيوط | E108: 104 | F108: محافظ اسيوط - وكيل وزارة التربية والتعليم | G108: 23103لسنة32ق | H108: 2021-10-19 | I108: 2588.46 | J108: 9490.88 | K108: 1294.02 | L108: 1294.02 | M108: 4519.53 | N108: 81.02290667 | O108: 19267.93291
A109: 37 | B109: ماجده احمد مصطفى محمد | C109: 25909272500048 | D109: محكمة القضاء الادارى باسيوط | E109: 104 | F109: محافظ اسيوط - وكيل وزارة التربية والتعليم | G109: 23333لسنة32ق | H109: 2021-10-19 | I109: 2690.4 | J109: 9770.88 | K109: 1345.2 | L109: 1345.2 | M109: 4248.3 | N109: 106.943872 | O109: 19506.92387
A110: 38 | B110: عفاف حليم غالى نخله | C110: 26011092500063 | D110: محكمة القضاء الادارى باسيوط | E110: 104 | F110: محافظ اسيوط - وكيل وزارة التربية والتعليم | G110: 10381لسنة32ق | H110: 2021-10-19 | I110: 3814.72 | J110: 15258.88 | K110: 1907.36 | L110: 1907.36 | M110: 6357.86 | N110: 114.793728 | O110: 29360.97373
A111: 39 | B111: محمود عبد الله محمد قناوى | C111: 25902142500092 | D111: محكمة القضاء الادارى باسيوط | E111: 104 | F111: محافظ اسيوط - وكيل وزارة التربية والتعليم | G111: 22997لسنة32ق | H111: 2021-10-19 | I111: 1528.3 | J111: 5349.05 | K111: 764.15 | L111: 764.15 | M111: 2793.66 | N111: 51.85045333 | O111: 11251.16045
A112: 40 | B112: هدى فتحى محمود محمد | C112: 25901232500184 | D112: محكمة القضاء الادارى باسيوط | E112: 104 | F112: محافظ اسيوط - وكيل وزارة التربية والتعليم | G112: 23334لسنة32ق | H112: 2021-10-19 | I112: 1912.8 | J112: 6695.1 | K112: 956.4 | L112: 956.4 | M112: 3400.8 | N112: 86.737404 | O112: 14008.2374
A113: 41 | B113: مادلين حليم يني شاروبيم | C113: 25903172500409 | D113: محكمة القضاء الادارى باسيوط | E113: 104 | F113: محافظ اسيوط - وكيل وزارة التربية والتعليم | G113: 10380لسنة32ق | H113: 2021-10-19 | I113: 2330.24 | J113: 9321.6 | K113: 1165.12 | L113: 1165.12 | M113: 4369.5 | N113: 113.14092 | O113: 18464.72092
A114: 42 | B114: انور خلف جندى بخيت | C114: 26001152500194 | D114: محكمة القضاء الادارى باسيوط | E114: 104 | F114: محافظ اسيوط - وكيل وزارة التربية والتعليم | G114: 25269لسنة32ق | H114: 2021-10-19 | I114: 2736.72 | J114: 10034.64 | K114: 1368.36 | L114: 1368.36 | M114: 4778.4 | N114: 90.563712 | O114: 20377.04371
A115: 43 | B115: مجدى محمد احمد السيد | C115: 26008212500193 | D115: محكمة القضاء الادارى باسيوط | E115: 104 | F115: محافظ اسيوط - وكيل وزارة التربية والتعليم ـ مدير ادارة اسيوط التعليمية | G115: 7220لسنة32ق | H115: 2021-10-19 | I115: 3336.41 | J115: 12392.24 | K115: 1667.96 | L115: 1667.96 | M115: 5447.2 | N115: 98.90299467 | O115: 24610.67299
A116: 44 | B116: جيهان حامد عبد العزيزالبيسرى | C116: 26103242500166 | D116: محكمة القضاء الادارى باسيوط | E116: 104 | F116: محافظ اسيوط - وكيل وزارة التربية والتعليم | G116: 10279لسنة32ق | H116: 2021-10-19 | I116: 3462.48 | J116: 12984.16 | K116: 1730.96 | L116: 1730.96 | M116: 6183 | N116: 81.549648 | O116: 26173.10965
A117: 45 | B117: عصام الدين عبد الرحيم مرسى جاد | C117: 26011292500297 | D117: محكمة القضاء الادارى باسيوط | E117: 104 | F117: محافظ اسيوط - وكيل وزارة التربية والتعليم | G117: 23325لسنة32ق | H117: 2021-10-19 | I117: 3811.6 | J117: 15247.44 | K117: 1905.8 | L117: 1905.8 | M117: 6353.1 | N117: 114.629472 | O117: 29338.36947
A118: 0 | B118: الاجمالى | I118: =SUM(I73:I117) -> 125040.91 | J118: =SUM(J73:J117) -> 464563.49 | K118: =SUM(K73:K117) -> 62515.71 | L118: =SUM(L73:L117) -> 62515.71 | M118: =SUM(M73:M117) -> 213096.27 | N118: =SUM(N73:N117) -> 15702.71973 | O118: =SUM(O73:O117) -> 943434.8097
B119: ترى ادارة اسيوط التعليمية : موافقة سيادتكم على تعزيز بند بدل المعلم 4 / 45 وبند بدل الاعتماد 4 / 46 وبند حافز الاداء 3 / 23 وبند الاثابة 3 / 3 وبند المكافاة 3 / 14
B120: وبند الجهود غير العادية لعدد ( 45 ) من المعلمين بادارة اسيوط التعليمية ومدارسها الصادر لهم احكام قضائية باحقيتهم فى صرفها
B121: رفع موافقة سيادتكم لمديرية النظيم والادارة باسيوط للدراسة واتخاذ اللازم
B122: المختص رئيس القسم مدير الموارد البشرية المدير المالى والادارى المدير العام مدير عام الشئون المالية والادارية وكيل الوزارة
A133: 1 | B133: نبيل نجيب فرحان عبد الملاك | C133: 25812232501218 | D133: محكمة القضاء الادارى باسيوط | E133: 104 | F133: محافظ اسيوط - وكيل وزارة التربية والتعليم | G133: 9270لسنة32ق | H133: 2021-10-19 | I133: 2265.77 | J133: 9063.66 | K133: 1132.74 | L133: 1132.74 | M133: 3906.75 | N133: 875 | O133: 18376.66
A134: 2 | B134: عرفات محمود حسن عامر | C134: 26007142501034 | D134: محكمة القضاء الادارى باسيوط | E134: 104 | F134: محافظ اسيوط - وكيل وزارة التربية والتعليم | G134: 23849لسنة32ق | H134: 2021-10-19 | I134: 3353.76 | J134: 12437.68 | K134: 1676.64 | L134: 1676.64 | M134: 5590 | N134: 782.6 | O134: 25517.32
A135: 3 | B135: نبيله منير طه ابراهيم | C135: 26012232502165 | D135: محكمة القضاء الادارى باسيوط | E135: 104 | F135: محافظ اسيوط - وكيل وزارة التربية والتعليم | G135: 10278لسنة32ق | H135: 2021-10-19 | I135: 3834.55 | J135: 15338.2 | K135: 1917.01 | L135: 1917.01 | M135: 6511.5 | N135: 810.32 | O135: 30328.59
A136: 4 | B136: جمال عبد الله ابوزيد محمد | C136: 26204082500696 | D136: محكمة القضاء الادارى باسيوط | E136: 104 | F136: محافظ اسيوط - وكيل وزارة التربية والتعليم | G136: 25049لسنة32ق | H136: 2021-10-19 | I136: 3547.98 | J136: 11698.05 | K136: 1773.99 | L136: 1773.99 | M136: 6170.4 | N136: 575.82 | O136: 25540.23
A137: 5 | B137: مدحت منير فلتس فلتس | C137: 26104242500073 | D137: محكمة القضاء الادارى باسيوط | E137: 104 | F137: محافظ اسيوط - وكيل وزارة التربية والتعليم | G137: 24581لسنة32ق | H137: 2021-10-19 | I137: 3666.24 | J137: 13764.48 | K137: 1833.12 | L137: 1833.12 | M137: 6432 | N137: 720.3 | O137: 28249.26
A138: 6 | B138: وفاء عبد الرحيم تاج الدين عبد الله | C138: 26204152500184 | D138: محكمة القضاء الادارى باسيوط | E138: 104 | F138: محافظ اسيوط - وكيل وزارة التربية والتعليم | G138: 7986لسنة32ق | H138: 2021-10-19 | I138: 4335.27 | J138: 16462.7 | K138: 2167.29 | L138: 2167.29 | M138: 7540.2 | N138: 703.64 | O138: 33376.39
A139: 7 | B139: ايمان ثابت عبده غبريال | C139: 26012222501241 | D139: محكمة القضاء الادارى باسيوط | E139: 104 | F139: محافظ اسيوط - وكيل وزارة التربية والتعليم | G139: 10642لسنة32ق | H139: 2021-10-19 | I139: 3465.14 | J139: 12945.24 | K139: 1732.57 | L139: 1732.57 | M139: 5884.2 | N139: 732.2 | O139: 26491.92
A140: 8 | B140: مرجريت فوزى عبد الملك منصور | C140: 26003152500146 | D140: محكمة القضاء الادارى باسيوط | E140: 104 | F140: محافظ اسيوط - وكيل وزارة التربية والتعليم | G140: 10382لسنة32ق | H140: 2021-10-19 | I140: 2774.2 | J140: 10214.84 | K140: 1386.88 | L140: 1386.88 | M140: 5044.4 | N140: 706.16 | O140: 21513.36
A141: 9 | B141: عبد الحكيم عبد العاطى محمد عبد العاطى | C141: 26007292500095 | D141: محكمة القضاء الادارى باسيوط | E141: 104 | F141: محافظ اسيوط - وكيل وزارة التربية والتعليم | G141: 24127لسنة32ق | H141: 2021-10-19 | I141: 3134.4 | J141: 11623.4 | K141: 1567.2 | L141: 1567.2 | M141: 5224 | N141: 731.36 | O141: 23847.56
A142: 10 | B142: فايقه عبد الجواد فراج على | C142: 26102152500268 | D142: محكمة القضاء الادارى باسيوط | E142: 104 | F142: محافظ اسيوط - وكيل وزارة التربية والتعليم | G142: 24131لسنة32ق | H142: 2021-10-19 | I142: 3212.55 | J142: 12032.32 | K142: 1606 | L142: 1606 | M142: 5646.3 | N142: 654.08 | O142: 24757.25
A143: 11 | B143: عائشه مصطفى عيسى سيد | C143: 26106052500061 | D143: محكمة القضاء الادارى باسيوط | E143: 104 | F143: محافظ اسيوط - وكيل وزارة التربية والتعليم | G143: 23857لسنة32ق | H143: 2021-10-19 | I143: 3622.6 | J143: 13631.7 | K143: 1811.3 | L143: 1811.3 | M143: 6140.5 | N143: 687.68 | O143: 27705.08
A144: 12 | B144: عيده محمد محمد احمد | C144: 26003282500881 | D144: محكمة القضاء الادارى باسيوط | E144: 104 | F144: محافظ اسيوط - مديرية التربية التربية والتعليم | G144: 8507لسنة32ق | H144: 2021-10-19 | I144: 2724.48 | J144: 10031.04 | K144: 1362.24 | L144: 1362.24 | M144: 4953.6 | N144: 693.42 | O144: 21127.02
A145: 13 | B145: فرغلى محمد فرغلى محمد | C145: 26011272500711 | D145: محكمة القضاء الادارى باسيوط | E145: 104 | F145: محافظ اسيوط - وكيل وزارة التربية والتعليم | G145: 23330لسنة32ق | H145: 2021-10-19 | I145: 2571.92 | J145: 8309.28 | K145: 1285.96 | L145: 1285.96 | M145: 4286.53 | N145: 553.84 | O145: 18293.49
A146: 14 | B146: ناديه محمد فؤاد حمدان | C146: 26101132500061 | D146: محكمة القضاء الادارى باسيوط | E146: 104 | F146: محافظ اسيوط - وكيل وزارة التربية والتعليم | G146: 23114لسنة32ق | H146: 2021-10-19 | I146: 3215.7 | J146: 12028.96 | K146: 1607.58 | L146: 1607.58 | M146: 5558 | N146: 666.96 | O146: 24684.78
A147: 15 | B147: نجوى سيد محمود ابوجبل | C147: 26109012500041 | D147: محكمة القضاء الادارى باسيوط | E147: 104 | F147: محافظ اسيوط - وكيل وزارة التربية والتعليم | G147: 23321لسنة32ق | H147: 2021-10-19 | I147: 4010.78 | J147: 15138.56 | K147: 2005.08 | L147: 2005.08 | M147: 6469.5 | N147: 724.5 | O147: 30353.5
A148: 16 | B148: ايمان توفيق بطرس الياس | C148: 25807112500826 | D148: محكمة القضاء الادارى باسيوط | E148: 104 | F148: محافظ اسيوط - مديرمديرية التربية والتعليم | G148: 23429لسنة32ق | H148: 2021-10-19 | I148: 1804.8 | J148: 7219.68 | K148: 902.4 | L148: 902.4 | M148: 3008.2 | N148: 842.24 | O148: 14679.72
A149: 17 | B149: محسن عبد الفادر احمد الرزاحى | C149: 26205232500114 | D149: محكمة القضاء الادارى باسيوط | E149: 90 | F149: وزير التربية والتعليم ـ محافظ اسيوط - وكيل وزارة التربية والتعليم | G149: 12746لسنة32ق | H149: 2021-06-22 | I149: 2528.4 | J149: 7856.1 | K149: 1264.2 | L149: 1264.2 | M149: 4334.4 | N149: 404.46 | O149: 17651.76
A150: 18 | B150: عاطف بديع توفيق جرجس | C150: 25808252500237 | D150: محكمة القضاء الادارى باسيوط | E150: 90 | F150: محافظ اسيوط ـ مدير مديرية تربية والتعليم | G150: 12125لسنة32ق | H150: 2021-06-22 | I150: 1905 | J150: 7620.5 | K150: 952.5 | L150: 952.5 | M150: 3048.2 | N150: 853.44 | O150: 15332.14
A151: 19 | B151: باسم شكرى وهبه بشاره | C151: 26107212500035 | D151: محكمة القضاء الادارى باسيوط | E151: 90 | F151: محافظ اسيوط - وكيل وزارة التربية والتعليم | G151: 12848لسنة32ق | H151: 2021-06-22 | I151: 2749.8 | J151: 8983.44 | K151: 1374.6 | L151: 1374.6 | M151: 4583.5 | N151: 44.808296 | O151: 19110.7483
A152: 20 | B152: جانيت صبحي حكيم دميان | C152: 25911012402403 | D152: محكمة القضاء الادارى باسيوط | E152: 90 | F152: محافظ اسيوط ـ مدير مديرية تربية والتعليم | G152: 12119لسنة32ق | H152: 2021-06-22 | I152: 2538 | J152: 9263.56 | K152: 1268.8 | L152: 1268.8 | M152: 4230 | N152: 85.88592 | O152: 18655.04592
A153: 21 | B153: طلعت على عبد الرحمن احمد | C153: 25812272500419 | D153: محكمة القضاء الادارى باسيوط | E153: 90 | F153: محافظ اسيوط - وكيل وزارة التربية والتعليم | G153: 11556لسنة32ق | H153: 2021-06-22 | I153: 1359.23 | J153: 4101.42 | K153: 679.47 | L153: 679.47 | M153: 2343.75 | N153: 46.875 | O153: 9210.215
A154: 22 | B154: سونيا سيد احمد محمد | C154: 25804300101301 | D154: محكمة القضاء الادارى باسيوط | E154: 90 | F154: محافظ اسيوط - وكيل وزارة التربية والتعليم | G154: 12579لسنة32ق | H154: 2021-06-22 | I154: 1326.15 | J154: 4641.84 | K154: 662.97 | L154: 662.97 | M154: 2526.2 | N154: 85.082416 | O154: 9905.212416
A155: 23 | B155: بكر محمد سيد محمد | C155: 26107312500377 | D155: محكمة القضاء الادارى باسيوط | E155: 90 | F155: محافظ اسيوط - وكيل وزارة التربية والتعليم | G155: 14240لسنة32ق | H155: 2021-06-22 | I155: 3877.16 | J155: 14618.8 | K155: 1938.58 | L155: 1938.58 | M155: 6356 | N155: 86.17041067 | O155: 28815.29041
A156: 24 | B156: حسن احمد همام احمد | C156: 26005072500636 | D156: محكمة القضاء الادارى باسيوط | E156: 90 | F156: محافظ اسيوط - وكيل وزارة التربية والتعليم | G156: 12719لسنة32ق | H156: 2021-06-22 | I156: 3004.26 | J156: 11103.48 | K156: 1501.9 | L156: 1501.9 | M156: 5225.2 | N156: 91.00556667 | O156: 22427.74557
A157: 25 | B157: ماهر محمد احمد مصطفى | C157: 26005242500652 | D157: محكمة القضاء الادارى باسيوط | E157: 90 | F157: محافظ اسيوط - وكيل وزارة التربية والتعليم | G157: 12714لسنة32ق | H157: 2021-06-22 | I157: 2923.3 | J157: 10804.28 | K157: 1461.42 | L157: 1461.42 | M157: 5084.4 | N157: 86.163632 | O157: 21820.98363
A158: 26 | B158: عبد الفتاح احمد جاد المولى سعيد | C158: 26012172500915 | D158: محكمة القضاء الادارى باسيوط | E158: 90 | F158: محافظ اسيوط - وكيل وزارة التربية والتعليم | G158: 13416لسنة32ق | H158: 2021-06-22 | I158: 2254.09 | J158: 6762.8 | K158: 1126.78 | L158: 1126.78 | M158: 3828.15 | N158: 38.587752 | O158: 15137.18775
A159: 27 | B159: محمد صلاح الدين عبد اللاه عبد الفتاح | C159: 25907232500972 | D159: محكمة القضاء الادارى باسيوط | E159: 90 | F159: محافظ اسيوط - وكيل وزارة التربية والتعليم | G159: 13549لسنة32ق | H159: 2021-06-22 | I159: 2345.04 | J159: 8208 | K159: 1172.52 | L159: 1172.52 | M159: 3908.7 | N159: 90.525492 | O159: 16897.30549
A160: 28 | B160: حمديه سعد حسن الجنايني | C160: 25908280103043 | D160: محكمة القضاء الادارى باسيوط | E160: 90 | F160: محافظ اسيوط - وكيل وزارة التربية والتعليم | G160: 9890لسنة32ق | H160: 2021-09-21 | I160: 2702.11 | J160: 10808.44 | K160: 1350.87 | L160: 1350.87 | M160: 4381.8 | N160: 113.7710027 | O160: 20707.861
A161: 29 | B161: سامى انور غالى حناوى | C161: 26003152500855 | D161: محكمة القضاء الادارى باسيوط | E161: 90 | F161: محافظ اسيوط - وكيل وزارة التربية والتعليم | G161: 12915لسنة32ق | H161: 2021-06-22 | I161: 3002.56 | J161: 11055.48 | K161: 1501.28 | L161: 1501.28 | M161: 5459.6 | N161: 99.34652133 | O161: 22619.54652
A162: 30 | B162: سنيه سيد عبد الفتاح عثمان | C162: 26105042500423 | D162: محكمة القضاء الادارى باسيوط | E162: 90 | F162: محافظ اسيوط - وكيل وزارة التربية والتعليم | G162: 12732لسنة32ق | H162: 2021-06-22 | I162: 3656.9 | J162: 13745.92 | K162: 1828.16 | L162: 1828.16 | M162: 6305.5 | N162: 84.81317867 | O162: 27449.45318
A163: 31 | B163: صباح توفيق السيد محمد | C163: 26011180400125 | D163: محكمة القضاء الادارى باسيوط | E163: 90 | F163: محافظ اسيوط - وكيل وزارة التربية والتعليم | G163: 12733لسنة32ق | H163: 2021-06-22 | I163: 3453.84 | J163: 12088.96 | K163: 1726.92 | L163: 1726.92 | M163: 5756.83 | N163: 94.12865333 | O163: 24847.59865
A164: 32 | B164: سناءجميل مرزوق عبد الملك | C164: 25907172501389 | D164: محكمة القضاء الادارى باسيوط | E164: 90 | F164: محافظ اسيوط - وكيل وزارة التربية والتعليم | G164: 11903لسنة32ق | H164: 2021-06-22 | I164: 2711.16 | J164: 10846.08 | K164: 1355.76 | L164: 1355.76 | M164: 4519.2 | N164: 121.0141333 | O164: 20908.97413
A165: 33 | B165: سيد محمود عبد المطلب احمد | C165: 26002212500675 | D165: محكمة القضاء الادارى باسيوط | E165: 90 | F165: محافظ اسيوط - وكيل وزارة التربية والتعليم | G165: 12444لسنة32ق | H165: 2021-06-22 | I165: 2724.05 | J165: 10010.02 | K165: 1361.81 | L165: 1361.81 | M165: 4857.21 | N165: 85.62217067 | O165: 20400.52217
A166: 34 | B166: سهير على عبد الله عمار | C166: 25906212500147 | D166: محكمة القضاء الادارى باسيوط | E166: 90 | F166: محافظ اسيوط - وكيل وزارة التربية والتعليم | G166: 9889لسنة32ق | H166: 2021-09-21 | I166: 2554.65 | J166: 10218.6 | K166: 1277.15 | L166: 1277.15 | M166: 4379.4 | N166: 113.650296 | O166: 19820.6003
A167: 35 | B167: سوسو احمد محمود احمد | C167: 25810122500582 | D167: محكمة القضاء الادارى باسيوط | E167: 90 | F167: محافظ اسيوط - وكيل وزارة التربية والتعليم | G167: 7901لسنة32ق | H167: 2021-09-21 | I167: 1191.51 | J167: 3574.8 | K167: 595.62 | L167: 595.62 | M167: 1912.51 | N167: 41.54574667 | O167: 7911.605747
A168: 36 | B168: اسامه فوزى فهيم حنا | C168: 26008202500217 | D168: محكمة القضاء الادارى باسيوط | E168: 90 | F168: محافظ اسيوط - وكيل وزارة التربية والتعليم | G168: 7646لسنة32ق | H168: 2021-08-24 | I168: 2938.04 | J168: 10913.42 | K168: 1469.02 | L168: 1469.02 | M168: 4797.2 | N168: 76.707228 | O168: 21663.40723
A169: 37 | B169: سلوى سيد جمال الدين محمد | C169: 26004072500087 | D169: محكمة القضاء الادارى باسيوط | E169: 90 | F169: محافظ اسيوط - وكيل وزارة التربية والتعليم | G169: 7343لسنة32ق | H169: 2021-08-24 | I169: 3162.6 | J169: 11667.1 | K169: 1581.3 | L169: 1581.3 | M169: 5622.8 | N169: 105.371272 | O169: 23720.47127
A170: 38 | B170: عادل عبد الحافظ محمدعثمان | C170: 25704242500697 | D170: محكمة القضاء الادارى باسيوط | E170: 90 | F170: محافظ اسيوط - وكيل وزارة التربية والتعليم | G170: 7644لسنة32ق | H170: 2021-08-24 | I170: 736.02 | J170: 2944.08 | K170: 368.01 | L170: 368.01 | M170: 1635.6 | N170: 142.667936 | O170: 6194.387936
A171: 39 | B171: عاطف شاكرغالى داود | C171: 25812092500593 | D171: محكمة القضاء الادارى باسيوط | E171: 90 | F171: محافظ اسيوط - وكيل وزارة التربية والتعليم | G171: 5304لسنة32ق | H171: 2021-08-24 | I171: 1601.09 | J171: 5604.25 | K171: 800.4 | L171: 800.4 | M171: 2760.75 | N171: 65.035908 | O171: 11631.92591
A172: 40 | B172: محمد غريب احمد سعيد | C172: 26008272500036 | D172: محكمة القضاء الادارى باسيوط | E172: 90 | F172: محافظ اسيوط - وكيل وزارة التربية والتعليم | G172: 7645لسنة32ق | H172: 2021-08-24 | I172: 3101.7 | J172: 11521.3 | K172: 1550.85 | L172: 1550.85 | M172: 5064.4 | N172: 85.487072 | O172: 22874.58707
A173: 41 | B173: ماجده عبد الفتاح محمد على | C173: 26005010103401 | D173: محكمة القضاء الادارى باسيوط | E173: 90 | F173: محافظ اسيوط - وكيل وزارة التربية والتعليم | G173: 5305لسنة32ق | H173: 2021-08-24 | I173: 2870.86 | J173: 10609.56 | K173: 1435.2 | L173: 1435.2 | M173: 4992.8 | N173: 83.080192 | O173: 21426.70019
A174: 42 | B174: حسن ثابت احمد محمد | C174: 25912222500811 | D174: محكمة القضاء الادارى باسيوط | E174: 90 | F174: محافظ اسيوط - وكيل وزارة التربية والتعليم ـ مدير ادارة صدفاالتعليمية | G174: 12445لسنة32ق | H174: 2021-08-24 | I174: 3100.83 | J174: 12403.32 | K174: 1550.21 | L174: 1550.21 | M174: 5294.1 | N174: 122.0164 | O174: 24020.6864
A175: 43 | B175: نور نجيب صليب جاد الله | C175: 25808272401324 | D175: محكمة القضاء الادارى باسيوط | E175: 104 | F175: محافظ اسيوط - وكيل وزارة التربية والتعليم | G175: 27664لسنة32ق | H175: 2021-12-21 | I175: 1655.54 | J175: 6622.62 | K175: 827.77 | L175: 827.77 | M175: 2879.4 | N175: 110.530568 | O175: 12923.63057
A176: 44 | B176: عبد النبي عبد الحميد محمد طه | C176: 26108152500231 | D176: محكمة القضاء الادارى باسيوط | E176: 104 | F176: محافظ اسيوط - وكيل وزارة التربية والتعليم | G176: 25825لسنة32ق | H176: 2021-12-21 | I176: 2744.4 | J176: 8987.91 | K176: 1372.2 | L176: 1372.2 | M176: 4574 | N176: 44.63004267 | O176: 19095.34004
A177: 45 | B177: حسين حسن محمد احمد | C177: 25907012501072 | D177: محكمة القضاء الادارى باسيوط | E177: 104 | F177: محافظ اسيوط - وكيل وزارة التربية والتعليم | G177: 26220لسنة32ق | H177: 2021-12-21 | I177: 2214.1 | J177: 8002.82 | K177: 1107.05 | L177: 1107.05 | M177: 3795.9 | N177: 85.382444 | O177: 16312.30244
A178: 0 | B178: الاجمالى | I178: =SUM(I133:I177) -> 124472.53 | J178: 457528.69 | K178: 62231.32 | L178: 62231.32 | M178: 212823.58 | N178: 15047.92525 | O178: 934335.3653
B179: ترى ادارة اسيوط التعليمية : موافقة سيادتكم على تعزيز بند بدل المعلم 4 / 45 وبند بدل الاعتماد 4 / 46 وبند حافز الاداء 3 / 23 وبند الاثابة 3 / 3 وبند المكافاة 3 / 14
B180: وبند الجهود غير العادية لعدد ( 45 ) من المعلمين بادارة اسيوط التعليمية ومدارسها الصادر لهم احكام قضائية باحقيتهم فى صرفها
B181: رفع موافقة سيادتكم لمديرية النظيم والادارة باسيوط للدراسة واتخاذ اللازم
B182: المختص رئيس القسم مدير الموارد البشرية المدير المالى والادارى المدير العام مدير عام الشئون المالية والادارية وكيل الوزارة
